Workbook

Sheet Menu
B2: TABLERO DE CONTROL 2017 INSTITUTO COLOMBIANO DE BIENESTAR FAMILIAR ICBF MENU
C5: El tablero de control 2017, es la herramienta gerencial para medir los avances de la gestión institucional a nivel nacional, regional y zonal. A continuación se presentan las siguientes opciones para navegar en la herramienta:
C7: Septiembre | F7: Seleccione el mes de corte para revisión de información y de click en el botón gris para actualizar la herramienta
C9: Nacional
C11: Seleccione la opción que desea revisar:
D13: Avances de la gestión institucional a nivel nacional
D14: - Comportamiento Nacional (Tablero de Control, Plan de Acción y Plan Indicativo)
D15: - Plan de Acción Institucional (ranking regional)
D16: - Modelo Integrado de Planeación y Gestión (decreto 2482 de 2012)
D17: - Mapa Estrategico Institucional
D18: - Mapa de Procesos del ICBF
D19: - Analisis general de áreas
D20: - Objetivos SIGE
D21: Comportamiento Plan Indicativo Institucional
D22: Comportamiento SINERGIA
D23: Comportamiento macroregionales
D24: Comportamiento por agregados (indicadores)
D25: Matriz de seguimiento indicadores tablero de control
C27: Áreas
C29: Abastecimiento | F29: Seleccione el área y escoja una de las siguientes opciones
C31: Seleccione la opción que desea revisar:
D33: Comportamiento áreas (ficha)
C35: Regional
C37: Tolima | E37: =+VLOOKUP(C37,Referencias!$W$2:$X$34,2,FALSE) -> Tol | F37: Seleccione la regional y de click en el botón gris para actualizar la información
C39: Seleccione la opción que desea revisar:
D41: Avances de la gestión institucional a nivel regional
D42: =+"- Comportamiento Regional (Tablero de Control, Plan de Acción, Ranking regional, Centros zonales)" -> - Comportamiento Regional (Tablero de Control, Plan de Acción, Ranking regional, Centros zonales)
D43: - Modelo Integrado de Planeación y Gestión (decreto 2482 de 2012)
D44: - Mapa Estrategico Institucional
D45: - Mapa de Procesos del ICBF
D46: ="- Analisis áreas" -> - Analisis áreas
D47: - Objetivos SIGE
D49: =+"- Revisión Centros zonales:" -> - Revisión Centros zonales: | G49: CZ Armenia Norte | K49: =+IFERROR(VLOOKUP($C$37&$G$49,'información graf'!$CR$60:$CU$300,4,FALSE),"") -> 
I50: Seleccione el centro zonal a revisar y de click en el boton verde
D51: Matriz de seguimiento indicadores tablero de control regional

Sheet nacional
C2: TABLERO DE CONTROL 2017 INSTITUTO COLOMBIANO DE BIENESTAR FAMILIAR ICBF SEGUIMIENTO TABLERO DE CONTROL - ANÁLISIS GENERAL
C5: Mes analisis | D5: =+Menu!C7 -> Septiembre | S5: Volver al menú
D6: =+VLOOKUP(D5,Referencias!$A$132:$C$143,3,FALSE) -> Sep | E6: =+VLOOKUP(D6,Referencias!C131:I142,7,FALSE) -> 9
N10: Comportamiento general
N11: T. control | O11: P. Acción | P11: P. Indicativo
L12: 2 | M12: Optimo | N12: =+HLOOKUP($D$6,'información graf'!$BO$3:$BZ$8,2,FALSE) -> 82 | O12: =+HLOOKUP($D$6,'información graf'!$BO$17:$BZ$22,2,FALSE) -> 53 | P12: =+HLOOKUP($D$6,'información graf'!$BO$31:$BZ$36,2,FALSE) -> 44
L13: 3 | M13: Adecuado | N13: =+HLOOKUP($D$6,'información graf'!$BO$3:$BZ$8,3,FALSE) -> 28 | O13: =+HLOOKUP($D$6,'información graf'!$BO$17:$BZ$22,3,FALSE) -> 14 | P13: =+HLOOKUP($D$6,'información graf'!$BO$31:$BZ$36,3,FALSE) -> 8
L14: 4 | M14: En riesgo | N14: =+HLOOKUP($D$6,'información graf'!$BO$3:$BZ$8,4,FALSE) -> 8 | O14: =+HLOOKUP($D$6,'información graf'!$BO$17:$BZ$22,4,FALSE) -> 4 | P14: =+HLOOKUP($D$6,'información graf'!$BO$31:$BZ$36,4,FALSE) -> 1
L15: 5 | M15: Critico | N15: =+HLOOKUP($D$6,'información graf'!$BO$3:$BZ$8,5,FALSE) -> 4 | O15: =+HLOOKUP($D$6,'información graf'!$BO$17:$BZ$22,5,FALSE) -> 2 | P15: =+HLOOKUP($D$6,'información graf'!$BO$31:$BZ$36,5,FALSE) -> 1
L16: 6 | M16: NA | N16: =+HLOOKUP($D$6,'información graf'!$BO$3:$BZ$8,6,FALSE) -> 41 | O16: =+HLOOKUP($D$6,'información graf'!$BO$17:$BZ$22,6,FALSE) -> 25 | P16: =+HLOOKUP($D$6,'información graf'!$BO$31:$BZ$36,6,FALSE) -> 19
L17: 7 | M17: Total | N17: =SUM(N12:N16) -> 163 | O17: =SUM(O12:O16) -> 98 | P17: =SUM(P12:P16) -> 73
M18: Aplicaron en el mes de corte | N18: =+N12+N13+N14+N15 -> 122 | O18: =+O12+O13+O14+O15 -> 73 | P18: =+P12+P13+P14+P15 -> 54 | AG18: Comparación vigencias 2016 - 2017
M19: =+"Corte "&$D$5 -> Corte Septiembre
D20: =+"Corte "&$D$5 -> Corte Septiembre
C23: Tablero de Control | H23: Plan de Acción | M23: Plan Indicativo
AH44: Tablero | AJ44: Ene | AK44: Feb | AL44: Mar | AM44: Abr | AN44: May | AO44: Jun | AP44: Jul | AQ44: Agt | AR44: Sep | AS44: Oct | AT44: Nov | AU44: Dic
AI45: 2016 | AJ45: =+'información graf'!AM4 -> 0.8898165746 | AK45: =+'información graf'!AN4 -> 0.8994929302 | AL45: =+'información graf'!AO4 -> 0.8736798042 | AM45: =+'información graf'!AP4 -> 0.8947459802 | AN45: =+'información graf'!AQ4 -> 0.9466383162 | AO45: =+'información graf'!AR4 -> 0.9071946347 | AP45: =+'información graf'!AS4 -> 0.9565096378 | AQ45: =+'información graf'!AT4 -> 0.9344556856 | AR45: =+'información graf'!AU4 -> 0.8881054546 | AS45: =+'información graf'!AV4 ->  | AT45: =+'información graf'!AW4 ->  | AU45: =+'información graf'!AX4 -> 
AI46: 2017 | AJ46: =+'información graf'!AM5 -> 0.9168138095 | AK46: =+'información graf'!AN5 -> 0.91983321 | AL46: =+'información graf'!AO5 -> 0.9342227543 | AM46: =+'información graf'!AP5 -> 0.8991814865 | AN46: =+'información graf'!AQ5 -> 0.9310953629 | AO46: =+'información graf'!AR5 -> 0.9527783735 | AP46: =+'información graf'!AS5 -> 0.9524510718 | AQ46: =+'información graf'!AT5 -> 0.9310235879 | AR46: =+'información graf'!AU5 -> 0.9378729064 | AS46: =+'información graf'!AV5 ->  | AT46: =+'información graf'!AW5 ->  | AU46: =+'información graf'!AX5 -> 
C47: =+"Corte "&$D$5 -> Corte Septiembre | H47: =+"Corte "&$D$5 -> Corte Septiembre | M47: =+"Corte "&$D$5 -> Corte Septiembre | AI47: ∆ | AJ47: =+IFERROR((AJ46/AJ45)-1,0) -> 0.03034022474 | AK47: =+IFERROR((AK46/AK45)-1,0) -> 0.02261305132 | AL47: 0.06929649723 | AM47: 0.004957279869 | AN47: -0.01641910435 | AO47: 0.05024692282 | AP47: -0.004243099969 | AQ47: -0.003672830929 | AR47: 0.05603777295 | AS47: 0 | AT47: 0 | AU47: 0
T48: 1 | U48: 2 | V48: 3 | W48: 4 | X48: 5 | Y48: 6 | Z48: 7 | AA48: 8 | AB48: 9 | AC48: 10 | AD48: 11 | AE48: 12
T49: Seguimiento mes a mes gestión ICBF | AH49: Plan de Acción | AJ49: Ene | AK49: Feb | AL49: Mar | AM49: Abr | AN49: May | AO49: Jun | AP49: Jul | AQ49: Agt | AR49: Sep | AS49: Oct | AT49: Nov | AU49: Dic
T50: Ene | U50: Feb | V50: Mar | W50: Abr | X50: May | Y50: Jun | Z50: Jul | AA50: Agt | AB50: Sep | AC50: Oct | AD50: Nov | AE50: Dic | AI50: 2016 | AJ50: =+'información graf'!AM8 -> 0.9228336079 | AK50: =+'información graf'!AN8 -> 0.9021204981 | AL50: =+'información graf'!AO8 -> 0.860511883 | AM50: =+'información graf'!AP8 -> 0.8766985052 | AN50: =+'información graf'!AQ8 -> 0.9439473684 | AO50: =+'información graf'!AR8 -> 0.9095145509 | AP50: =+'información graf'!AS8 -> 0.9470518945 | AQ50: =+'información graf'!AT8 -> 0.9424808038 | AR50: =+'información graf'!AU8 -> 0.8763251916 | AS50: =+'información graf'!AV8 ->  | AT50: =+'información graf'!AW8 ->  | AU50: =+'información graf'!AX8 -> 
S51: T. control | T51: =+IFERROR('información graf'!BA4,"") -> 0.9168138095 | U51: =+IFERROR('información graf'!BB4,"") -> 0.91983321 | V51: =+IFERROR('información graf'!BC4,"") -> 0.9342227543 | W51: =+IFERROR('información graf'!BD4,"") -> 0.8991814865 | X51: =+IFERROR('información graf'!BE4,"") -> 0.9310953629 | Y51: =+IFERROR('información graf'!BF4,"") -> 0.9527783735 | Z51: =+IFERROR('información graf'!BG4,"") -> 0.9524510718 | AA51: =+IFERROR('información graf'!BH4,"") -> 0.9310235879 | AB51: =+IFERROR('información graf'!BI4,"") -> 0.9378729064 | AC51: =+IFERROR('información graf'!BJ4,"") ->  | AD51: =+IFERROR('información graf'!BK4,"") ->  | AE51: =+IFERROR('información graf'!BL4,"") ->  | AI51: 2017 | AJ51: =+'información graf'!AM9 -> 0.9090868196 | AK51: =+'información graf'!AN9 -> 0.9101128668 | AL51: =+'información graf'!AO9 -> 0.9427887432 | AM51: =+'información graf'!AP9 -> 0.9168626366 | AN51: =+'información graf'!AQ9 -> 0.926621936 | AO51: =+'información graf'!AR9 -> 0.9595415321 | AP51: =+'información graf'!AS9 -> 0.9610199092 | AQ51: =+'información graf'!AT9 -> 0.9470343563 | AR51: =+'información graf'!AU9 -> 0.9414587656 | AS51: =+'información graf'!AV9 ->  | AT51: =+'información graf'!AW9 ->  | AU51: =+'información graf'!AX9 -> 
S52: Aplican | T52: =IF(T$48<=$E$6,Tablero!BM39,"") -> 12 | U52: =IF(U$48<=$E$6,Tablero!BN39,"") -> 28 | V52: =IF(V$48<=$E$6,Tablero!BO39,"") -> 88 | W52: =IF(W$48<=$E$6,Tablero!BP39,"") -> 59 | X52: =IF(X$48<=$E$6,Tablero!BQ39,"") -> 45 | Y52: =IF(Y$48<=$E$6,Tablero!BR39,"") -> 133 | Z52: =IF(Z$48<=$E$6,Tablero!BS39,"") -> 49 | AA52: =IF(AA$48<=$E$6,Tablero!BT39,"") -> 76 | AB52: =IF(AB$48<=$E$6,Tablero!BU39,"") -> 122 | AC52: =IF(AC$48<=$E$6,Tablero!BV39,"") ->  | AD52: =IF(AD$48<=$E$6,Tablero!BW39,"") ->  | AE52: =IF(AE$48<=$E$6,Tablero!BX39,"") ->  | AI52: ∆ | AJ52: =+IFERROR((AJ51/AJ50)-1,0) -> -0.01489628052 | AK52: 0.008859535599 | AL52: 0.09561385703 | AM52: 0.04581293473 | AN52: -0.01835423558 | AO52: 0.05500404704 | AP52: 0.01474894328 | AQ52: 0.00483145382 | AR52: 0.07432580354 | AS52: 0 | AT52: 0 | AU52: 0
S53: P. Acción | T53: =+IFERROR('información graf'!BA5,"") -> 0.9090868196 | U53: =+IFERROR('información graf'!BB5,"") -> 0.9101128668 | V53: =+IFERROR('información graf'!BC5,"") -> 0.9427887432 | W53: =+IFERROR('información graf'!BD5,"") -> 0.9168626366 | X53: =+IFERROR('información graf'!BE5,"") -> 0.926621936 | Y53: =+IFERROR('información graf'!BF5,"") -> 0.9595415321 | Z53: =+IFERROR('información graf'!BG5,"") -> 0.9610199092 | AA53: =+IFERROR('información graf'!BH5,"") -> 0.9470343563 | AB53: =+IFERROR('información graf'!BI5,"") -> 0.9414587656 | AC53: =+IFERROR('información graf'!BJ5,"") ->  | AD53: =+IFERROR('información graf'!BK5,"") ->  | AE53: =+IFERROR('información graf'!BL5,"") -> 
S54: Aplican | T54: =IF(T$48<=$E$6,Tablero!BM37,"") -> 8 | U54: =IF(U$48<=$E$6,Tablero!BN37,"") -> 13 | V54: =IF(V$48<=$E$6,Tablero!BO37,"") -> 51 | W54: =IF(W$48<=$E$6,Tablero!BP37,"") -> 28 | X54: =IF(X$48<=$E$6,Tablero!BQ37,"") -> 21 | Y54: =IF(Y$48<=$E$6,Tablero!BR37,"") -> 81 | Z54: =IF(Z$48<=$E$6,Tablero!BS37,"") -> 23 | AA54: =IF(AA$48<=$E$6,Tablero!BT37,"") -> 37 | AB54: =IF(AB$48<=$E$6,Tablero!BU37,"") -> 73 | AC54: =IF(AC$48<=$E$6,Tablero!BV37,"") ->  | AD54: =IF(AD$48<=$E$6,Tablero!BW37,"") ->  | AE54: =IF(AE$48<=$E$6,Tablero!BX37,"") ->  | AH54: Plan Indicativo | AJ54: Ene | AK54: Feb | AL54: Mar | AM54: Abr | AN54: May | AO54: Jun | AP54: Jul | AQ54: Agt | AR54: Sep | AS54: Oct | AT54: Nov | AU54: Dic
S55: P. Indicativo | T55: =+IFERROR('información graf'!BA6,"") -> 0.8877481177 | U55: =+IFERROR('información graf'!BB6,"") -> 0.9212335129 | V55: =+IFERROR('información graf'!BC6,"") -> 0.9467881944 | W55: =+IFERROR('información graf'!BD6,"") -> 0.9376021798 | X55: =+IFERROR('información graf'!BE6,"") -> 0.9716250262 | Y55: =+IFERROR('información graf'!BF6,"") -> 0.9697606625 | Z55: =+IFERROR('información graf'!BG6,"") -> 0.9694840339 | AA55: =+IFERROR('información graf'!BH6,"") -> 0.9365035203 | AB55: =+IFERROR('información graf'!BI6,"") -> 0.9674193245 | AC55: =+IFERROR('información graf'!BJ6,"") ->  | AD55: =+IFERROR('información graf'!BK6,"") ->  | AE55: =+IFERROR('información graf'!BL6,"") ->  | AI55: 2016 | AJ55: =+'información graf'!AM12 -> 0.9579930796 | AK55: =+'información graf'!AN12 -> 0.9117946448 | AL55: =+'información graf'!AO12 -> 0.8612113622 | AM55: =+'información graf'!AP12 -> 0.8482058414 | AN55: =+'información graf'!AQ12 -> 0.9641091348 | AO55: =+'información graf'!AR12 -> 0.9082977499 | AP55: =+'información graf'!AS12 -> 0.9395658609 | AQ55: =+'información graf'!AT12 -> 0.935574059 | AR55: =+'información graf'!AU12 -> 0.8636112873 | AS55: =+'información graf'!AV12 ->  | AT55: =+'información graf'!AW12 ->  | AU55: =+'información graf'!AX12 -> 
S56: Aplican | T56: =IF(T$48<=$E$6,Tablero!BM42,"") -> 6 | U56: =IF(U$48<=$E$6,Tablero!BN42,"") -> 7 | V56: =IF(V$48<=$E$6,Tablero!BO42,"") -> 35 | W56: =IF(W$48<=$E$6,Tablero!BP42,"") -> 14 | X56: =IF(X$48<=$E$6,Tablero!BQ42,"") -> 11 | Y56: =IF(Y$48<=$E$6,Tablero!BR42,"") -> 61 | Z56: =IF(Z$48<=$E$6,Tablero!BS42,"") -> 13 | AA56: =IF(AA$48<=$E$6,Tablero!BT42,"") -> 21 | AB56: =IF(AB$48<=$E$6,Tablero!BU42,"") -> 54 | AC56: =IF(AC$48<=$E$6,Tablero!BV42,"") ->  | AD56: =IF(AD$48<=$E$6,Tablero!BW42,"") ->  | AE56: =IF(AE$48<=$E$6,Tablero!BX42,"") ->  | AI56: 2017 | AJ56: =+'información graf'!AM13 -> 0.8877481177 | AK56: =+'información graf'!AN13 -> 0.9212335129 | AL56: =+'información graf'!AO13 -> 0.9467881944 | AM56: =+'información graf'!AP13 -> 0.9376021798 | AN56: =+'información graf'!AQ13 -> 0.9716250262 | AO56: =+'información graf'!AR13 -> 0.9697606625 | AP56: =+'información graf'!AS13 -> 0.9694840339 | AQ56: =+'información graf'!AT13 -> 0.9365035203 | AR56: =+'información graf'!AU13 -> 0.9674193245 | AS56: =+'información graf'!AV13 ->  | AT56: =+'información graf'!AW13 ->  | AU56: =+'información graf'!AX13 -> 
AI57: ∆ | AJ57: =+IFERROR((AJ56/AJ55)-1,0) -> -0.07332512453 | AK57: 0.010351967 | AL57: 0.09936797862 | AM57: 0.1053946271 | AN57: 0.007795685377 | AO57: 0.06766824265 | AP57: 0.03184255014 | AQ57: 0.0009934662975 | AR57: 0.1202022701 | AS57: 0 | AT57: 0 | AU57: 0
C65: Plan de Acción Institucional | U65: Resultados Plan de Acción frente a la vigencia
M78: Ranking Regional
C93: Macroregiones
S96: % Cumplimiento | U96: =+'información graf'!CN30 -> 0.9640817349 | V96: =+'información graf'!CN31 -> 1 | W96: =+'información graf'!CN32 -> 0.9695431472 | X96: =+'información graf'!CN33 -> 0.9770345311 | Y96: =+'información graf'!CN34 -> 0.9267146974 | Z96: =+'información graf'!CN35 -> 1 | AA96: =+'información graf'!CN36 -> 0.7707265941 | AB96: =+'información graf'!CN37 -> 1 | AC96: =+'información graf'!CN38 -> 1 | AD96: =+'información graf'!CN39 -> 1 | AE96: =+'información graf'!CN40 -> 0.7022265779 | AF96: =+'información graf'!CN41 -> 0.9 | AG96: =+'información graf'!CN42 -> 0.9221183013 | AH96: =+'información graf'!CN43 -> 0.9401913876 | AI96: =+'información graf'!CN44 -> 0.9808748762 | AJ96: =+'información graf'!CN45 -> 1 | AK96: =+'información graf'!CN46 -> 1 | AL96: =+'información graf'!CN47 -> 1 | AM96: =+'información graf'!CN48 -> 1 | AN96: =+'información graf'!CN49 -> 0.875 | AO96: =+'información graf'!CN50 -> 0.8371929825 | AP96: =+'información graf'!CN51 -> 0.9478358716
I116: Pacífico | J116: =+'información graf'!CP63 -> 0.959279548
I117: Centro Sur | J117: =+'información graf'!CP64 -> 0.9598328714
I118: Llanos | J118: =+'información graf'!CP65 -> 0.934879962
I119: Eje Cafetero | J119: =+'información graf'!CP66 -> 0.9683544531
I120: Caribe | J120: =+'información graf'!CP67 -> 0.9133286782
I121: Centro Oriente | J121: =+'información graf'!CP68 -> 0.9349366451
C127: Modelo Integrado de Planeación y Gestión - decreto 2482 de 2012, DAFP | AW127: Gestión misional y de Gobierno | BC127: Transparencia, participación y servicio al ciudadano | BJ127: Gestión del talento humano
T129: optimo | U129: adecuado | V129: en riesgo | W129: critico | X129: NA
H130: Líneas de politica | J130: Componentes | S130: Comportamiento agregado de indicadores
Y131: Total
M132: LP1 | N132: Gestión misional y de gobierno | S132: LP1 | T132: =+T133 -> 37 | U132: 7 | V132: 3 | W132: 1 | X132: 15 | Y132: 63
N133: LP1-C1 | O133: Indicadores y metas de Gobierno | S133: LP1-C1 | T133: =+VLOOKUP($S133&T$129,'td1'!$EX$169:$FJ$258,'información graf'!$G$2,FALSE) -> 37 | U133: =+VLOOKUP($S133&U$129,'td1'!$EX$169:$FJ$258,'información graf'!$G$2,FALSE) -> 7 | V133: =+VLOOKUP($S133&V$129,'td1'!$EX$169:$FJ$258,'información graf'!$G$2,FALSE) -> 3 | W133: =+VLOOKUP($S133&W$129,'td1'!$EX$169:$FJ$258,'información graf'!$G$2,FALSE) -> 1 | X133: =+VLOOKUP($S133&X$129,'td1'!$EX$169:$FJ$258,'información graf'!$G$2,FALSE) -> 15 | Y133: =+SUM(T133:X133) -> 63
M134: LP2 | N134: Transparencia, participación y servicio al ciudadano | S134: LP2 | T134: =+T135+T136+T137+T138 -> 5 | U134: 4 | V134: 0 | W134: 0 | X134: 3 | Y134: 12
N135: LP2-C2 | O135: Participación Ciudadana en la Gestión | S135: LP2-C2 | T135: =+VLOOKUP($S135&T$129,'td1'!$EX$169:$FJ$258,'información graf'!$G$2,FALSE) -> 3 | U135: =+VLOOKUP($S135&U$129,'td1'!$EX$169:$FJ$258,'información graf'!$G$2,FALSE) -> 0 | V135: =+VLOOKUP($S135&V$129,'td1'!$EX$169:$FJ$258,'información graf'!$G$2,FALSE) -> 0 | W135: =+VLOOKUP($S135&W$129,'td1'!$EX$169:$FJ$258,'información graf'!$G$2,FALSE) -> 0 | X135: =+VLOOKUP($S135&X$129,'td1'!$EX$169:$FJ$258,'información graf'!$G$2,FALSE) -> 3 | Y135: =+SUM(T135:X135) -> 6
N136: LP2-C3 | O136: Rendición de Cuentas a la ciudadania | S136: LP2-C3 | T136: =+VLOOKUP($S136&T$129,'td1'!$EX$169:$FJ$258,'información graf'!$G$2,FALSE) -> 0 | U136: =+VLOOKUP($S136&U$129,'td1'!$EX$169:$FJ$258,'información graf'!$G$2,FALSE) -> 1 | V136: =+VLOOKUP($S136&V$129,'td1'!$EX$169:$FJ$258,'información graf'!$G$2,FALSE) -> 0 | W136: =+VLOOKUP($S136&W$129,'td1'!$EX$169:$FJ$258,'información graf'!$G$2,FALSE) -> 0 | X136: =+VLOOKUP($S136&X$129,'td1'!$EX$169:$FJ$258,'información graf'!$G$2,FALSE) -> 0 | Y136: =+SUM(T136:X136) -> 1
N137: LP2-C4 | O137: Servicio al Ciudadano | S137: LP2-C4 | T137: =+VLOOKUP($S137&T$129,'td1'!$EX$169:$FJ$258,'información graf'!$G$2,FALSE) -> 1 | U137: =+VLOOKUP($S137&U$129,'td1'!$EX$169:$FJ$258,'información graf'!$G$2,FALSE) -> 2 | V137: =+VLOOKUP($S137&V$129,'td1'!$EX$169:$FJ$258,'información graf'!$G$2,FALSE) -> 0 | W137: =+VLOOKUP($S137&W$129,'td1'!$EX$169:$FJ$258,'información graf'!$G$2,FALSE) -> 0 | X137: =+VLOOKUP($S137&X$129,'td1'!$EX$169:$FJ$258,'información graf'!$G$2,FALSE) -> 0 | Y137: =+SUM(T137:X137) -> 3
N138: LP2-C5 | O138: Plan Anticorrupción y de Atención al Ciudadano | S138: LP2-C5 | T138: =+VLOOKUP($S138&T$129,'td1'!$EX$169:$FJ$258,'información graf'!$G$2,FALSE) -> 1 | U138: =+VLOOKUP($S138&U$129,'td1'!$EX$169:$FJ$258,'información graf'!$G$2,FALSE) -> 1 | V138: =+VLOOKUP($S138&V$129,'td1'!$EX$169:$FJ$258,'información graf'!$G$2,FALSE) -> 0 | W138: =+VLOOKUP($S138&W$129,'td1'!$EX$169:$FJ$258,'información graf'!$G$2,FALSE) -> 0 | X138: =+VLOOKUP($S138&X$129,'td1'!$EX$169:$FJ$258,'información graf'!$G$2,FALSE) -> 0 | Y138: =+SUM(T138:X138) -> 2
M139: LP3 | N139: Gestión del talento humano | S139: LP3 | T139: =+T140+T141+T142+T143 -> 1 | U139: 0 | V139: 0 | W139: 1 | X139: 2 | Y139: 4
N140: LP3-C1 | O140: Plan Estratégico de Recursos Humanos | S140: LP3-C1 | T140: =+VLOOKUP($S140&T$129,'td1'!$EX$169:$FJ$258,'información graf'!$G$2,FALSE) -> 1 | U140: =+VLOOKUP($S140&U$129,'td1'!$EX$169:$FJ$258,'información graf'!$G$2,FALSE) -> 0 | V140: =+VLOOKUP($S140&V$129,'td1'!$EX$169:$FJ$258,'información graf'!$G$2,FALSE) -> 0 | W140: =+VLOOKUP($S140&W$129,'td1'!$EX$169:$FJ$258,'información graf'!$G$2,FALSE) -> 0 | X140: =+VLOOKUP($S140&X$129,'td1'!$EX$169:$FJ$258,'información graf'!$G$2,FALSE) -> 0 | Y140: =+SUM(T140:X140) -> 1
N141: LP3-C2 | O141: Plan Anual de Vacantes | S141: LP3-C2 | T141: =+VLOOKUP($S141&T$129,'td1'!$EX$169:$FJ$258,'información graf'!$G$2,FALSE) -> 0 | U141: =+VLOOKUP($S141&U$129,'td1'!$EX$169:$FJ$258,'información graf'!$G$2,FALSE) -> 0 | V141: =+VLOOKUP($S141&V$129,'td1'!$EX$169:$FJ$258,'información graf'!$G$2,FALSE) -> 0 | W141: =+VLOOKUP($S141&W$129,'td1'!$EX$169:$FJ$258,'información graf'!$G$2,FALSE) -> 1 | X141: =+VLOOKUP($S141&X$129,'td1'!$EX$169:$FJ$258,'información graf'!$G$2,FALSE) -> 0 | Y141: =+SUM(T141:X141) -> 1
N142: LP3-C3 | O142: Capacitación | S142: LP3-C3 | T142: =+VLOOKUP($S142&T$129,'td1'!$EX$169:$FJ$258,'información graf'!$G$2,FALSE) -> 0 | U142: =+VLOOKUP($S142&U$129,'td1'!$EX$169:$FJ$258,'información graf'!$G$2,FALSE) -> 0 | V142: =+VLOOKUP($S142&V$129,'td1'!$EX$169:$FJ$258,'información graf'!$G$2,FALSE) -> 0 | W142: =+VLOOKUP($S142&W$129,'td1'!$EX$169:$FJ$258,'información graf'!$G$2,FALSE) -> 0 | X142: =+VLOOKUP($S142&X$129,'td1'!$EX$169:$FJ$258,'información graf'!$G$2,FALSE) -> 1 | Y142: =+SUM(T142:X142) -> 1
N143: LP3-C4 | O143: Bienestar e Incentivos | S143: LP3-C4 | T143: =+VLOOKUP($S143&T$129,'td1'!$EX$169:$FJ$258,'información graf'!$G$2,FALSE) -> 0 | U143: =+VLOOKUP($S143&U$129,'td1'!$EX$169:$FJ$258,'información graf'!$G$2,FALSE) -> 0 | V143: =+VLOOKUP($S143&V$129,'td1'!$EX$169:$FJ$258,'información graf'!$G$2,FALSE) -> 0 | W143: =+VLOOKUP($S143&W$129,'td1'!$EX$169:$FJ$258,'información graf'!$G$2,FALSE) -> 0 | X143: =+VLOOKUP($S143&X$129,'td1'!$EX$169:$FJ$258,'información graf'!$G$2,FALSE) -> 1 | Y143: =+SUM(T143:X143) -> 1
M144: LP4 | N144: Eficiencia administrativa | S144: LP4 | T144: =+T145+T146+T147+T148+T149+T150 -> 5 | U144: 3 | V144: 1 | W144: 0 | X144: 5 | Y144: 14 | AZ144: Eficiencia administrativa | BI144: Gestión financiera
N145: LP4-C1 | O145: Gestión de la Calidad | S145: LP4-C1 | T145: =+VLOOKUP($S145&T$129,'td1'!$EX$169:$FJ$258,'información graf'!$G$2,FALSE) -> 4 | U145: =+VLOOKUP($S145&U$129,'td1'!$EX$169:$FJ$258,'información graf'!$G$2,FALSE) -> 2 | V145: =+VLOOKUP($S145&V$129,'td1'!$EX$169:$FJ$258,'información graf'!$G$2,FALSE) -> 1 | W145: =+VLOOKUP($S145&W$129,'td1'!$EX$169:$FJ$258,'información graf'!$G$2,FALSE) -> 0 | X145: =+VLOOKUP($S145&X$129,'td1'!$EX$169:$FJ$258,'información graf'!$G$2,FALSE) -> 1 | Y145: =+SUM(T145:X145) -> 8
N146: LP4-C2 | O146: Eficiencia Administrativa y Cero Papel | S146: LP4-C2 | T146: =+VLOOKUP($S146&T$129,'td1'!$EX$169:$FJ$258,'información graf'!$G$2,FALSE) -> 0 | U146: =+VLOOKUP($S146&U$129,'td1'!$EX$169:$FJ$258,'información graf'!$G$2,FALSE) -> 0 | V146: =+VLOOKUP($S146&V$129,'td1'!$EX$169:$FJ$258,'información graf'!$G$2,FALSE) -> 0 | W146: =+VLOOKUP($S146&W$129,'td1'!$EX$169:$FJ$258,'información graf'!$G$2,FALSE) -> 0 | X146: =+VLOOKUP($S146&X$129,'td1'!$EX$169:$FJ$258,'información graf'!$G$2,FALSE) -> 1 | Y146: 1
N147: LP4-C3 | O147: Racionalización de Trámites | S147: LP4-C3 | T147: =+VLOOKUP($S147&T$129,'td1'!$EX$169:$FJ$258,'información graf'!$G$2,FALSE) -> 0 | U147: =+VLOOKUP($S147&U$129,'td1'!$EX$169:$FJ$258,'información graf'!$G$2,FALSE) -> 0 | V147: =+VLOOKUP($S147&V$129,'td1'!$EX$169:$FJ$258,'información graf'!$G$2,FALSE) -> 0 | W147: =+VLOOKUP($S147&W$129,'td1'!$EX$169:$FJ$258,'información graf'!$G$2,FALSE) -> 0 | X147: =+VLOOKUP($S147&X$129,'td1'!$EX$169:$FJ$258,'información graf'!$G$2,FALSE) -> 1 | Y147: 1
N148: LP4-C4 | O148: Modernización Institucional | S148: LP4-C4 | T148: =+VLOOKUP($S148&T$129,'td1'!$EX$169:$FJ$258,'información graf'!$G$2,FALSE) -> 0 | U148: =+VLOOKUP($S148&U$129,'td1'!$EX$169:$FJ$258,'información graf'!$G$2,FALSE) -> 0 | V148: =+VLOOKUP($S148&V$129,'td1'!$EX$169:$FJ$258,'información graf'!$G$2,FALSE) -> 0 | W148: =+VLOOKUP($S148&W$129,'td1'!$EX$169:$FJ$258,'información graf'!$G$2,FALSE) -> 0 | X148: =+VLOOKUP($S148&X$129,'td1'!$EX$169:$FJ$258,'información graf'!$G$2,FALSE) -> 1 | Y148: 1
N149: LP4-C5 | O149: Gestión de Tecnologías de información | S149: LP4-C5 | T149: =+VLOOKUP($S149&T$129,'td1'!$EX$169:$FJ$258,'información graf'!$G$2,FALSE) -> 1 | U149: =+VLOOKUP($S149&U$129,'td1'!$EX$169:$FJ$258,'información graf'!$G$2,FALSE) -> 1 | V149: =+VLOOKUP($S149&V$129,'td1'!$EX$169:$FJ$258,'información graf'!$G$2,FALSE) -> 0 | W149: =+VLOOKUP($S149&W$129,'td1'!$EX$169:$FJ$258,'información graf'!$G$2,FALSE) -> 0 | X149: =+VLOOKUP($S149&X$129,'td1'!$EX$169:$FJ$258,'información graf'!$G$2,FALSE) -> 0 | Y149: 2
N150: LP4-C6 | O150: Gestión Documental | S150: LP4-C6 | T150: =+VLOOKUP($S150&T$129,'td1'!$EX$169:$FJ$258,'información graf'!$G$2,FALSE) -> 0 | U150: =+VLOOKUP($S150&U$129,'td1'!$EX$169:$FJ$258,'información graf'!$G$2,FALSE) -> 0 | V150: =+VLOOKUP($S150&V$129,'td1'!$EX$169:$FJ$258,'información graf'!$G$2,FALSE) -> 0 | W150: =+VLOOKUP($S150&W$129,'td1'!$EX$169:$FJ$258,'información graf'!$G$2,FALSE) -> 0 | X150: =+VLOOKUP($S150&X$129,'td1'!$EX$169:$FJ$258,'información graf'!$G$2,FALSE) -> 1 | Y150: 1
M151: LP5 | N151: Gestión financiera | S151: LP5 | T151: =+T152+T153+T154+T155 -> 5 | U151: 0 | V151: 0 | W151: 0 | X151: 0 | Y151: 5
N152: LP5-C1 | O152: Programación y Ejecución Presupuestal | S152: LP5-C1 | T152: =+VLOOKUP($S152&T$129,'td1'!$EX$169:$FJ$258,'información graf'!$G$2,FALSE) -> 2 | U152: =+VLOOKUP($S152&U$129,'td1'!$EX$169:$FJ$258,'información graf'!$G$2,FALSE) -> 0 | V152: =+VLOOKUP($S152&V$129,'td1'!$EX$169:$FJ$258,'información graf'!$G$2,FALSE) -> 0 | W152: =+VLOOKUP($S152&W$129,'td1'!$EX$169:$FJ$258,'información graf'!$G$2,FALSE) -> 0 | X152: =+VLOOKUP($S152&X$129,'td1'!$EX$169:$FJ$258,'información graf'!$G$2,FALSE) -> 0 | Y152: =+SUM(T152:X152) -> 2
N153: LP5-C2 | O153: Programa Anual Mensualizado de Caja – PAC | S153: LP5-C2 | T153: =+VLOOKUP($S153&T$129,'td1'!$EX$169:$FJ$258,'información graf'!$G$2,FALSE) -> 2 | U153: =+VLOOKUP($S153&U$129,'td1'!$EX$169:$FJ$258,'información graf'!$G$2,FALSE) -> 0 | V153: =+VLOOKUP($S153&V$129,'td1'!$EX$169:$FJ$258,'información graf'!$G$2,FALSE) -> 0 | W153: =+VLOOKUP($S153&W$129,'td1'!$EX$169:$FJ$258,'información graf'!$G$2,FALSE) -> 0 | X153: =+VLOOKUP($S153&X$129,'td1'!$EX$169:$FJ$258,'información graf'!$G$2,FALSE) -> 0 | Y153: =+SUM(T153:X153) -> 2
N154: LP5-C4 | O154: Plan Anual de Adquisiciones (PAA) | S154: LP5-C4 | T154: =+VLOOKUP($S154&T$129,'td1'!$EX$169:$FJ$258,'información graf'!$G$2,FALSE) -> 1 | U154: =+VLOOKUP($S154&U$129,'td1'!$EX$169:$FJ$258,'información graf'!$G$2,FALSE) -> 0 | V154: =+VLOOKUP($S154&V$129,'td1'!$EX$169:$FJ$258,'información graf'!$G$2,FALSE) -> 0 | W154: =+VLOOKUP($S154&W$129,'td1'!$EX$169:$FJ$258,'información graf'!$G$2,FALSE) -> 0 | X154: =+VLOOKUP($S154&X$129,'td1'!$EX$169:$FJ$258,'información graf'!$G$2,FALSE) -> 0 | Y154: =+SUM(T154:X154) -> 1
S156: Total | T156: =+T132+T134+T139+T144+T151 -> 53 | U156: 14 | V156: 4 | W156: 2 | X156: 25 | Y156: 98
T157: =+T156/$Y$156 -> 0.5408163265 | U157: =+U156/$Y$156 -> 0.1428571429 | V157: =+V156/$Y$156 -> 0.04081632653 | W157: =+W156/$Y$156 -> 0.02040816327 | X157: =+X156/$Y$156 -> 0.2551020408
C163: Mapa Estratégico 2015 -2018
U164: Categoria | Y164: Perspectivas
C166: =+"Corte "&$D$5 -> Corte Septiembre
AI173: Comportamiento agregado de indicadores
AI174: 7 | AJ174: optimo | AK174: adecuado | AL174: en riesgo | AM174: critico | AN174: NA
AO175: Total
AH176: Servicios | AJ176: =+SUM(AJ177:AJ181) -> 35 | AK176: =+SUM(AK177:AK181) -> 16 | AL176: =+SUM(AL177:AL181) -> 4 | AM176: =+SUM(AM177:AM181) -> 0 | AN176: =+SUM(AN177:AN181) -> 11 | AO176: =+SUM(AJ176:AN176) -> 66
AI177: PS1 | AJ177: =+VLOOKUP($AI177&AJ$174,'td1'!$EH$169:$ET$228,'información graf'!$G$2,FALSE) -> 11 | AK177: =+VLOOKUP($AI177&AK$174,'td1'!$EH$169:$ET$228,'información graf'!$G$2,FALSE) -> 3 | AL177: =+VLOOKUP($AI177&AL$174,'td1'!$EH$169:$ET$228,'información graf'!$G$2,FALSE) -> 1 | AM177: =+VLOOKUP($AI177&AM$174,'td1'!$EH$169:$ET$228,'información graf'!$G$2,FALSE) -> 0 | AN177: =+VLOOKUP($AI177&AN$174,'td1'!$EH$169:$ET$228,'información graf'!$G$2,FALSE) -> 2 | AO177: =+SUM(AJ177:AN177) -> 17
AI178: PS2 | AJ178: =+VLOOKUP($AI178&AJ$174,'td1'!$EH$169:$ET$228,'información graf'!$G$2,FALSE) -> 6 | AK178: =+VLOOKUP($AI178&AK$174,'td1'!$EH$169:$ET$228,'información graf'!$G$2,FALSE) -> 2 | AL178: =+VLOOKUP($AI178&AL$174,'td1'!$EH$169:$ET$228,'información graf'!$G$2,FALSE) -> 0 | AM178: =+VLOOKUP($AI178&AM$174,'td1'!$EH$169:$ET$228,'información graf'!$G$2,FALSE) -> 0 | AN178: =+VLOOKUP($AI178&AN$174,'td1'!$EH$169:$ET$228,'información graf'!$G$2,FALSE) -> 2 | AO178: 10
AI179: PS3 | AJ179: =+VLOOKUP($AI179&AJ$174,'td1'!$EH$169:$ET$228,'información graf'!$G$2,FALSE) -> 5 | AK179: =+VLOOKUP($AI179&AK$174,'td1'!$EH$169:$ET$228,'información graf'!$G$2,FALSE) -> 2 | AL179: =+VLOOKUP($AI179&AL$174,'td1'!$EH$169:$ET$228,'información graf'!$G$2,FALSE) -> 0 | AM179: =+VLOOKUP($AI179&AM$174,'td1'!$EH$169:$ET$228,'información graf'!$G$2,FALSE) -> 0 | AN179: =+VLOOKUP($AI179&AN$174,'td1'!$EH$169:$ET$228,'información graf'!$G$2,FALSE) -> 1 | AO179: 8
AI180: PS4 | AJ180: =+VLOOKUP($AI180&AJ$174,'td1'!$EH$169:$ET$228,'información graf'!$G$2,FALSE) -> 4 | AK180: =+VLOOKUP($AI180&AK$174,'td1'!$EH$169:$ET$228,'información graf'!$G$2,FALSE) -> 1 | AL180: =+VLOOKUP($AI180&AL$174,'td1'!$EH$169:$ET$228,'información graf'!$G$2,FALSE) -> 0 | AM180: =+VLOOKUP($AI180&AM$174,'td1'!$EH$169:$ET$228,'información graf'!$G$2,FALSE) -> 0 | AN180: =+VLOOKUP($AI180&AN$174,'td1'!$EH$169:$ET$228,'información graf'!$G$2,FALSE) -> 3 | AO180: 8
AI181: PS5 | AJ181: =+VLOOKUP($AI181&AJ$174,'td1'!$EH$169:$ET$228,'información graf'!$G$2,FALSE) -> 9 | AK181: =+VLOOKUP($AI181&AK$174,'td1'!$EH$169:$ET$228,'información graf'!$G$2,FALSE) -> 8 | AL181: =+VLOOKUP($AI181&AL$174,'td1'!$EH$169:$ET$228,'información graf'!$G$2,FALSE) -> 3 | AM181: =+VLOOKUP($AI181&AM$174,'td1'!$EH$169:$ET$228,'información graf'!$G$2,FALSE) -> 0 | AN181: =+VLOOKUP($AI181&AN$174,'td1'!$EH$169:$ET$228,'información graf'!$G$2,FALSE) -> 3 | AO181: 23
AH182: Procesos | AJ182: =+SUM(AJ183:AJ186) -> 16 | AK182: =+SUM(AK183:AK186) -> 5 | AL182: =+SUM(AL183:AL186) -> 3 | AM182: =+SUM(AM183:AM186) -> 2 | AN182: =+SUM(AN183:AN186) -> 21 | AO182: 47
T183: =+"Corte "&$D$5 -> Corte Septiembre | AI183: PP1 | AJ183: =+VLOOKUP($AI183&AJ$174,'td1'!$EH$169:$ET$228,'información graf'!$G$2,FALSE) -> 9 | AK183: =+VLOOKUP($AI183&AK$174,'td1'!$EH$169:$ET$228,'información graf'!$G$2,FALSE) -> 4 | AL183: =+VLOOKUP($AI183&AL$174,'td1'!$EH$169:$ET$228,'información graf'!$G$2,FALSE) -> 2 | AM183: =+VLOOKUP($AI183&AM$174,'td1'!$EH$169:$ET$228,'información graf'!$G$2,FALSE) -> 0 | AN183: =+VLOOKUP($AI183&AN$174,'td1'!$EH$169:$ET$228,'información graf'!$G$2,FALSE) -> 12 | AO183: 27
AI184: PP2 | AJ184: =+VLOOKUP($AI184&AJ$174,'td1'!$EH$169:$ET$228,'información graf'!$G$2,FALSE) -> 2 | AK184: =+VLOOKUP($AI184&AK$174,'td1'!$EH$169:$ET$228,'información graf'!$G$2,FALSE) -> 0 | AL184: =+VLOOKUP($AI184&AL$174,'td1'!$EH$169:$ET$228,'información graf'!$G$2,FALSE) -> 1 | AM184: =+VLOOKUP($AI184&AM$174,'td1'!$EH$169:$ET$228,'información graf'!$G$2,FALSE) -> 2 | AN184: =+VLOOKUP($AI184&AN$174,'td1'!$EH$169:$ET$228,'información graf'!$G$2,FALSE) -> 6 | AO184: 11
P185: PS | R185: Perspectiva de Servicios | AI185: PP3 | AJ185: =+VLOOKUP($AI185&AJ$174,'td1'!$EH$169:$ET$228,'información graf'!$G$2,FALSE) -> 1 | AK185: =+VLOOKUP($AI185&AK$174,'td1'!$EH$169:$ET$228,'información graf'!$G$2,FALSE) -> 0 | AL185: =+VLOOKUP($AI185&AL$174,'td1'!$EH$169:$ET$228,'información graf'!$G$2,FALSE) -> 0 | AM185: =+VLOOKUP($AI185&AM$174,'td1'!$EH$169:$ET$228,'información graf'!$G$2,FALSE) -> 0 | AN185: =+VLOOKUP($AI185&AN$174,'td1'!$EH$169:$ET$228,'información graf'!$G$2,FALSE) -> 3 | AO185: 4
R186: PS1 | S186: Ampliar cobertura y mejorar calidad en la atención integral de la Primera Infancia | AI186: PP4 | AJ186: =+VLOOKUP($AI186&AJ$174,'td1'!$EH$169:$ET$228,'información graf'!$G$2,FALSE) -> 4 | AK186: =+VLOOKUP($AI186&AK$174,'td1'!$EH$169:$ET$228,'información graf'!$G$2,FALSE) -> 1 | AL186: =+VLOOKUP($AI186&AL$174,'td1'!$EH$169:$ET$228,'información graf'!$G$2,FALSE) -> 0 | AM186: =+VLOOKUP($AI186&AM$174,'td1'!$EH$169:$ET$228,'información graf'!$G$2,FALSE) -> 0 | AN186: =+VLOOKUP($AI186&AN$174,'td1'!$EH$169:$ET$228,'información graf'!$G$2,FALSE) -> 0 | AO186: 5
R187: PS2 | S187: Promover los derechos de los niños, niñas y adolescentes y prevenir los riesgos o amenazas de su vulneración | AH187: Aliados y Sociedad | AJ187: =+SUM(AJ188:AJ189) -> 15 | AK187: =+SUM(AK188:AK189) -> 5 | AL187: =+SUM(AL188:AL189) -> 1 | AM187: =+SUM(AM188:AM189) -> 2 | AN187: =+SUM(AN188:AN189) -> 7 | AO187: 30
R188: PS3 | S188: Promover el desarrollo, fortalecer los vinculos de cuidado mutuo y prevenir violencia intrafamiliar y de género en las familias y las comunidades | AI188: PAS1 | AJ188: =+VLOOKUP($AI188&AJ$174,'td1'!$EH$169:$ET$228,'información graf'!$G$2,FALSE) -> 8 | AK188: =+VLOOKUP($AI188&AK$174,'td1'!$EH$169:$ET$228,'información graf'!$G$2,FALSE) -> 0 | AL188: =+VLOOKUP($AI188&AL$174,'td1'!$EH$169:$ET$228,'información graf'!$G$2,FALSE) -> 0 | AM188: =+VLOOKUP($AI188&AM$174,'td1'!$EH$169:$ET$228,'información graf'!$G$2,FALSE) -> 2 | AN188: =+VLOOKUP($AI188&AN$174,'td1'!$EH$169:$ET$228,'información graf'!$G$2,FALSE) -> 5 | AO188: 15
R189: PS4 | S189: Promover la seguridad alimentaria y Nutricional | AI189: PAS2 | AJ189: =+VLOOKUP($AI189&AJ$174,'td1'!$EH$169:$ET$228,'información graf'!$G$2,FALSE) -> 7 | AK189: =+VLOOKUP($AI189&AK$174,'td1'!$EH$169:$ET$228,'información graf'!$G$2,FALSE) -> 5 | AL189: =+VLOOKUP($AI189&AL$174,'td1'!$EH$169:$ET$228,'información graf'!$G$2,FALSE) -> 1 | AM189: =+VLOOKUP($AI189&AM$174,'td1'!$EH$169:$ET$228,'información graf'!$G$2,FALSE) -> 0 | AN189: =+VLOOKUP($AI189&AN$174,'td1'!$EH$169:$ET$228,'información graf'!$G$2,FALSE) -> 2 | AO189: 15
R190: PS5 | S190: Garantizar la Protección integral de los niños, niñas y adolescentes | AH190: Financiera | AJ190: =+AJ191 -> 16 | AK190: =+AK191 -> 2 | AL190: =+AL191 -> 0 | AM190: =+AM191 -> 0 | AN190: =+AN191 -> 2 | AO190: 20
P191: PP | R191: Perspectiva de Procesos | AI191: PF | AJ191: =+VLOOKUP($AI191&AJ$174,'td1'!$EH$169:$ET$228,'información graf'!$G$2,FALSE) -> 16 | AK191: =+VLOOKUP($AI191&AK$174,'td1'!$EH$169:$ET$228,'información graf'!$G$2,FALSE) -> 2 | AL191: =+VLOOKUP($AI191&AL$174,'td1'!$EH$169:$ET$228,'información graf'!$G$2,FALSE) -> 0 | AM191: =+VLOOKUP($AI191&AM$174,'td1'!$EH$169:$ET$228,'información graf'!$G$2,FALSE) -> 0 | AN191: =+VLOOKUP($AI191&AN$174,'td1'!$EH$169:$ET$228,'información graf'!$G$2,FALSE) -> 2 | AO191: 20
R192: PP1 | S192: Impulsar una cultura de la evaluación y gestión de la calidad para el mejoramiento continuo | AH192: Total | AJ192: =+AJ176+AJ182+AJ187+AJ190 -> 82 | AK192: 28 | AL192: 8 | AM192: 4 | AN192: 41 | AO192: 163
R193: PP2 | S193: Promover condiciones laborales que hagan del ICBF el mejor lugar para trabajar | AJ193: =+AJ192/$AO$192 -> 0.5030674847 | AK193: =+AK192/$AO$192 -> 0.1717791411 | AL193: =+AL192/$AO$192 -> 0.0490797546 | AM193: =+AM192/$AO$192 -> 0.0245398773 | AN193: =+AN192/$AO$192 -> 0.2515337423
R194: PP3 | S194: Reducir los impactos ambientales generados por nuestra actividad | AI194: =+"Corte "&$D$5 -> Corte Septiembre
R195: PP4 | S195: Gestionar el conocimiento institucional, con sistemas de información integrados y seguros
P196: PAS | R196: Perspectiva de Aliados y sociedad
R197: PAS1 | S197: Articular las instancias del Instituto Colombiano de Bienestar Familiar y del Sistema Nacional de Bienestar Familiar
R198: PAS2 | S198: Trabajar con transparencia y buen Gobierno para promover el control social y la participación ciudadana
P199: PF | R199: Perspectiva Financiera
R200: PF | S200: Hacer un uso eficiente de los recursos de los niños, niñas y adolescentes, porque son sagrados
C208: =+"Corte "&$D$5 -> Corte Septiembre
T211: Procesos | AA211: Comportamiento agregado de indicadores
AA212: 7 | AB212: optimo | AC212: adecuado | AD212: en riesgo | AE212: critico | AF212: NA
AG213: Total
M214: Misionales | Z214: Misionales | AB214: =+AB215+AB216 -> 25 | AC214: =+AC215+AC216 -> 15 | AD214: =+AD215+AD216 -> 4 | AE214: =+AE215+AE216 -> 0 | AF214: =+AF215+AF216 -> 4 | AG214: =+SUM(AB214:AF214) -> 48
M215: PM1 | N215: Promoción y prevención | AA215: PM1 | AB215: =+VLOOKUP($AA215&AB$212,'td1'!$DR$169:$ED$248,'información graf'!$G$2,FALSE) -> 18 | AC215: =+VLOOKUP($AA215&AC$212,'td1'!$DR$169:$ED$248,'información graf'!$G$2,FALSE) -> 9 | AD215: =+VLOOKUP($AA215&AD$212,'td1'!$DR$169:$ED$248,'información graf'!$G$2,FALSE) -> 1 | AE215: =+VLOOKUP($AA215&AE$212,'td1'!$DR$169:$ED$248,'información graf'!$G$2,FALSE) -> 0 | AF215: =+VLOOKUP($AA215&AF$212,'td1'!$DR$169:$ED$248,'información graf'!$G$2,FALSE) -> 4 | AG215: 32
M216: PM2 | N216: Protección | AA216: PM2 | AB216: =+VLOOKUP($AA216&AB$212,'td1'!$DR$169:$ED$248,'información graf'!$G$2,FALSE) -> 7 | AC216: =+VLOOKUP($AA216&AC$212,'td1'!$DR$169:$ED$248,'información graf'!$G$2,FALSE) -> 6 | AD216: =+VLOOKUP($AA216&AD$212,'td1'!$DR$169:$ED$248,'información graf'!$G$2,FALSE) -> 3 | AE216: =+VLOOKUP($AA216&AE$212,'td1'!$DR$169:$ED$248,'información graf'!$G$2,FALSE) -> 0 | AF216: =+VLOOKUP($AA216&AF$212,'td1'!$DR$169:$ED$248,'información graf'!$G$2,FALSE) -> 0 | AG216: 16
M217: Apoyo | Z217: Apoyo | AB217: =+AB218+AB219+AB220+AB221+AB222 -> 21 | AC217: =+AC218+AC219+AC220+AC221+AC222 -> 2 | AD217: =+AD218+AD219+AD220+AD221+AD222 -> 1 | AE217: =+AE218+AE219+AE220+AE221+AE222 -> 3 | AF217: =+AF218+AF219+AF220+AF221+AF222 -> 15 | AG217: 42
M218: PA1 | N218: Gestión financiera | AA218: PA1 | AB218: =+VLOOKUP($AA218&AB$212,'td1'!$DR$169:$ED$248,'información graf'!$G$2,FALSE) -> 6 | AC218: =+VLOOKUP($AA218&AC$212,'td1'!$DR$169:$ED$248,'información graf'!$G$2,FALSE) -> 2 | AD218: =+VLOOKUP($AA218&AD$212,'td1'!$DR$169:$ED$248,'información graf'!$G$2,FALSE) -> 0 | AE218: =+VLOOKUP($AA218&AE$212,'td1'!$DR$169:$ED$248,'información graf'!$G$2,FALSE) -> 0 | AF218: =+VLOOKUP($AA218&AF$212,'td1'!$DR$169:$ED$248,'información graf'!$G$2,FALSE) -> 0 | AG218: 8
M219: PA2 | N219: Adquisición de bienes y servicios | AA219: PA2 | AB219: =+VLOOKUP($AA219&AB$212,'td1'!$DR$169:$ED$248,'información graf'!$G$2,FALSE) -> 6 | AC219: =+VLOOKUP($AA219&AC$212,'td1'!$DR$169:$ED$248,'información graf'!$G$2,FALSE) -> 0 | AD219: =+VLOOKUP($AA219&AD$212,'td1'!$DR$169:$ED$248,'información graf'!$G$2,FALSE) -> 0 | AE219: =+VLOOKUP($AA219&AE$212,'td1'!$DR$169:$ED$248,'información graf'!$G$2,FALSE) -> 0 | AF219: =+VLOOKUP($AA219&AF$212,'td1'!$DR$169:$ED$248,'información graf'!$G$2,FALSE) -> 2 | AG219: 8
M220: PA3 | N220: Servicios administrativos | AA220: PA3 | AB220: =+VLOOKUP($AA220&AB$212,'td1'!$DR$169:$ED$248,'información graf'!$G$2,FALSE) -> 2 | AC220: =+VLOOKUP($AA220&AC$212,'td1'!$DR$169:$ED$248,'información graf'!$G$2,FALSE) -> 0 | AD220: =+VLOOKUP($AA220&AD$212,'td1'!$DR$169:$ED$248,'información graf'!$G$2,FALSE) -> 1 | AE220: =+VLOOKUP($AA220&AE$212,'td1'!$DR$169:$ED$248,'información graf'!$G$2,FALSE) -> 1 | AF220: =+VLOOKUP($AA220&AF$212,'td1'!$DR$169:$ED$248,'información graf'!$G$2,FALSE) -> 6 | AG220: 10
M221: PA4 | N221: Gestión de talento humano | AA221: PA4 | AB221: =+VLOOKUP($AA221&AB$212,'td1'!$DR$169:$ED$248,'información graf'!$G$2,FALSE) -> 5 | AC221: =+VLOOKUP($AA221&AC$212,'td1'!$DR$169:$ED$248,'información graf'!$G$2,FALSE) -> 0 | AD221: =+VLOOKUP($AA221&AD$212,'td1'!$DR$169:$ED$248,'información graf'!$G$2,FALSE) -> 0 | AE221: =+VLOOKUP($AA221&AE$212,'td1'!$DR$169:$ED$248,'información graf'!$G$2,FALSE) -> 1 | AF221: =+VLOOKUP($AA221&AF$212,'td1'!$DR$169:$ED$248,'información graf'!$G$2,FALSE) -> 6 | AG221: 12
M222: PA5 | N222: Gestión jurídica | AA222: PA5 | AB222: =+VLOOKUP($AA222&AB$212,'td1'!$DR$169:$ED$248,'información graf'!$G$2,FALSE) -> 2 | AC222: =+VLOOKUP($AA222&AC$212,'td1'!$DR$169:$ED$248,'información graf'!$G$2,FALSE) -> 0 | AD222: =+VLOOKUP($AA222&AD$212,'td1'!$DR$169:$ED$248,'información graf'!$G$2,FALSE) -> 0 | AE222: =+VLOOKUP($AA222&AE$212,'td1'!$DR$169:$ED$248,'información graf'!$G$2,FALSE) -> 1 | AF222: =+VLOOKUP($AA222&AF$212,'td1'!$DR$169:$ED$248,'información graf'!$G$2,FALSE) -> 1 | AG222: 4
M223: Estratégicos | Z223: Estratégicos | AB223: =+AB224+AB225+AB226 -> 15 | AC223: =+AC224+AC225+AC226 -> 0 | AD223: =+AD224+AD225+AD226 -> 0 | AE223: =+AE224+AE225+AE226 -> 1 | AF223: =+AF224+AF225+AF226 -> 5 | AG223: 21
M224: PE1 | N224: Coordinación y articulación del SNBF y agentes | AA224: PE1 | AB224: =+VLOOKUP($AA224&AB$212,'td1'!$DR$169:$ED$248,'información graf'!$G$2,FALSE) -> 7 | AC224: =+VLOOKUP($AA224&AC$212,'td1'!$DR$169:$ED$248,'información graf'!$G$2,FALSE) -> 0 | AD224: =+VLOOKUP($AA224&AD$212,'td1'!$DR$169:$ED$248,'información graf'!$G$2,FALSE) -> 0 | AE224: =+VLOOKUP($AA224&AE$212,'td1'!$DR$169:$ED$248,'información graf'!$G$2,FALSE) -> 0 | AF224: =+VLOOKUP($AA224&AF$212,'td1'!$DR$169:$ED$248,'información graf'!$G$2,FALSE) -> 4 | AG224: 11
M225: PE2 | N225: Direccionamiento Estratégico | AA225: PE2 | AB225: =+VLOOKUP($AA225&AB$212,'td1'!$DR$169:$ED$248,'información graf'!$G$2,FALSE) -> 5 | AC225: =+VLOOKUP($AA225&AC$212,'td1'!$DR$169:$ED$248,'información graf'!$G$2,FALSE) -> 0 | AD225: =+VLOOKUP($AA225&AD$212,'td1'!$DR$169:$ED$248,'información graf'!$G$2,FALSE) -> 0 | AE225: =+VLOOKUP($AA225&AE$212,'td1'!$DR$169:$ED$248,'información graf'!$G$2,FALSE) -> 1 | AF225: =+VLOOKUP($AA225&AF$212,'td1'!$DR$169:$ED$248,'información graf'!$G$2,FALSE) -> 1 | AG225: 7
M226: PE3 | N226: Comunicación estratégica | AA226: PE3 | AB226: =+VLOOKUP($AA226&AB$212,'td1'!$DR$169:$ED$248,'información graf'!$G$2,FALSE) -> 3 | AC226: =+VLOOKUP($AA226&AC$212,'td1'!$DR$169:$ED$248,'información graf'!$G$2,FALSE) -> 0 | AD226: =+VLOOKUP($AA226&AD$212,'td1'!$DR$169:$ED$248,'información graf'!$G$2,FALSE) -> 0 | AE226: =+VLOOKUP($AA226&AE$212,'td1'!$DR$169:$ED$248,'información graf'!$G$2,FALSE) -> 0 | AF226: =+VLOOKUP($AA226&AF$212,'td1'!$DR$169:$ED$248,'información graf'!$G$2,FALSE) -> 0 | AG226: 3
M227: Evaluación | Z227: Evaluación | AB227: =+AB228+AB229+AB230 -> 5 | AC227: =+AC228+AC229+AC230 -> 2 | AD227: =+AD228+AD229+AD230 -> 2 | AE227: =+AE228+AE229+AE230 -> 0 | AF227: =+AF228+AF229+AF230 -> 2 | AG227: 11
M228: PEV1 | N228: Inspección vigilancia y control a operadores | AA228: PEV1 | AB228: =+VLOOKUP($AA228&AB$212,'td1'!$DR$169:$ED$248,'información graf'!$G$2,FALSE) -> 3 | AC228: =+VLOOKUP($AA228&AC$212,'td1'!$DR$169:$ED$248,'información graf'!$G$2,FALSE) -> 1 | AD228: =+VLOOKUP($AA228&AD$212,'td1'!$DR$169:$ED$248,'información graf'!$G$2,FALSE) -> 1 | AE228: =+VLOOKUP($AA228&AE$212,'td1'!$DR$169:$ED$248,'información graf'!$G$2,FALSE) -> 0 | AF228: =+VLOOKUP($AA228&AF$212,'td1'!$DR$169:$ED$248,'información graf'!$G$2,FALSE) -> 0 | AG228: 5
M229: PEV2 | N229: Evaluación y monitoreo de la gestión | AA229: PEV2 | AB229: =+VLOOKUP($AA229&AB$212,'td1'!$DR$169:$ED$248,'información graf'!$G$2,FALSE) -> 0 | AC229: =+VLOOKUP($AA229&AC$212,'td1'!$DR$169:$ED$248,'información graf'!$G$2,FALSE) -> 0 | AD229: =+VLOOKUP($AA229&AD$212,'td1'!$DR$169:$ED$248,'información graf'!$G$2,FALSE) -> 0 | AE229: =+VLOOKUP($AA229&AE$212,'td1'!$DR$169:$ED$248,'información graf'!$G$2,FALSE) -> 0 | AF229: =+VLOOKUP($AA229&AF$212,'td1'!$DR$169:$ED$248,'información graf'!$G$2,FALSE) -> 2 | AG229: 2
M230: PEV3 | N230: Evaluación independiente | AA230: PEV3 | AB230: =+VLOOKUP($AA230&AB$212,'td1'!$DR$169:$ED$248,'información graf'!$G$2,FALSE) -> 2 | AC230: =+VLOOKUP($AA230&AC$212,'td1'!$DR$169:$ED$248,'información graf'!$G$2,FALSE) -> 1 | AD230: =+VLOOKUP($AA230&AD$212,'td1'!$DR$169:$ED$248,'información graf'!$G$2,FALSE) -> 1 | AE230: =+VLOOKUP($AA230&AE$212,'td1'!$DR$169:$ED$248,'información graf'!$G$2,FALSE) -> 0 | AF230: =+VLOOKUP($AA230&AF$212,'td1'!$DR$169:$ED$248,'información graf'!$G$2,FALSE) -> 0 | AG230: =+SUM(AB230:AF230) -> 4
M231: Transversales | Z231: Transversales | AB231: =+AB232+AB233+AB234 -> 16 | AC231: =+AC232+AC233+AC234 -> 9 | AD231: =+AD232+AD233+AD234 -> 1 | AE231: =+AE232+AE233+AE234 -> 0 | AF231: =+AF232+AF233+AF234 -> 15 | AG231: 41
M232: PT1 | N232: Relación con el ciudadano | AA232: PT1 | AB232: =+VLOOKUP($AA232&AB$212,'td1'!$DR$169:$ED$248,'información graf'!$G$2,FALSE) -> 4 | AC232: =+VLOOKUP($AA232&AC$212,'td1'!$DR$169:$ED$248,'información graf'!$G$2,FALSE) -> 5 | AD232: =+VLOOKUP($AA232&AD$212,'td1'!$DR$169:$ED$248,'información graf'!$G$2,FALSE) -> 1 | AE232: =+VLOOKUP($AA232&AE$212,'td1'!$DR$169:$ED$248,'información graf'!$G$2,FALSE) -> 0 | AF232: =+VLOOKUP($AA232&AF$212,'td1'!$DR$169:$ED$248,'información graf'!$G$2,FALSE) -> 0 | AG232: 10
M233: PT2 | N233: Mejora e Innovación | AA233: PT2 | AB233: =+VLOOKUP($AA233&AB$212,'td1'!$DR$169:$ED$248,'información graf'!$G$2,FALSE) -> 7 | AC233: =+VLOOKUP($AA233&AC$212,'td1'!$DR$169:$ED$248,'información graf'!$G$2,FALSE) -> 3 | AD233: =+VLOOKUP($AA233&AD$212,'td1'!$DR$169:$ED$248,'información graf'!$G$2,FALSE) -> 0 | AE233: =+VLOOKUP($AA233&AE$212,'td1'!$DR$169:$ED$248,'información graf'!$G$2,FALSE) -> 0 | AF233: =+VLOOKUP($AA233&AF$212,'td1'!$DR$169:$ED$248,'información graf'!$G$2,FALSE) -> 15 | AG233: 25
M234: PT3 | N234: Gestión de la tecnología e información | AA234: PT3 | AB234: =+VLOOKUP($AA234&AB$212,'td1'!$DR$169:$ED$248,'información graf'!$G$2,FALSE) -> 5 | AC234: =+VLOOKUP($AA234&AC$212,'td1'!$DR$169:$ED$248,'información graf'!$G$2,FALSE) -> 1 | AD234: =+VLOOKUP($AA234&AD$212,'td1'!$DR$169:$ED$248,'información graf'!$G$2,FALSE) -> 0 | AE234: =+VLOOKUP($AA234&AE$212,'td1'!$DR$169:$ED$248,'información graf'!$G$2,FALSE) -> 0 | AF234: =+VLOOKUP($AA234&AF$212,'td1'!$DR$169:$ED$248,'información graf'!$G$2,FALSE) -> 0 | AG234: 6
Z235: Total | AB235: =+AB214+AB217+AB223+AB227+AB231 -> 82 | AC235: =+AC214+AC217+AC223+AC227+AC231 -> 28 | AD235: =+AD214+AD217+AD223+AD227+AD231 -> 8 | AE235: =+AE214+AE217+AE223+AE227+AE231 -> 4 | AF235: =+AF214+AF217+AF223+AF227+AF231 -> 41 | AG235: 163
AB236: =+AB235/$AG$235 -> 0.5030674847 | AC236: =+AC235/$AG$235 -> 0.1717791411 | AD236: =+AD235/$AG$235 -> 0.0490797546 | AE236: =+AE235/$AG$235 -> 0.0245398773 | AF236: =+AF235/$AG$235 -> 0.2515337423
Z237: =+"Corte "&$D$5 -> Corte Septiembre
C244: Áreas del ICBF
AD247: Comportamiento indicadores directos | AO247: Comportamiento indicadores transversales | AW247: Total Indicadores por área
S248: 32 | AE248: 7 | AF248: optimo | AG248: adecuado | AH248: en riesgo | AI248: critico | AJ248: NA | AO248: 7 | AP248: optimo | AQ248: adecuado | AR248: en riesgo | AS248: critico | AT248: NA | AY248: optimo | AZ248: adecuado | BA248: en riesgo | BB248: critico | BC248: NA
AL249: Total | AU249: Total | BD249: Total
AF250: Misionales | AG250: =+AG251+AG252+AG253+AG254+AG255 -> 35 | AH250: =+AH251+AH252+AH253+AH254+AH255 -> 16 | AI250: =+AI251+AI252+AI253+AI254+AI255 -> 4 | AJ250: =+AJ251+AJ252+AJ253+AJ254+AJ255 -> 0 | AK250: =+AK251+AK252+AK253+AK254+AK255 -> 11 | AL250: =+SUM(AG250:AK250) -> 66 | AO250: Misionales | AX250: Misionales
AC251: M1 | AF251: M1. Primera Infancia | AG251: =+VLOOKUP($AC251&AF$248,'td1'!$GD$169:$GP$278,'información graf'!$G$2,FALSE) -> 11 | AH251: =+VLOOKUP($AC251&AG$248,'td1'!$GD$169:$GP$278,'información graf'!$G$2,FALSE) -> 3 | AI251: =+VLOOKUP($AC251&AH$248,'td1'!$GD$169:$GP$278,'información graf'!$G$2,FALSE) -> 1 | AJ251: =+VLOOKUP($AC251&AI$248,'td1'!$GD$169:$GP$278,'información graf'!$G$2,FALSE) -> 0 | AK251: =+VLOOKUP($AC251&AJ$248,'td1'!$GD$169:$GP$278,'información graf'!$G$2,FALSE) -> 2 | AL251: 17 | AO251: M1 | AP251: =+VLOOKUP($AC251&AP$248,'td1'!$GD$282:$GP$391,'información graf'!$G$2,FALSE) -> 6 | AQ251: =+VLOOKUP($AC251&AQ$248,'td1'!$GD$282:$GP$391,'información graf'!$G$2,FALSE) -> 0 | AR251: =+VLOOKUP($AC251&AR$248,'td1'!$GD$282:$GP$391,'información graf'!$G$2,FALSE) -> 0 | AS251: =+VLOOKUP($AC251&AS$248,'td1'!$GD$282:$GP$391,'información graf'!$G$2,FALSE) -> 1 | AT251: =+VLOOKUP($AC251&AT$248,'td1'!$GD$282:$GP$391,'información graf'!$G$2,FALSE) -> 12 | AU251: =+SUM(AP251:AT251) -> 19 | AX251: M1 | AY251: =+AG251+AP251 -> 17 | AZ251: 3 | BA251: 1 | BB251: 1 | BC251: 14 | BD251: =+SUM(AY251:BC251) -> 36
AC252: M2 | AF252: M2. Niñez | AG252: =+VLOOKUP($AC252&AF$248,'td1'!$GD$169:$GP$278,'información graf'!$G$2,FALSE) -> 6 | AH252: =+VLOOKUP($AC252&AG$248,'td1'!$GD$169:$GP$278,'información graf'!$G$2,FALSE) -> 4 | AI252: =+VLOOKUP($AC252&AH$248,'td1'!$GD$169:$GP$278,'información graf'!$G$2,FALSE) -> 0 | AJ252: =+VLOOKUP($AC252&AI$248,'td1'!$GD$169:$GP$278,'información graf'!$G$2,FALSE) -> 0 | AK252: =+VLOOKUP($AC252&AJ$248,'td1'!$GD$169:$GP$278,'información graf'!$G$2,FALSE) -> 3 | AL252: 13 | AO252: M2 | AP252: =+VLOOKUP($AC252&AP$248,'td1'!$GD$282:$GP$391,'información graf'!$G$2,FALSE) -> 3 | AQ252: =+VLOOKUP($AC252&AQ$248,'td1'!$GD$282:$GP$391,'información graf'!$G$2,FALSE) -> 2 | AR252: =+VLOOKUP($AC252&AR$248,'td1'!$GD$282:$GP$391,'información graf'!$G$2,FALSE) -> 1 | AS252: =+VLOOKUP($AC252&AS$248,'td1'!$GD$282:$GP$391,'información graf'!$G$2,FALSE) -> 2 | AT252: =+VLOOKUP($AC252&AT$248,'td1'!$GD$282:$GP$391,'información graf'!$G$2,FALSE) -> 11 | AU252: 19 | AX252: M2 | AY252: 9 | AZ252: 6 | BA252: 1 | BB252: 2 | BC252: 14 | BD252: =+SUM(AY252:BC252) -> 32
AC253: M3 | AF253: M3. Familias | AG253: =+VLOOKUP($AC253&AF$248,'td1'!$GD$169:$GP$278,'información graf'!$G$2,FALSE) -> 5 | AH253: =+VLOOKUP($AC253&AG$248,'td1'!$GD$169:$GP$278,'información graf'!$G$2,FALSE) -> 2 | AI253: =+VLOOKUP($AC253&AH$248,'td1'!$GD$169:$GP$278,'información graf'!$G$2,FALSE) -> 0 | AJ253: =+VLOOKUP($AC253&AI$248,'td1'!$GD$169:$GP$278,'información graf'!$G$2,FALSE) -> 0 | AK253: =+VLOOKUP($AC253&AJ$248,'td1'!$GD$169:$GP$278,'información graf'!$G$2,FALSE) -> 1 | AL253: 8 | AO253: M3 | AP253: =+VLOOKUP($AC253&AP$248,'td1'!$GD$282:$GP$391,'información graf'!$G$2,FALSE) -> 4 | AQ253: =+VLOOKUP($AC253&AQ$248,'td1'!$GD$282:$GP$391,'información graf'!$G$2,FALSE) -> 1 | AR253: =+VLOOKUP($AC253&AR$248,'td1'!$GD$282:$GP$391,'información graf'!$G$2,FALSE) -> 0 | AS253: =+VLOOKUP($AC253&AS$248,'td1'!$GD$282:$GP$391,'información graf'!$G$2,FALSE) -> 0 | AT253: =+VLOOKUP($AC253&AT$248,'td1'!$GD$282:$GP$391,'información graf'!$G$2,FALSE) -> 14 | AU253: 19 | AX253: M3 | AY253: 9 | AZ253: 3 | BA253: 0 | BB253: 0 | BC253: 15 | BD253: =+SUM(AY253:BC253) -> 27
AC254: M4 | AF254: M4. Nutrición | AG254: =+VLOOKUP($AC254&AF$248,'td1'!$GD$169:$GP$278,'información graf'!$G$2,FALSE) -> 4 | AH254: =+VLOOKUP($AC254&AG$248,'td1'!$GD$169:$GP$278,'información graf'!$G$2,FALSE) -> 1 | AI254: =+VLOOKUP($AC254&AH$248,'td1'!$GD$169:$GP$278,'información graf'!$G$2,FALSE) -> 0 | AJ254: =+VLOOKUP($AC254&AI$248,'td1'!$GD$169:$GP$278,'información graf'!$G$2,FALSE) -> 0 | AK254: =+VLOOKUP($AC254&AJ$248,'td1'!$GD$169:$GP$278,'información graf'!$G$2,FALSE) -> 3 | AL254: 8 | AO254: M4 | AP254: =+VLOOKUP($AC254&AP$248,'td1'!$GD$282:$GP$391,'información graf'!$G$2,FALSE) -> 5 | AQ254: =+VLOOKUP($AC254&AQ$248,'td1'!$GD$282:$GP$391,'información graf'!$G$2,FALSE) -> 3 | AR254: =+VLOOKUP($AC254&AR$248,'td1'!$GD$282:$GP$391,'información graf'!$G$2,FALSE) -> 0 | AS254: =+VLOOKUP($AC254&AS$248,'td1'!$GD$282:$GP$391,'información graf'!$G$2,FALSE) -> 0 | AT254: =+VLOOKUP($AC254&AT$248,'td1'!$GD$282:$GP$391,'información graf'!$G$2,FALSE) -> 11 | AU254: 19 | AX254: M4 | AY254: 9 | AZ254: 4 | BA254: 0 | BB254: 0 | BC254: 14 | BD254: =+SUM(AY254:BC254) -> 27
AC255: M5 | AF255: M5. Protección | AG255: =+VLOOKUP($AC255&AF$248,'td1'!$GD$169:$GP$278,'información graf'!$G$2,FALSE) -> 9 | AH255: =+VLOOKUP($AC255&AG$248,'td1'!$GD$169:$GP$278,'información graf'!$G$2,FALSE) -> 6 | AI255: =+VLOOKUP($AC255&AH$248,'td1'!$GD$169:$GP$278,'información graf'!$G$2,FALSE) -> 3 | AJ255: =+VLOOKUP($AC255&AI$248,'td1'!$GD$169:$GP$278,'información graf'!$G$2,FALSE) -> 0 | AK255: =+VLOOKUP($AC255&AJ$248,'td1'!$GD$169:$GP$278,'información graf'!$G$2,FALSE) -> 2 | AL255: 20 | AO255: M5 | AP255: =+VLOOKUP($AC255&AP$248,'td1'!$GD$282:$GP$391,'información graf'!$G$2,FALSE) -> 4 | AQ255: =+VLOOKUP($AC255&AQ$248,'td1'!$GD$282:$GP$391,'información graf'!$G$2,FALSE) -> 3 | AR255: =+VLOOKUP($AC255&AR$248,'td1'!$GD$282:$GP$391,'información graf'!$G$2,FALSE) -> 0 | AS255: =+VLOOKUP($AC255&AS$248,'td1'!$GD$282:$GP$391,'información graf'!$G$2,FALSE) -> 1 | AT255: =+VLOOKUP($AC255&AT$248,'td1'!$GD$282:$GP$391,'información graf'!$G$2,FALSE) -> 11 | AU255: 19 | AX255: M5 | AY255: 13 | AZ255: 9 | BA255: 3 | BB255: 1 | BC255: 13 | BD255: =+SUM(AY255:BC255) -> 39
AF256: Apoyo | AG256: =+SUM(AG257:AG273) -> 47 | AH256: =+SUM(AH257:AH273) -> 12 | AI256: =+SUM(AI257:AI273) -> 4 | AJ256: =+SUM(AJ257:AJ273) -> 4 | AK256: =+SUM(AK257:AK273) -> 30 | AL256: 97 | AO256: Apoyo | AX256: Apoyo
AC257: A1 | AF257: A1. Gestión Humana | AG257: =+VLOOKUP($AC257&AF$248,'td1'!$GD$169:$GP$278,'información graf'!$G$2,FALSE) -> 2 | AH257: =+VLOOKUP($AC257&AG$248,'td1'!$GD$169:$GP$278,'información graf'!$G$2,FALSE) -> 0 | AI257: =+VLOOKUP($AC257&AH$248,'td1'!$GD$169:$GP$278,'información graf'!$G$2,FALSE) -> 0 | AJ257: =+VLOOKUP($AC257&AI$248,'td1'!$GD$169:$GP$278,'información graf'!$G$2,FALSE) -> 1 | AK257: =+VLOOKUP($AC257&AJ$248,'td1'!$GD$169:$GP$278,'información graf'!$G$2,FALSE) -> 6 | AL257: 9 | AO257: A1 | AP257: =+VLOOKUP($AC257&AP$248,'td1'!$GD$282:$GP$391,'información graf'!$G$2,FALSE) -> 4 | AQ257: =+VLOOKUP($AC257&AQ$248,'td1'!$GD$282:$GP$391,'información graf'!$G$2,FALSE) -> 1 | AR257: =+VLOOKUP($AC257&AR$248,'td1'!$GD$282:$GP$391,'información graf'!$G$2,FALSE) -> 2 | AS257: =+VLOOKUP($AC257&AS$248,'td1'!$GD$282:$GP$391,'información graf'!$G$2,FALSE) -> 0 | AT257: =+VLOOKUP($AC257&AT$248,'td1'!$GD$282:$GP$391,'información graf'!$G$2,FALSE) -> 12 | AU257: 19 | AX257: A1 | AY257: =+AG257+AP257 -> 6 | AZ257: 1 | BA257: 2 | BB257: 1 | BC257: 18 | BD257: =+SUM(AY257:BC257) -> 28
AC258: A2 | AF258: A2. Financiera | AG258: =+VLOOKUP($AC258&AF$248,'td1'!$GD$169:$GP$278,'información graf'!$G$2,FALSE) -> 5 | AH258: =+VLOOKUP($AC258&AG$248,'td1'!$GD$169:$GP$278,'información graf'!$G$2,FALSE) -> 2 | AI258: =+VLOOKUP($AC258&AH$248,'td1'!$GD$169:$GP$278,'información graf'!$G$2,FALSE) -> 0 | AJ258: =+VLOOKUP($AC258&AI$248,'td1'!$GD$169:$GP$278,'información graf'!$G$2,FALSE) -> 0 | AK258: =+VLOOKUP($AC258&AJ$248,'td1'!$GD$169:$GP$278,'información graf'!$G$2,FALSE) -> 0 | AL258: 7 | AO258: A2 | AP258: =+VLOOKUP($AC258&AP$248,'td1'!$GD$282:$GP$391,'información graf'!$G$2,FALSE) -> 1 | AQ258: =+VLOOKUP($AC258&AQ$248,'td1'!$GD$282:$GP$391,'información graf'!$G$2,FALSE) -> 2 | AR258: =+VLOOKUP($AC258&AR$248,'td1'!$GD$282:$GP$391,'información graf'!$G$2,FALSE) -> 1 | AS258: =+VLOOKUP($AC258&AS$248,'td1'!$GD$282:$GP$391,'información graf'!$G$2,FALSE) -> 1 | AT258: =+VLOOKUP($AC258&AT$248,'td1'!$GD$282:$GP$391,'información graf'!$G$2,FALSE) -> 14 | AU258: 19 | AX258: A2 | AY258: 6 | AZ258: 4 | BA258: 1 | BB258: 1 | BC258: 14 | BD258: 26
AC259: A3 | AF259: A3. Control Interno Disc | AG259: =+VLOOKUP($AC259&AF$248,'td1'!$GD$169:$GP$278,'información graf'!$G$2,FALSE) -> 3 | AH259: =+VLOOKUP($AC259&AG$248,'td1'!$GD$169:$GP$278,'información graf'!$G$2,FALSE) -> 0 | AI259: =+VLOOKUP($AC259&AH$248,'td1'!$GD$169:$GP$278,'información graf'!$G$2,FALSE) -> 0 | AJ259: =+VLOOKUP($AC259&AI$248,'td1'!$GD$169:$GP$278,'información graf'!$G$2,FALSE) -> 0 | AK259: =+VLOOKUP($AC259&AJ$248,'td1'!$GD$169:$GP$278,'información graf'!$G$2,FALSE) -> 0 | AL259: 3 | AO259: A3 | AP259: =+VLOOKUP($AC259&AP$248,'td1'!$GD$282:$GP$391,'información graf'!$G$2,FALSE) -> 1 | AQ259: =+VLOOKUP($AC259&AQ$248,'td1'!$GD$282:$GP$391,'información graf'!$G$2,FALSE) -> 0 | AR259: =+VLOOKUP($AC259&AR$248,'td1'!$GD$282:$GP$391,'información graf'!$G$2,FALSE) -> 0 | AS259: =+VLOOKUP($AC259&AS$248,'td1'!$GD$282:$GP$391,'información graf'!$G$2,FALSE) -> 0 | AT259: =+VLOOKUP($AC259&AT$248,'td1'!$GD$282:$GP$391,'información graf'!$G$2,FALSE) -> 18 | AU259: 19 | AX259: A3 | AY259: 4 | AZ259: 0 | BA259: 0 | BB259: 0 | BC259: 18 | BD259: 22
AC260: A4 | AF260: A4. Abastecimiento | AG260: =+VLOOKUP($AC260&AF$248,'td1'!$GD$169:$GP$278,'información graf'!$G$2,FALSE) -> 4 | AH260: =+VLOOKUP($AC260&AG$248,'td1'!$GD$169:$GP$278,'información graf'!$G$2,FALSE) -> 0 | AI260: =+VLOOKUP($AC260&AH$248,'td1'!$GD$169:$GP$278,'información graf'!$G$2,FALSE) -> 0 | AJ260: =+VLOOKUP($AC260&AI$248,'td1'!$GD$169:$GP$278,'información graf'!$G$2,FALSE) -> 0 | AK260: =+VLOOKUP($AC260&AJ$248,'td1'!$GD$169:$GP$278,'información graf'!$G$2,FALSE) -> 0 | AL260: 4 | AO260: A4 | AP260: =+VLOOKUP($AC260&AP$248,'td1'!$GD$282:$GP$391,'información graf'!$G$2,FALSE) -> 2 | AQ260: =+VLOOKUP($AC260&AQ$248,'td1'!$GD$282:$GP$391,'información graf'!$G$2,FALSE) -> 0 | AR260: =+VLOOKUP($AC260&AR$248,'td1'!$GD$282:$GP$391,'información graf'!$G$2,FALSE) -> 1 | AS260: =+VLOOKUP($AC260&AS$248,'td1'!$GD$282:$GP$391,'información graf'!$G$2,FALSE) -> 0 | AT260: =+VLOOKUP($AC260&AT$248,'td1'!$GD$282:$GP$391,'información graf'!$G$2,FALSE) -> 16 | AU260: 19 | AX260: A4 | AY260: 6 | AZ260: 0 | BA260: 1 | BB260: 0 | BC260: 16 | BD260: 23
AC261: A5 | AF261: A5. Administrativa | AG261: =+VLOOKUP($AC261&AF$248,'td1'!$GD$169:$GP$278,'información graf'!$G$2,FALSE) -> 2 | AH261: =+VLOOKUP($AC261&AG$248,'td1'!$GD$169:$GP$278,'información graf'!$G$2,FALSE) -> 0 | AI261: =+VLOOKUP($AC261&AH$248,'td1'!$GD$169:$GP$278,'información graf'!$G$2,FALSE) -> 1 | AJ261: =+VLOOKUP($AC261&AI$248,'td1'!$GD$169:$GP$278,'información graf'!$G$2,FALSE) -> 1 | AK261: =+VLOOKUP($AC261&AJ$248,'td1'!$GD$169:$GP$278,'información graf'!$G$2,FALSE) -> 6 | AL261: 10 | AO261: A5 | AP261: =+VLOOKUP($AC261&AP$248,'td1'!$GD$282:$GP$391,'información graf'!$G$2,FALSE) -> 3 | AQ261: =+VLOOKUP($AC261&AQ$248,'td1'!$GD$282:$GP$391,'información graf'!$G$2,FALSE) -> 2 | AR261: =+VLOOKUP($AC261&AR$248,'td1'!$GD$282:$GP$391,'información graf'!$G$2,FALSE) -> 1 | AS261: =+VLOOKUP($AC261&AS$248,'td1'!$GD$282:$GP$391,'información graf'!$G$2,FALSE) -> 0 | AT261: =+VLOOKUP($AC261&AT$248,'td1'!$GD$282:$GP$391,'información graf'!$G$2,FALSE) -> 13 | AU261: 19 | AX261: A5 | AY261: 5 | AZ261: 2 | BA261: 2 | BB261: 1 | BC261: 19 | BD261: 29
AC262: A6 | AF262: A6. Contratación | AG262: =+VLOOKUP($AC262&AF$248,'td1'!$GD$169:$GP$278,'información graf'!$G$2,FALSE) -> 0 | AH262: =+VLOOKUP($AC262&AG$248,'td1'!$GD$169:$GP$278,'información graf'!$G$2,FALSE) -> 0 | AI262: =+VLOOKUP($AC262&AH$248,'td1'!$GD$169:$GP$278,'información graf'!$G$2,FALSE) -> 0 | AJ262: =+VLOOKUP($AC262&AI$248,'td1'!$GD$169:$GP$278,'información graf'!$G$2,FALSE) -> 0 | AK262: =+VLOOKUP($AC262&AJ$248,'td1'!$GD$169:$GP$278,'información graf'!$G$2,FALSE) -> 2 | AL262: 2 | AO262: A6 | AP262: =+VLOOKUP($AC262&AP$248,'td1'!$GD$282:$GP$391,'información graf'!$G$2,FALSE) -> 3 | AQ262: =+VLOOKUP($AC262&AQ$248,'td1'!$GD$282:$GP$391,'información graf'!$G$2,FALSE) -> 0 | AR262: =+VLOOKUP($AC262&AR$248,'td1'!$GD$282:$GP$391,'información graf'!$G$2,FALSE) -> 0 | AS262: =+VLOOKUP($AC262&AS$248,'td1'!$GD$282:$GP$391,'información graf'!$G$2,FALSE) -> 2 | AT262: =+VLOOKUP($AC262&AT$248,'td1'!$GD$282:$GP$391,'información graf'!$G$2,FALSE) -> 14 | AU262: 19 | AX262: A6 | AY262: 3 | AZ262: 0 | BA262: 0 | BB262: 2 | BC262: 16 | BD262: 21
AC263: A7 | AF263: A7. Jurídica | AG263: =+VLOOKUP($AC263&AF$248,'td1'!$GD$169:$GP$278,'información graf'!$G$2,FALSE) -> 2 | AH263: =+VLOOKUP($AC263&AG$248,'td1'!$GD$169:$GP$278,'información graf'!$G$2,FALSE) -> 0 | AI263: =+VLOOKUP($AC263&AH$248,'td1'!$GD$169:$GP$278,'información graf'!$G$2,FALSE) -> 0 | AJ263: =+VLOOKUP($AC263&AI$248,'td1'!$GD$169:$GP$278,'información graf'!$G$2,FALSE) -> 1 | AK263: =+VLOOKUP($AC263&AJ$248,'td1'!$GD$169:$GP$278,'información graf'!$G$2,FALSE) -> 1 | AL263: 4 | AO263: A7 | AP263: =+VLOOKUP($AC263&AP$248,'td1'!$GD$282:$GP$391,'información graf'!$G$2,FALSE) -> 5 | AQ263: =+VLOOKUP($AC263&AQ$248,'td1'!$GD$282:$GP$391,'información graf'!$G$2,FALSE) -> 0 | AR263: =+VLOOKUP($AC263&AR$248,'td1'!$GD$282:$GP$391,'información graf'!$G$2,FALSE) -> 1 | AS263: =+VLOOKUP($AC263&AS$248,'td1'!$GD$282:$GP$391,'información graf'!$G$2,FALSE) -> 0 | AT263: =+VLOOKUP($AC263&AT$248,'td1'!$GD$282:$GP$391,'información graf'!$G$2,FALSE) -> 13 | AU263: 19 | AX263: A7 | AY263: 7 | AZ263: 0 | BA263: 1 | BB263: 1 | BC263: 14 | BD263: 23
AC264: A8 | AF264: A8. Gestión Regional | AG264: =+VLOOKUP($AC264&AF$248,'td1'!$GD$169:$GP$278,'información graf'!$G$2,FALSE) -> 0 | AH264: =+VLOOKUP($AC264&AG$248,'td1'!$GD$169:$GP$278,'información graf'!$G$2,FALSE) -> 0 | AI264: =+VLOOKUP($AC264&AH$248,'td1'!$GD$169:$GP$278,'información graf'!$G$2,FALSE) -> 0 | AJ264: =+VLOOKUP($AC264&AI$248,'td1'!$GD$169:$GP$278,'información graf'!$G$2,FALSE) -> 0 | AK264: =+VLOOKUP($AC264&AJ$248,'td1'!$GD$169:$GP$278,'información graf'!$G$2,FALSE) -> 2 | AL264: 2 | AO264: A8 | AP264: =+VLOOKUP($AC264&AP$248,'td1'!$GD$282:$GP$391,'información graf'!$G$2,FALSE) -> 0 | AQ264: =+VLOOKUP($AC264&AQ$248,'td1'!$GD$282:$GP$391,'información graf'!$G$2,FALSE) -> 0 | AR264: =+VLOOKUP($AC264&AR$248,'td1'!$GD$282:$GP$391,'información graf'!$G$2,FALSE) -> 0 | AS264: =+VLOOKUP($AC264&AS$248,'td1'!$GD$282:$GP$391,'información graf'!$G$2,FALSE) -> 0 | AT264: =+VLOOKUP($AC264&AT$248,'td1'!$GD$282:$GP$391,'información graf'!$G$2,FALSE) -> 19 | AU264: 19 | AX264: A8 | AY264: 0 | AZ264: 0 | BA264: 0 | BB264: 0 | BC264: 21 | BD264: 21
AC265: A9 | AF265: A9. Cooperación | AG265: =+VLOOKUP($AC265&AF$248,'td1'!$GD$169:$GP$278,'información graf'!$G$2,FALSE) -> 4 | AH265: =+VLOOKUP($AC265&AG$248,'td1'!$GD$169:$GP$278,'información graf'!$G$2,FALSE) -> 0 | AI265: =+VLOOKUP($AC265&AH$248,'td1'!$GD$169:$GP$278,'información graf'!$G$2,FALSE) -> 0 | AJ265: =+VLOOKUP($AC265&AI$248,'td1'!$GD$169:$GP$278,'información graf'!$G$2,FALSE) -> 0 | AK265: =+VLOOKUP($AC265&AJ$248,'td1'!$GD$169:$GP$278,'información graf'!$G$2,FALSE) -> 0 | AL265: 4 | AO265: A9 | AP265: =+VLOOKUP($AC265&AP$248,'td1'!$GD$282:$GP$391,'información graf'!$G$2,FALSE) -> 1 | AQ265: =+VLOOKUP($AC265&AQ$248,'td1'!$GD$282:$GP$391,'información graf'!$G$2,FALSE) -> 0 | AR265: =+VLOOKUP($AC265&AR$248,'td1'!$GD$282:$GP$391,'información graf'!$G$2,FALSE) -> 0 | AS265: =+VLOOKUP($AC265&AS$248,'td1'!$GD$282:$GP$391,'información graf'!$G$2,FALSE) -> 0 | AT265: =+VLOOKUP($AC265&AT$248,'td1'!$GD$282:$GP$391,'información graf'!$G$2,FALSE) -> 18 | AU265: 19 | AX265: A9 | AY265: 5 | AZ265: 0 | BA265: 0 | BB265: 0 | BC265: 18 | BD265: 23
AC266: A10 | AF266: A10. Servicios y Atención | AG266: =+VLOOKUP($AC266&AF$248,'td1'!$GD$169:$GP$278,'información graf'!$G$2,FALSE) -> 4 | AH266: =+VLOOKUP($AC266&AG$248,'td1'!$GD$169:$GP$278,'información graf'!$G$2,FALSE) -> 4 | AI266: =+VLOOKUP($AC266&AH$248,'td1'!$GD$169:$GP$278,'información graf'!$G$2,FALSE) -> 1 | AJ266: =+VLOOKUP($AC266&AI$248,'td1'!$GD$169:$GP$278,'información graf'!$G$2,FALSE) -> 0 | AK266: =+VLOOKUP($AC266&AJ$248,'td1'!$GD$169:$GP$278,'información graf'!$G$2,FALSE) -> 0 | AL266: 9 | AO266: A10 | AP266: =+VLOOKUP($AC266&AP$248,'td1'!$GD$282:$GP$391,'información graf'!$G$2,FALSE) -> 1 | AQ266: =+VLOOKUP($AC266&AQ$248,'td1'!$GD$282:$GP$391,'información graf'!$G$2,FALSE) -> 2 | AR266: =+VLOOKUP($AC266&AR$248,'td1'!$GD$282:$GP$391,'información graf'!$G$2,FALSE) -> 1 | AS266: =+VLOOKUP($AC266&AS$248,'td1'!$GD$282:$GP$391,'información graf'!$G$2,FALSE) -> 0 | AT266: =+VLOOKUP($AC266&AT$248,'td1'!$GD$282:$GP$391,'información graf'!$G$2,FALSE) -> 15 | AU266: 19 | AX266: A10 | AY266: 5 | AZ266: 6 | BA266: 2 | BB266: 0 | BC266: 15 | BD266: 28
AC267: A11 | AF267: A11. Tecnología | AG267: =+VLOOKUP($AC267&AF$248,'td1'!$GD$169:$GP$278,'información graf'!$G$2,FALSE) -> 5 | AH267: =+VLOOKUP($AC267&AG$248,'td1'!$GD$169:$GP$278,'información graf'!$G$2,FALSE) -> 1 | AI267: =+VLOOKUP($AC267&AH$248,'td1'!$GD$169:$GP$278,'información graf'!$G$2,FALSE) -> 0 | AJ267: =+VLOOKUP($AC267&AI$248,'td1'!$GD$169:$GP$278,'información graf'!$G$2,FALSE) -> 0 | AK267: =+VLOOKUP($AC267&AJ$248,'td1'!$GD$169:$GP$278,'información graf'!$G$2,FALSE) -> 0 | AL267: 6 | AO267: A11 | AP267: =+VLOOKUP($AC267&AP$248,'td1'!$GD$282:$GP$391,'información graf'!$G$2,FALSE) -> 3 | AQ267: =+VLOOKUP($AC267&AQ$248,'td1'!$GD$282:$GP$391,'información graf'!$G$2,FALSE) -> 1 | AR267: =+VLOOKUP($AC267&AR$248,'td1'!$GD$282:$GP$391,'información graf'!$G$2,FALSE) -> 2 | AS267: =+VLOOKUP($AC267&AS$248,'td1'!$GD$282:$GP$391,'información graf'!$G$2,FALSE) -> 1 | AT267: =+VLOOKUP($AC267&AT$248,'td1'!$GD$282:$GP$391,'información graf'!$G$2,FALSE) -> 12 | AU267: 19 | AX267: A11 | AY267: 8 | AZ267: 2 | BA267: 2 | BB267: 1 | BC267: 12 | BD267: 25
AC268: A12 | AF268: A12. Comunicaciones | AG268: =+VLOOKUP($AC268&AF$248,'td1'!$GD$169:$GP$278,'información graf'!$G$2,FALSE) -> 3 | AH268: =+VLOOKUP($AC268&AG$248,'td1'!$GD$169:$GP$278,'información graf'!$G$2,FALSE) -> 0 | AI268: =+VLOOKUP($AC268&AH$248,'td1'!$GD$169:$GP$278,'información graf'!$G$2,FALSE) -> 0 | AJ268: =+VLOOKUP($AC268&AI$248,'td1'!$GD$169:$GP$278,'información graf'!$G$2,FALSE) -> 0 | AK268: =+VLOOKUP($AC268&AJ$248,'td1'!$GD$169:$GP$278,'información graf'!$G$2,FALSE) -> 0 | AL268: 3 | AO268: A12 | AP268: =+VLOOKUP($AC268&AP$248,'td1'!$GD$282:$GP$391,'información graf'!$G$2,FALSE) -> 6 | AQ268: =+VLOOKUP($AC268&AQ$248,'td1'!$GD$282:$GP$391,'información graf'!$G$2,FALSE) -> 0 | AR268: =+VLOOKUP($AC268&AR$248,'td1'!$GD$282:$GP$391,'información graf'!$G$2,FALSE) -> 0 | AS268: =+VLOOKUP($AC268&AS$248,'td1'!$GD$282:$GP$391,'información graf'!$G$2,FALSE) -> 0 | AT268: =+VLOOKUP($AC268&AT$248,'td1'!$GD$282:$GP$391,'información graf'!$G$2,FALSE) -> 13 | AU268: 19 | AX268: A12 | AY268: 9 | AZ268: 0 | BA268: 0 | BB268: 0 | BC268: 13 | BD268: 22
AC269: A13 | AF269: A13. Planeación | AG269: =+VLOOKUP($AC269&AF$248,'td1'!$GD$169:$GP$278,'información graf'!$G$2,FALSE) -> 7 | AH269: =+VLOOKUP($AC269&AG$248,'td1'!$GD$169:$GP$278,'información graf'!$G$2,FALSE) -> 3 | AI269: =+VLOOKUP($AC269&AH$248,'td1'!$GD$169:$GP$278,'información graf'!$G$2,FALSE) -> 0 | AJ269: =+VLOOKUP($AC269&AI$248,'td1'!$GD$169:$GP$278,'información graf'!$G$2,FALSE) -> 0 | AK269: =+VLOOKUP($AC269&AJ$248,'td1'!$GD$169:$GP$278,'información graf'!$G$2,FALSE) -> 10 | AL269: 20 | AO269: A13 | AP269: =+VLOOKUP($AC269&AP$248,'td1'!$GD$282:$GP$391,'información graf'!$G$2,FALSE) -> 4 | AQ269: =+VLOOKUP($AC269&AQ$248,'td1'!$GD$282:$GP$391,'información graf'!$G$2,FALSE) -> 1 | AR269: =+VLOOKUP($AC269&AR$248,'td1'!$GD$282:$GP$391,'información graf'!$G$2,FALSE) -> 0 | AS269: =+VLOOKUP($AC269&AS$248,'td1'!$GD$282:$GP$391,'información graf'!$G$2,FALSE) -> 1 | AT269: =+VLOOKUP($AC269&AT$248,'td1'!$GD$282:$GP$391,'información graf'!$G$2,FALSE) -> 13 | AU269: 19 | AX269: A13 | AY269: 11 | AZ269: 4 | BA269: 0 | BB269: 1 | BC269: 23 | BD269: 39
AC270: A14 | AF270: A14. SNBF | AG270: =+VLOOKUP($AC270&AF$248,'td1'!$GD$169:$GP$278,'información graf'!$G$2,FALSE) -> 3 | AH270: =+VLOOKUP($AC270&AG$248,'td1'!$GD$169:$GP$278,'información graf'!$G$2,FALSE) -> 0 | AI270: =+VLOOKUP($AC270&AH$248,'td1'!$GD$169:$GP$278,'información graf'!$G$2,FALSE) -> 0 | AJ270: =+VLOOKUP($AC270&AI$248,'td1'!$GD$169:$GP$278,'información graf'!$G$2,FALSE) -> 0 | AK270: =+VLOOKUP($AC270&AJ$248,'td1'!$GD$169:$GP$278,'información graf'!$G$2,FALSE) -> 3 | AL270: 6 | AO270: A14 | AP270: =+VLOOKUP($AC270&AP$248,'td1'!$GD$282:$GP$391,'información graf'!$G$2,FALSE) -> 2 | AQ270: =+VLOOKUP($AC270&AQ$248,'td1'!$GD$282:$GP$391,'información graf'!$G$2,FALSE) -> 1 | AR270: =+VLOOKUP($AC270&AR$248,'td1'!$GD$282:$GP$391,'información graf'!$G$2,FALSE) -> 1 | AS270: =+VLOOKUP($AC270&AS$248,'td1'!$GD$282:$GP$391,'información graf'!$G$2,FALSE) -> 0 | AT270: =+VLOOKUP($AC270&AT$248,'td1'!$GD$282:$GP$391,'información graf'!$G$2,FALSE) -> 15 | AU270: 19 | AX270: A14 | AY270: 5 | AZ270: 1 | BA270: 1 | BB270: 0 | BC270: 18 | BD270: 25
AC271: A15 | AF271: A15. Control Interno | AG271: =+VLOOKUP($AC271&AF$248,'td1'!$GD$169:$GP$278,'información graf'!$G$2,FALSE) -> 2 | AH271: =+VLOOKUP($AC271&AG$248,'td1'!$GD$169:$GP$278,'información graf'!$G$2,FALSE) -> 1 | AI271: =+VLOOKUP($AC271&AH$248,'td1'!$GD$169:$GP$278,'información graf'!$G$2,FALSE) -> 1 | AJ271: =+VLOOKUP($AC271&AI$248,'td1'!$GD$169:$GP$278,'información graf'!$G$2,FALSE) -> 0 | AK271: =+VLOOKUP($AC271&AJ$248,'td1'!$GD$169:$GP$278,'información graf'!$G$2,FALSE) -> 0 | AL271: 4 | AO271: A15 | AP271: =+VLOOKUP($AC271&AP$248,'td1'!$GD$282:$GP$391,'información graf'!$G$2,FALSE) -> 0 | AQ271: =+VLOOKUP($AC271&AQ$248,'td1'!$GD$282:$GP$391,'información graf'!$G$2,FALSE) -> 0 | AR271: =+VLOOKUP($AC271&AR$248,'td1'!$GD$282:$GP$391,'información graf'!$G$2,FALSE) -> 0 | AS271: =+VLOOKUP($AC271&AS$248,'td1'!$GD$282:$GP$391,'información graf'!$G$2,FALSE) -> 0 | AT271: =+VLOOKUP($AC271&AT$248,'td1'!$GD$282:$GP$391,'información graf'!$G$2,FALSE) -> 19 | AU271: 19 | AX271: A15 | AY271: 2 | AZ271: 1 | BA271: 1 | BB271: 0 | BC271: 19 | BD271: 23
AC272: A16 | AF272: A16. Aseguramiento | AG272: =+VLOOKUP($AC272&AF$248,'td1'!$GD$169:$GP$278,'información graf'!$G$2,FALSE) -> 1 | AH272: =+VLOOKUP($AC272&AG$248,'td1'!$GD$169:$GP$278,'información graf'!$G$2,FALSE) -> 1 | AI272: =+VLOOKUP($AC272&AH$248,'td1'!$GD$169:$GP$278,'información graf'!$G$2,FALSE) -> 1 | AJ272: =+VLOOKUP($AC272&AI$248,'td1'!$GD$169:$GP$278,'información graf'!$G$2,FALSE) -> 0 | AK272: =+VLOOKUP($AC272&AJ$248,'td1'!$GD$169:$GP$278,'información graf'!$G$2,FALSE) -> 0 | AL272: 3 | AO272: A16 | AP272: =+VLOOKUP($AC272&AP$248,'td1'!$GD$282:$GP$391,'información graf'!$G$2,FALSE) -> 0 | AQ272: =+VLOOKUP($AC272&AQ$248,'td1'!$GD$282:$GP$391,'información graf'!$G$2,FALSE) -> 0 | AR272: =+VLOOKUP($AC272&AR$248,'td1'!$GD$282:$GP$391,'información graf'!$G$2,FALSE) -> 0 | AS272: =+VLOOKUP($AC272&AS$248,'td1'!$GD$282:$GP$391,'información graf'!$G$2,FALSE) -> 0 | AT272: =+VLOOKUP($AC272&AT$248,'td1'!$GD$282:$GP$391,'información graf'!$G$2,FALSE) -> 19 | AU272: 19 | AX272: A16 | AY272: 1 | AZ272: 1 | BA272: 1 | BB272: 0 | BC272: 19 | BD272: 22
AC273: A17 | AF273: A17. Subd General | AG273: =+VLOOKUP($AC273&AF$248,'td1'!$GD$169:$GP$278,'información graf'!$G$2,FALSE) -> 0 | AH273: =+VLOOKUP($AC273&AG$248,'td1'!$GD$169:$GP$278,'información graf'!$G$2,FALSE) -> 0 | AI273: =+VLOOKUP($AC273&AH$248,'td1'!$GD$169:$GP$278,'información graf'!$G$2,FALSE) -> 0 | AJ273: =+VLOOKUP($AC273&AI$248,'td1'!$GD$169:$GP$278,'información graf'!$G$2,FALSE) -> 1 | AK273: =+VLOOKUP($AC273&AJ$248,'td1'!$GD$169:$GP$278,'información graf'!$G$2,FALSE) -> 0 | AL273: 1 | AO273: A17 | AP273: =+VLOOKUP($AC273&AP$248,'td1'!$GD$282:$GP$391,'información graf'!$G$2,FALSE) -> 1 | AQ273: =+VLOOKUP($AC273&AQ$248,'td1'!$GD$282:$GP$391,'información graf'!$G$2,FALSE) -> 0 | AR273: =+VLOOKUP($AC273&AR$248,'td1'!$GD$282:$GP$391,'información graf'!$G$2,FALSE) -> 0 | AS273: =+VLOOKUP($AC273&AS$248,'td1'!$GD$282:$GP$391,'información graf'!$G$2,FALSE) -> 1 | AT273: =+VLOOKUP($AC273&AT$248,'td1'!$GD$282:$GP$391,'información graf'!$G$2,FALSE) -> 17 | AU273: 19 | AX273: A17 | AY273: 1 | AZ273: 0 | BA273: 0 | BB273: 2 | BC273: 17 | BD273: 20
AD274: Total | AG274: =+AG250+AG256 -> 82 | AH274: =+AH250+AH256 -> 28 | AI274: =+AI250+AI256 -> 8 | AJ274: =+AJ250+AJ256 -> 4 | AK274: =+AK250+AK256 -> 41 | AL274: 163
AG275: =+AG274/$AL$274 -> 0.5030674847 | AH275: =+AH274/$AL$274 -> 0.1717791411 | AI275: =+AI274/$AL$274 -> 0.0490797546 | AJ275: =+AJ274/$AL$274 -> 0.0245398773 | AK275: =+AK274/$AL$274 -> 0.2515337423
AD276: =+"Corte "&$D$5 -> Corte Septiembre
C282: Sistema Integrado de Gestión - Objetivos SIGE
P283: SIGE1 | R283: Ampliar cobertura y mejorar calidad en la atención integral a la Primera Infancia.
P284: SIGE2 | R284: Promover los derechos de los NNA y prevenir los riesgos o amenazas de vulneración de los mismos
P285: SIGE3 | R285: Fortalecer en las familias y comunidades, capacidades que promuevan su desarrollo, fortalezcan sus vínculos de cuidado mutuo y prevengan la violencia intrafamiliar y de género.
P287: SIGE4 | R287: Promover la seguridad alimentaria y nutricional en el desarrollo de la primera infancia, los NNA y la familia.
P288: SIGE5 | R288: Garantizar la protección integral de los NNA en coordinación con las instancias del SNBF.
P289: SIGE6 | R289: Lograr una adecuada y eficiente gestión institucional a través de la articulación entre servidores, áreas y niveles territoriales; el apoyo administrativo a los procesos misionales, la apropiación de una cultura de la evaluación y la optimización del uso de los recursos
P291: SIGE7 | R291: Promover condiciones laborales que hagan del ICBF el mejor lugar para trabajar.
P292: SIGE8 | R292: Reducir los impactos ambientales generados por nuestra actividad.
P293: SIGE9 | R293: Impulsar una cultura de gestión de la calidad y el mejoramiento continuo.
P294: SIGE10 | R294: Gestionar el conocimiento institucional, con sistemas de información confiables, integrados y disponibles.
R296: Objetivos SIGE
X298: optimo | Y298: adecuado | Z298: en riesgo | AA298: critico | AB298: NA
W299: Comportamiento agregado de indicadores
AC300: Total
W301: SIGE1 | X301: =+VLOOKUP($W301&X$298,'td1'!$FN$169:$FZ$218,'información graf'!$G$2,FALSE) -> 11 | Y301: =+VLOOKUP($W301&Y$298,'td1'!$FN$169:$FZ$218,'información graf'!$G$2,FALSE) -> 3 | Z301: =+VLOOKUP($W301&Z$298,'td1'!$FN$169:$FZ$218,'información graf'!$G$2,FALSE) -> 1 | AA301: =+VLOOKUP($W301&AA$298,'td1'!$FN$169:$FZ$218,'información graf'!$G$2,FALSE) -> 0 | AB301: =+VLOOKUP($W301&AB$298,'td1'!$FN$169:$FZ$218,'información graf'!$G$2,FALSE) -> 2 | AC301: =+SUM(X301:AB301) -> 17
W302: SIGE2 | X302: =+VLOOKUP($W302&X$298,'td1'!$FN$169:$FZ$218,'información graf'!$G$2,FALSE) -> 6 | Y302: =+VLOOKUP($W302&Y$298,'td1'!$FN$169:$FZ$218,'información graf'!$G$2,FALSE) -> 4 | Z302: =+VLOOKUP($W302&Z$298,'td1'!$FN$169:$FZ$218,'información graf'!$G$2,FALSE) -> 0 | AA302: =+VLOOKUP($W302&AA$298,'td1'!$FN$169:$FZ$218,'información graf'!$G$2,FALSE) -> 0 | AB302: =+VLOOKUP($W302&AB$298,'td1'!$FN$169:$FZ$218,'información graf'!$G$2,FALSE) -> 3 | AC302: 13
W303: SIGE3 | X303: =+VLOOKUP($W303&X$298,'td1'!$FN$169:$FZ$218,'información graf'!$G$2,FALSE) -> 5 | Y303: =+VLOOKUP($W303&Y$298,'td1'!$FN$169:$FZ$218,'información graf'!$G$2,FALSE) -> 2 | Z303: =+VLOOKUP($W303&Z$298,'td1'!$FN$169:$FZ$218,'información graf'!$G$2,FALSE) -> 0 | AA303: =+VLOOKUP($W303&AA$298,'td1'!$FN$169:$FZ$218,'información graf'!$G$2,FALSE) -> 0 | AB303: =+VLOOKUP($W303&AB$298,'td1'!$FN$169:$FZ$218,'información graf'!$G$2,FALSE) -> 1 | AC303: 8
W304: SIGE4 | X304: =+VLOOKUP($W304&X$298,'td1'!$FN$169:$FZ$218,'información graf'!$G$2,FALSE) -> 4 | Y304: =+VLOOKUP($W304&Y$298,'td1'!$FN$169:$FZ$218,'información graf'!$G$2,FALSE) -> 1 | Z304: =+VLOOKUP($W304&Z$298,'td1'!$FN$169:$FZ$218,'información graf'!$G$2,FALSE) -> 0 | AA304: =+VLOOKUP($W304&AA$298,'td1'!$FN$169:$FZ$218,'información graf'!$G$2,FALSE) -> 0 | AB304: =+VLOOKUP($W304&AB$298,'td1'!$FN$169:$FZ$218,'información graf'!$G$2,FALSE) -> 3 | AC304: 8
W305: SIGE5 | X305: =+VLOOKUP($W305&X$298,'td1'!$FN$169:$FZ$218,'información graf'!$G$2,FALSE) -> 9 | Y305: =+VLOOKUP($W305&Y$298,'td1'!$FN$169:$FZ$218,'información graf'!$G$2,FALSE) -> 6 | Z305: =+VLOOKUP($W305&Z$298,'td1'!$FN$169:$FZ$218,'información graf'!$G$2,FALSE) -> 3 | AA305: =+VLOOKUP($W305&AA$298,'td1'!$FN$169:$FZ$218,'información graf'!$G$2,FALSE) -> 0 | AB305: =+VLOOKUP($W305&AB$298,'td1'!$FN$169:$FZ$218,'información graf'!$G$2,FALSE) -> 2 | AC305: 20
W306: SIGE6 | X306: =+VLOOKUP($W306&X$298,'td1'!$FN$169:$FZ$218,'información graf'!$G$2,FALSE) -> 39 | Y306: =+VLOOKUP($W306&Y$298,'td1'!$FN$169:$FZ$218,'información graf'!$G$2,FALSE) -> 8 | Z306: =+VLOOKUP($W306&Z$298,'td1'!$FN$169:$FZ$218,'información graf'!$G$2,FALSE) -> 4 | AA306: =+VLOOKUP($W306&AA$298,'td1'!$FN$169:$FZ$218,'información graf'!$G$2,FALSE) -> 4 | AB306: =+VLOOKUP($W306&AB$298,'td1'!$FN$169:$FZ$218,'información graf'!$G$2,FALSE) -> 19 | AC306: 74
W307: SIGE7 | X307: =+VLOOKUP($W307&X$298,'td1'!$FN$169:$FZ$218,'información graf'!$G$2,FALSE) -> 0 | Y307: =+VLOOKUP($W307&Y$298,'td1'!$FN$169:$FZ$218,'información graf'!$G$2,FALSE) -> 0 | Z307: =+VLOOKUP($W307&Z$298,'td1'!$FN$169:$FZ$218,'información graf'!$G$2,FALSE) -> 0 | AA307: =+VLOOKUP($W307&AA$298,'td1'!$FN$169:$FZ$218,'información graf'!$G$2,FALSE) -> 0 | AB307: =+VLOOKUP($W307&AB$298,'td1'!$FN$169:$FZ$218,'información graf'!$G$2,FALSE) -> 4 | AC307: 4
W308: SIGE8 | X308: =+VLOOKUP($W308&X$298,'td1'!$FN$169:$FZ$218,'información graf'!$G$2,FALSE) -> 1 | Y308: =+VLOOKUP($W308&Y$298,'td1'!$FN$169:$FZ$218,'información graf'!$G$2,FALSE) -> 0 | Z308: =+VLOOKUP($W308&Z$298,'td1'!$FN$169:$FZ$218,'información graf'!$G$2,FALSE) -> 0 | AA308: =+VLOOKUP($W308&AA$298,'td1'!$FN$169:$FZ$218,'información graf'!$G$2,FALSE) -> 0 | AB308: =+VLOOKUP($W308&AB$298,'td1'!$FN$169:$FZ$218,'información graf'!$G$2,FALSE) -> 3 | AC308: 4
W309: SIGE9 | X309: =+VLOOKUP($W309&X$298,'td1'!$FN$169:$FZ$218,'información graf'!$G$2,FALSE) -> 4 | Y309: =+VLOOKUP($W309&Y$298,'td1'!$FN$169:$FZ$218,'información graf'!$G$2,FALSE) -> 3 | Z309: =+VLOOKUP($W309&Z$298,'td1'!$FN$169:$FZ$218,'información graf'!$G$2,FALSE) -> 0 | AA309: =+VLOOKUP($W309&AA$298,'td1'!$FN$169:$FZ$218,'información graf'!$G$2,FALSE) -> 0 | AB309: =+VLOOKUP($W309&AB$298,'td1'!$FN$169:$FZ$218,'información graf'!$G$2,FALSE) -> 4 | AC309: 11
W310: SIGE10 | X310: =+VLOOKUP($W310&X$298,'td1'!$FN$169:$FZ$218,'información graf'!$G$2,FALSE) -> 3 | Y310: =+VLOOKUP($W310&Y$298,'td1'!$FN$169:$FZ$218,'información graf'!$G$2,FALSE) -> 1 | Z310: =+VLOOKUP($W310&Z$298,'td1'!$FN$169:$FZ$218,'información graf'!$G$2,FALSE) -> 0 | AA310: =+VLOOKUP($W310&AA$298,'td1'!$FN$169:$FZ$218,'información graf'!$G$2,FALSE) -> 0 | AB310: =+VLOOKUP($W310&AB$298,'td1'!$FN$169:$FZ$218,'información graf'!$G$2,FALSE) -> 0 | AC310: 4
W311: Total | X311: =SUM(X301:X310) -> 82 | Y311: 28 | Z311: 8 | AA311: 4 | AB311: 41 | AC311: 163
X312: =+X311/$AC$311 -> 0.5030674847 | Y312: =+Y311/$AC$311 -> 0.1717791411 | Z312: =+Z311/$AC$311 -> 0.0490797546 | AA312: =+AA311/$AC$311 -> 0.0245398773 | AB312: =+AB311/$AC$311 -> 0.2515337423
C319: Análisis "Cómo vamos" ICBF

Sheet información graf
A1: name | B1: % | F1: Mes de corte | L1: Graficas grales
A2: PM_1 | B2: =+VLOOKUP(C2,'td1'!$AC$5:$AO$4140,$G$2,FALSE) -> 0.9602184948 | C2: PM1 | D2: 5 | F2: =+Menu!C7 -> Septiembre | G2: =+VLOOKUP(F2,Referencias!A132:B143,2,FALSE) -> 10 | L2: avance total | O2: Mapa Estrategico | T2: Mapa de Procesos | W2: Lineas de Politica | AB2: Áreas | AI2: Objetivos SIGE | AL2: Historicos | AM2: 2 | AN2: 3 | AO2: 4 | AP2: 5 | AQ2: 6 | AR2: 7 | AS2: 8 | AT2: 9 | AU2: 10 | AV2: 11 | AW2: 12 | AX2: 13 | CI2: Como vamos tc | ET2: 2 | EU2: 3 | EV2: 4 | EW2: 5 | EX2: 6 | EY2: 7 | EZ2: 8 | FA2: 9 | FB2: 10 | FC2: 11 | FD2: 12 | FE2: 13 | FG2: Relación con el mes anterior | FT2: Relación con el trimestre anterior
A3: PM_2 | B3: =+VLOOKUP(C3,'td1'!$AC$5:$AO$4140,$G$2,FALSE) -> 0.9205413393 | C3: PM2 | D3: 8 | L3: grafico 1 | O3: grafico 2 | Q3: grafico 3 | T3: grafico 4 | W3: grafico 5 | Y3: grafico 6 | AB3: grafico 7 | AC3: Calificación total | AD3: grafico 8 | AE3: Indicadores directos | AF3: grafico 9 | AG3: Indicadores transversales | AI3: grafico 8 | AL3: TC | AM3: Ene | AN3: Feb | AO3: Mar | AP3: Abr | AQ3: May | AR3: Jun | AS3: Jul | AT3: Agt | AU3: Sep | AV3: Oct | AW3: Nov | AX3: Dic | BA3: Ene | BB3: Feb | BC3: Mar | BD3: Abr | BE3: May | BF3: Jun | BG3: Jul | BH3: Agt | BI3: Sep | BJ3: Oct | BK3: Nov | BL3: Dic | BO3: Ene | BP3: Feb | BQ3: Mar | BR3: Abr | BS3: May | BT3: Jun | BU3: Jul | BV3: Agt | BW3: Sep | BX3: Oct | BY3: Nov | BZ3: Dic | CI3: grafico 11 | CL3: Meta corte | CM3: Avance | CN3: % | DF3: Ene | DG3: Feb | DH3: Mar | DI3: Abr | DJ3: May | DK3: Jun | DL3: Jul | DM3: Agt | DN3: Sep | DO3: Oct | DP3: Nov | DQ3: Dic | DT3: $ | DU3: PA | DY3: Jul | DZ3: Agt | EA3: Sep | EB3: Oct | EC3: Nov | ED3: Dic | EJ3: $ | EK3: PA | ER3: Total | ET3: Ene | EU3: Feb | EV3: Mar | EW3: Abr | EX3: May | EY3: Jun | EZ3: Jul | FA3: Agt | FB3: Sep | FC3: Oct | FD3: Nov | FE3: Dic | FG3: Ene | FH3: Feb | FI3: Mar | FJ3: Abr | FK3: May | FL3: Jun | FM3: Jul | FN3: Agt | FO3: Sep | FP3: Oct | FQ3: Nov | FR3: Dic | FT3: Ene | FU3: Feb | FV3: Mar | FW3: Abr | FX3: May | FY3: Jun | FZ3: Jul | GA3: Agt | GB3: Sep | GC3: Oct | GD3: Nov | GE3: Dic | GH3: Ene | GI3: Feb | GJ3: Mar | GK3: Abr | GL3: May | GM3: Jun | GN3: Jul | GO3: Agt | GP3: Sep | GQ3: Oct | GR3: Nov | GS3: Dic
A4: PA_1 | B4: =+VLOOKUP(C4,'td1'!$AC$5:$AO$4140,$G$2,FALSE) -> 0.989154013 | C4: PA1 | D4: 11 | F4: Regional | K4: TC | L4: Tablero de control | M4: =+VLOOKUP(K4,'td1'!$AC$5:$AO$4140,$G$2,FALSE) -> 0.9378729064 | O4: PS | P4: =+VLOOKUP(O4,'td1'!$AC$5:$AO$4140,$G$2,FALSE) -> 0.9545115659 | Q4: PS1 | R4: =+VLOOKUP(Q4,'td1'!$AC$5:$AO$4140,$G$2,FALSE) -> 0.9553106971 | T4: PM1 | U4: =+VLOOKUP(T4,'td1'!$AC$5:$AO$4140,$G$2,FALSE) -> 0.9602184948 | W4: LP1 | X4: =+VLOOKUP(W4,'td1'!$AC$5:$AO$4140,$G$2,FALSE) -> 0.9460064199 | Y4: LP1-C1 | Z4: =+VLOOKUP(Y4,'td1'!$AC$5:$AO$4140,$G$2,FALSE) -> 0.9460064199 | AA4: Primera Infancia | AB4: M1 | AC4: =+VLOOKUP(AB4,'td1'!$AC$5:$AO$4140,$G$2,FALSE) -> 0.9139638979 | AD4: M1.D | AE4: =+VLOOKUP(AD4,'td1'!$AC$5:$AO$4140,$G$2,FALSE) -> 0.9553106971 | AF4: M1.Tr | AG4: =+VLOOKUP(AF4,'td1'!$AC$5:$AO$4140,$G$2,FALSE) -> 0.7708674304 | AI4: SIGE1 | AJ4: =+VLOOKUP(AI4,'td1'!$AC$5:$AO$4140,$G$2,FALSE) -> 0.9553106971 | AL4: 2016 | AM4: =+IF(AM5 ="","",Referencias!T146) -> 0.8898165746 | AN4: =+IF(AN5 ="","",Referencias!U146) -> 0.8994929302 | AO4: =+IF(AO5 ="","",Referencias!V146) -> 0.8736798042 | AP4: =+IF(AP5 ="","",Referencias!W146) -> 0.8947459802 | AQ4: =+IF(AQ5 ="","",Referencias!X146) -> 0.9466383162 | AR4: =+IF(AR5 ="","",Referencias!Y146) -> 0.9071946347 | AS4: =+IF(AS5 ="","",Referencias!Z146) -> 0.9565096378 | AT4: =+IF(AT5 ="","",Referencias!AA146) -> 0.9344556856 | AU4: =+IF(AU5 ="","",Referencias!AB146) -> 0.8881054546 | AV4: =+IF(AV5 ="","",Referencias!AC146) ->  | AW4: =+IF(AW5 ="","",Referencias!AD146) ->  | AX4: =+IF(AX5 ="","",Referencias!AE146) ->  | AZ4: Tablero de control | BA4: =+IF(AM5="",NA(),AM5) -> 0.9168138095 | BB4: =+IF(AN5="",NA(),AN5) -> 0.91983321 | BC4: 0.9342227543 | BD4: 0.8991814865 | BE4: 0.9310953629 | BF4: 0.9527783735 | BG4: 0.9524510718 | BH4: 0.9310235879 | BI4: 0.9378729064 | BN4: Optimo | BO4: =+'td1'!CA169 -> 7 | BP4: =+'td1'!CB169 -> 14 | BQ4: =+'td1'!CC169 -> 54 | BR4: =+'td1'!CD169 -> 29 | BS4: =+'td1'!CE169 -> 27 | BT4: =+'td1'!CF169 -> 92 | BU4: =+'td1'!CG169 -> 29 | BV4: =+'td1'!CH169 -> 41 | BW4: =+'td1'!CI169 -> 82 | BX4: =+'td1'!CJ169 -> 0 | BY4: =+'td1'!CK169 -> 0 | BZ4: =+'td1'!CL169 -> 0 | CI4: Misionales | CJ4: Primera Infancia | CK4: M1 | CL4: =+'como vamos'!DJ5 -> 0.8468601208 | CM4: =+'como vamos'!DK5 -> 0.8034895295 | CN4: =+IFERROR(CM4/CL4,0) -> 0.9487865938 | DD4: Abastecimiento | DE4: A4 | DF4: 0.6472491909 | DG4: 0.6472491909 | DH4: 0.6472491909 | DI4: 0.6472491909 | DJ4: 0.6472491909 | DK4: 0.6920415225 | DL4: 0.8368200837 | DS4: Abastecimiento | DT4: =+LOOKUP(10000,$DF4:$DQ4) -> 0.8368200837 | DU4: =+VLOOKUP(DE4,$CK$30:$CM$51,3,FALSE) -> 0.9726415094 | DW4: =+'como vamos'!DK58 -> C-4102-1500-1 | DY4: 0.9622006709 | DZ4: 0.9624826547 | EA4: 0.9655707158 | EF4: =+'como vamos'!DK58 -> C-4102-1500-1 | EH4: Nutrición | EJ4: =+LOOKUP(10000,$DY4:$ED4) -> 0.9655707158 | EK4: =+'como vamos'!DL58 -> 0.9770345311 | ER4: M1 | ES4: Primera Infancia | ET4: =+VLOOKUP($ER4,'td1'!$AC$187:$AO$208,ET$2,FALSE) -> 1 | EU4: =+VLOOKUP($ER4,'td1'!$AC$187:$AO$208,EU$2,FALSE) -> 0.9267935578 | EV4: =+VLOOKUP($ER4,'td1'!$AC$187:$AO$208,EV$2,FALSE) -> 0.8892475788 | EW4: =+VLOOKUP($ER4,'td1'!$AC$187:$AO$208,EW$2,FALSE) -> 0.8341136584 | EX4: =+VLOOKUP($ER4,'td1'!$AC$187:$AO$208,EX$2,FALSE) -> 0.8804280716 | EY4: =+VLOOKUP($ER4,'td1'!$AC$187:$AO$208,EY$2,FALSE) -> 0.9152929769 | EZ4: =+VLOOKUP($ER4,'td1'!$AC$187:$AO$208,EZ$2,FALSE) -> 0.941629035 | FA4: =+VLOOKUP($ER4,'td1'!$AC$187:$AO$208,FA$2,FALSE) -> 0.8650065531 | FB4: =+VLOOKUP($ER4,'td1'!$AC$187:$AO$208,FB$2,FALSE) -> 0.9139638979 | FC4: =+VLOOKUP($ER4,'td1'!$AC$187:$AO$208,FC$2,FALSE) ->  | FD4: =+VLOOKUP($ER4,'td1'!$AC$187:$AO$208,FD$2,FALSE) ->  | FE4: =+VLOOKUP($ER4,'td1'!$AC$187:$AO$208,FE$2,FALSE) ->  | FH4: =+IFERROR((EU4-ET4)/EU4,"") -> -0.07898894155 | FI4: -0.0422221886 | FJ4: -0.06609881029 | FK4: 0.05260442589 | FL4: 0.03809152493 | FM4: 0.02796861302 | FN4: -0.08858023284 | FO4: 0.05356595035 | FY4: =+IFERROR((EY4-EV4)/EY4,"") -> 0.02845580452 | FZ4: =+IFERROR((FM4-FL4)/FM4,"") -> -0.3619382878 | GA4: 1.315743277 | GB4: =+IFERROR((FB4-EY4)/FB4,"") -> -0.001454192023 | GC4: =+IFERROR((FP4-FO4)/FP4,"") ->  | GE4: =+IFERROR((FE4-FB4)/FE4,"") ->  | GG4: Gestión misional y de gobierno | GH4: =+IF('td1'!AD86="",NA(),'td1'!AD86) -> 0.9773036768 | GI4: =+IF('td1'!AE86="",NA(),'td1'!AE86) -> 0.9145605824 | GJ4: =+IF('td1'!AF86="",NA(),'td1'!AF86) -> 0.9323786578 | GK4: =+IF('td1'!AG86="",NA(),'td1'!AG86) -> 0.9168487367 | GL4: =+IF('td1'!AH86="",NA(),'td1'!AH86) -> 0.9184344477 | GM4: =+IF('td1'!AI86="",NA(),'td1'!AI86) -> 0.9701194389 | GN4: =+IF('td1'!AJ86="",NA(),'td1'!AJ86) -> 0.9585724935 | GO4: =+IF('td1'!AK86="",NA(),'td1'!AK86) -> 0.9485463037 | GP4: =+IF('td1'!AL86="",NA(),'td1'!AL86) -> 0.9460064199 | GQ4: =+IF('td1'!AM86="",NA(),'td1'!AM86) ->  | GR4: =+IF('td1'!AN86="",NA(),'td1'!AN86) ->  | GS4: =+IF('td1'!AO86="",NA(),'td1'!AO86) -> 
A5: PA_2 | B5: =+VLOOKUP(C5,'td1'!$AC$5:$AO$4140,$G$2,FALSE) -> 1 | C5: PA2 | D5: 13 | F5: =Menu!C37 -> Tolima | G5: =+VLOOKUP(F5,Referencias!R2:S34,2,FALSE) -> 73 | K5: PA | L5: Plan de Acción | M5: =+VLOOKUP(K5,'td1'!$AC$5:$AO$4140,$G$2,FALSE) -> 0.9414587656 | Q5: PS2 | R5: =+VLOOKUP(Q5,'td1'!$AC$5:$AO$4140,$G$2,FALSE) -> 0.9872146119 | T5: PM2 | U5: =+VLOOKUP(T5,'td1'!$AC$5:$AO$4140,$G$2,FALSE) -> 0.9205413393 | W5: LP2 | X5: =+VLOOKUP(W5,'td1'!$AC$5:$AO$4140,$G$2,FALSE) -> 0.9451176281 | Y5: LP2-C2 | Z5: =+VLOOKUP(Y5,'td1'!$AC$5:$AO$4140,$G$2,FALSE) -> 1 | AA5: Niñez y Adolescencia | AB5: M2 | AC5: =+VLOOKUP(AB5,'td1'!$AC$5:$AO$4140,$G$2,FALSE) -> 0.9281957251 | AD5: M2.D | AE5: =+VLOOKUP(AD5,'td1'!$AC$5:$AO$4140,$G$2,FALSE) -> 0.9835464334 | AF5: M2.Tr | AG5: =+VLOOKUP(AF5,'td1'!$AC$5:$AO$4140,$G$2,FALSE) -> 0.8368055556 | AI5: SIGE2 | AJ5: =+VLOOKUP(AI5,'td1'!$AC$5:$AO$4140,$G$2,FALSE) -> 0.9835464334 | AL5: 2017 | AM5: =+VLOOKUP($AL3,'td1'!$AC$5:$AO$4140,AM$2,FALSE) -> 0.9168138095 | AN5: =+VLOOKUP($AL3,'td1'!$AC$5:$AO$4140,AN$2,FALSE) -> 0.91983321 | AO5: =+VLOOKUP($AL3,'td1'!$AC$5:$AO$4140,AO$2,FALSE) -> 0.9342227543 | AP5: =+VLOOKUP($AL3,'td1'!$AC$5:$AO$4140,AP$2,FALSE) -> 0.8991814865 | AQ5: =+VLOOKUP($AL3,'td1'!$AC$5:$AO$4140,AQ$2,FALSE) -> 0.9310953629 | AR5: =+VLOOKUP($AL3,'td1'!$AC$5:$AO$4140,AR$2,FALSE) -> 0.9527783735 | AS5: =+VLOOKUP($AL3,'td1'!$AC$5:$AO$4140,AS$2,FALSE) -> 0.9524510718 | AT5: =+VLOOKUP($AL3,'td1'!$AC$5:$AO$4140,AT$2,FALSE) -> 0.9310235879 | AU5: =+VLOOKUP($AL3,'td1'!$AC$5:$AO$4140,AU$2,FALSE) -> 0.9378729064 | AV5: =+VLOOKUP($AL3,'td1'!$AC$5:$AO$4140,AV$2,FALSE) ->  | AW5: =+VLOOKUP($AL3,'td1'!$AC$5:$AO$4140,AW$2,FALSE) ->  | AX5: =+VLOOKUP($AL3,'td1'!$AC$5:$AO$4140,AX$2,FALSE) ->  | AZ5: Plan de Acción | BA5: =+IF(AM9="",NA(),AM9) -> 0.9090868196 | BB5: 0.9101128668 | BC5: 0.9427887432 | BD5: 0.9168626366 | BE5: 0.926621936 | BF5: 0.9595415321 | BG5: 0.9610199092 | BH5: 0.9470343563 | BI5: 0.9414587656 | BN5: Adecuado | BO5: =+'td1'!CA170 -> 4 | BP5: =+'td1'!CB170 -> 12 | BQ5: =+'td1'!CC170 -> 23 | BR5: =+'td1'!CD170 -> 22 | BS5: =+'td1'!CE170 -> 13 | BT5: =+'td1'!CF170 -> 32 | BU5: =+'td1'!CG170 -> 15 | BV5: =+'td1'!CH170 -> 23 | BW5: =+'td1'!CI170 -> 28 | BX5: =+'td1'!CJ170 -> 0 | BY5: =+'td1'!CK170 -> 0 | BZ5: =+'td1'!CL170 -> 0 | CJ5: Niñez | CK5: M2 | CL5: =+'como vamos'!DJ6 -> 0.8430784749 | CM5: =+'como vamos'!DK6 -> 0.8236846127 | CN5: =+IFERROR(CM5/CL5,0) -> 0.9769963737 | DD5: Administrativa | DE5: A5 | DF5: 0.6666042501 | DG5: 0.6787810036 | DH5: 0.6959845306 | DI5: 0.704165756 | DJ5: 0.7140593865 | DK5: 0.726886971 | DL5: 0.74102194 | DS5: Administrativa | DT5: 0.74102194 | DU5: 0.3221961674 | DW5: =+'como vamos'!DK59 -> C-4102-1500-3 | DY5: 0.8948360302 | DZ5: 0.9118779149 | EA5: 0.919880317 | EF5: =+'como vamos'!DK59 -> C-4102-1500-3 | EH5: Protección | EJ5: =+LOOKUP(10000,$DY5:$ED5) -> 0.919880317 | EK5: =+'como vamos'!DL59 -> 0.9267146974 | ER5: M2 | ES5: Niñez | ET5: =+VLOOKUP($ER5,'td1'!$AC$187:$AO$208,ET$2,FALSE) -> 1 | EU5: =+VLOOKUP($ER5,'td1'!$AC$187:$AO$208,EU$2,FALSE) -> 1 | EV5: =+VLOOKUP($ER5,'td1'!$AC$187:$AO$208,EV$2,FALSE) -> 0.9270072993 | EW5: =+VLOOKUP($ER5,'td1'!$AC$187:$AO$208,EW$2,FALSE) -> 0.8184757506 | EX5: =+VLOOKUP($ER5,'td1'!$AC$187:$AO$208,EX$2,FALSE) -> 0.957337884 | EY5: =+VLOOKUP($ER5,'td1'!$AC$187:$AO$208,EY$2,FALSE) -> 0.929930133 | EZ5: =+VLOOKUP($ER5,'td1'!$AC$187:$AO$208,EZ$2,FALSE) -> 0.9308718585 | FA5: =+VLOOKUP($ER5,'td1'!$AC$187:$AO$208,FA$2,FALSE) -> 0.8766941556 | FB5: =+VLOOKUP($ER5,'td1'!$AC$187:$AO$208,FB$2,FALSE) -> 0.9281957251 | FC5: =+VLOOKUP($ER5,'td1'!$AC$187:$AO$208,FC$2,FALSE) ->  | FD5: =+VLOOKUP($ER5,'td1'!$AC$187:$AO$208,FD$2,FALSE) ->  | FE5: =+VLOOKUP($ER5,'td1'!$AC$187:$AO$208,FE$2,FALSE) ->  | FH5: 0 | FI5: -0.07874015748 | FJ5: -0.1326020333 | FK5: 0.1450502855 | FL5: -0.02947291416 | FM5: 0.001011659699 | FN5: -0.06179772337 | FO5: 0.05548567836 | FY5: =+IFERROR((EY5-EV5)/EY5,"") -> 0.003143068064 | FZ5: 30.13322948 | GA5: 1.016370501 | GB5: =+IFERROR((FB5-EY5)/FB5,"") -> -0.001868579937 | GE5: =+IFERROR((FE5-FB5)/FE5,"") ->  | GG5: Transparencia, participación y servicio al ciudadano | GH5: =+IF('td1'!AD87="",NA(),'td1'!AD87) -> 0.9 | GI5: =+IF('td1'!AE87="",NA(),'td1'!AE87) -> 0.9 | GJ5: =+IF('td1'!AF87="",NA(),'td1'!AF87) -> 0.9621807684 | GK5: =+IF('td1'!AG87="",NA(),'td1'!AG87) -> 0.9 | GL5: =+IF('td1'!AH87="",NA(),'td1'!AH87) -> 0.9 | GM5: =+IF('td1'!AI87="",NA(),'td1'!AI87) -> 0.9561864781 | GN5: =+IF('td1'!AJ87="",NA(),'td1'!AJ87) -> 0.9 | GO5: =+IF('td1'!AK87="",NA(),'td1'!AK87) -> 0.9 | GP5: =+IF('td1'!AL87="",NA(),'td1'!AL87) -> 0.9451176281 | GQ5: =+IF('td1'!AM87="",NA(),'td1'!AM87) ->  | GR5: =+IF('td1'!AN87="",NA(),'td1'!AN87) ->  | GS5: =+IF('td1'!AO87="",NA(),'td1'!AO87) -> 
A6: PA_3 | B6: =+VLOOKUP(C6,'td1'!$AC$5:$AO$4140,$G$2,FALSE) -> 0.6421407501 | C6: PA3 | D6: 15 | K6: PI | L6: Plan Indicativo | M6: =+VLOOKUP(K6,'td1'!$AC$5:$AO$4140,$G$2,FALSE) -> 0.9674193245 | Q6: PS3 | R6: =+VLOOKUP(Q6,'td1'!$AC$5:$AO$4140,$G$2,FALSE) -> 0.9693895871 | T6: PA1 | U6: =+VLOOKUP(T6,'td1'!$AC$5:$AO$4140,$G$2,FALSE) -> 0.989154013 | Y6: LP2-C3 | Z6: =+VLOOKUP(Y6,'td1'!$AC$5:$AO$4140,$G$2,FALSE) -> 0.9 | AA6: Familias | AB6: M3 | AC6: =+VLOOKUP(AB6,'td1'!$AC$5:$AO$4140,$G$2,FALSE) -> 0.9781863463 | AD6: M3.D | AE6: =+VLOOKUP(AD6,'td1'!$AC$5:$AO$4140,$G$2,FALSE) -> 0.9693895871 | AF6: M3.Tr | AG6: =+VLOOKUP(AF6,'td1'!$AC$5:$AO$4140,$G$2,FALSE) -> 0.9947257384 | AI6: SIGE3 | AJ6: =+VLOOKUP(AI6,'td1'!$AC$5:$AO$4140,$G$2,FALSE) -> 0.9693895871 | AZ6: Plan Indicativo | BA6: =+IF(AM13="",NA(),AM13) -> 0.8877481177 | BB6: 0.9212335129 | BC6: 0.9467881944 | BD6: 0.9376021798 | BE6: 0.9716250262 | BF6: 0.9697606625 | BG6: 0.9694840339 | BH6: 0.9365035203 | BI6: 0.9674193245 | BN6: En riesgo | BO6: =+'td1'!CA171 -> 0 | BP6: =+'td1'!CB171 -> 2 | BQ6: =+'td1'!CC171 -> 4 | BR6: =+'td1'!CD171 -> 2 | BS6: =+'td1'!CE171 -> 4 | BT6: =+'td1'!CF171 -> 3 | BU6: =+'td1'!CG171 -> 4 | BV6: =+'td1'!CH171 -> 10 | BW6: =+'td1'!CI171 -> 8 | BX6: =+'td1'!CJ171 -> 0 | BY6: =+'td1'!CK171 -> 0 | BZ6: =+'td1'!CL171 -> 0 | CJ6: Familias | CK6: M3 | CL6: =+'como vamos'!DJ7 -> 0.8419599218 | CM6: =+'como vamos'!DK7 -> 0.8169599218 | CN6: 0.9703073753 | DD6: Comunicaciones | DE6: A12 | DF6: 0.3238779914 | DG6: 0.3294864132 | DH6: 0.3440753693 | DI6: 0.3440753693 | DJ6: 0.9276336157 | DK6: 0.9889801764 | DL6: 0.9889801764 | DS6: Comunicaciones | DT6: 0.9889801764 | DU6: 0.76953125 | DW6: =+'como vamos'!DK60 -> C-4102-1500-4 | DY6: 0.9116621686 | DZ6: 0.9158547442 | EA6: 0.9640140699 | EF6: =+'como vamos'!DK60 -> C-4102-1500-4 | EH6: Primera infancia | EJ6: 0.9640140699 | EK6: =+'como vamos'!DL60 -> 0.9640817349 | ER6: M3 | ES6: Familias | ET6: =+VLOOKUP($ER6,'td1'!$AC$187:$AO$208,ET$2,FALSE) -> 1 | EU6: =+VLOOKUP($ER6,'td1'!$AC$187:$AO$208,EU$2,FALSE) ->  | EV6: =+VLOOKUP($ER6,'td1'!$AC$187:$AO$208,EV$2,FALSE) -> 0.9394514768 | EW6: =+VLOOKUP($ER6,'td1'!$AC$187:$AO$208,EW$2,FALSE) -> 0.9427522936 | EX6: =+VLOOKUP($ER6,'td1'!$AC$187:$AO$208,EX$2,FALSE) -> 0.9565028273 | EY6: =+VLOOKUP($ER6,'td1'!$AC$187:$AO$208,EY$2,FALSE) -> 0.954400213 | EZ6: =+VLOOKUP($ER6,'td1'!$AC$187:$AO$208,EZ$2,FALSE) -> 0.983982573 | FA6: =+VLOOKUP($ER6,'td1'!$AC$187:$AO$208,FA$2,FALSE) -> 0.9697121974 | FB6: =+VLOOKUP($ER6,'td1'!$AC$187:$AO$208,FB$2,FALSE) -> 0.9781863463 | FC6: =+VLOOKUP($ER6,'td1'!$AC$187:$AO$208,FC$2,FALSE) ->  | FD6: =+VLOOKUP($ER6,'td1'!$AC$187:$AO$208,FD$2,FALSE) ->  | FE6: =+VLOOKUP($ER6,'td1'!$AC$187:$AO$208,FE$2,FALSE) ->  | FJ6: 0.00350125564 | FK6: 0.01437584223 | FL6: -0.002203074 | FM6: 0.03006390644 | FN6: -0.01471609383 | FO6: 0.008663123345 | FY6: 0.01566296405 | FZ6: 1.073279699 | GA6: 3.042927069 | GB6: 0.02431656646 | GG6: Gestión del talento humano | GH6: =+IF('td1'!AD88="",NA(),'td1'!AD88) ->  | GI6: =+IF('td1'!AE88="",NA(),'td1'!AE88) ->  | GJ6: =+IF('td1'!AF88="",NA(),'td1'!AF88) -> 1 | GK6: =+IF('td1'!AG88="",NA(),'td1'!AG88) -> 1 | GL6: =+IF('td1'!AH88="",NA(),'td1'!AH88) ->  | GM6: =+IF('td1'!AI88="",NA(),'td1'!AI88) -> 0.8 | GN6: =+IF('td1'!AJ88="",NA(),'td1'!AJ88) ->  | GO6: =+IF('td1'!AK88="",NA(),'td1'!AK88) -> 1 | GP6: =+IF('td1'!AL88="",NA(),'td1'!AL88) -> 0.65 | GQ6: =+IF('td1'!AM88="",NA(),'td1'!AM88) ->  | GR6: =+IF('td1'!AN88="",NA(),'td1'!AN88) ->  | GS6: =+IF('td1'!AO88="",NA(),'td1'!AO88) -> 
A7: PA_4 | B7: =+VLOOKUP(C7,'td1'!$AC$5:$AO$4140,$G$2,FALSE) -> 0.8092457421 | C7: PA4 | D7: 17 | F7: Macroregion | Q7: PS4 | R7: =+VLOOKUP(Q7,'td1'!$AC$5:$AO$4140,$G$2,FALSE) -> 0.973969483 | T7: PA2 | U7: =+VLOOKUP(T7,'td1'!$AC$5:$AO$4140,$G$2,FALSE) -> 1 | Y7: LP2-C4 | Z7: =+VLOOKUP(Y7,'td1'!$AC$5:$AO$4140,$G$2,FALSE) -> 0.9247459125 | AA7: Nutrición | AB7: M4 | AC7: =+VLOOKUP(AB7,'td1'!$AC$5:$AO$4140,$G$2,FALSE) -> 0.975560005 | AD7: M4.D | AE7: =+VLOOKUP(AD7,'td1'!$AC$5:$AO$4140,$G$2,FALSE) -> 0.973969483 | AF7: M4.Tr | AG7: =+VLOOKUP(AF7,'td1'!$AC$5:$AO$4140,$G$2,FALSE) -> 0.9775 | AI7: SIGE4 | AJ7: =+VLOOKUP(AI7,'td1'!$AC$5:$AO$4140,$G$2,FALSE) -> 0.973969483 | AL7: PA | AM7: Ene | AN7: Feb | AO7: Mar | AP7: Abr | AQ7: May | AR7: Jun | AS7: Jul | AT7: Agt | AU7: Sep | AV7: Oct | AW7: Nov | AX7: Dic | BN7: Critico | BO7: =+'td1'!CA172 -> 1 | BP7: =+'td1'!CB172 -> 0 | BQ7: =+'td1'!CC172 -> 4 | BR7: =+'td1'!CD172 -> 5 | BS7: =+'td1'!CE172 -> 0 | BT7: =+'td1'!CF172 -> 5 | BU7: =+'td1'!CG172 -> 1 | BV7: =+'td1'!CH172 -> 1 | BW7: =+'td1'!CI172 -> 4 | BX7: =+'td1'!CJ172 -> 0 | BY7: =+'td1'!CK172 -> 0 | BZ7: =+'td1'!CL172 -> 0 | CJ7: Nutrición | CK7: M4 | CL7: =+'como vamos'!DJ8 -> 0.8298824016 | CM7: =+'como vamos'!DK8 -> 0.8127047641 | CN7: 0.9793011185 | DD7: Familia | DE7: M3 | DF7: 0 | DG7: 0.0237535388 | DH7: 0.7288377334 | DI7: 0.836407697 | DJ7: 0.8428437412 | DK7: 0.9434932597 | DL7: 0.9644950403 | DS7: Familia | DT7: 0.9644950403 | DU7: 0.7958333333 | DW7: =+'como vamos'!DK61 -> C-4102-1500-5 | DY7: 0.9629766308 | DZ7: 0.9637940131 | EA7: 0.9644790374 | EF7: =+'como vamos'!DK61 -> C-4102-1500-5 | EH7: Familia | EJ7: 0.9644790374 | EK7: =+'como vamos'!DL61 -> 0.9695431472 | ER7: M4 | ES7: Nutrición | ET7: =+VLOOKUP($ER7,'td1'!$AC$187:$AO$208,ET$2,FALSE) -> 0.940652819 | EU7: =+VLOOKUP($ER7,'td1'!$AC$187:$AO$208,EU$2,FALSE) -> 0.9551569507 | EV7: =+VLOOKUP($ER7,'td1'!$AC$187:$AO$208,EV$2,FALSE) -> 0.9433139535 | EW7: =+VLOOKUP($ER7,'td1'!$AC$187:$AO$208,EW$2,FALSE) -> 0.8844651163 | EX7: =+VLOOKUP($ER7,'td1'!$AC$187:$AO$208,EX$2,FALSE) -> 0.9570833333 | EY7: =+VLOOKUP($ER7,'td1'!$AC$187:$AO$208,EY$2,FALSE) -> 0.9160042395 | EZ7: =+VLOOKUP($ER7,'td1'!$AC$187:$AO$208,EZ$2,FALSE) -> 0.9722222222 | FA7: =+VLOOKUP($ER7,'td1'!$AC$187:$AO$208,FA$2,FALSE) -> 0.9884856301 | FB7: =+VLOOKUP($ER7,'td1'!$AC$187:$AO$208,FB$2,FALSE) -> 0.975560005 | FC7: =+VLOOKUP($ER7,'td1'!$AC$187:$AO$208,FC$2,FALSE) ->  | FD7: =+VLOOKUP($ER7,'td1'!$AC$187:$AO$208,FD$2,FALSE) ->  | FE7: =+VLOOKUP($ER7,'td1'!$AC$187:$AO$208,FE$2,FALSE) ->  | FH7: 0.01518507683 | FI7: -0.0125546719 | FJ7: -0.06653607488 | FK7: 0.07587449758 | FL7: -0.04484596471 | FM7: 0.05782421077 | FN7: 0.01645285207 | FO7: -0.01324944134 | FY7: -0.02981396022 | FZ7: 1.775556884 | GA7: -2.514540246 | GB7: 0.06104777273 | GG7: Eficiencia administrativa | GH7: =+IF('td1'!AD89="",NA(),'td1'!AD89) ->  | GI7: =+IF('td1'!AE89="",NA(),'td1'!AE89) ->  | GJ7: =+IF('td1'!AF89="",NA(),'td1'!AF89) -> 0.9780779017 | GK7: =+IF('td1'!AG89="",NA(),'td1'!AG89) -> 0.9671168526 | GL7: =+IF('td1'!AH89="",NA(),'td1'!AH89) ->  | GM7: =+IF('td1'!AI89="",NA(),'td1'!AI89) -> 0.9326557667 | GN7: =+IF('td1'!AJ89="",NA(),'td1'!AJ89) ->  | GO7: =+IF('td1'!AK89="",NA(),'td1'!AK89) -> 0.9671168526 | GP7: =+IF('td1'!AL89="",NA(),'td1'!AL89) -> 0.9336721167 | GQ7: =+IF('td1'!AM89="",NA(),'td1'!AM89) ->  | GR7: =+IF('td1'!AN89="",NA(),'td1'!AN89) ->  | GS7: =+IF('td1'!AO89="",NA(),'td1'!AO89) -> 
A8: PA_5 | B8: =+VLOOKUP(C8,'td1'!$AC$5:$AO$4140,$G$2,FALSE) -> 0.7666666667 | C8: PA5 | D8: 18 | F8: =+regional!L26 -> Centro Sur | Q8: PS5 | R8: =+VLOOKUP(Q8,'td1'!$AC$5:$AO$4140,$G$2,FALSE) -> 0.9320080556 | T8: PA3 | U8: =+VLOOKUP(T8,'td1'!$AC$5:$AO$4140,$G$2,FALSE) -> 0.6421407501 | Y8: LP2-C5 | Z8: =+VLOOKUP(Y8,'td1'!$AC$5:$AO$4140,$G$2,FALSE) -> 0.95 | AA8: Protección | AB8: M5 | AC8: =+VLOOKUP(AB8,'td1'!$AC$5:$AO$4140,$G$2,FALSE) -> 0.9349956303 | AD8: M5.D | AE8: =+VLOOKUP(AD8,'td1'!$AC$5:$AO$4140,$G$2,FALSE) -> 0.9325364855 | AF8: M5.Tr | AG8: =+VLOOKUP(AF8,'td1'!$AC$5:$AO$4140,$G$2,FALSE) -> 0.9467614534 | AI8: SIGE5 | AJ8: =+VLOOKUP(AI8,'td1'!$AC$5:$AO$4140,$G$2,FALSE) -> 0.9325364855 | AL8: 2016 | AM8: =+IF(AM9 ="","",Referencias!T147) -> 0.9228336079 | AN8: =+IF(AN9 ="","",Referencias!U147) -> 0.9021204981 | AO8: =+IF(AO9 ="","",Referencias!V147) -> 0.860511883 | AP8: =+IF(AP9 ="","",Referencias!W147) -> 0.8766985052 | AQ8: =+IF(AQ9 ="","",Referencias!X147) -> 0.9439473684 | AR8: =+IF(AR9 ="","",Referencias!Y147) -> 0.9095145509 | AS8: =+IF(AS9 ="","",Referencias!Z147) -> 0.9470518945 | AT8: =+IF(AT9 ="","",Referencias!AA147) -> 0.9424808038 | AU8: =+IF(AU9 ="","",Referencias!AB147) -> 0.8763251916 | AV8: =+IF(AV9 ="","",Referencias!AC147) ->  | AW8: =+IF(AW9 ="","",Referencias!AD147) ->  | AX8: =+IF(AX9 ="","",Referencias!AE147) ->  | BN8: NA | BO8: =+'td1'!CA173 -> 151 | BP8: =+'td1'!CB173 -> 135 | BQ8: =+'td1'!CC173 -> 78 | BR8: =+'td1'!CD173 -> 105 | BS8: =+'td1'!CE173 -> 119 | BT8: =+'td1'!CF173 -> 31 | BU8: =+'td1'!CG173 -> 114 | BV8: =+'td1'!CH173 -> 88 | BW8: =+'td1'!CI173 -> 41 | BX8: =+'td1'!CJ173 -> 0 | BY8: =+'td1'!CK173 -> 0 | BZ8: =+'td1'!CL173 -> 0 | CJ8: Protección | CK8: M5 | CL8: =+'como vamos'!DJ9 -> 0.9458127947 | CM8: =+'como vamos'!DK9 -> 0.872011662 | CN8: 0.9219706764 | DD8: Financiera | DE8: A2 | DF8: 0.3730877321 | DG8: 0.3737742635 | DH8: 0.3752185879 | DI8: 0.3836042821 | DJ8: 0.3931722675 | DK8: 0.3936111491 | DL8: 0.5057238852 | DS8: Financiera | DT8: 0.5057238852 | DU8: 1 | DW8: =+'como vamos'!DK62 -> C-4102-1500-6 | DY8: 0.8627557161 | DZ8: 0.8901162268 | EA8: 0.9111728902 | EF8: =+'como vamos'!DK62 -> C-4102-1500-6 | EH8: Generaciones | EJ8: 0.9111728902 | EK8: =+'como vamos'!DL62 -> 1 | ER8: M5 | ES8: Protección | ET8: =+VLOOKUP($ER8,'td1'!$AC$187:$AO$208,ET$2,FALSE) -> 1 | EU8: =+VLOOKUP($ER8,'td1'!$AC$187:$AO$208,EU$2,FALSE) -> 0.9115572802 | EV8: =+VLOOKUP($ER8,'td1'!$AC$187:$AO$208,EV$2,FALSE) -> 0.9302644205 | EW8: =+VLOOKUP($ER8,'td1'!$AC$187:$AO$208,EW$2,FALSE) -> 0.8734129478 | EX8: =+VLOOKUP($ER8,'td1'!$AC$187:$AO$208,EX$2,FALSE) -> 0.8920998732 | EY8: =+VLOOKUP($ER8,'td1'!$AC$187:$AO$208,EY$2,FALSE) -> 0.9536334993 | EZ8: =+VLOOKUP($ER8,'td1'!$AC$187:$AO$208,EZ$2,FALSE) -> 0.9341973405 | FA8: =+VLOOKUP($ER8,'td1'!$AC$187:$AO$208,FA$2,FALSE) -> 0.8914077338 | FB8: =+VLOOKUP($ER8,'td1'!$AC$187:$AO$208,FB$2,FALSE) -> 0.9349956303 | FC8: =+VLOOKUP($ER8,'td1'!$AC$187:$AO$208,FC$2,FALSE) ->  | FD8: =+VLOOKUP($ER8,'td1'!$AC$187:$AO$208,FD$2,FALSE) ->  | FE8: =+VLOOKUP($ER8,'td1'!$AC$187:$AO$208,FE$2,FALSE) ->  | FH8: -0.09702376545 | FI8: 0.020109487 | FJ8: -0.06509117231 | FK8: 0.02094712256 | FL8: 0.06452544523 | FM8: -0.02080519604 | FN8: -0.04800228347 | FO8: 0.04661828902 | FY8: 0.02450530402 | FZ8: 4.101410105 | GA8: 0.5665790347 | GB8: -0.01993364291 | GG8: Gestión financiera | GH8: =+IF('td1'!AD90="",NA(),'td1'!AD90) -> 0.65 | GI8: =+IF('td1'!AE90="",NA(),'td1'!AE90) -> 0.9 | GJ8: =+IF('td1'!AF90="",NA(),'td1'!AF90) -> 0.92 | GK8: =+IF('td1'!AG90="",NA(),'td1'!AG90) -> 0.86 | GL8: =+IF('td1'!AH90="",NA(),'td1'!AH90) -> 0.98 | GM8: =+IF('td1'!AI90="",NA(),'td1'!AI90) -> 1 | GN8: =+IF('td1'!AJ90="",NA(),'td1'!AJ90) -> 1 | GO8: =+IF('td1'!AK90="",NA(),'td1'!AK90) -> 0.92 | GP8: =+IF('td1'!AL90="",NA(),'td1'!AL90) -> 1 | GQ8: =+IF('td1'!AM90="",NA(),'td1'!AM90) ->  | GR8: =+IF('td1'!AN90="",NA(),'td1'!AN90) ->  | GS8: =+IF('td1'!AO90="",NA(),'td1'!AO90) -> 
A9: PE_1 | B9: =+VLOOKUP(C9,'td1'!$AC$5:$AO$4140,$G$2,FALSE) -> 1 | C9: PE1 | D9: 19 | O9: PP | P9: =+VLOOKUP(O9,'td1'!$AC$5:$AO$4140,$G$2,FALSE) -> 0.8640177212 | Q9: PP1 | R9: =+VLOOKUP(Q9,'td1'!$AC$5:$AO$4140,$G$2,FALSE) -> 0.9182903918 | T9: PA4 | U9: =+VLOOKUP(T9,'td1'!$AC$5:$AO$4140,$G$2,FALSE) -> 0.8092457421 | W9: LP3 | X9: =+VLOOKUP(W9,'td1'!$AC$5:$AO$4140,$G$2,FALSE) -> 0.65 | Y9: LP3-C1 | Z9: =+VLOOKUP(Y9,'td1'!$AC$5:$AO$4140,$G$2,FALSE) -> 1 | AA9: Gestión Humana | AB9: A1 | AC9: =+VLOOKUP(AB9,'td1'!$AC$5:$AO$4140,$G$2,FALSE) -> 0.778283485 | AD9: A1.D | AE9: =+VLOOKUP(AD9,'td1'!$AC$5:$AO$4140,$G$2,FALSE) -> 0.6851405622 | AF9: A1.Tr | AG9: =+VLOOKUP(AF9,'td1'!$AC$5:$AO$4140,$G$2,FALSE) -> 0.8228846154 | AI9: SIGE6 | AJ9: =+VLOOKUP(AI9,'td1'!$AC$5:$AO$4140,$G$2,FALSE) -> 0.9064059219 | AL9: 2017 | AM9: =+VLOOKUP($AL7,'td1'!$AC$5:$AO$4140,AM$2,FALSE) -> 0.9090868196 | AN9: =+VLOOKUP($AL7,'td1'!$AC$5:$AO$4140,AN$2,FALSE) -> 0.9101128668 | AO9: =+VLOOKUP($AL7,'td1'!$AC$5:$AO$4140,AO$2,FALSE) -> 0.9427887432 | AP9: =+VLOOKUP($AL7,'td1'!$AC$5:$AO$4140,AP$2,FALSE) -> 0.9168626366 | AQ9: =+VLOOKUP($AL7,'td1'!$AC$5:$AO$4140,AQ$2,FALSE) -> 0.926621936 | AR9: =+VLOOKUP($AL7,'td1'!$AC$5:$AO$4140,AR$2,FALSE) -> 0.9595415321 | AS9: =+VLOOKUP($AL7,'td1'!$AC$5:$AO$4140,AS$2,FALSE) -> 0.9610199092 | AT9: =+VLOOKUP($AL7,'td1'!$AC$5:$AO$4140,AT$2,FALSE) -> 0.9470343563 | AU9: =+VLOOKUP($AL7,'td1'!$AC$5:$AO$4140,AU$2,FALSE) -> 0.9414587656 | AV9: =+VLOOKUP($AL7,'td1'!$AC$5:$AO$4140,AV$2,FALSE) ->  | AW9: =+VLOOKUP($AL7,'td1'!$AC$5:$AO$4140,AW$2,FALSE) ->  | AX9: =+VLOOKUP($AL7,'td1'!$AC$5:$AO$4140,AX$2,FALSE) ->  | CJ9: SNBF | CK9: A14 | CL9: =+'como vamos'!DJ23 -> 0.8153314185 | CM9: =+'como vamos'!DK23 -> 0.8153314185 | CN9: 1 | DD9: Gestión Humana | DE9: A1 | DF9: 0.2785824885 | DG9: 0.3489681647 | DH9: 0.4350345387 | DI9: 0.4826071239 | DJ9: 0.5401953713 | DK9: 0.6488209104 | DL9: 0.5274517035 | DS9: Gestión Humana | DT9: 0.5274517035 | DU9: 0.5812699182 | DW9: =+'como vamos'!DK63 -> C-4102-1500-7 | DY9: 0.768729665 | DZ9: 0.7835678625 | EA9: 0.7967735588 | EF9: =+'como vamos'!DK63 -> C-4102-1500-7 | EH9: SNBF | EJ9: 0.7967735588 | EK9: =+'como vamos'!DL63 -> 1 | ER9: A1 | ES9: Gestión Humana | ET9: =+VLOOKUP($ER9,'td1'!$AC$187:$AO$208,ET$2,FALSE) -> 0.9270072993 | EU9: =+VLOOKUP($ER9,'td1'!$AC$187:$AO$208,EU$2,FALSE) -> 0.9537162162 | EV9: =+VLOOKUP($ER9,'td1'!$AC$187:$AO$208,EV$2,FALSE) -> 0.8639791938 | EW9: =+VLOOKUP($ER9,'td1'!$AC$187:$AO$208,EW$2,FALSE) -> 0.7731681034 | EX9: =+VLOOKUP($ER9,'td1'!$AC$187:$AO$208,EX$2,FALSE) -> 0.8334448161 | EY9: =+VLOOKUP($ER9,'td1'!$AC$187:$AO$208,EY$2,FALSE) -> 0.83078203 | EZ9: =+VLOOKUP($ER9,'td1'!$AC$187:$AO$208,EZ$2,FALSE) -> 1 | FA9: =+VLOOKUP($ER9,'td1'!$AC$187:$AO$208,FA$2,FALSE) -> 0.811637931 | FB9: =+VLOOKUP($ER9,'td1'!$AC$187:$AO$208,FB$2,FALSE) -> 0.778283485 | FC9: =+VLOOKUP($ER9,'td1'!$AC$187:$AO$208,FC$2,FALSE) ->  | FD9: =+VLOOKUP($ER9,'td1'!$AC$187:$AO$208,FD$2,FALSE) ->  | FE9: =+VLOOKUP($ER9,'td1'!$AC$187:$AO$208,FE$2,FALSE) ->  | FH9: 0.02800509889 | FI9: -0.1038647957 | FJ9: -0.117453229 | FK9: 0.07232237989 | FL9: -0.003205156115 | FM9: 0.16921797 | FN9: -0.2320764737 | FO9: -0.04285642267 | FY9: -0.0399589334 | FZ9: 1.018940991 | GA9: 1.729147454 | GB9: -0.06745427073
A10: PE_2 | B10: =+VLOOKUP(C10,'td1'!$AC$5:$AO$4140,$G$2,FALSE) -> 0.9194690265 | C10: PE2 | D10: 20 | Q10: PP2 | R10: =+VLOOKUP(Q10,'td1'!$AC$5:$AO$4140,$G$2,FALSE) -> 0.5789687924 | T10: PA5 | U10: =+VLOOKUP(T10,'td1'!$AC$5:$AO$4140,$G$2,FALSE) -> 0.7666666667 | Y10: LP3-C2 | Z10: =+VLOOKUP(Y10,'td1'!$AC$5:$AO$4140,$G$2,FALSE) -> 0.3 | AA10: Financiera | AB10: A2 | AC10: =+VLOOKUP(AB10,'td1'!$AC$5:$AO$4140,$G$2,FALSE) -> 0.7944444444 | AD10: A2.D | AE10: =+VLOOKUP(AD10,'td1'!$AC$5:$AO$4140,$G$2,FALSE) -> 0.9856733524 | AF10: A2.Tr | AG10: =+VLOOKUP(AF10,'td1'!$AC$5:$AO$4140,$G$2,FALSE) -> 0.5712374582 | AI10: SIGE7 | AJ10: =+VLOOKUP(AI10,'td1'!$AC$5:$AO$4140,$G$2,FALSE) ->  | CI10: Apoyo | CJ10: Gestión Humana | CK10: A1 | CL10: =+'como vamos'!DJ10 -> 0.8048572991 | CM10: =+'como vamos'!DK10 -> 0.5403738052 | CN10: 0.671390824 | DD10: Jurídica | DE10: A7 | DF10: 2.204411314e-09 | DG10: 0.04470961653 | DH10: 0.09929156216 | DI10: 0.1696961243 | DJ10: 0.3020648148 | DK10: 0.5614447663 | DL10: 0.6058500506 | DS10: Jurídica | DT10: 0.6058500506 | DU10: 0.9545454545 | DW10: =+'como vamos'!DK64 -> C-4199-1500-1 | DY10: 0.7962111145 | DZ10: 0.8097622781 | EA10: 0.8096349423 | EF10: =+'como vamos'!DK64 -> C-4199-1500-1 | EH10: Tecnología | EJ10: 0.8096349423 | EK10: =+'como vamos'!DL64 -> 0.9401913876 | ER10: A2 | ES10: Financiera | ET10: =+VLOOKUP($ER10,'td1'!$AC$187:$AO$208,ET$2,FALSE) -> 0.6851405622 | EU10: =+VLOOKUP($ER10,'td1'!$AC$187:$AO$208,EU$2,FALSE) -> 0.8364963504 | EV10: =+VLOOKUP($ER10,'td1'!$AC$187:$AO$208,EV$2,FALSE) -> 0.7848765432 | EW10: =+VLOOKUP($ER10,'td1'!$AC$187:$AO$208,EW$2,FALSE) -> 0.8001782531 | EX10: =+VLOOKUP($ER10,'td1'!$AC$187:$AO$208,EX$2,FALSE) -> 0.9371268657 | EY10: =+VLOOKUP($ER10,'td1'!$AC$187:$AO$208,EY$2,FALSE) -> 0.9551425031 | EZ10: =+VLOOKUP($ER10,'td1'!$AC$187:$AO$208,EZ$2,FALSE) -> 0.9277985075 | FA10: =+VLOOKUP($ER10,'td1'!$AC$187:$AO$208,FA$2,FALSE) -> 0.731372549 | FB10: =+VLOOKUP($ER10,'td1'!$AC$187:$AO$208,FB$2,FALSE) -> 0.7944444444 | FC10: =+VLOOKUP($ER10,'td1'!$AC$187:$AO$208,FC$2,FALSE) ->  | FD10: =+VLOOKUP($ER10,'td1'!$AC$187:$AO$208,FD$2,FALSE) ->  | FE10: =+VLOOKUP($ER10,'td1'!$AC$187:$AO$208,FE$2,FALSE) ->  | FH10: 0.1809401655 | FI10: -0.06576805945 | FJ10: 0.0191228765 | FK10: 0.1461366839 | FL10: 0.0188617273 | FM10: -0.02947191164 | FN10: -0.2685716858 | FO10: 0.07939119704 | FY10: 0.1782623633 | FZ10: 1.639989951 | GA10: 0.8902642639 | GB10: -0.2022772766
A11: PE_3 | B11: =+VLOOKUP(C11,'td1'!$AC$5:$AO$4140,$G$2,FALSE) -> 1 | C11: PE3 | D11: 23 | Q11: PP3 | R11: =+VLOOKUP(Q11,'td1'!$AC$5:$AO$4140,$G$2,FALSE) -> 1 | T11: PE1 | U11: =+VLOOKUP(T11,'td1'!$AC$5:$AO$4140,$G$2,FALSE) -> 1 | Y11: LP3-C3 | Z11: =+VLOOKUP(Y11,'td1'!$AC$5:$AO$4140,$G$2,FALSE) ->  | AA11: Control Interno D | AB11: A3 | AC11: =+VLOOKUP(AB11,'td1'!$AC$5:$AO$4140,$G$2,FALSE) -> 1 | AD11: A3.D | AE11: =+VLOOKUP(AD11,'td1'!$AC$5:$AO$4140,$G$2,FALSE) -> 1 | AF11: A3.Tr | AG11: =+VLOOKUP(AF11,'td1'!$AC$5:$AO$4140,$G$2,FALSE) -> 1 | AI11: SIGE8 | AJ11: =+VLOOKUP(AI11,'td1'!$AC$5:$AO$4140,$G$2,FALSE) ->  | AL11: PI | AM11: Ene | AN11: Feb | AO11: Mar | AP11: Abr | AQ11: May | AR11: Jun | AS11: Jul | AT11: Agt | AU11: Sep | AV11: Oct | AW11: Nov | AX11: Dic | CJ11: Financiera | CK11: A2 | CL11: =+'como vamos'!DJ11 -> 1 | CM11: =+'como vamos'!DK11 -> 0.9856733524 | CN11: 0.9856733524 | DD11: Niñez y adolescencia | DE11: M2 | DF11: 0 | DG11: 0.0002188341428 | DH11: 0.209349797 | DI11: 0.4456757199 | DJ11: 0.6665261743 | DK11: 0.8095297902 | DL11: 0.8589986358 | DS11: Niñez y adolescencia | DT11: 0.8589986358 | DU11: 0.8544578048 | DW11: =+'como vamos'!DK65 -> C-4199-1500-2 | DY11: 0.8816494029 | DZ11: 0.8898256876 | EA11: 0.905045531 | EF11: =+'como vamos'!DK65 -> C-4199-1500-2 | EH11: Modelo Intervención | EJ11: 0.905045531 | EK11: =+'como vamos'!DL65 -> 0.9385042136 | ER11: A3 | ES11: CI Disciplinario | ET11: =+VLOOKUP($ER11,'td1'!$AC$187:$AO$208,ET$2,FALSE) -> 1 | EU11: =+VLOOKUP($ER11,'td1'!$AC$187:$AO$208,EU$2,FALSE) -> 1 | EV11: =+VLOOKUP($ER11,'td1'!$AC$187:$AO$208,EV$2,FALSE) -> 1 | EW11: =+VLOOKUP($ER11,'td1'!$AC$187:$AO$208,EW$2,FALSE) -> 0.681300813 | EX11: =+VLOOKUP($ER11,'td1'!$AC$187:$AO$208,EX$2,FALSE) -> 0.3 | EY11: =+VLOOKUP($ER11,'td1'!$AC$187:$AO$208,EY$2,FALSE) -> 1 | EZ11: =+VLOOKUP($ER11,'td1'!$AC$187:$AO$208,EZ$2,FALSE) -> 1 | FA11: =+VLOOKUP($ER11,'td1'!$AC$187:$AO$208,FA$2,FALSE) -> 1 | FB11: =+VLOOKUP($ER11,'td1'!$AC$187:$AO$208,FB$2,FALSE) -> 1 | FC11: =+VLOOKUP($ER11,'td1'!$AC$187:$AO$208,FC$2,FALSE) ->  | FD11: =+VLOOKUP($ER11,'td1'!$AC$187:$AO$208,FD$2,FALSE) ->  | FE11: =+VLOOKUP($ER11,'td1'!$AC$187:$AO$208,FE$2,FALSE) ->  | FH11: 0 | FI11: 0 | FJ11: -0.4677804296 | FK11: -1.27100271 | FL11: 0.7 | FM11: 0 | FN11: 0 | FO11: 0 | FY11: 0 | GB11: 0 | GH11: 2 | GI11: 3 | GJ11: 4 | GK11: 5 | GL11: 6 | GM11: 7 | GN11: 8 | GO11: 9 | GP11: 10 | GQ11: 11 | GR11: 12 | GS11: 13
A12: PEV_1 | B12: =+VLOOKUP(C12,'td1'!$AC$5:$AO$4140,$G$2,FALSE) -> 0.9239130435 | C12: PEV1 | D12: 25 | Q12: PP4 | R12: =+VLOOKUP(Q12,'td1'!$AC$5:$AO$4140,$G$2,FALSE) -> 0.9673521851 | T12: PE2 | U12: =+VLOOKUP(T12,'td1'!$AC$5:$AO$4140,$G$2,FALSE) -> 0.9194690265 | Y12: LP3-C4 | Z12: =+VLOOKUP(Y12,'td1'!$AC$5:$AO$4140,$G$2,FALSE) ->  | AA12: Abastecimiento | AB12: A4 | AC12: =+VLOOKUP(AB12,'td1'!$AC$5:$AO$4140,$G$2,FALSE) -> 0.9836333879 | AD12: A4.D | AE12: =+VLOOKUP(AD12,'td1'!$AC$5:$AO$4140,$G$2,FALSE) -> 1 | AF12: A4.Tr | AG12: =+VLOOKUP(AF12,'td1'!$AC$5:$AO$4140,$G$2,FALSE) -> 0.9382716049 | AI12: SIGE9 | AJ12: =+VLOOKUP(AI12,'td1'!$AC$5:$AO$4140,$G$2,FALSE) -> 0.9728026964 | AL12: 2016 | AM12: =+IF(AM13 ="","",Referencias!T148) -> 0.9579930796 | AN12: =+IF(AN13 ="","",Referencias!U148) -> 0.9117946448 | AO12: =+IF(AO13 ="","",Referencias!V148) -> 0.8612113622 | AP12: =+IF(AP13 ="","",Referencias!W148) -> 0.8482058414 | AQ12: =+IF(AQ13 ="","",Referencias!X148) -> 0.9641091348 | AR12: =+IF(AR13 ="","",Referencias!Y148) -> 0.9082977499 | AS12: =+IF(AS13 ="","",Referencias!Z148) -> 0.9395658609 | AT12: =+IF(AT13 ="","",Referencias!AA148) -> 0.935574059 | AU12: =+IF(AU13 ="","",Referencias!AB148) -> 0.8636112873 | AV12: =+IF(AV13 ="","",Referencias!AC148) ->  | AW12: =+IF(AW13 ="","",Referencias!AD148) ->  | AX12: =+IF(AX13 ="","",Referencias!AE148) ->  | CJ12: CI Disciplinario | CK12: A3 | CL12: =+'como vamos'!DJ12 -> 0.752033406 | CM12: =+'como vamos'!DK12 -> 0.752033406 | CN12: 1 | DD12: Nutrición | DE12: M4 | DF12: 0.697213542 | DG12: 0.6986985184 | DH12: 0.8047653483 | DI12: 0.9375657821 | DJ12: 0.964264174 | DK12: 0.9640507375 | DL12: 0.9641761127 | DS12: Nutrición | DT12: 0.9641761127 | DU12: 0.7959956621 | DW12: =+'como vamos'!DK66 -> C-4199-1500-3 | DY12: 0.5494045585 | DZ12: 0.5494045585 | EA12: 0.5494045585 | EF12: =+'como vamos'!DK66 -> C-4199-1500-3 | EH12: Evaluación | EJ12: 0.5494045585 | EK12: =+'como vamos'!DL66 -> 0.9582366589 | ER12: A4 | ES12: Abastecimiento | ET12: =+VLOOKUP($ER12,'td1'!$AC$187:$AO$208,ET$2,FALSE) -> 0.95 | EU12: =+VLOOKUP($ER12,'td1'!$AC$187:$AO$208,EU$2,FALSE) -> 0.9817518248 | EV12: =+VLOOKUP($ER12,'td1'!$AC$187:$AO$208,EV$2,FALSE) -> 0.871685761 | EW12: =+VLOOKUP($ER12,'td1'!$AC$187:$AO$208,EW$2,FALSE) -> 0.9692982456 | EX12: =+VLOOKUP($ER12,'td1'!$AC$187:$AO$208,EX$2,FALSE) -> 0.9414715719 | EY12: =+VLOOKUP($ER12,'td1'!$AC$187:$AO$208,EY$2,FALSE) -> 0.9672667758 | EZ12: =+VLOOKUP($ER12,'td1'!$AC$187:$AO$208,EZ$2,FALSE) -> 0.9665551839 | FA12: =+VLOOKUP($ER12,'td1'!$AC$187:$AO$208,FA$2,FALSE) -> 0.9951923077 | FB12: =+VLOOKUP($ER12,'td1'!$AC$187:$AO$208,FB$2,FALSE) -> 0.9836333879 | FC12: =+VLOOKUP($ER12,'td1'!$AC$187:$AO$208,FC$2,FALSE) ->  | FD12: =+VLOOKUP($ER12,'td1'!$AC$187:$AO$208,FD$2,FALSE) ->  | FE12: =+VLOOKUP($ER12,'td1'!$AC$187:$AO$208,FE$2,FALSE) ->  | FH12: 0.03234200743 | FI12: -0.1262680529 | FJ12: 0.1007042827 | FK12: -0.02955657349 | FL12: 0.02666813801 | FM12: -0.0007362143856 | FN12: 0.02877546734 | FO12: -0.01175124792 | FY12: 0.09881556684 | FZ12: 37.22333186 | GA12: 1.025584793 | GB12: 0.01663893511 | GG12: ='comportamiento agregados'!E23 -> TC | GH12: =+IF(VLOOKUP($GG12,'td1'!$AC$5:$AO$235,GH$11,FALSE)="",NA(),VLOOKUP($GG12,'td1'!$AC$5:$AO$235,GH$11,FALSE)) -> 0.9168138095 | GI12: =+IF(VLOOKUP($GG12,'td1'!$AC$5:$AO$235,GI$11,FALSE)="",NA(),VLOOKUP($GG12,'td1'!$AC$5:$AO$235,GI$11,FALSE)) -> 0.91983321 | GJ12: =+IF(VLOOKUP($GG12,'td1'!$AC$5:$AO$235,GJ$11,FALSE)="",NA(),VLOOKUP($GG12,'td1'!$AC$5:$AO$235,GJ$11,FALSE)) -> 0.9342227543 | GK12: =+IF(VLOOKUP($GG12,'td1'!$AC$5:$AO$235,GK$11,FALSE)="",NA(),VLOOKUP($GG12,'td1'!$AC$5:$AO$235,GK$11,FALSE)) -> 0.8991814865 | GL12: =+IF(VLOOKUP($GG12,'td1'!$AC$5:$AO$235,GL$11,FALSE)="",NA(),VLOOKUP($GG12,'td1'!$AC$5:$AO$235,GL$11,FALSE)) -> 0.9310953629 | GM12: =+IF(VLOOKUP($GG12,'td1'!$AC$5:$AO$235,GM$11,FALSE)="",NA(),VLOOKUP($GG12,'td1'!$AC$5:$AO$235,GM$11,FALSE)) -> 0.9527783735 | GN12: =+IF(VLOOKUP($GG12,'td1'!$AC$5:$AO$235,GN$11,FALSE)="",NA(),VLOOKUP($GG12,'td1'!$AC$5:$AO$235,GN$11,FALSE)) -> 0.9524510718 | GO12: =+IF(VLOOKUP($GG12,'td1'!$AC$5:$AO$235,GO$11,FALSE)="",NA(),VLOOKUP($GG12,'td1'!$AC$5:$AO$235,GO$11,FALSE)) -> 0.9310235879 | GP12: =+IF(VLOOKUP($GG12,'td1'!$AC$5:$AO$235,GP$11,FALSE)="",NA(),VLOOKUP($GG12,'td1'!$AC$5:$AO$235,GP$11,FALSE)) -> 0.9378729064 | GQ12: =+IF(VLOOKUP($GG12,'td1'!$AC$5:$AO$235,GQ$11,FALSE)="",NA(),VLOOKUP($GG12,'td1'!$AC$5:$AO$235,GQ$11,FALSE)) ->  | GR12: =+IF(VLOOKUP($GG12,'td1'!$AC$5:$AO$235,GR$11,FALSE)="",NA(),VLOOKUP($GG12,'td1'!$AC$5:$AO$235,GR$11,FALSE)) ->  | GS12: =+IF(VLOOKUP($GG12,'td1'!$AC$5:$AO$235,GS$11,FALSE)="",NA(),VLOOKUP($GG12,'td1'!$AC$5:$AO$235,GS$11,FALSE)) -> 
A13: PEV_2 | B13: =+VLOOKUP(C13,'td1'!$AC$5:$AO$4140,$G$2,FALSE) ->  | C13: PEV2 | D13: 27 | O13: PAS | P13: =+VLOOKUP(O13,'td1'!$AC$5:$AO$4140,$G$2,FALSE) -> 0.9249723201 | Q13: PAS1 | R13: =+VLOOKUP(Q13,'td1'!$AC$5:$AO$4140,$G$2,FALSE) -> 0.9245037494 | T13: PE3 | U13: =+VLOOKUP(T13,'td1'!$AC$5:$AO$4140,$G$2,FALSE) -> 1 | W13: LP4 | X13: =+VLOOKUP(W13,'td1'!$AC$5:$AO$4140,$G$2,FALSE) -> 0.9336721167 | Y13: LP4-C1 | Z13: =+VLOOKUP(Y13,'td1'!$AC$5:$AO$4140,$G$2,FALSE) -> 0.9253830779 | AA13: Administrativa | AB13: A5 | AC13: =+VLOOKUP(AB13,'td1'!$AC$5:$AO$4140,$G$2,FALSE) -> 0.7511443462 | AD13: A5.D | AE13: =+VLOOKUP(AD13,'td1'!$AC$5:$AO$4140,$G$2,FALSE) -> 0.6421407501 | AF13: A5.Tr | AG13: =+VLOOKUP(AF13,'td1'!$AC$5:$AO$4140,$G$2,FALSE) -> 0.8779411765 | AI13: SIGE10 | AJ13: =+VLOOKUP(AI13,'td1'!$AC$5:$AO$4140,$G$2,FALSE) -> 1 | AL13: 2017 | AM13: =+VLOOKUP($AL11,'td1'!$AC$5:$AO$4140,AM$2,FALSE) -> 0.8877481177 | AN13: =+VLOOKUP($AL11,'td1'!$AC$5:$AO$4140,AN$2,FALSE) -> 0.9212335129 | AO13: =+VLOOKUP($AL11,'td1'!$AC$5:$AO$4140,AO$2,FALSE) -> 0.9467881944 | AP13: =+VLOOKUP($AL11,'td1'!$AC$5:$AO$4140,AP$2,FALSE) -> 0.9376021798 | AQ13: =+VLOOKUP($AL11,'td1'!$AC$5:$AO$4140,AQ$2,FALSE) -> 0.9716250262 | AR13: =+VLOOKUP($AL11,'td1'!$AC$5:$AO$4140,AR$2,FALSE) -> 0.9697606625 | AS13: =+VLOOKUP($AL11,'td1'!$AC$5:$AO$4140,AS$2,FALSE) -> 0.9694840339 | AT13: =+VLOOKUP($AL11,'td1'!$AC$5:$AO$4140,AT$2,FALSE) -> 0.9365035203 | AU13: =+VLOOKUP($AL11,'td1'!$AC$5:$AO$4140,AU$2,FALSE) -> 0.9674193245 | AV13: =+VLOOKUP($AL11,'td1'!$AC$5:$AO$4140,AV$2,FALSE) ->  | AW13: =+VLOOKUP($AL11,'td1'!$AC$5:$AO$4140,AW$2,FALSE) ->  | AX13: =+VLOOKUP($AL11,'td1'!$AC$5:$AO$4140,AX$2,FALSE) ->  | CJ13: Abastecimiento | CK13: A4 | CL13: =+'como vamos'!DJ13 -> 0.9741648107 | CM13: =+'como vamos'!DK13 -> 0.9741648107 | CN13: 1 | DD13: Planeación | DE13: A13 | DF13: 0 | DG13: 0 | DH13: 0.3216580167 | DI13: 0.3323799654 | DJ13: 0.429966683 | DK13: 0.5385602068 | DL13: 0.5492599092 | DS13: Planeación | DT13: 0.5492599092 | DU13: 0.5575018441 | DW13: =+'como vamos'!DK67 -> C-4199-1500-4 | DY13: 0.972079756 | DZ13: 0.9718416581 | EA13: 0.972452993 | EF13: =+'como vamos'!DK67 -> C-4199-1500-4 | EH13: Comunicaciones | EJ13: 0.972452993 | EK13: =+'como vamos'!DL67 -> 1 | ER13: A5 | ES13: Administrativa | ET13: =+VLOOKUP($ER13,'td1'!$AC$187:$AO$208,ET$2,FALSE) -> 1 | EU13: =+VLOOKUP($ER13,'td1'!$AC$187:$AO$208,EU$2,FALSE) -> 1 | EV13: =+VLOOKUP($ER13,'td1'!$AC$187:$AO$208,EV$2,FALSE) -> 0.7335509138 | EW13: =+VLOOKUP($ER13,'td1'!$AC$187:$AO$208,EW$2,FALSE) -> 0.9220453876 | EX13: =+VLOOKUP($ER13,'td1'!$AC$187:$AO$208,EX$2,FALSE) -> 0.9602941176 | EY13: =+VLOOKUP($ER13,'td1'!$AC$187:$AO$208,EY$2,FALSE) -> 0.7476715686 | EZ13: =+VLOOKUP($ER13,'td1'!$AC$187:$AO$208,EZ$2,FALSE) -> 0.9509803922 | FA13: =+VLOOKUP($ER13,'td1'!$AC$187:$AO$208,FA$2,FALSE) -> 0.8988541809 | FB13: =+VLOOKUP($ER13,'td1'!$AC$187:$AO$208,FB$2,FALSE) -> 0.7511443462 | FC13: =+VLOOKUP($ER13,'td1'!$AC$187:$AO$208,FC$2,FALSE) ->  | FD13: =+VLOOKUP($ER13,'td1'!$AC$187:$AO$208,FD$2,FALSE) ->  | FE13: =+VLOOKUP($ER13,'td1'!$AC$187:$AO$208,FE$2,FALSE) ->  | FH13: 0 | FI13: -0.3632318918 | FJ13: 0.2044307973 | FK13: 0.03983022428 | FL13: -0.2843796099 | FM13: 0.2137886598 | FN13: -0.05799184383 | FO13: -0.1966464041 | FY13: 0.01888617326 | FZ13: 2.330190339 | GA13: 4.686529789 | GB13: 0.004623315931 | GF13: =+IF('comportamiento agregados'!C13="Areas",'comportamiento agregados'!E23&".D","") ->  | GG13: =+IF(GF13="","","Directos") ->  | GH13: =+IF(VLOOKUP($GF13,'td1'!$AC$5:$AO$235,GH$11,FALSE)="",NA(),VLOOKUP($GF13,'td1'!$AC$5:$AO$235,GH$11,FALSE)) ->  | GI13: =+IF(VLOOKUP($GF13,'td1'!$AC$5:$AO$235,GI$11,FALSE)="",NA(),VLOOKUP($GF13,'td1'!$AC$5:$AO$235,GI$11,FALSE)) ->  | GJ13: =+IF(VLOOKUP($GF13,'td1'!$AC$5:$AO$235,GJ$11,FALSE)="",NA(),VLOOKUP($GF13,'td1'!$AC$5:$AO$235,GJ$11,FALSE)) ->  | GK13: =+IF(VLOOKUP($GF13,'td1'!$AC$5:$AO$235,GK$11,FALSE)="",NA(),VLOOKUP($GF13,'td1'!$AC$5:$AO$235,GK$11,FALSE)) ->  | GL13: =+IF(VLOOKUP($GF13,'td1'!$AC$5:$AO$235,GL$11,FALSE)="",NA(),VLOOKUP($GF13,'td1'!$AC$5:$AO$235,GL$11,FALSE)) ->  | GM13: =+IF(VLOOKUP($GF13,'td1'!$AC$5:$AO$235,GM$11,FALSE)="",NA(),VLOOKUP($GF13,'td1'!$AC$5:$AO$235,GM$11,FALSE)) ->  | GN13: =+IF(VLOOKUP($GF13,'td1'!$AC$5:$AO$235,GN$11,FALSE)="",NA(),VLOOKUP($GF13,'td1'!$AC$5:$AO$235,GN$11,FALSE)) ->  | GO13: =+IF(VLOOKUP($GF13,'td1'!$AC$5:$AO$235,GO$11,FALSE)="",NA(),VLOOKUP($GF13,'td1'!$AC$5:$AO$235,GO$11,FALSE)) ->  | GP13: =+IF(VLOOKUP($GF13,'td1'!$AC$5:$AO$235,GP$11,FALSE)="",NA(),VLOOKUP($GF13,'td1'!$AC$5:$AO$235,GP$11,FALSE)) ->  | GQ13: =+IF(VLOOKUP($GF13,'td1'!$AC$5:$AO$235,GQ$11,FALSE)="",NA(),VLOOKUP($GF13,'td1'!$AC$5:$AO$235,GQ$11,FALSE)) ->  | GR13: =+IF(VLOOKUP($GF13,'td1'!$AC$5:$AO$235,GR$11,FALSE)="",NA(),VLOOKUP($GF13,'td1'!$AC$5:$AO$235,GR$11,FALSE)) ->  | GS13: =+IF(VLOOKUP($GF13,'td1'!$AC$5:$AO$235,GS$11,FALSE)="",NA(),VLOOKUP($GF13,'td1'!$AC$5:$AO$235,GS$11,FALSE)) -> 
A14: PEV_3 | B14: =+VLOOKUP(C14,'td1'!$AC$5:$AO$4140,$G$2,FALSE) -> 0.875 | C14: PEV3 | D14: 41 | Q14: PAS2 | R14: =+VLOOKUP(Q14,'td1'!$AC$5:$AO$4140,$G$2,FALSE) -> 0.925365673 | T14: PEV1 | U14: =+VLOOKUP(T14,'td1'!$AC$5:$AO$4140,$G$2,FALSE) -> 0.9239130435 | Y14: LP4-C2 | Z14: =+VLOOKUP(Y14,'td1'!$AC$5:$AO$4140,$G$2,FALSE) ->  | AA14: Contratación | AB14: A6 | AC14: =+VLOOKUP(AB14,'td1'!$AC$5:$AO$4140,$G$2,FALSE) -> 0.679264214 | AD14: A6.D | AE14: =+VLOOKUP(AD14,'td1'!$AC$5:$AO$4140,$G$2,FALSE) ->  | AF14: A6.Tr | AG14: =+VLOOKUP(AF14,'td1'!$AC$5:$AO$4140,$G$2,FALSE) -> 0.679264214 | CJ14: Administrativa | CK14: A5 | CL14: =+'como vamos'!DJ14 -> 0.594545092 | CM14: =+'como vamos'!DK14 -> 0.5019364211 | CN14: 0.8442360855 | DD14: Primera Infancia | DE14: M1 | DF14: 0.9123712311 | DG14: 0.968400403 | DH14: 0.8849147315 | DI14: 0.8969361205 | DJ14: 0.9246820123 | DK14: 0.937715435 | DL14: 0.9122726426 | DS14: Primera Infancia | DT14: 0.9122726426 | DU14: 0.8182647997 | DW14: =+'como vamos'!DK68 -> C-4199-1500-5 | DY14: 0.3256194445 | DZ14: 0.3787171017 | EA14: 0.506493903 | EF14: =+'como vamos'!DK68 -> C-4199-1500-5 | EH14: Construcción | EJ14: 0.506493903 | EK14: =+'como vamos'!DL68 -> 0.4209334222 | ER14: A6 | ES14: Contratación | ET14: =+VLOOKUP($ER14,'td1'!$AC$187:$AO$208,ET$2,FALSE) -> 1 | EU14: =+VLOOKUP($ER14,'td1'!$AC$187:$AO$208,EU$2,FALSE) -> 1 | EV14: =+VLOOKUP($ER14,'td1'!$AC$187:$AO$208,EV$2,FALSE) -> 0.791638796 | EW14: =+VLOOKUP($ER14,'td1'!$AC$187:$AO$208,EW$2,FALSE) -> 0.9296568627 | EX14: =+VLOOKUP($ER14,'td1'!$AC$187:$AO$208,EX$2,FALSE) -> 0.8128342246 | EY14: =+VLOOKUP($ER14,'td1'!$AC$187:$AO$208,EY$2,FALSE) -> 0.9106017192 | EZ14: =+VLOOKUP($ER14,'td1'!$AC$187:$AO$208,EZ$2,FALSE) -> 0.9064171123 | FA14: =+VLOOKUP($ER14,'td1'!$AC$187:$AO$208,FA$2,FALSE) -> 0.7603846154 | FB14: =+VLOOKUP($ER14,'td1'!$AC$187:$AO$208,FB$2,FALSE) -> 0.679264214 | FC14: =+VLOOKUP($ER14,'td1'!$AC$187:$AO$208,FC$2,FALSE) ->  | FD14: =+VLOOKUP($ER14,'td1'!$AC$187:$AO$208,FD$2,FALSE) ->  | FE14: =+VLOOKUP($ER14,'td1'!$AC$187:$AO$208,FE$2,FALSE) ->  | FH14: 0 | FI14: -0.2632023659 | FJ14: 0.1484613004 | FK14: -0.1437225877 | FL14: 0.1073658138 | FM14: -0.004616645959 | FN14: -0.1920508305 | FO14: -0.1194239291 | FY14: 0.1306421026 | FZ14: 24.25623726 | GA14: 0.975961333 | GB14: -0.340570724
A15: PT_1 | B15: =+VLOOKUP(C15,'td1'!$AC$5:$AO$4140,$G$2,FALSE) -> 0.9121977783 | C15: PT1 | D15: 44 | O15: PF | P15: =+VLOOKUP(O15,'td1'!$AC$5:$AO$4140,$G$2,FALSE) -> 0.9971558589 | Q15: PF | R15: =+VLOOKUP(Q15,'td1'!$AC$5:$AO$4140,$G$2,FALSE) -> 0.9971558589 | T15: PEV2 | U15: =+VLOOKUP(T15,'td1'!$AC$5:$AO$4140,$G$2,FALSE) ->  | Y15: LP4-C3 | Z15: =+VLOOKUP(Y15,'td1'!$AC$5:$AO$4140,$G$2,FALSE) ->  | AA15: Jurídica | AB15: A7 | AC15: =+VLOOKUP(AB15,'td1'!$AC$5:$AO$4140,$G$2,FALSE) -> 0.9434156379 | AD15: A7.D | AE15: =+VLOOKUP(AD15,'td1'!$AC$5:$AO$4140,$G$2,FALSE) -> 0.7666666667 | AF15: A7.Tr | AG15: =+VLOOKUP(AF15,'td1'!$AC$5:$AO$4140,$G$2,FALSE) -> 0.9756690998 | CJ15: Contratación | CK15: A6 | CL15: =+'como vamos'!DJ15 -> 0.6361313869 | CM15: =+'como vamos'!DK15 -> 0.5725182482 | CN15: 0.9 | DD15: Protección | DE15: M5 | DF15: 0.9099603318 | DG15: 0.9221483843 | DH15: 0.8632956654 | DI15: 0.8603356308 | DJ15: 0.8589799432 | DK15: 0.862517721 | DL15: 0.8887250688 | DS15: Protección | DT15: 0.8887250688 | DU15: 0.8696608194 | DW15: =+'como vamos'!DK69 -> Total ICBF | DY15: 0.8567947537 | DZ15: 0.8671129203 | EA15: 0.9059529671 | EF15: =+'como vamos'!DK69 -> Total ICBF | EH15: ICBF | EJ15: 0.9059529671 | EK15: =+'como vamos'!DL69 -> 0.9478358716 | ER15: A7 | ES15: Jurídica | ET15: =+VLOOKUP($ER15,'td1'!$AC$187:$AO$208,ET$2,FALSE) -> 1 | EU15: =+VLOOKUP($ER15,'td1'!$AC$187:$AO$208,EU$2,FALSE) -> 0.9817518248 | EV15: =+VLOOKUP($ER15,'td1'!$AC$187:$AO$208,EV$2,FALSE) -> 0.8233624454 | EW15: =+VLOOKUP($ER15,'td1'!$AC$187:$AO$208,EW$2,FALSE) -> 0.5388686131 | EX15: =+VLOOKUP($ER15,'td1'!$AC$187:$AO$208,EX$2,FALSE) -> 1 | EY15: =+VLOOKUP($ER15,'td1'!$AC$187:$AO$208,EY$2,FALSE) -> 0.7882075472 | EZ15: =+VLOOKUP($ER15,'td1'!$AC$187:$AO$208,EZ$2,FALSE) -> 0.991638796 | FA15: =+VLOOKUP($ER15,'td1'!$AC$187:$AO$208,FA$2,FALSE) -> 0.8569343066 | FB15: =+VLOOKUP($ER15,'td1'!$AC$187:$AO$208,FB$2,FALSE) -> 0.9434156379 | FC15: =+VLOOKUP($ER15,'td1'!$AC$187:$AO$208,FC$2,FALSE) ->  | FD15: =+VLOOKUP($ER15,'td1'!$AC$187:$AO$208,FD$2,FALSE) ->  | FE15: =+VLOOKUP($ER15,'td1'!$AC$187:$AO$208,FE$2,FALSE) ->  | FH15: -0.01858736059 | FI15: -0.1923689625 | FJ15: -0.5279465631 | FK15: 0.4611313869 | FL15: -0.2687013764 | FM15: 0.2051465207 | FN15: -0.1571934842 | FO15: 0.09166832499 | FY15: -0.04460106779 | FZ15: 2.30980226 | GA15: 2.305057406 | GB15: 0.164517191
A16: PT_2 | B16: =+VLOOKUP(C16,'td1'!$AC$5:$AO$4140,$G$2,FALSE) -> 0.980363972 | C16: PT2 | D16: 47 | T16: PEV3 | U16: =+VLOOKUP(T16,'td1'!$AC$5:$AO$4140,$G$2,FALSE) -> 0.875 | Y16: LP4-C4 | Z16: =+VLOOKUP(Y16,'td1'!$AC$5:$AO$4140,$G$2,FALSE) ->  | AA16: Gestión Regional | AB16: A8 | AC16: =+VLOOKUP(AB16,'td1'!$AC$5:$AO$4140,$G$2,FALSE) ->  | AD16: A8.D | AE16: =+VLOOKUP(AD16,'td1'!$AC$5:$AO$4140,$G$2,FALSE) ->  | AF16: A8.Tr | AG16: =+VLOOKUP(AF16,'td1'!$AC$5:$AO$4140,$G$2,FALSE) ->  | CJ16: Servicios y Atención | CK16: A10 | CL16: =+'como vamos'!DJ19 -> 0.8696635731 | CM16: =+'como vamos'!DK19 -> 0.7979234339 | CN16: 0.9175081705 | DD16: Servicios y atención | DE16: A10 | DF16: 0.7402780577 | DG16: 0.7402780577 | DH16: 0.840429954 | DI16: 0.840429954 | DJ16: 0.840429954 | DK16: 0.840429954 | DL16: 0.8838556767 | DS16: Servicios y atención | DT16: 0.8838556767 | DU16: 0.7753241233 | ER16: A8 | ES16: Gestión Regional | ET16: =+VLOOKUP($ER16,'td1'!$AC$187:$AO$208,ET$2,FALSE) ->  | EU16: =+VLOOKUP($ER16,'td1'!$AC$187:$AO$208,EU$2,FALSE) ->  | EV16: =+VLOOKUP($ER16,'td1'!$AC$187:$AO$208,EV$2,FALSE) ->  | EW16: =+VLOOKUP($ER16,'td1'!$AC$187:$AO$208,EW$2,FALSE) -> 0.8919753086 | EX16: =+VLOOKUP($ER16,'td1'!$AC$187:$AO$208,EX$2,FALSE) ->  | EY16: =+VLOOKUP($ER16,'td1'!$AC$187:$AO$208,EY$2,FALSE) -> 1 | EZ16: =+VLOOKUP($ER16,'td1'!$AC$187:$AO$208,EZ$2,FALSE) ->  | FA16: =+VLOOKUP($ER16,'td1'!$AC$187:$AO$208,FA$2,FALSE) -> 1 | FB16: =+VLOOKUP($ER16,'td1'!$AC$187:$AO$208,FB$2,FALSE) ->  | FC16: =+VLOOKUP($ER16,'td1'!$AC$187:$AO$208,FC$2,FALSE) ->  | FD16: =+VLOOKUP($ER16,'td1'!$AC$187:$AO$208,FD$2,FALSE) ->  | FE16: =+VLOOKUP($ER16,'td1'!$AC$187:$AO$208,FE$2,FALSE) -> 
A17: PT_3 | B17: =+VLOOKUP(C17,'td1'!$AC$5:$AO$4140,$G$2,FALSE) -> 0.9717498764 | C17: PT3 | D17: 50 | T17: PT1 | U17: =+VLOOKUP(T17,'td1'!$AC$5:$AO$4140,$G$2,FALSE) -> 0.9121977783 | Y17: LP4-C5 | Z17: =+VLOOKUP(Y17,'td1'!$AC$5:$AO$4140,$G$2,FALSE) -> 0.95 | AA17: Cooperación | AB17: A9 | AC17: =+VLOOKUP(AB17,'td1'!$AC$5:$AO$4140,$G$2,FALSE) -> 1 | AD17: A9.D | AE17: =+VLOOKUP(AD17,'td1'!$AC$5:$AO$4140,$G$2,FALSE) -> 1 | AF17: A9.Tr | AG17: =+VLOOKUP(AF17,'td1'!$AC$5:$AO$4140,$G$2,FALSE) -> 1 | BO17: Ene | BP17: Feb | BQ17: Mar | BR17: Abr | BS17: May | BT17: Jun | BU17: Jul | BV17: Agt | BW17: Sep | BX17: Oct | BY17: Nov | BZ17: Dic | CJ17: Tecnología | CK17: A11 | CL17: =+'como vamos'!DJ20 -> 0.8329607622 | CM17: =+'como vamos'!DK20 -> 0.8077374375 | CN17: 0.969718472 | DD17: SNBF | DE17: A14 | DF17: 0 | DG17: 0 | DH17: 0 | DI17: 0 | DJ17: 0.6998304552 | DK17: 0.699832165 | DL17: 0.699832165 | DS17: SNBF | DT17: 0.699832165 | DU17: 0.8153314185 | ER17: A9 | ES17: Cooperación | ET17: =+VLOOKUP($ER17,'td1'!$AC$187:$AO$208,ET$2,FALSE) -> 1 | EU17: =+VLOOKUP($ER17,'td1'!$AC$187:$AO$208,EU$2,FALSE) -> 1 | EV17: =+VLOOKUP($ER17,'td1'!$AC$187:$AO$208,EV$2,FALSE) -> 1 | EW17: =+VLOOKUP($ER17,'td1'!$AC$187:$AO$208,EW$2,FALSE) -> 1 | EX17: =+VLOOKUP($ER17,'td1'!$AC$187:$AO$208,EX$2,FALSE) -> 1 | EY17: =+VLOOKUP($ER17,'td1'!$AC$187:$AO$208,EY$2,FALSE) -> 1 | EZ17: =+VLOOKUP($ER17,'td1'!$AC$187:$AO$208,EZ$2,FALSE) -> 1 | FA17: =+VLOOKUP($ER17,'td1'!$AC$187:$AO$208,FA$2,FALSE) -> 1 | FB17: =+VLOOKUP($ER17,'td1'!$AC$187:$AO$208,FB$2,FALSE) -> 1 | FC17: =+VLOOKUP($ER17,'td1'!$AC$187:$AO$208,FC$2,FALSE) ->  | FD17: =+VLOOKUP($ER17,'td1'!$AC$187:$AO$208,FD$2,FALSE) ->  | FE17: =+VLOOKUP($ER17,'td1'!$AC$187:$AO$208,FE$2,FALSE) ->  | FH17: 0 | FI17: 0 | FJ17: 0 | FK17: 0 | FL17: 0 | FM17: 0 | FN17: 0 | FO17: 0 | FY17: 0 | GB17: 0
A18: PS | B18: =+VLOOKUP(C18,'td1'!$AC$5:$AO$4140,$G$2,FALSE) -> 0.9545115659 | C18: PS | D18: 52 | T18: PT2 | U18: =+VLOOKUP(T18,'td1'!$AC$5:$AO$4140,$G$2,FALSE) -> 0.980363972 | Y18: LP4-C6 | Z18: =+VLOOKUP(Y18,'td1'!$AC$5:$AO$4140,$G$2,FALSE) ->  | AA18: Servicios y Atención | AB18: A10 | AC18: =+VLOOKUP(AB18,'td1'!$AC$5:$AO$4140,$G$2,FALSE) -> 0.8883769199 | AD18: A10.D | AE18: =+VLOOKUP(AD18,'td1'!$AC$5:$AO$4140,$G$2,FALSE) -> 0.9162412993 | AF18: A10.Tr | AG18: =+VLOOKUP(AF18,'td1'!$AC$5:$AO$4140,$G$2,FALSE) -> 0.8182481752 | AH18: Primera Infancia | AI18: M1 | AJ18: =+VLOOKUP(AI18,'td1'!$AC$5:$AO$4140,$G$2,FALSE) -> 0.9139638979 | BN18: Optimo | BO18: =+'td1'!CO169 -> 5 | BP18: =+'td1'!CP169 -> 8 | BQ18: =+'td1'!CQ169 -> 36 | BR18: =+'td1'!CR169 -> 18 | BS18: =+'td1'!CS169 -> 14 | BT18: =+'td1'!CT169 -> 62 | BU18: =+'td1'!CU169 -> 17 | BV18: =+'td1'!CV169 -> 25 | BW18: =+'td1'!CW169 -> 53 | BX18: =+'td1'!CX169 -> 0 | BY18: =+'td1'!CY169 -> 0 | BZ18: =+'td1'!CZ169 -> 0 | CI18: Planeación y Oficinas asesoras | CJ18: Planeación | CK18: A13 | CL18: =+'como vamos'!DJ22 -> 0.5813686943 | CM18: =+'como vamos'!DK22 -> 0.5626405291 | CN18: 0.9677860791 | DD18: Tecnología | DE18: A11 | DF18: 0.5622116768 | DG18: 0.564223022 | DH18: 0.5668038235 | DI18: 0.589560474 | DJ18: 0.5910001031 | DK18: 0.7560860747 | DL18: 0.7559673759 | DS18: Tecnología | DT18: 0.7559673759 | DU18: 0.7017857143 | ER18: A10 | ES18: Servicios y Atención | ET18: =+VLOOKUP($ER18,'td1'!$AC$187:$AO$208,ET$2,FALSE) -> 0.9089734386 | EU18: =+VLOOKUP($ER18,'td1'!$AC$187:$AO$208,EU$2,FALSE) -> 0.9294243986 | EV18: =+VLOOKUP($ER18,'td1'!$AC$187:$AO$208,EV$2,FALSE) -> 0.8868482856 | EW18: =+VLOOKUP($ER18,'td1'!$AC$187:$AO$208,EW$2,FALSE) -> 0.8526098901 | EX18: =+VLOOKUP($ER18,'td1'!$AC$187:$AO$208,EX$2,FALSE) -> 0.9058954748 | EY18: =+VLOOKUP($ER18,'td1'!$AC$187:$AO$208,EY$2,FALSE) -> 0.9503742666 | EZ18: =+VLOOKUP($ER18,'td1'!$AC$187:$AO$208,EZ$2,FALSE) -> 0.8682919057 | FA18: =+VLOOKUP($ER18,'td1'!$AC$187:$AO$208,FA$2,FALSE) -> 0.8915413534 | FB18: =+VLOOKUP($ER18,'td1'!$AC$187:$AO$208,FB$2,FALSE) -> 0.8883769199 | FC18: =+VLOOKUP($ER18,'td1'!$AC$187:$AO$208,FC$2,FALSE) ->  | FD18: =+VLOOKUP($ER18,'td1'!$AC$187:$AO$208,FD$2,FALSE) ->  | FE18: =+VLOOKUP($ER18,'td1'!$AC$187:$AO$208,FE$2,FALSE) ->  | FH18: 0.02200389836 | FI18: -0.0480083389 | FJ18: -0.04015716433 | FK18: 0.05882089733 | FL18: 0.04680134277 | FM18: -0.09453314079 | FN18: 0.0260778119 | FO18: -0.003562039298 | FY18: 0.0668431199 | FZ18: 1.495078682 | GA18: 4.625041133 | GB18: -0.0697872101
A19: PP | B19: =+VLOOKUP(C19,'td1'!$AC$5:$AO$4140,$G$2,FALSE) -> 0.8640177212 | C19: PP | D19: 54 | T19: PT3 | U19: =+VLOOKUP(T19,'td1'!$AC$5:$AO$4140,$G$2,FALSE) -> 0.9717498764 | W19: LP5 | X19: =+VLOOKUP(W19,'td1'!$AC$5:$AO$4140,$G$2,FALSE) -> 1 | Y19: LP5-C1 | Z19: =+VLOOKUP(Y19,'td1'!$AC$5:$AO$4140,$G$2,FALSE) -> 1 | AA19: Tecnología | AB19: A11 | AC19: =+VLOOKUP(AB19,'td1'!$AC$5:$AO$4140,$G$2,FALSE) -> 0.8822900993 | AD19: A11.D | AE19: =+VLOOKUP(AD19,'td1'!$AC$5:$AO$4140,$G$2,FALSE) -> 0.9717498764 | AF19: A11.Tr | AG19: =+VLOOKUP(AF19,'td1'!$AC$5:$AO$4140,$G$2,FALSE) -> 0.7430769231 | AH19: Niñez | AI19: M2 | AJ19: =+VLOOKUP(AI19,'td1'!$AC$5:$AO$4140,$G$2,FALSE) -> 0.9281957251 | BN19: Adecuado | BO19: =+'td1'!CO170 -> 2 | BP19: =+'td1'!CP170 -> 3 | BQ19: =+'td1'!CQ170 -> 9 | BR19: =+'td1'!CR170 -> 7 | BS19: =+'td1'!CS170 -> 5 | BT19: =+'td1'!CT170 -> 15 | BU19: =+'td1'!CU170 -> 5 | BV19: =+'td1'!CV170 -> 8 | BW19: =+'td1'!CW170 -> 14 | BX19: =+'td1'!CX170 -> 0 | BY19: =+'td1'!CY170 -> 0 | BZ19: =+'td1'!CZ170 -> 0 | CJ19: Jurídica | CK19: A7 | CL19: =+'como vamos'!DJ16 -> 0.9727758872 | CM19: =+'como vamos'!DK16 -> 0.8791929995 | CN19: 0.9037981009 | DD19: ICBF | DK19: 0.89 | DL19: 0.8567947537 | DS19: ICBF | DT19: 0.8869550369 | DU19: =+CM51 -> 0.7650611392 | ER19: A11 | ES19: Tecnología | ET19: =+VLOOKUP($ER19,'td1'!$AC$187:$AO$208,ET$2,FALSE) -> 1 | EU19: =+VLOOKUP($ER19,'td1'!$AC$187:$AO$208,EU$2,FALSE) -> 0.9556910569 | EV19: =+VLOOKUP($ER19,'td1'!$AC$187:$AO$208,EV$2,FALSE) -> 0.9226345653 | EW19: =+VLOOKUP($ER19,'td1'!$AC$187:$AO$208,EW$2,FALSE) -> 0.7629570747 | EX19: =+VLOOKUP($ER19,'td1'!$AC$187:$AO$208,EX$2,FALSE) -> 0.993872549 | EY19: =+VLOOKUP($ER19,'td1'!$AC$187:$AO$208,EY$2,FALSE) -> 0.9046983759 | EZ19: =+VLOOKUP($ER19,'td1'!$AC$187:$AO$208,EZ$2,FALSE) -> 0.9754901961 | FA19: =+VLOOKUP($ER19,'td1'!$AC$187:$AO$208,FA$2,FALSE) -> 0.6751987281 | FB19: =+VLOOKUP($ER19,'td1'!$AC$187:$AO$208,FB$2,FALSE) -> 0.8822900993 | FC19: =+VLOOKUP($ER19,'td1'!$AC$187:$AO$208,FC$2,FALSE) ->  | FD19: =+VLOOKUP($ER19,'td1'!$AC$187:$AO$208,FD$2,FALSE) ->  | FE19: =+VLOOKUP($ER19,'td1'!$AC$187:$AO$208,FE$2,FALSE) ->  | FH19: -0.04636324968 | FI19: -0.035828369 | FJ19: -0.2092876465 | FK19: 0.2323391209 | FL19: -0.09856784927 | FM19: 0.07257050916 | FN19: -0.4447453104 | FO19: 0.234720271 | FY19: -0.01982560139 | FZ19: 2.358235603 | GA19: 1.163173186 | GB19: -0.02539785563
A20: PAS | B20: =+VLOOKUP(C20,'td1'!$AC$5:$AO$4140,$G$2,FALSE) -> 0.9249723201 | C20: PAS | D20: 63 | Y20: LP5-C2 | Z20: =+VLOOKUP(Y20,'td1'!$AC$5:$AO$4140,$G$2,FALSE) -> 1 | AA20: Comunicaciones | AB20: A12 | AC20: =+VLOOKUP(AB20,'td1'!$AC$5:$AO$4140,$G$2,FALSE) -> 1 | AD20: A12.D | AE20: =+VLOOKUP(AD20,'td1'!$AC$5:$AO$4140,$G$2,FALSE) -> 1 | AF20: A12.Tr | AG20: =+VLOOKUP(AF20,'td1'!$AC$5:$AO$4140,$G$2,FALSE) -> 1 | AH20: Familias | AI20: M3 | AJ20: =+VLOOKUP(AI20,'td1'!$AC$5:$AO$4140,$G$2,FALSE) -> 0.9781863463 | BN20: En riesgo | BO20: =+'td1'!CO171 -> 0 | BP20: =+'td1'!CP171 -> 2 | BQ20: =+'td1'!CQ171 -> 2 | BR20: =+'td1'!CR171 -> 0 | BS20: =+'td1'!CS171 -> 2 | BT20: =+'td1'!CT171 -> 1 | BU20: =+'td1'!CU171 -> 1 | BV20: =+'td1'!CV171 -> 3 | BW20: =+'td1'!CW171 -> 4 | BX20: =+'td1'!CX171 -> 0 | BY20: =+'td1'!CY171 -> 0 | BZ20: =+'td1'!CZ171 -> 0 | CJ20: Gestión Regional | CK20: A8 | CL20: =+'como vamos'!DJ17 -> 0.8577777778 | CM20: =+'como vamos'!DK17 -> 0.8577777778 | CN20: 1 | ER20: A12 | ES20: Comunicaciones | ET20: =+VLOOKUP($ER20,'td1'!$AC$187:$AO$208,ET$2,FALSE) ->  | EU20: =+VLOOKUP($ER20,'td1'!$AC$187:$AO$208,EU$2,FALSE) -> 1 | EV20: =+VLOOKUP($ER20,'td1'!$AC$187:$AO$208,EV$2,FALSE) -> 0.9789029536 | EW20: =+VLOOKUP($ER20,'td1'!$AC$187:$AO$208,EW$2,FALSE) -> 0.8867647059 | EX20: =+VLOOKUP($ER20,'td1'!$AC$187:$AO$208,EX$2,FALSE) -> 0.991638796 | EY20: =+VLOOKUP($ER20,'td1'!$AC$187:$AO$208,EY$2,FALSE) -> 0.9641148325 | EZ20: =+VLOOKUP($ER20,'td1'!$AC$187:$AO$208,EZ$2,FALSE) -> 0.9040133779 | FA20: =+VLOOKUP($ER20,'td1'!$AC$187:$AO$208,FA$2,FALSE) -> 0.9541284404 | FB20: =+VLOOKUP($ER20,'td1'!$AC$187:$AO$208,FB$2,FALSE) -> 1 | FC20: =+VLOOKUP($ER20,'td1'!$AC$187:$AO$208,FC$2,FALSE) ->  | FD20: =+VLOOKUP($ER20,'td1'!$AC$187:$AO$208,FD$2,FALSE) ->  | FE20: =+VLOOKUP($ER20,'td1'!$AC$187:$AO$208,FE$2,FALSE) ->  | FI20: -0.02155172414 | FJ20: -0.1039038283 | FK20: 0.1057583573 | FL20: -0.02854842859 | FM20: -0.06648292611 | FN20: 0.05252444044 | FO20: 0.04587155963 | FY20: -0.01533854739 | FZ20: 0.5705900709 | GA20: 2.265752201 | GB20: 0.03588516746
A21: PF | B21: =+VLOOKUP(C21,'td1'!$AC$5:$AO$4140,$G$2,FALSE) -> 0.9971558589 | C21: PF | D21: 66 | Y21: LP5-C4 | Z21: =+VLOOKUP(Y21,'td1'!$AC$5:$AO$4140,$G$2,FALSE) -> 1 | AA21: Planeación | AB21: A13 | AC21: =+VLOOKUP(AB21,'td1'!$AC$5:$AO$4140,$G$2,FALSE) -> 0.9678042813 | AD21: A13.D | AE21: =+VLOOKUP(AD21,'td1'!$AC$5:$AO$4140,$G$2,FALSE) -> 0.9733333333 | AF21: A13.Tr | AG21: =+VLOOKUP(AF21,'td1'!$AC$5:$AO$4140,$G$2,FALSE) -> 0.9513381995 | AH21: Nutrición | AI21: M4 | AJ21: =+VLOOKUP(AI21,'td1'!$AC$5:$AO$4140,$G$2,FALSE) -> 0.975560005 | AO21: plan de acción y plan operativo 2016-2017 | BN21: Critico | BO21: =+'td1'!CO172 -> 1 | BP21: =+'td1'!CP172 -> 0 | BQ21: =+'td1'!CQ172 -> 2 | BR21: =+'td1'!CR172 -> 2 | BS21: =+'td1'!CS172 -> 0 | BT21: =+'td1'!CT172 -> 2 | BU21: =+'td1'!CU172 -> 0 | BV21: =+'td1'!CV172 -> 0 | BW21: =+'td1'!CW172 -> 2 | BX21: =+'td1'!CX172 -> 0 | BY21: =+'td1'!CY172 -> 0 | BZ21: =+'td1'!CZ172 -> 0 | CJ21: Cooperación | CK21: A9 | CL21: =+'como vamos'!DJ18 -> 0.9125 | CM21: =+'como vamos'!DK18 -> 0.9125 | CN21: 1 | ER21: A13 | ES21: Planeación | ET21: =+VLOOKUP($ER21,'td1'!$AC$187:$AO$208,ET$2,FALSE) -> 1 | EU21: =+VLOOKUP($ER21,'td1'!$AC$187:$AO$208,EU$2,FALSE) -> 1 | EV21: =+VLOOKUP($ER21,'td1'!$AC$187:$AO$208,EV$2,FALSE) -> 0.9669924396 | EW21: =+VLOOKUP($ER21,'td1'!$AC$187:$AO$208,EW$2,FALSE) -> 0.9375564793 | EX21: =+VLOOKUP($ER21,'td1'!$AC$187:$AO$208,EX$2,FALSE) -> 0.9513761468 | EY21: =+VLOOKUP($ER21,'td1'!$AC$187:$AO$208,EY$2,FALSE) -> 0.9716574924 | EZ21: =+VLOOKUP($ER21,'td1'!$AC$187:$AO$208,EZ$2,FALSE) -> 0.9952198853 | FA21: =+VLOOKUP($ER21,'td1'!$AC$187:$AO$208,FA$2,FALSE) -> 0.971559045 | FB21: =+VLOOKUP($ER21,'td1'!$AC$187:$AO$208,FB$2,FALSE) -> 0.9678042813 | FC21: =+VLOOKUP($ER21,'td1'!$AC$187:$AO$208,FC$2,FALSE) ->  | FD21: =+VLOOKUP($ER21,'td1'!$AC$187:$AO$208,FD$2,FALSE) ->  | FE21: =+VLOOKUP($ER21,'td1'!$AC$187:$AO$208,FE$2,FALSE) ->  | FH21: 0 | FI21: -0.03413424867 | FJ21: -0.03139646619 | FK21: 0.01452597643 | FL21: 0.02087293694 | FM21: 0.02367556484 | FN21: -0.02435347638 | FO21: -0.003879672524 | FY21: 0.004801128775 | FZ21: 0.1183763901 | GA21: 1.972163665 | GB21: -0.003981394879
A22: PS_1 | B22: =+VLOOKUP(C22,'td1'!$AC$5:$AO$4140,$G$2,FALSE) -> 0.9553106971 | C22: PS1 | D22: 68 | AA22: SNBF | AB22: A14 | AC22: =+VLOOKUP(AB22,'td1'!$AC$5:$AO$4140,$G$2,FALSE) -> 0.9224590164 | AD22: A14.D | AE22: =+VLOOKUP(AD22,'td1'!$AC$5:$AO$4140,$G$2,FALSE) -> 1 | AF22: A14.Tr | AG22: =+VLOOKUP(AF22,'td1'!$AC$5:$AO$4140,$G$2,FALSE) -> 0.8273722628 | AH22: Protección | AI22: M5 | AJ22: =+VLOOKUP(AI22,'td1'!$AC$5:$AO$4140,$G$2,FALSE) -> 0.9349956303 | AO22: 2016 | AS22: 2017 | BN22: NA | BO22: =+'td1'!CO173 -> 90 | BP22: =+'td1'!CP173 -> 85 | BQ22: =+'td1'!CQ173 -> 49 | BR22: =+'td1'!CR173 -> 71 | BS22: =+'td1'!CS173 -> 77 | BT22: =+'td1'!CT173 -> 18 | BU22: =+'td1'!CU173 -> 75 | BV22: =+'td1'!CV173 -> 62 | BW22: =+'td1'!CW173 -> 25 | BX22: =+'td1'!CX173 -> 0 | BY22: =+'td1'!CY173 -> 0 | BZ22: =+'td1'!CZ173 -> 0 | CJ22: Comunicaciones | CK22: A12 | CL22: =+'como vamos'!DJ21 -> 0.76953125 | CM22: =+'como vamos'!DK21 -> 0.76953125 | CN22: 1 | ER22: A14 | ES22: SNBF | ET22: =+VLOOKUP($ER22,'td1'!$AC$187:$AO$208,ET$2,FALSE) ->  | EU22: =+VLOOKUP($ER22,'td1'!$AC$187:$AO$208,EU$2,FALSE) ->  | EV22: =+VLOOKUP($ER22,'td1'!$AC$187:$AO$208,EV$2,FALSE) -> 1 | EW22: =+VLOOKUP($ER22,'td1'!$AC$187:$AO$208,EW$2,FALSE) -> 0.8044117647 | EX22: =+VLOOKUP($ER22,'td1'!$AC$187:$AO$208,EX$2,FALSE) -> 0.8722627737 | EY22: =+VLOOKUP($ER22,'td1'!$AC$187:$AO$208,EY$2,FALSE) -> 0.9263275395 | EZ22: =+VLOOKUP($ER22,'td1'!$AC$187:$AO$208,EZ$2,FALSE) -> 0.9414715719 | FA22: =+VLOOKUP($ER22,'td1'!$AC$187:$AO$208,FA$2,FALSE) -> 0.8538990826 | FB22: =+VLOOKUP($ER22,'td1'!$AC$187:$AO$208,FB$2,FALSE) -> 0.9224590164 | FC22: =+VLOOKUP($ER22,'td1'!$AC$187:$AO$208,FC$2,FALSE) ->  | FD22: =+VLOOKUP($ER22,'td1'!$AC$187:$AO$208,FD$2,FALSE) ->  | FE22: =+VLOOKUP($ER22,'td1'!$AC$187:$AO$208,FE$2,FALSE) ->  | FJ22: -0.2431444241 | FK22: 0.07778734925 | FL22: 0.05836463178 | FM22: 0.01608549094 | FN22: -0.1025560176 | FO22: 0.07432301339 | FY22: -0.07953176106 | FZ22: -2.628402266 | GA22: 1.156845901 | GB22: -0.00419370726
A23: PS_2 | B23: =+VLOOKUP(C23,'td1'!$AC$5:$AO$4140,$G$2,FALSE) -> 0.9872146119 | C23: PS2 | D23: 70 | AA23: Control Interno | AB23: A15 | AC23: =+VLOOKUP(AB23,'td1'!$AC$5:$AO$4140,$G$2,FALSE) -> 0.875 | AD23: A15.D | AE23: =+VLOOKUP(AD23,'td1'!$AC$5:$AO$4140,$G$2,FALSE) -> 0.875 | AF23: A15.Tr | AG23: =+VLOOKUP(AF23,'td1'!$AC$5:$AO$4140,$G$2,FALSE) ->  | AH23: Gestión Humana | AI23: A1 | AJ23: =+VLOOKUP(AI23,'td1'!$AC$5:$AO$4140,$G$2,FALSE) -> 0.778283485 | AO23: mar | AP23: jun | AQ23: sep | AR23: dic | AS23: mar | AT23: jun | AU23: agt | CJ23: Control Interno | CK23: A15 | CL23: =+'como vamos'!DJ24 -> 1 | CM23: =+'como vamos'!DK24 -> 0.875 | CN23: 0.875 | ER23: A15 | ES23: Control Interno | ET23: =+VLOOKUP($ER23,'td1'!$AC$187:$AO$208,ET$2,FALSE) ->  | EU23: =+VLOOKUP($ER23,'td1'!$AC$187:$AO$208,EU$2,FALSE) ->  | EV23: =+VLOOKUP($ER23,'td1'!$AC$187:$AO$208,EV$2,FALSE) -> 0.95 | EW23: =+VLOOKUP($ER23,'td1'!$AC$187:$AO$208,EW$2,FALSE) -> 1 | EX23: =+VLOOKUP($ER23,'td1'!$AC$187:$AO$208,EX$2,FALSE) ->  | EY23: =+VLOOKUP($ER23,'td1'!$AC$187:$AO$208,EY$2,FALSE) -> 0.9597845601 | EZ23: =+VLOOKUP($ER23,'td1'!$AC$187:$AO$208,EZ$2,FALSE) ->  | FA23: =+VLOOKUP($ER23,'td1'!$AC$187:$AO$208,FA$2,FALSE) -> 1 | FB23: =+VLOOKUP($ER23,'td1'!$AC$187:$AO$208,FB$2,FALSE) -> 0.875 | FC23: =+VLOOKUP($ER23,'td1'!$AC$187:$AO$208,FC$2,FALSE) ->  | FD23: =+VLOOKUP($ER23,'td1'!$AC$187:$AO$208,FD$2,FALSE) ->  | FE23: =+VLOOKUP($ER23,'td1'!$AC$187:$AO$208,FE$2,FALSE) ->  | FJ23: 0.05 | FO23: -0.1428571429 | FY23: 0.01019453797 | GB23: -0.09689664016
A24: PS_3 | B24: =+VLOOKUP(C24,'td1'!$AC$5:$AO$4140,$G$2,FALSE) -> 0.9693895871 | C24: PS3 | D24: 73 | AA24: Aseguramiento | AB24: A16 | AC24: =+VLOOKUP(AB24,'td1'!$AC$5:$AO$4140,$G$2,FALSE) -> 0.8333333333 | AD24: A16.D | AE24: =+VLOOKUP(AD24,'td1'!$AC$5:$AO$4140,$G$2,FALSE) -> 0.8333333333 | AF24: A16.Tr | AG24: =+VLOOKUP(AF24,'td1'!$AC$5:$AO$4140,$G$2,FALSE) ->  | AH24: Financiera | AI24: A2 | AJ24: =+VLOOKUP(AI24,'td1'!$AC$5:$AO$4140,$G$2,FALSE) -> 0.7944444444 | AN24: PA | AO24: 0.860511883 | AP24: 0.9095145509 | AQ24: 0.8763251916 | AR24: 0.9408340208 | AS24: =+AO9 -> 0.9427887432 | AT24: =+AR9 -> 0.9595415321 | AU24: =+AT9 -> 0.9470343563 | CJ24: Aseguramiento | CK24: A16 | CL24: =+'como vamos'!DJ25 -> 0.95 | CM24: =+'como vamos'!DK25 -> 0.7953333333 | CN24: 0.8371929825 | ER24: A16 | ES24: Aseguramiento | ET24: =+VLOOKUP($ER24,'td1'!$AC$187:$AO$208,ET$2,FALSE) -> 1 | EU24: =+VLOOKUP($ER24,'td1'!$AC$187:$AO$208,EU$2,FALSE) -> 1 | EV24: =+VLOOKUP($ER24,'td1'!$AC$187:$AO$208,EV$2,FALSE) -> 0.9550200803 | EW24: =+VLOOKUP($ER24,'td1'!$AC$187:$AO$208,EW$2,FALSE) -> 1 | EX24: =+VLOOKUP($ER24,'td1'!$AC$187:$AO$208,EX$2,FALSE) -> 1 | EY24: =+VLOOKUP($ER24,'td1'!$AC$187:$AO$208,EY$2,FALSE) -> 1 | EZ24: =+VLOOKUP($ER24,'td1'!$AC$187:$AO$208,EZ$2,FALSE) -> 1 | FA24: =+VLOOKUP($ER24,'td1'!$AC$187:$AO$208,FA$2,FALSE) -> 1 | FB24: =+VLOOKUP($ER24,'td1'!$AC$187:$AO$208,FB$2,FALSE) -> 0.8333333333 | FC24: =+VLOOKUP($ER24,'td1'!$AC$187:$AO$208,FC$2,FALSE) ->  | FD24: =+VLOOKUP($ER24,'td1'!$AC$187:$AO$208,FD$2,FALSE) ->  | FE24: =+VLOOKUP($ER24,'td1'!$AC$187:$AO$208,FE$2,FALSE) ->  | FH24: 0 | FI24: -0.04709840202 | FJ24: 0.04497991968 | FK24: 0 | FL24: 0 | FM24: 0 | FN24: 0 | FO24: -0.2 | FY24: 0.04497991968 | GB24: -0.2
A25: PS_4 | B25: =+VLOOKUP(C25,'td1'!$AC$5:$AO$4140,$G$2,FALSE) -> 0.973969483 | C25: PS4 | D25: 76 | AA25: Subdirección General | AB25: A17 | AC25: =+VLOOKUP(AB25,'td1'!$AC$5:$AO$4140,$G$2,FALSE) -> 0.3834127741 | AD25: A17.D | AE25: =+VLOOKUP(AD25,'td1'!$AC$5:$AO$4140,$G$2,FALSE) -> 0.3 | AF25: A17.Tr | AG25: =+VLOOKUP(AF25,'td1'!$AC$5:$AO$4140,$G$2,FALSE) -> 0.4277372263 | AH25: CI Disciplinario | AI25: A3 | AJ25: =+VLOOKUP(AI25,'td1'!$AC$5:$AO$4140,$G$2,FALSE) -> 1 | AN25: PI | AO25: 0.8612113622 | AP25: 0.9082977499 | AQ25: 0.8636112873 | AR25: 0.9394445189 | AS25: =+AO13 -> 0.9467881944 | AT25: =+AR13 -> 0.9697606625 | AU25: =+AT13 -> 0.9365035203 | CJ25: Sub General | CK25: A17 | CL25: =+'como vamos'!DJ26 -> 0.75 | CM25: =+'como vamos'!DK26 -> 0.225 | CN25: 0.3 | ER25: A17 | ES25: Sub General | ET25: =+VLOOKUP($ER25,'td1'!$AC$187:$AO$208,ET$2,FALSE) -> 1 | EU25: =+VLOOKUP($ER25,'td1'!$AC$187:$AO$208,EU$2,FALSE) -> 1 | EV25: =+VLOOKUP($ER25,'td1'!$AC$187:$AO$208,EV$2,FALSE) -> 0.4601525262 | EW25: =+VLOOKUP($ER25,'td1'!$AC$187:$AO$208,EW$2,FALSE) -> 0.3 | EX25: =+VLOOKUP($ER25,'td1'!$AC$187:$AO$208,EX$2,FALSE) -> 1 | EY25: =+VLOOKUP($ER25,'td1'!$AC$187:$AO$208,EY$2,FALSE) -> 0.8632030505 | EZ25: =+VLOOKUP($ER25,'td1'!$AC$187:$AO$208,EZ$2,FALSE) ->  | FA25: =+VLOOKUP($ER25,'td1'!$AC$187:$AO$208,FA$2,FALSE) -> 0.8722627737 | FB25: =+VLOOKUP($ER25,'td1'!$AC$187:$AO$208,FB$2,FALSE) -> 0.3834127741 | FC25: =+VLOOKUP($ER25,'td1'!$AC$187:$AO$208,FC$2,FALSE) ->  | FD25: =+VLOOKUP($ER25,'td1'!$AC$187:$AO$208,FD$2,FALSE) ->  | FE25: =+VLOOKUP($ER25,'td1'!$AC$187:$AO$208,FE$2,FALSE) ->  | FH25: 0 | FI25: -1.173192459 | FJ25: -0.5338417541 | FK25: 0.7 | FL25: -0.1584759801 | FO25: -1.274996643 | FY25: 0.4669243512 | GB25: -1.251367479
A26: PS_5 | B26: =+VLOOKUP(C26,'td1'!$AC$5:$AO$4140,$G$2,FALSE) -> 0.9320080556 | C26: PS5 | D26: 81 | AH26: Abastecimiento | AI26: A4 | AJ26: =+VLOOKUP(AI26,'td1'!$AC$5:$AO$4140,$G$2,FALSE) -> 0.9836333879 | CI26: ICBF | CL26: =+'como vamos'!DJ27 -> 0.8160511873 | CM26: =+'como vamos'!DK27 -> 0.7656900462 | CN26: 0.9382867866
A27: PP_1 | B27: =+VLOOKUP(C27,'td1'!$AC$5:$AO$4140,$G$2,FALSE) -> 0.9182903918 | C27: PP1 | D27: 85 | AH27: Administrativa | AI27: A5 | AJ27: =+VLOOKUP(AI27,'td1'!$AC$5:$AO$4140,$G$2,FALSE) -> 0.7511443462
A28: PP_2 | B28: =+VLOOKUP(C28,'td1'!$AC$5:$AO$4140,$G$2,FALSE) -> 0.5789687924 | C28: PP2 | D28: 86 | AH28: Contratación | AI28: A6 | AJ28: =+VLOOKUP(AI28,'td1'!$AC$5:$AO$4140,$G$2,FALSE) -> 0.679264214 | CI28: Como vamos PA
A29: PP_3 | B29: =+VLOOKUP(C29,'td1'!$AC$5:$AO$4140,$G$2,FALSE) -> 1 | C29: PP3 | D29: 88 | AH29: Jurídica | AI29: A7 | AJ29: =+VLOOKUP(AI29,'td1'!$AC$5:$AO$4140,$G$2,FALSE) -> 0.9434156379 | CL29: Meta corte | CM29: Avance | CN29: % | ET29: 2 | EU29: 3 | EV29: 4 | EW29: 5 | EX29: 6 | EY29: 7 | EZ29: 8 | FA29: 9 | FB29: 10 | FC29: 11 | FD29: 12 | FE29: 13 | FG29: Relación con el mes anterior | FT29: Relación con el trimestre anterior
A30: PP_4 | B30: =+VLOOKUP(C30,'td1'!$AC$5:$AO$4140,$G$2,FALSE) -> 0.9673521851 | C30: PP4 | D30: 91 | AH30: Gestión Regional | AI30: A8 | AJ30: =+VLOOKUP(AI30,'td1'!$AC$5:$AO$4140,$G$2,FALSE) ->  | BC30: historico plan indicativo | CI30: Misionales | CJ30: Primera Infancia | CK30: M1 | CL30: =+'como vamos'!DJ32 -> 0.8487504431 | CM30: =+'como vamos'!DK32 -> 0.8182647997 | CN30: =+IFERROR(CM30/CL30,0) -> 0.9640817349 | ER30: Directos | ET30: Ene | EU30: Feb | EV30: Mar | EW30: Abr | EX30: May | EY30: Jun | EZ30: Jul | FA30: Agt | FB30: Sep | FC30: Oct | FD30: Nov | FE30: Dic | FG30: Ene | FH30: Feb | FI30: Mar | FJ30: Abr | FK30: May | FL30: Jun | FM30: Jul | FN30: Agt | FO30: Sep | FP30: Oct | FQ30: Nov | FR30: Dic | FT30: Ene | FU30: Feb | FV30: Mar | FW30: Abr | FX30: May | FY30: Jun | FZ30: Jul | GA30: Agt | GB30: Sep | GC30: Oct | GD30: Nov | GE30: Dic
A31: PAS_1 | B31: =+VLOOKUP(C31,'td1'!$AC$5:$AO$4140,$G$2,FALSE) -> 0.9245037494 | C31: PAS1 | D31: 94 | K31: TC | AH31: Cooperación | AI31: A9 | AJ31: =+VLOOKUP(AI31,'td1'!$AC$5:$AO$4140,$G$2,FALSE) -> 1 | BO31: Ene | BP31: Feb | BQ31: Mar | BR31: Abr | BS31: May | BT31: Jun | BU31: Jul | BV31: Agt | BW31: Sep | BX31: Oct | BY31: Nov | BZ31: Dic | CJ31: Niñez | CK31: M2 | CL31: =+'como vamos'!DJ33 -> 0.8544578048 | CM31: =+'como vamos'!DK33 -> 0.8544578048 | CN31: =+IFERROR(CM31/CL31,0) -> 1 | ER31: M1.D | ES31: Primera Infancia | ET31: =+VLOOKUP($ER31,'td1'!$AC$134:$AO$155,ET$2,FALSE) ->  | EU31: =+VLOOKUP($ER31,'td1'!$AC$134:$AO$155,EU$2,FALSE) -> 0.926686217 | EV31: =+VLOOKUP($ER31,'td1'!$AC$134:$AO$155,EV$2,FALSE) -> 0.9690938188 | EW31: =+VLOOKUP($ER31,'td1'!$AC$134:$AO$155,EW$2,FALSE) -> 0.9576988156 | EX31: =+VLOOKUP($ER31,'td1'!$AC$134:$AO$155,EX$2,FALSE) -> 0.8513674197 | EY31: =+VLOOKUP($ER31,'td1'!$AC$134:$AO$155,EY$2,FALSE) -> 0.9664712002 | EZ31: =+VLOOKUP($ER31,'td1'!$AC$134:$AO$155,EZ$2,FALSE) -> 0.9174311927 | FA31: =+VLOOKUP($ER31,'td1'!$AC$134:$AO$155,FA$2,FALSE) -> 0.872579001 | FB31: =+VLOOKUP($ER31,'td1'!$AC$134:$AO$155,FB$2,FALSE) -> 0.9553106971 | FC31: =+VLOOKUP($ER31,'td1'!$AC$134:$AO$155,FC$2,FALSE) ->  | FD31: =+VLOOKUP($ER31,'td1'!$AC$134:$AO$155,FD$2,FALSE) ->  | FE31: =+VLOOKUP($ER31,'td1'!$AC$134:$AO$155,FE$2,FALSE) ->  | FH31: =+IFERROR((EU31-ET31)/EU31,"") ->  | FI31: 0.04376005804 | FJ31: -0.01189831606 | FK31: -0.1248948378 | FL31: 0.1190969586 | FM31: -0.05345360825 | FN31: -0.05140186916 | FO31: 0.08660187339 | FY31: =+IFERROR((EY31-EV31)/EY31,"") -> -0.002713602367 | FZ31: =+IFERROR((FM31-FL31)/FM31,"") -> 3.228043391 | GA31: -0.03991565136 | GB31: =+IFERROR((FB31-EY31)/FB31,"") -> -0.01168258997 | GC31: =+IFERROR((FP31-FO31)/FP31,"") ->  | GE31: =+IFERROR((FE31-FB31)/FE31,"") -> 
A32: PAS_2 | B32: =+VLOOKUP(C32,'td1'!$AC$5:$AO$4140,$G$2,FALSE) -> 0.925365673 | C32: PAS2 | D32: 95 | K32: PA | AH32: Servicios y Atención | AI32: A10 | AJ32: =+VLOOKUP(AI32,'td1'!$AC$5:$AO$4140,$G$2,FALSE) -> 0.8883769199 | BN32: Optimo | BO32: =+'td1'!DC169 -> 4 | BP32: =+'td1'!DD169 -> 4 | BQ32: =+'td1'!DE169 -> 26 | BR32: =+'td1'!DF169 -> 9 | BS32: =+'td1'!DG169 -> 8 | BT32: =+'td1'!DH169 -> 51 | BU32: =+'td1'!DI169 -> 11 | BV32: =+'td1'!DJ169 -> 15 | BW32: =+'td1'!DK169 -> 44 | BX32: =+'td1'!DL169 -> 0 | BY32: =+'td1'!DM169 -> 0 | BZ32: =+'td1'!DN169 -> 0 | CJ32: Familias | CK32: M3 | CL32: =+'como vamos'!DJ34 -> 0.8208333333 | CM32: =+'como vamos'!DK34 -> 0.7958333333 | CN32: 0.9695431472 | ER32: M2.D | ES32: Niñez | ET32: =+VLOOKUP($ER32,'td1'!$AC$134:$AO$155,ET$2,FALSE) ->  | EU32: =+VLOOKUP($ER32,'td1'!$AC$134:$AO$155,EU$2,FALSE) ->  | EV32: =+VLOOKUP($ER32,'td1'!$AC$134:$AO$155,EV$2,FALSE) ->  | EW32: =+VLOOKUP($ER32,'td1'!$AC$134:$AO$155,EW$2,FALSE) -> 0.6 | EX32: =+VLOOKUP($ER32,'td1'!$AC$134:$AO$155,EX$2,FALSE) -> 1 | EY32: =+VLOOKUP($ER32,'td1'!$AC$134:$AO$155,EY$2,FALSE) -> 0.9741858381 | EZ32: =+VLOOKUP($ER32,'td1'!$AC$134:$AO$155,EZ$2,FALSE) -> 0.9539665407 | FA32: =+VLOOKUP($ER32,'td1'!$AC$134:$AO$155,FA$2,FALSE) -> 0.9603179109 | FB32: =+VLOOKUP($ER32,'td1'!$AC$134:$AO$155,FB$2,FALSE) -> 0.9835464334 | FC32: =+VLOOKUP($ER32,'td1'!$AC$134:$AO$155,FC$2,FALSE) ->  | FD32: =+VLOOKUP($ER32,'td1'!$AC$134:$AO$155,FD$2,FALSE) ->  | FE32: =+VLOOKUP($ER32,'td1'!$AC$134:$AO$155,FE$2,FALSE) ->  | FK32: 0.4 | FL32: -0.02649819052 | FM32: -0.02119497535 | FN32: 0.006613820335 | FO32: 0.02361710817 | FY32: =+IFERROR((EY32-EV32)/EY32,"") ->  | FZ32: -0.2502109616 | GA32: 4.204649398 | GB32: =+IFERROR((FB32-EY32)/FB32,"") -> 0.009517186984 | GE32: =+IFERROR((FE32-FB32)/FE32,"") -> 
A33: PF_1 | B33: =+VLOOKUP(C33,'td1'!$AC$5:$AO$4140,$G$2,FALSE) -> 0.9971558589 | C33: PF | D33: 97 | K33: PI | AH33: Tecnología | AI33: A11 | AJ33: =+VLOOKUP(AI33,'td1'!$AC$5:$AO$4140,$G$2,FALSE) -> 0.8822900993 | BN33: Adecuado | BO33: =+'td1'!DC170 -> 1 | BP33: =+'td1'!DD170 -> 2 | BQ33: =+'td1'!DE170 -> 4 | BR33: =+'td1'!DF170 -> 3 | BS33: =+'td1'!DG170 -> 3 | BT33: =+'td1'!DH170 -> 7 | BU33: =+'td1'!DI170 -> 1 | BV33: =+'td1'!DJ170 -> 3 | BW33: =+'td1'!DK170 -> 8 | BX33: =+'td1'!DL170 -> 0 | BY33: =+'td1'!DM170 -> 0 | BZ33: =+'td1'!DN170 -> 0 | CJ33: Nutrición | CK33: M4 | CL33: =+'como vamos'!DJ35 -> 0.814705762 | CM33: =+'como vamos'!DK35 -> 0.7959956621 | CN33: 0.9770345311 | ER33: M3.D | ES33: Familias | ET33: =+VLOOKUP($ER33,'td1'!$AC$134:$AO$155,ET$2,FALSE) ->  | EU33: =+VLOOKUP($ER33,'td1'!$AC$134:$AO$155,EU$2,FALSE) ->  | EV33: =+VLOOKUP($ER33,'td1'!$AC$134:$AO$155,EV$2,FALSE) -> 1 | EW33: =+VLOOKUP($ER33,'td1'!$AC$134:$AO$155,EW$2,FALSE) ->  | EX33: =+VLOOKUP($ER33,'td1'!$AC$134:$AO$155,EX$2,FALSE) -> 1 | EY33: =+VLOOKUP($ER33,'td1'!$AC$134:$AO$155,EY$2,FALSE) -> 1 | EZ33: =+VLOOKUP($ER33,'td1'!$AC$134:$AO$155,EZ$2,FALSE) -> 1 | FA33: =+VLOOKUP($ER33,'td1'!$AC$134:$AO$155,FA$2,FALSE) -> 0.9666666667 | FB33: =+VLOOKUP($ER33,'td1'!$AC$134:$AO$155,FB$2,FALSE) -> 0.9693895871 | FC33: =+VLOOKUP($ER33,'td1'!$AC$134:$AO$155,FC$2,FALSE) ->  | FD33: =+VLOOKUP($ER33,'td1'!$AC$134:$AO$155,FD$2,FALSE) ->  | FE33: =+VLOOKUP($ER33,'td1'!$AC$134:$AO$155,FE$2,FALSE) ->  | FL33: 0 | FM33: 0 | FN33: -0.03448275862 | FO33: 0.002808902059 | FY33: 0 | GA33: 1 | GB33: -0.03157699787
A34: M1_1 | B34: =+VLOOKUP(C34,'td1'!$AC$5:$AO$4140,$G$2,FALSE) -> 0.9139638979 | C34: M1 | D34: 99 | AH34: Comunicaciones | AI34: A12 | AJ34: =+VLOOKUP(AI34,'td1'!$AC$5:$AO$4140,$G$2,FALSE) -> 1 | BN34: En riesgo | BO34: =+'td1'!DC171 -> 0 | BP34: =+'td1'!DD171 -> 1 | BQ34: =+'td1'!DE171 -> 1 | BR34: =+'td1'!DF171 -> 0 | BS34: =+'td1'!DG171 -> 0 | BT34: =+'td1'!DH171 -> 1 | BU34: =+'td1'!DI171 -> 1 | BV34: =+'td1'!DJ171 -> 3 | BW34: =+'td1'!DK171 -> 1 | BX34: =+'td1'!DL171 -> 0 | BY34: =+'td1'!DM171 -> 0 | BZ34: =+'td1'!DN171 -> 0 | CJ34: Protección | CK34: M5 | CL34: =+'como vamos'!DJ36 -> 0.938434258 | CM34: =+'como vamos'!DK36 -> 0.8696608194 | CN34: 0.9267146974 | ER34: M4.D | ES34: Nutrición | ET34: =+VLOOKUP($ER34,'td1'!$AC$134:$AO$155,ET$2,FALSE) -> 0.9358974359 | EU34: =+VLOOKUP($ER34,'td1'!$AC$134:$AO$155,EU$2,FALSE) -> 0.9524940618 | EV34: =+VLOOKUP($ER34,'td1'!$AC$134:$AO$155,EV$2,FALSE) -> 1 | EW34: =+VLOOKUP($ER34,'td1'!$AC$134:$AO$155,EW$2,FALSE) -> 0.9741092637 | EX34: =+VLOOKUP($ER34,'td1'!$AC$134:$AO$155,EX$2,FALSE) -> 0.9741092637 | EY34: =+VLOOKUP($ER34,'td1'!$AC$134:$AO$155,EY$2,FALSE) -> 0.9875228938 | EZ34: =+VLOOKUP($ER34,'td1'!$AC$134:$AO$155,EZ$2,FALSE) -> 1 | FA34: =+VLOOKUP($ER34,'td1'!$AC$134:$AO$155,FA$2,FALSE) -> 1 | FB34: =+VLOOKUP($ER34,'td1'!$AC$134:$AO$155,FB$2,FALSE) -> 0.973969483 | FC34: =+VLOOKUP($ER34,'td1'!$AC$134:$AO$155,FC$2,FALSE) ->  | FD34: =+VLOOKUP($ER34,'td1'!$AC$134:$AO$155,FD$2,FALSE) ->  | FE34: =+VLOOKUP($ER34,'td1'!$AC$134:$AO$155,FE$2,FALSE) ->  | FH34: 0.01742438775 | FI34: 0.04750593824 | FJ34: -0.0265788832 | FK34: 0 | FL34: 0.013583108 | FM34: 0.01247710623 | FN34: 0 | FO34: -0.02672621414 | FY34: -0.01263475136 | FZ34: -0.08864249042 | GB34: -0.0139156421
A35: M2_1 | B35: =+VLOOKUP(C35,'td1'!$AC$5:$AO$4140,$G$2,FALSE) -> 0.9281957251 | C35: M2 | AH35: Planeación | AI35: A13 | AJ35: =+VLOOKUP(AI35,'td1'!$AC$5:$AO$4140,$G$2,FALSE) -> 0.9678042813 | BN35: Critico | BO35: =+'td1'!DC172 -> 1 | BP35: =+'td1'!DD172 -> 0 | BQ35: =+'td1'!DE172 -> 2 | BR35: =+'td1'!DF172 -> 1 | BS35: =+'td1'!DG172 -> 0 | BT35: =+'td1'!DH172 -> 1 | BU35: =+'td1'!DI172 -> 0 | BV35: =+'td1'!DJ172 -> 0 | BW35: =+'td1'!DK172 -> 1 | BX35: =+'td1'!DL172 -> 0 | BY35: =+'td1'!DM172 -> 0 | BZ35: =+'td1'!DN172 -> 0 | CJ35: SNBF | CK35: A14 | CL35: =+'como vamos'!DJ50 -> 0.8153314185 | CM35: =+'como vamos'!DK50 -> 0.8153314185 | CN35: 1 | ER35: M5.D | ES35: Protección | ET35: =+VLOOKUP($ER35,'td1'!$AC$134:$AO$155,ET$2,FALSE) -> 1 | EU35: =+VLOOKUP($ER35,'td1'!$AC$134:$AO$155,EU$2,FALSE) -> 0.9 | EV35: =+VLOOKUP($ER35,'td1'!$AC$134:$AO$155,EV$2,FALSE) -> 0.9181403949 | EW35: =+VLOOKUP($ER35,'td1'!$AC$134:$AO$155,EW$2,FALSE) -> 0.8694191742 | EX35: =+VLOOKUP($ER35,'td1'!$AC$134:$AO$155,EX$2,FALSE) -> 0.9021123544 | EY35: =+VLOOKUP($ER35,'td1'!$AC$134:$AO$155,EY$2,FALSE) -> 0.9566532391 | EZ35: =+VLOOKUP($ER35,'td1'!$AC$134:$AO$155,EZ$2,FALSE) -> 0.9322413599 | FA35: =+VLOOKUP($ER35,'td1'!$AC$134:$AO$155,FA$2,FALSE) -> 0.9211836449 | FB35: =+VLOOKUP($ER35,'td1'!$AC$134:$AO$155,FB$2,FALSE) -> 0.9325364855 | FC35: =+VLOOKUP($ER35,'td1'!$AC$134:$AO$155,FC$2,FALSE) ->  | FD35: =+VLOOKUP($ER35,'td1'!$AC$134:$AO$155,FD$2,FALSE) ->  | FE35: =+VLOOKUP($ER35,'td1'!$AC$134:$AO$155,FE$2,FALSE) ->  | FH35: -0.1111111111 | FI35: 0.0197577571 | FJ35: -0.05603881545 | FK35: 0.03624069664 | FL35: 0.05701217795 | FM35: -0.02618622201 | FN35: -0.01200381168 | FO35: 0.01217415165 | FY35: 0.0402578935 | FZ35: 3.177182257 | GA35: -1.181492239 | GB35: -0.0258614585
A36: M3_1 | B36: =+VLOOKUP(C36,'td1'!$AC$5:$AO$4140,$G$2,FALSE) -> 0.9781863463 | C36: M3 | AH36: SNBF | AI36: A14 | AJ36: =+VLOOKUP(AI36,'td1'!$AC$5:$AO$4140,$G$2,FALSE) -> 0.9224590164 | BN36: NA | BO36: =+'td1'!DC173 -> 67 | BP36: =+'td1'!DD173 -> 66 | BQ36: =+'td1'!DE173 -> 40 | BR36: =+'td1'!DF173 -> 60 | BS36: =+'td1'!DG173 -> 62 | BT36: =+'td1'!DH173 -> 13 | BU36: =+'td1'!DI173 -> 60 | BV36: =+'td1'!DJ173 -> 52 | BW36: =+'td1'!DK173 -> 19 | BX36: =+'td1'!DL173 -> 0 | BY36: =+'td1'!DM173 -> 0 | BZ36: =+'td1'!DN173 -> 0 | CI36: Apoyo | CJ36: Gestión Humana | CK36: A1 | CL36: =+'como vamos'!DJ37 -> 0.7541843277 | CM36: =+'como vamos'!DK37 -> 0.5812699182 | CN36: 0.7707265941 | ER36: A1.D | ES36: Gestión Humana | ET36: =+VLOOKUP($ER36,'td1'!$AC$134:$AO$155,ET$2,FALSE) ->  | EU36: =+VLOOKUP($ER36,'td1'!$AC$134:$AO$155,EU$2,FALSE) -> 0.9842767296 | EV36: =+VLOOKUP($ER36,'td1'!$AC$134:$AO$155,EV$2,FALSE) -> 1 | EW36: =+VLOOKUP($ER36,'td1'!$AC$134:$AO$155,EW$2,FALSE) -> 0.7700980392 | EX36: =+VLOOKUP($ER36,'td1'!$AC$134:$AO$155,EX$2,FALSE) ->  | EY36: =+VLOOKUP($ER36,'td1'!$AC$134:$AO$155,EY$2,FALSE) -> 0.7208523592 | EZ36: =+VLOOKUP($ER36,'td1'!$AC$134:$AO$155,EZ$2,FALSE) ->  | FA36: =+VLOOKUP($ER36,'td1'!$AC$134:$AO$155,FA$2,FALSE) -> 0.7639705882 | FB36: =+VLOOKUP($ER36,'td1'!$AC$134:$AO$155,FB$2,FALSE) -> 0.6851405622 | FC36: =+VLOOKUP($ER36,'td1'!$AC$134:$AO$155,FC$2,FALSE) ->  | FD36: =+VLOOKUP($ER36,'td1'!$AC$134:$AO$155,FD$2,FALSE) ->  | FE36: =+VLOOKUP($ER36,'td1'!$AC$134:$AO$155,FE$2,FALSE) ->  | FI36: 0.01572327044 | FJ36: -0.2985359644 | FO36: -0.1150567202 | FY36: -0.3872466216 | GB36: -0.05212331444
A37: M4_1 | B37: =+VLOOKUP(C37,'td1'!$AC$5:$AO$4140,$G$2,FALSE) -> 0.975560005 | C37: M4 | AH37: Control Interno | AI37: A15 | AJ37: =+VLOOKUP(AI37,'td1'!$AC$5:$AO$4140,$G$2,FALSE) -> 0.875 | AZ37: AÑO | BA37: % | CJ37: Financiera | CK37: A2 | CL37: =+'como vamos'!DJ38 -> 1 | CM37: =+'como vamos'!DK38 -> 1 | CN37: 1 | ER37: A2.D | ES37: Financiera | ET37: =+VLOOKUP($ER37,'td1'!$AC$134:$AO$155,ET$2,FALSE) -> 0.65 | EU37: =+VLOOKUP($ER37,'td1'!$AC$134:$AO$155,EU$2,FALSE) -> 0.8200803213 | EV37: =+VLOOKUP($ER37,'td1'!$AC$134:$AO$155,EV$2,FALSE) -> 0.8573065903 | EW37: =+VLOOKUP($ER37,'td1'!$AC$134:$AO$155,EW$2,FALSE) -> 0.7467048711 | EX37: =+VLOOKUP($ER37,'td1'!$AC$134:$AO$155,EX$2,FALSE) -> 0.9535816619 | EY37: =+VLOOKUP($ER37,'td1'!$AC$134:$AO$155,EY$2,FALSE) -> 0.9785100287 | EZ37: =+VLOOKUP($ER37,'td1'!$AC$134:$AO$155,EZ$2,FALSE) -> 0.9283667622 | FA37: =+VLOOKUP($ER37,'td1'!$AC$134:$AO$155,FA$2,FALSE) -> 0.8 | FB37: =+VLOOKUP($ER37,'td1'!$AC$134:$AO$155,FB$2,FALSE) -> 0.9856733524 | FC37: =+VLOOKUP($ER37,'td1'!$AC$134:$AO$155,FC$2,FALSE) ->  | FD37: =+VLOOKUP($ER37,'td1'!$AC$134:$AO$155,FD$2,FALSE) ->  | FE37: =+VLOOKUP($ER37,'td1'!$AC$134:$AO$155,FE$2,FALSE) ->  | FH37: 0.2073947111 | FI37: 0.04342235251 | FJ37: -0.1481197237 | FK37: 0.2169471154 | FL37: 0.02547584187 | FM37: -0.05401234568 | FN37: -0.1604584527 | FO37: 0.188372093 | FY37: 0.1238653001 | FZ37: 1.471667015 | GA37: 0.6633873457 | GB37: 0.00726744186
A38: M5_1 | B38: =+VLOOKUP(C38,'td1'!$AC$5:$AO$4140,$G$2,FALSE) -> 0.9349956303 | C38: M5 | AH38: Aseguramiento | AI38: A16 | AJ38: =+VLOOKUP(AI38,'td1'!$AC$5:$AO$4140,$G$2,FALSE) -> 0.8333333333 | AZ38: 2011 | BA38: 0.846 | CJ38: CI Disciplinario | CK38: A3 | CL38: =+'como vamos'!DJ39 -> 0.7529411765 | CM38: =+'como vamos'!DK39 -> 0.7529411765 | CN38: 1 | ER38: A3.D | ES38: CI Disciplinario | ET38: =+VLOOKUP($ER38,'td1'!$AC$134:$AO$155,ET$2,FALSE) ->  | EU38: =+VLOOKUP($ER38,'td1'!$AC$134:$AO$155,EU$2,FALSE) ->  | EV38: =+VLOOKUP($ER38,'td1'!$AC$134:$AO$155,EV$2,FALSE) -> 1 | EW38: =+VLOOKUP($ER38,'td1'!$AC$134:$AO$155,EW$2,FALSE) ->  | EX38: =+VLOOKUP($ER38,'td1'!$AC$134:$AO$155,EX$2,FALSE) ->  | EY38: =+VLOOKUP($ER38,'td1'!$AC$134:$AO$155,EY$2,FALSE) -> 1 | EZ38: =+VLOOKUP($ER38,'td1'!$AC$134:$AO$155,EZ$2,FALSE) ->  | FA38: =+VLOOKUP($ER38,'td1'!$AC$134:$AO$155,FA$2,FALSE) ->  | FB38: =+VLOOKUP($ER38,'td1'!$AC$134:$AO$155,FB$2,FALSE) -> 1 | FC38: =+VLOOKUP($ER38,'td1'!$AC$134:$AO$155,FC$2,FALSE) ->  | FD38: =+VLOOKUP($ER38,'td1'!$AC$134:$AO$155,FD$2,FALSE) ->  | FE38: =+VLOOKUP($ER38,'td1'!$AC$134:$AO$155,FE$2,FALSE) ->  | FY38: 0 | GB38: 0
A39: A1_1 | B39: =+VLOOKUP(C39,'td1'!$AC$5:$AO$4140,$G$2,FALSE) -> 0.778283485 | C39: A1 | AH39: Sub General | AI39: A17 | AJ39: =+VLOOKUP(AI39,'td1'!$AC$5:$AO$4140,$G$2,FALSE) -> 0.3834127741 | AZ39: 2012 | BA39: 0.855 | CJ39: Abastecimiento | CK39: A4 | CL39: =+'como vamos'!DJ40 -> 0.9726415094 | CM39: =+'como vamos'!DK40 -> 0.9726415094 | CN39: 1 | ER39: A4.D | ES39: Abastecimiento | ET39: =+VLOOKUP($ER39,'td1'!$AC$134:$AO$155,ET$2,FALSE) -> 0.9 | EU39: =+VLOOKUP($ER39,'td1'!$AC$134:$AO$155,EU$2,FALSE) -> 0.9 | EV39: =+VLOOKUP($ER39,'td1'!$AC$134:$AO$155,EV$2,FALSE) -> 0.825389755 | EW39: =+VLOOKUP($ER39,'td1'!$AC$134:$AO$155,EW$2,FALSE) -> 1 | EX39: =+VLOOKUP($ER39,'td1'!$AC$134:$AO$155,EX$2,FALSE) -> 1 | EY39: =+VLOOKUP($ER39,'td1'!$AC$134:$AO$155,EY$2,FALSE) -> 0.9944320713 | EZ39: =+VLOOKUP($ER39,'td1'!$AC$134:$AO$155,EZ$2,FALSE) -> 1 | FA39: =+VLOOKUP($ER39,'td1'!$AC$134:$AO$155,FA$2,FALSE) -> 0.9817518248 | FB39: =+VLOOKUP($ER39,'td1'!$AC$134:$AO$155,FB$2,FALSE) -> 1 | FC39: =+VLOOKUP($ER39,'td1'!$AC$134:$AO$155,FC$2,FALSE) ->  | FD39: =+VLOOKUP($ER39,'td1'!$AC$134:$AO$155,FD$2,FALSE) ->  | FE39: =+VLOOKUP($ER39,'td1'!$AC$134:$AO$155,FE$2,FALSE) ->  | FH39: 0 | FI39: -0.09039395575 | FJ39: 0.174610245 | FK39: 0 | FL39: -0.005599104143 | FM39: 0.005567928731 | FN39: -0.01858736059 | FO39: 0.01824817518 | FY39: 0.1699888018 | FZ39: 2.005599104 | GA39: 1.299554566 | GB39: 0.005567928731
A40: A2_1 | B40: =+VLOOKUP(C40,'td1'!$AC$5:$AO$4140,$G$2,FALSE) -> 0.7944444444 | C40: A2 | AZ40: 2013 | BA40: 0.822 | CJ40: Administrativa | CK40: A5 | CL40: =+'como vamos'!DJ41 -> 0.4588208102 | CM40: =+'como vamos'!DK41 -> 0.3221961674 | CN40: 0.7022265779 | ER40: A5.D | ES40: Administrativa | ET40: =+VLOOKUP($ER40,'td1'!$AC$134:$AO$155,ET$2,FALSE) ->  | EU40: =+VLOOKUP($ER40,'td1'!$AC$134:$AO$155,EU$2,FALSE) ->  | EV40: =+VLOOKUP($ER40,'td1'!$AC$134:$AO$155,EV$2,FALSE) -> 0.681300813 | EW40: =+VLOOKUP($ER40,'td1'!$AC$134:$AO$155,EW$2,FALSE) -> 0.98382905 | EX40: =+VLOOKUP($ER40,'td1'!$AC$134:$AO$155,EX$2,FALSE) -> 1 | EY40: =+VLOOKUP($ER40,'td1'!$AC$134:$AO$155,EY$2,FALSE) -> 0.681300813 | EZ40: =+VLOOKUP($ER40,'td1'!$AC$134:$AO$155,EZ$2,FALSE) -> 1 | FA40: =+VLOOKUP($ER40,'td1'!$AC$134:$AO$155,FA$2,FALSE) -> 0.98382905 | FB40: =+VLOOKUP($ER40,'td1'!$AC$134:$AO$155,FB$2,FALSE) -> 0.6421407501 | FC40: =+VLOOKUP($ER40,'td1'!$AC$134:$AO$155,FC$2,FALSE) ->  | FD40: =+VLOOKUP($ER40,'td1'!$AC$134:$AO$155,FD$2,FALSE) ->  | FE40: =+VLOOKUP($ER40,'td1'!$AC$134:$AO$155,FE$2,FALSE) ->  | FJ40: 0.3075008173 | FK40: 0.01617095004 | FL40: -0.4677804296 | FM40: 0.318699187 | FN40: -0.01643674787 | FO40: -0.5321081084 | FY40: 0 | FZ40: 2.46778043 | GA40: 20.38943089 | GB40: -0.06098361285
A41: A3_1 | B41: =+VLOOKUP(C41,'td1'!$AC$5:$AO$4140,$G$2,FALSE) -> 1 | C41: A3 | AZ41: 2014 | BA41: 0.781 | CJ41: Contratación | CK41: A6 | CL41: =+'como vamos'!DJ42 -> 0.7 | CM41: =+'como vamos'!DK42 -> 0.63 | CN41: 0.9 | ER41: A6.D | ES41: Contratación | ET41: =+VLOOKUP($ER41,'td1'!$AC$134:$AO$155,ET$2,FALSE) ->  | EU41: =+VLOOKUP($ER41,'td1'!$AC$134:$AO$155,EU$2,FALSE) ->  | EV41: =+VLOOKUP($ER41,'td1'!$AC$134:$AO$155,EV$2,FALSE) ->  | EW41: =+VLOOKUP($ER41,'td1'!$AC$134:$AO$155,EW$2,FALSE) -> 0.9 | EX41: =+VLOOKUP($ER41,'td1'!$AC$134:$AO$155,EX$2,FALSE) ->  | EY41: =+VLOOKUP($ER41,'td1'!$AC$134:$AO$155,EY$2,FALSE) -> 0.9 | EZ41: =+VLOOKUP($ER41,'td1'!$AC$134:$AO$155,EZ$2,FALSE) ->  | FA41: =+VLOOKUP($ER41,'td1'!$AC$134:$AO$155,FA$2,FALSE) -> 0.9 | FB41: =+VLOOKUP($ER41,'td1'!$AC$134:$AO$155,FB$2,FALSE) ->  | FC41: =+VLOOKUP($ER41,'td1'!$AC$134:$AO$155,FC$2,FALSE) ->  | FD41: =+VLOOKUP($ER41,'td1'!$AC$134:$AO$155,FD$2,FALSE) ->  | FE41: =+VLOOKUP($ER41,'td1'!$AC$134:$AO$155,FE$2,FALSE) -> 
A42: A4_1 | B42: =+VLOOKUP(C42,'td1'!$AC$5:$AO$4140,$G$2,FALSE) -> 0.9836333879 | C42: A4 | AZ42: 2015 | BA42: 0.933 | CJ42: Servicios y Atención | CK42: A10 | CL42: =+'como vamos'!DJ46 -> 0.8408076514 | CM42: =+'como vamos'!DK46 -> 0.7753241233 | CN42: 0.9221183013 | ER42: A7.D | ES42: Jurídica | ET42: =+VLOOKUP($ER42,'td1'!$AC$134:$AO$155,ET$2,FALSE) ->  | EU42: =+VLOOKUP($ER42,'td1'!$AC$134:$AO$155,EU$2,FALSE) ->  | EV42: =+VLOOKUP($ER42,'td1'!$AC$134:$AO$155,EV$2,FALSE) -> 0.95 | EW42: =+VLOOKUP($ER42,'td1'!$AC$134:$AO$155,EW$2,FALSE) -> 1 | EX42: =+VLOOKUP($ER42,'td1'!$AC$134:$AO$155,EX$2,FALSE) ->  | EY42: =+VLOOKUP($ER42,'td1'!$AC$134:$AO$155,EY$2,FALSE) -> 0.8666666667 | EZ42: =+VLOOKUP($ER42,'td1'!$AC$134:$AO$155,EZ$2,FALSE) ->  | FA42: =+VLOOKUP($ER42,'td1'!$AC$134:$AO$155,FA$2,FALSE) -> 1 | FB42: =+VLOOKUP($ER42,'td1'!$AC$134:$AO$155,FB$2,FALSE) -> 0.7666666667 | FC42: =+VLOOKUP($ER42,'td1'!$AC$134:$AO$155,FC$2,FALSE) ->  | FD42: =+VLOOKUP($ER42,'td1'!$AC$134:$AO$155,FD$2,FALSE) ->  | FE42: =+VLOOKUP($ER42,'td1'!$AC$134:$AO$155,FE$2,FALSE) ->  | FJ42: 0.05 | FO42: -0.3043478261 | FY42: -0.09615384615 | GB42: -0.1304347826
A43: A5_1 | B43: =+VLOOKUP(C43,'td1'!$AC$5:$AO$4140,$G$2,FALSE) -> 0.7511443462 | C43: A5 | AZ43: 2016 | BA43: 0.9362403361 | CJ43: Tecnología | CK43: A11 | CL43: =+'como vamos'!DJ47 -> 0.7464285714 | CM43: =+'como vamos'!DK47 -> 0.7017857143 | CN43: =+IFERROR(CM43/CL43,0) -> 0.9401913876 | ER43: A8.D | ES43: Gestión Regional | ET43: =+VLOOKUP($ER43,'td1'!$AC$134:$AO$155,ET$2,FALSE) ->  | EU43: =+VLOOKUP($ER43,'td1'!$AC$134:$AO$155,EU$2,FALSE) ->  | EV43: =+VLOOKUP($ER43,'td1'!$AC$134:$AO$155,EV$2,FALSE) ->  | EW43: =+VLOOKUP($ER43,'td1'!$AC$134:$AO$155,EW$2,FALSE) -> 1 | EX43: =+VLOOKUP($ER43,'td1'!$AC$134:$AO$155,EX$2,FALSE) ->  | EY43: =+VLOOKUP($ER43,'td1'!$AC$134:$AO$155,EY$2,FALSE) -> 1 | EZ43: =+VLOOKUP($ER43,'td1'!$AC$134:$AO$155,EZ$2,FALSE) ->  | FA43: =+VLOOKUP($ER43,'td1'!$AC$134:$AO$155,FA$2,FALSE) -> 1 | FB43: =+VLOOKUP($ER43,'td1'!$AC$134:$AO$155,FB$2,FALSE) ->  | FC43: =+VLOOKUP($ER43,'td1'!$AC$134:$AO$155,FC$2,FALSE) ->  | FD43: =+VLOOKUP($ER43,'td1'!$AC$134:$AO$155,FD$2,FALSE) ->  | FE43: =+VLOOKUP($ER43,'td1'!$AC$134:$AO$155,FE$2,FALSE) -> 
A44: A6_1 | B44: =+VLOOKUP(C44,'td1'!$AC$5:$AO$4140,$G$2,FALSE) -> 0.679264214 | C44: A6 | AZ44: 2017 | BA44: =+M6 -> 0.9674193245 | CI44: Planeación y Oficinas asesoras | CJ44: Planeación | CK44: A13 | CL44: =+'como vamos'!DJ49 -> 0.5683720295 | CM44: =+'como vamos'!DK49 -> 0.5575018441 | CN44: =+IFERROR(CM44/CL44,0) -> 0.9808748762 | ER44: A9.D | ES44: Cooperación | ET44: =+VLOOKUP($ER44,'td1'!$AC$134:$AO$155,ET$2,FALSE) -> 1 | EU44: =+VLOOKUP($ER44,'td1'!$AC$134:$AO$155,EU$2,FALSE) -> 1 | EV44: =+VLOOKUP($ER44,'td1'!$AC$134:$AO$155,EV$2,FALSE) -> 1 | EW44: =+VLOOKUP($ER44,'td1'!$AC$134:$AO$155,EW$2,FALSE) -> 1 | EX44: =+VLOOKUP($ER44,'td1'!$AC$134:$AO$155,EX$2,FALSE) -> 1 | EY44: =+VLOOKUP($ER44,'td1'!$AC$134:$AO$155,EY$2,FALSE) -> 1 | EZ44: =+VLOOKUP($ER44,'td1'!$AC$134:$AO$155,EZ$2,FALSE) -> 1 | FA44: =+VLOOKUP($ER44,'td1'!$AC$134:$AO$155,FA$2,FALSE) -> 1 | FB44: =+VLOOKUP($ER44,'td1'!$AC$134:$AO$155,FB$2,FALSE) -> 1 | FC44: =+VLOOKUP($ER44,'td1'!$AC$134:$AO$155,FC$2,FALSE) ->  | FD44: =+VLOOKUP($ER44,'td1'!$AC$134:$AO$155,FD$2,FALSE) ->  | FE44: =+VLOOKUP($ER44,'td1'!$AC$134:$AO$155,FE$2,FALSE) ->  | FH44: 0 | FI44: 0 | FJ44: 0 | FK44: 0 | FL44: 0 | FM44: 0 | FN44: 0 | FO44: 0 | FY44: 0 | GB44: 0
A45: A7_1 | B45: =+VLOOKUP(C45,'td1'!$AC$5:$AO$4140,$G$2,FALSE) -> 0.9434156379 | C45: A7 | CJ45: Jurídica | CK45: A7 | CL45: =+'como vamos'!DJ43 -> 0.9545454545 | CM45: =+'como vamos'!DK43 -> 0.9545454545 | CN45: 1 | ER45: A10.D | ES45: Servicios y Atención | ET45: =+VLOOKUP($ER45,'td1'!$AC$134:$AO$155,ET$2,FALSE) -> 0.9089734386 | EU45: =+VLOOKUP($ER45,'td1'!$AC$134:$AO$155,EU$2,FALSE) -> 0.9070701357 | EV45: =+VLOOKUP($ER45,'td1'!$AC$134:$AO$155,EV$2,FALSE) -> 0.910734072 | EW45: =+VLOOKUP($ER45,'td1'!$AC$134:$AO$155,EW$2,FALSE) -> 0.8858597285 | EX45: =+VLOOKUP($ER45,'td1'!$AC$134:$AO$155,EX$2,FALSE) -> 0.8929298643 | EY45: =+VLOOKUP($ER45,'td1'!$AC$134:$AO$155,EY$2,FALSE) -> 0.9433584687 | EZ45: =+VLOOKUP($ER45,'td1'!$AC$134:$AO$155,EZ$2,FALSE) -> 0.9212104072 | FA45: =+VLOOKUP($ER45,'td1'!$AC$134:$AO$155,FA$2,FALSE) -> 0.9 | FB45: =+VLOOKUP($ER45,'td1'!$AC$134:$AO$155,FB$2,FALSE) -> 0.9162412993 | FC45: =+VLOOKUP($ER45,'td1'!$AC$134:$AO$155,FC$2,FALSE) ->  | FD45: =+VLOOKUP($ER45,'td1'!$AC$134:$AO$155,FD$2,FALSE) ->  | FE45: =+VLOOKUP($ER45,'td1'!$AC$134:$AO$155,FE$2,FALSE) ->  | FH45: -0.002098297364 | FI45: 0.004023058309 | FJ45: -0.02807932533 | FK45: 0.007917907139 | FL45: 0.05345646019 | FM45: -0.02404234827 | FN45: -0.02356711916 | FO45: 0.01772600658 | FY45: 0.03458324459 | FZ45: 3.223429242 | GA45: -0.02016492165 | GB45: -0.02959610028
A46: A8_1 | B46: =+VLOOKUP(C46,'td1'!$AC$5:$AO$4140,$G$2,FALSE) ->  | C46: A8 | CJ46: Gestión Regional | CK46: A8 | CL46: =+'como vamos'!DJ44 -> 0.84 | CM46: =+'como vamos'!DK44 -> 0.84 | CN46: 1 | ER46: A11.D | ES46: Tecnología | ET46: =+VLOOKUP($ER46,'td1'!$AC$134:$AO$155,ET$2,FALSE) -> 1 | EU46: =+VLOOKUP($ER46,'td1'!$AC$134:$AO$155,EU$2,FALSE) -> 0.9 | EV46: =+VLOOKUP($ER46,'td1'!$AC$134:$AO$155,EV$2,FALSE) -> 0.9865299061 | EW46: =+VLOOKUP($ER46,'td1'!$AC$134:$AO$155,EW$2,FALSE) -> 0.9 | EX46: =+VLOOKUP($ER46,'td1'!$AC$134:$AO$155,EX$2,FALSE) -> 1 | EY46: =+VLOOKUP($ER46,'td1'!$AC$134:$AO$155,EY$2,FALSE) -> 0.8869995057 | EZ46: =+VLOOKUP($ER46,'td1'!$AC$134:$AO$155,EZ$2,FALSE) -> 1 | FA46: =+VLOOKUP($ER46,'td1'!$AC$134:$AO$155,FA$2,FALSE) -> 0.9 | FB46: =+VLOOKUP($ER46,'td1'!$AC$134:$AO$155,FB$2,FALSE) -> 0.9717498764 | FC46: =+VLOOKUP($ER46,'td1'!$AC$134:$AO$155,FC$2,FALSE) ->  | FD46: =+VLOOKUP($ER46,'td1'!$AC$134:$AO$155,FD$2,FALSE) ->  | FE46: =+VLOOKUP($ER46,'td1'!$AC$134:$AO$155,FE$2,FALSE) ->  | FH46: -0.1111111111 | FI46: 0.0877113867 | FJ46: -0.09614434009 | FK46: 0.1 | FL46: -0.1273963442 | FM46: 0.1130004943 | FN46: -0.1111111111 | FO46: 0.07383574535 | FY46: -0.1122102095 | FZ46: 2.127396344 | GA46: 2.017004449 | GB46: 0.08721418216
A47: A9_1 | B47: =+VLOOKUP(C47,'td1'!$AC$5:$AO$4140,$G$2,FALSE) -> 1 | C47: A9 | CJ47: Cooperación | CK47: A9 | CL47: =+'como vamos'!DJ45 -> 0.9125 | CM47: =+'como vamos'!DK45 -> 0.9125 | CN47: 1 | ER47: A12.D | ES47: Comunicaciones | ET47: =+VLOOKUP($ER47,'td1'!$AC$134:$AO$155,ET$2,FALSE) ->  | EU47: =+VLOOKUP($ER47,'td1'!$AC$134:$AO$155,EU$2,FALSE) ->  | EV47: =+VLOOKUP($ER47,'td1'!$AC$134:$AO$155,EV$2,FALSE) -> 1 | EW47: =+VLOOKUP($ER47,'td1'!$AC$134:$AO$155,EW$2,FALSE) ->  | EX47: =+VLOOKUP($ER47,'td1'!$AC$134:$AO$155,EX$2,FALSE) ->  | EY47: =+VLOOKUP($ER47,'td1'!$AC$134:$AO$155,EY$2,FALSE) -> 0.9609375 | EZ47: =+VLOOKUP($ER47,'td1'!$AC$134:$AO$155,EZ$2,FALSE) ->  | FA47: =+VLOOKUP($ER47,'td1'!$AC$134:$AO$155,FA$2,FALSE) ->  | FB47: =+VLOOKUP($ER47,'td1'!$AC$134:$AO$155,FB$2,FALSE) -> 1 | FC47: =+VLOOKUP($ER47,'td1'!$AC$134:$AO$155,FC$2,FALSE) ->  | FD47: =+VLOOKUP($ER47,'td1'!$AC$134:$AO$155,FD$2,FALSE) ->  | FE47: =+VLOOKUP($ER47,'td1'!$AC$134:$AO$155,FE$2,FALSE) ->  | FY47: -0.0406504065 | GB47: 0.0390625
A48: A10_1 | B48: =+VLOOKUP(C48,'td1'!$AC$5:$AO$4140,$G$2,FALSE) -> 0.8883769199 | C48: A10 | CJ48: Comunicaciones | CK48: A12 | CL48: =+'como vamos'!DJ48 -> 0.76953125 | CM48: =+'como vamos'!DK48 -> 0.76953125 | CN48: 1 | ER48: A13.D | ES48: Planeación | ET48: =+VLOOKUP($ER48,'td1'!$AC$134:$AO$155,ET$2,FALSE) ->  | EU48: =+VLOOKUP($ER48,'td1'!$AC$134:$AO$155,EU$2,FALSE) -> 1 | EV48: =+VLOOKUP($ER48,'td1'!$AC$134:$AO$155,EV$2,FALSE) -> 0.9696521095 | EW48: =+VLOOKUP($ER48,'td1'!$AC$134:$AO$155,EW$2,FALSE) -> 0.9674917984 | EX48: =+VLOOKUP($ER48,'td1'!$AC$134:$AO$155,EX$2,FALSE) -> 1 | EY48: =+VLOOKUP($ER48,'td1'!$AC$134:$AO$155,EY$2,FALSE) -> 0.9733333333 | EZ48: =+VLOOKUP($ER48,'td1'!$AC$134:$AO$155,EZ$2,FALSE) -> 1 | FA48: =+VLOOKUP($ER48,'td1'!$AC$134:$AO$155,FA$2,FALSE) -> 0.976412032 | FB48: =+VLOOKUP($ER48,'td1'!$AC$134:$AO$155,FB$2,FALSE) -> 0.9733333333 | FC48: =+VLOOKUP($ER48,'td1'!$AC$134:$AO$155,FC$2,FALSE) ->  | FD48: =+VLOOKUP($ER48,'td1'!$AC$134:$AO$155,FD$2,FALSE) ->  | FE48: =+VLOOKUP($ER48,'td1'!$AC$134:$AO$155,FE$2,FALSE) ->  | FI48: -0.03129770992 | FJ48: -0.002232898679 | FK48: 0.03250820161 | FL48: -0.02739726027 | FM48: 0.02666666667 | FN48: -0.02415780142 | FO48: -0.003163046604 | FY48: 0.003782079231 | FZ48: 2.02739726 | GA48: 2.103853211 | GB48: 0
A49: A11_1 | B49: =+VLOOKUP(C49,'td1'!$AC$5:$AO$4140,$G$2,FALSE) -> 0.8822900993 | C49: A11 | CJ49: Control Interno | CK49: A15 | CL49: =+'como vamos'!DJ51 -> 1 | CM49: =+'como vamos'!DK51 -> 0.875 | CN49: 0.875 | ER49: A14.D | ES49: SNBF | ET49: =+VLOOKUP($ER49,'td1'!$AC$134:$AO$155,ET$2,FALSE) ->  | EU49: =+VLOOKUP($ER49,'td1'!$AC$134:$AO$155,EU$2,FALSE) ->  | EV49: =+VLOOKUP($ER49,'td1'!$AC$134:$AO$155,EV$2,FALSE) -> 1 | EW49: =+VLOOKUP($ER49,'td1'!$AC$134:$AO$155,EW$2,FALSE) ->  | EX49: =+VLOOKUP($ER49,'td1'!$AC$134:$AO$155,EX$2,FALSE) ->  | EY49: =+VLOOKUP($ER49,'td1'!$AC$134:$AO$155,EY$2,FALSE) -> 0.9876270437 | EZ49: =+VLOOKUP($ER49,'td1'!$AC$134:$AO$155,EZ$2,FALSE) ->  | FA49: =+VLOOKUP($ER49,'td1'!$AC$134:$AO$155,FA$2,FALSE) ->  | FB49: =+VLOOKUP($ER49,'td1'!$AC$134:$AO$155,FB$2,FALSE) -> 1 | FC49: =+VLOOKUP($ER49,'td1'!$AC$134:$AO$155,FC$2,FALSE) ->  | FD49: =+VLOOKUP($ER49,'td1'!$AC$134:$AO$155,FD$2,FALSE) ->  | FE49: =+VLOOKUP($ER49,'td1'!$AC$134:$AO$155,FE$2,FALSE) ->  | FY49: -0.01252796421 | GB49: 0.01237295625
A50: A12_1 | B50: =+VLOOKUP(C50,'td1'!$AC$5:$AO$4140,$G$2,FALSE) -> 1 | C50: A12 | CJ50: Aseguramiento | CK50: A16 | CL50: =+'como vamos'!DJ52 -> 0.95 | CM50: =+'como vamos'!DK52 -> 0.7953333333 | CN50: 0.8371929825 | ER50: A15.D | ES50: Control Interno | ET50: =+VLOOKUP($ER50,'td1'!$AC$134:$AO$155,ET$2,FALSE) ->  | EU50: =+VLOOKUP($ER50,'td1'!$AC$134:$AO$155,EU$2,FALSE) ->  | EV50: =+VLOOKUP($ER50,'td1'!$AC$134:$AO$155,EV$2,FALSE) -> 0.95 | EW50: =+VLOOKUP($ER50,'td1'!$AC$134:$AO$155,EW$2,FALSE) ->  | EX50: =+VLOOKUP($ER50,'td1'!$AC$134:$AO$155,EX$2,FALSE) ->  | EY50: =+VLOOKUP($ER50,'td1'!$AC$134:$AO$155,EY$2,FALSE) -> 0.95 | EZ50: =+VLOOKUP($ER50,'td1'!$AC$134:$AO$155,EZ$2,FALSE) ->  | FA50: =+VLOOKUP($ER50,'td1'!$AC$134:$AO$155,FA$2,FALSE) ->  | FB50: =+VLOOKUP($ER50,'td1'!$AC$134:$AO$155,FB$2,FALSE) -> 0.875 | FC50: =+VLOOKUP($ER50,'td1'!$AC$134:$AO$155,FC$2,FALSE) ->  | FD50: =+VLOOKUP($ER50,'td1'!$AC$134:$AO$155,FD$2,FALSE) ->  | FE50: =+VLOOKUP($ER50,'td1'!$AC$134:$AO$155,FE$2,FALSE) ->  | FY50: 0 | GB50: -0.08571428571
A51: A13_1 | B51: =+VLOOKUP(C51,'td1'!$AC$5:$AO$4140,$G$2,FALSE) -> 0.9678042813 | C51: A13 | CI51: ICBF | CL51: =+'como vamos'!DJ53 -> 0.8071662638 | CM51: =+'como vamos'!DK53 -> 0.7650611392 | CN51: 0.9478358716 | ER51: A16.D | ES51: Aseguramiento | ET51: =+VLOOKUP($ER51,'td1'!$AC$134:$AO$155,ET$2,FALSE) ->  | EU51: =+VLOOKUP($ER51,'td1'!$AC$134:$AO$155,EU$2,FALSE) ->  | EV51: =+VLOOKUP($ER51,'td1'!$AC$134:$AO$155,EV$2,FALSE) -> 0.95 | EW51: =+VLOOKUP($ER51,'td1'!$AC$134:$AO$155,EW$2,FALSE) ->  | EX51: =+VLOOKUP($ER51,'td1'!$AC$134:$AO$155,EX$2,FALSE) ->  | EY51: =+VLOOKUP($ER51,'td1'!$AC$134:$AO$155,EY$2,FALSE) -> 1 | EZ51: =+VLOOKUP($ER51,'td1'!$AC$134:$AO$155,EZ$2,FALSE) ->  | FA51: =+VLOOKUP($ER51,'td1'!$AC$134:$AO$155,FA$2,FALSE) ->  | FB51: =+VLOOKUP($ER51,'td1'!$AC$134:$AO$155,FB$2,FALSE) -> 0.8333333333 | FC51: =+VLOOKUP($ER51,'td1'!$AC$134:$AO$155,FC$2,FALSE) ->  | FD51: =+VLOOKUP($ER51,'td1'!$AC$134:$AO$155,FD$2,FALSE) ->  | FE51: =+VLOOKUP($ER51,'td1'!$AC$134:$AO$155,FE$2,FALSE) ->  | FY51: 0.05 | GB51: -0.2
A52: A14_1 | B52: =+VLOOKUP(C52,'td1'!$AC$5:$AO$4140,$G$2,FALSE) -> 0.9224590164 | C52: A14 | ER52: A17.D | ES52: Sub General | ET52: =+VLOOKUP($ER52,'td1'!$AC$134:$AO$155,ET$2,FALSE) ->  | EU52: =+VLOOKUP($ER52,'td1'!$AC$134:$AO$155,EU$2,FALSE) ->  | EV52: =+VLOOKUP($ER52,'td1'!$AC$134:$AO$155,EV$2,FALSE) -> 0.3 | EW52: =+VLOOKUP($ER52,'td1'!$AC$134:$AO$155,EW$2,FALSE) ->  | EX52: =+VLOOKUP($ER52,'td1'!$AC$134:$AO$155,EX$2,FALSE) ->  | EY52: =+VLOOKUP($ER52,'td1'!$AC$134:$AO$155,EY$2,FALSE) -> 1 | EZ52: =+VLOOKUP($ER52,'td1'!$AC$134:$AO$155,EZ$2,FALSE) ->  | FA52: =+VLOOKUP($ER52,'td1'!$AC$134:$AO$155,FA$2,FALSE) ->  | FB52: =+VLOOKUP($ER52,'td1'!$AC$134:$AO$155,FB$2,FALSE) -> 0.3 | FC52: =+VLOOKUP($ER52,'td1'!$AC$134:$AO$155,FC$2,FALSE) ->  | FD52: =+VLOOKUP($ER52,'td1'!$AC$134:$AO$155,FD$2,FALSE) ->  | FE52: =+VLOOKUP($ER52,'td1'!$AC$134:$AO$155,FE$2,FALSE) ->  | FY52: 0.7 | GB52: -2.333333333
A53: A15_1 | B53: =+VLOOKUP(C53,'td1'!$AC$5:$AO$4140,$G$2,FALSE) -> 0.875 | C53: A15
A54: A16_1 | B54: =+VLOOKUP(C54,'td1'!$AC$5:$AO$4140,$G$2,FALSE) -> 0.8333333333 | C54: A16
A55: A17_1 | B55: =+VLOOKUP(C55,'td1'!$AC$5:$AO$4140,$G$2,FALSE) -> 0.3834127741 | C55: A17
A56: TC_1 | B56: =+VLOOKUP(C56,'td1'!$AC$5:$AO$4140,$G$2,FALSE) -> 0.9378729064 | C56: TC
A57: SIGE1 | B57: =+VLOOKUP(C57,'td1'!$AC$5:$AO$4140,$G$2,FALSE) -> 0.9553106971 | C57: SIGE1
A58: SIGE2 | B58: =+VLOOKUP(C58,'td1'!$AC$5:$AO$4140,$G$2,FALSE) -> 0.9835464334 | C58: SIGE2 | L58: =+G5 -> 73
A59: SIGE3 | B59: =+VLOOKUP(C59,'td1'!$AC$5:$AO$4140,$G$2,FALSE) -> 0.9693895871 | C59: SIGE3 | L59: Graficas reg | AM59: 4 | AN59: 5 | AO59: 6 | AP59: 7 | AQ59: 8 | AR59: 9 | AS59: 10 | AT59: 11 | AU59: 12 | AV59: 13 | AW59: 14 | AX59: 15 | CU59: Regional | CV59: Centro zonal | DG59: 2 | DH59: 3 | DI59: 4 | DJ59: 5 | DK59: 6 | DL59: 7 | DM59: 8 | DN59: 9 | DO59: 10 | DP59: 11 | DQ59: 12 | DR59: 13 | ES59: centro zonales | ET59: 2 | EU59: 3 | EV59: 4 | EW59: 5 | EX59: 6 | EY59: 7 | EZ59: 8 | FA59: 9 | FB59: 10 | FC59: 11 | FD59: 12 | FE59: 13 | HS59: 2 | HT59: 3 | HU59: 4 | HV59: 5 | HW59: 6 | HX59: 7 | HY59: 8 | HZ59: 9 | IA59: 10 | IB59: 11 | IC59: 12 | ID59: 13
A60: SIGE4 | B60: =+VLOOKUP(C60,'td1'!$AC$5:$AO$4140,$G$2,FALSE) -> 0.973969483 | C60: SIGE4 | L60: avance total | O60: Mapa Estrategico | T60: Mapa de Procesos | W60: Lineas de Politica | AB60: Áreas | AE60: Objetivos SIGE | AL60: Historicos | AM60: 2 | AN60: 3 | AO60: 4 | AP60: 5 | AQ60: 6 | AR60: 7 | AS60: 8 | AT60: 9 | AU60: 10 | AV60: 11 | AW60: 12 | AX60: 13 | BO60: 2 | BP60: 3 | BQ60: 4 | BR60: 5 | BS60: 6 | BT60: 7 | BU60: 8 | BV60: 9 | BW60: 10 | BX60: 11 | BY60: 12 | BZ60: 13 | CF60: ranking regional | CR60: =+CT60&CV60 -> AntioquiaCZ Integral Nororiental | CS60: 1 | CT60: Antioquia | CU60: 501 | CV60: CZ Integral Nororiental | CW60: =+VLOOKUP("tc."&CU60,'td1'!$AC$2673:$AO$2881,$G$2,FALSE) -> 0.9281767956 | CY60: =+CT60&CS60 -> Antioquia1 | CZ60: 516 | DA60: CZ Magdalena Medio | DB60: 0.9834217507 | DG60: Ene | DH60: Feb | DI60: Mar | DJ60: Abr | DK60: May | DL60: Jun | DM60: Jul | DN60: Agt | DO60: Sep | DP60: Oct | DQ60: Nov | DR60: Dic | ES60: =+Menu!K49 ->  | ET60: Ene | EU60: Feb | EV60: Mar | EW60: Abr | EX60: May | EY60: Jun | EZ60: Jul | FA60: Agt | FB60: Sep | FC60: Oct | FD60: Nov | FE60: Dic | FO60: 1 | FP60: 2 | FQ60: 3 | FR60: 4 | FS60: 5 | FT60: 6 | FU60: 7 | FV60: 8 | FW60: 9 | FX60: 10 | FY60: 11 | FZ60: 12 | GA60: 13 | GB60: 14 | GC60: 15 | GD60: 16 | GE60: 17 | HF60: Plan de Acción | HS60: Tablero de Control
A61: SIGE5 | B61: =+VLOOKUP(C61,'td1'!$AC$5:$AO$4140,$G$2,FALSE) -> 0.9325364855 | C61: SIGE5 | L61: grafico 1 | O61: grafico 2 | Q61: grafico 3 | T61: grafico 4 | W61: grafico 5 | Y61: grafico 6 | AB61: grafico 7 | AE61: grafico 8 | AL61: TC | AM61: Ene | AN61: Feb | AO61: Mar | AP61: Abr | AQ61: May | AR61: Jun | AS61: Jul | AT61: Agt | AU61: Sep | AV61: Oct | AW61: Nov | AX61: Dic | BA61: Ene | BB61: Feb | BC61: Mar | BD61: Abr | BE61: May | BF61: Jun | BG61: Jul | BH61: Agt | BI61: Sep | BJ61: Oct | BK61: Nov | BL61: Dic | BO61: Enero | BP61: Febrero | BQ61: Marzo | BR61: Abril | BS61: Mayo | BT61: Junio | BU61: Julio | BV61: Agosto | BW61: Septiembre | BX61: Octubre | BY61: Noviembre | BZ61: Diciembre | CD61: =+Menu!C7 -> Septiembre | CR61: =+CT61&CV61 -> AntioquiaCZ Integral Noroccidental | CS61: 2 | CT61: Antioquia | CU61: 502 | CV61: CZ Integral Noroccidental | CW61: =+VLOOKUP("tc."&CU61,'td1'!$AC$2673:$AO$2881,$G$2,FALSE) -> 0.9043940126 | CY61: =+CT61&CS61 -> Antioquia2 | CZ61: 515 | DA61: CZ Oriente Medio | DB61: 0.9769891593 | DF61: Gestión misional y de gobierno | DG61: =+IF(VLOOKUP("LP1."&$G$5,'td1'!$AC$1332:$AO$1496,DG$59,FALSE)="",NA(),VLOOKUP("LP1."&$G$5,'td1'!$AC$1332:$AO$1496,DG$59,FALSE)) -> 1 | DH61: =+IF(VLOOKUP("LP1."&$G$5,'td1'!$AC$1332:$AO$1496,DH$59,FALSE)="",NA(),VLOOKUP("LP1."&$G$5,'td1'!$AC$1332:$AO$1496,DH$59,FALSE)) -> 0.9483856401 | DI61: =+IF(VLOOKUP("LP1."&$G$5,'td1'!$AC$1332:$AO$1496,DI$59,FALSE)="",NA(),VLOOKUP("LP1."&$G$5,'td1'!$AC$1332:$AO$1496,DI$59,FALSE)) -> 0.97580718 | DJ61: =+IF(VLOOKUP("LP1."&$G$5,'td1'!$AC$1332:$AO$1496,DJ$59,FALSE)="",NA(),VLOOKUP("LP1."&$G$5,'td1'!$AC$1332:$AO$1496,DJ$59,FALSE)) -> 0.9188519637 | DK61: =+IF(VLOOKUP("LP1."&$G$5,'td1'!$AC$1332:$AO$1496,DK$59,FALSE)="",NA(),VLOOKUP("LP1."&$G$5,'td1'!$AC$1332:$AO$1496,DK$59,FALSE)) -> 0.9887107699 | DL61: =+IF(VLOOKUP("LP1."&$G$5,'td1'!$AC$1332:$AO$1496,DL$59,FALSE)="",NA(),VLOOKUP("LP1."&$G$5,'td1'!$AC$1332:$AO$1496,DL$59,FALSE)) -> 0.979708361 | DM61: =+IF(VLOOKUP("LP1."&$G$5,'td1'!$AC$1332:$AO$1496,DM$59,FALSE)="",NA(),VLOOKUP("LP1."&$G$5,'td1'!$AC$1332:$AO$1496,DM$59,FALSE)) -> 0.96290359 | DN61: =+IF(VLOOKUP("LP1."&$G$5,'td1'!$AC$1332:$AO$1496,DN$59,FALSE)="",NA(),VLOOKUP("LP1."&$G$5,'td1'!$AC$1332:$AO$1496,DN$59,FALSE)) -> 0.979708361 | DO61: =+IF(VLOOKUP("LP1."&$G$5,'td1'!$AC$1332:$AO$1496,DO$59,FALSE)="",NA(),VLOOKUP("LP1."&$G$5,'td1'!$AC$1332:$AO$1496,DO$59,FALSE)) -> 0.9133287765 | DP61: =+IF(VLOOKUP("LP1."&$G$5,'td1'!$AC$1332:$AO$1496,DP$59,FALSE)="",NA(),VLOOKUP("LP1."&$G$5,'td1'!$AC$1332:$AO$1496,DP$59,FALSE)) ->  | DQ61: =+IF(VLOOKUP("LP1."&$G$5,'td1'!$AC$1332:$AO$1496,DQ$59,FALSE)="",NA(),VLOOKUP("LP1."&$G$5,'td1'!$AC$1332:$AO$1496,DQ$59,FALSE)) ->  | DR61: =+IF(VLOOKUP("LP1."&$G$5,'td1'!$AC$1332:$AO$1496,DR$59,FALSE)="",NA(),VLOOKUP("LP1."&$G$5,'td1'!$AC$1332:$AO$1496,DR$59,FALSE)) ->  | ES61: Tablero de control | ET61: =IF(VLOOKUP("tc."&$ES$60,'td1'!$AC$2673:$AO$2881,ET$59,FALSE)="",NA(),VLOOKUP("tc."&$ES$60,'td1'!$AC$2673:$AO$2881,ET$59,FALSE)) ->  | EU61: =IF(VLOOKUP("tc."&$ES$60,'td1'!$AC$2673:$AO$2881,EU$59,FALSE)="",NA(),VLOOKUP("tc."&$ES$60,'td1'!$AC$2673:$AO$2881,EU$59,FALSE)) ->  | EV61: =IF(VLOOKUP("tc."&$ES$60,'td1'!$AC$2673:$AO$2881,EV$59,FALSE)="",NA(),VLOOKUP("tc."&$ES$60,'td1'!$AC$2673:$AO$2881,EV$59,FALSE)) ->  | EW61: =IF(VLOOKUP("tc."&$ES$60,'td1'!$AC$2673:$AO$2881,EW$59,FALSE)="",NA(),VLOOKUP("tc."&$ES$60,'td1'!$AC$2673:$AO$2881,EW$59,FALSE)) ->  | EX61: =IF(VLOOKUP("tc."&$ES$60,'td1'!$AC$2673:$AO$2881,EX$59,FALSE)="",NA(),VLOOKUP("tc."&$ES$60,'td1'!$AC$2673:$AO$2881,EX$59,FALSE)) ->  | EY61: =IF(VLOOKUP("tc."&$ES$60,'td1'!$AC$2673:$AO$2881,EY$59,FALSE)="",NA(),VLOOKUP("tc."&$ES$60,'td1'!$AC$2673:$AO$2881,EY$59,FALSE)) ->  | EZ61: =IF(VLOOKUP("tc."&$ES$60,'td1'!$AC$2673:$AO$2881,EZ$59,FALSE)="",NA(),VLOOKUP("tc."&$ES$60,'td1'!$AC$2673:$AO$2881,EZ$59,FALSE)) ->  | FA61: =IF(VLOOKUP("tc."&$ES$60,'td1'!$AC$2673:$AO$2881,FA$59,FALSE)="",NA(),VLOOKUP("tc."&$ES$60,'td1'!$AC$2673:$AO$2881,FA$59,FALSE)) ->  | FB61: =IF(VLOOKUP("tc."&$ES$60,'td1'!$AC$2673:$AO$2881,FB$59,FALSE)="",NA(),VLOOKUP("tc."&$ES$60,'td1'!$AC$2673:$AO$2881,FB$59,FALSE)) ->  | FC61: =IF(VLOOKUP("tc."&$ES$60,'td1'!$AC$2673:$AO$2881,FC$59,FALSE)="",NA(),VLOOKUP("tc."&$ES$60,'td1'!$AC$2673:$AO$2881,FC$59,FALSE)) ->  | FD61: =IF(VLOOKUP("tc."&$ES$60,'td1'!$AC$2673:$AO$2881,FD$59,FALSE)="",NA(),VLOOKUP("tc."&$ES$60,'td1'!$AC$2673:$AO$2881,FD$59,FALSE)) ->  | FE61: =IF(VLOOKUP("tc."&$ES$60,'td1'!$AC$2673:$AO$2881,FE$59,FALSE)="",NA(),VLOOKUP("tc."&$ES$60,'td1'!$AC$2673:$AO$2881,FE$59,FALSE)) ->  | FO61: cz 1 | FP61: cz 2 | FQ61: cz 3 | FR61: cz 4 | FS61: cz 5 | FT61: cz 6 | FU61: cz 7 | FV61: cz 8 | FW61: cz 9 | FX61: cz 10 | FY61: cz 11 | FZ61: cz 12 | GA61: cz 13 | GB61: cz 14 | GC61: cz 15 | GD61: cz 16 | GE61: cz 17 | GG61: cz 1 | GH61: cz 2 | GI61: cz 3 | GJ61: cz 4 | GK61: cz 5 | GL61: cz 6 | GM61: cz 7 | GN61: cz 8 | GO61: cz 9 | GP61: cz 10 | GQ61: cz 11 | GR61: cz 12 | GS61: cz 13 | GT61: cz 14 | GU61: cz 15 | GV61: cz 16 | GW61: cz 17 | HF61: Enero | HG61: Febrero | HH61: Marzo | HI61: Abril | HJ61: Mayo | HK61: Junio | HL61: Julio | HM61: Agosto | HN61: Septiembre | HO61: Octubre | HP61: Noviembre | HQ61: Diciembre | HS61: Enero | HT61: Febrero | HU61: Marzo | HV61: Abril | HW61: Mayo | HX61: Junio | HY61: Julio | HZ61: Agosto | IA61: Septiembre | IB61: Octubre | IC61: Noviembre | ID61: Diciembre
A62: SIGE6 | B62: =+VLOOKUP(C62,'td1'!$AC$5:$AO$4140,$G$2,FALSE) -> 0.9064059219 | C62: SIGE6 | L62: Tablero de control | M62: =+VLOOKUP(K31&"."&$L$58,'td1'!$AC$5:$AO$4140,$G$2,FALSE) -> 0.9528112595 | O62: PS | P62: =+VLOOKUP(O62&"."&$L$58,'td1'!$AC$5:$AO$4140,$G$2,FALSE) -> 0.9291327836 | Q62: PS1 | R62: =+VLOOKUP(Q62&"."&$L$58,'td1'!$AC$5:$AO$4140,$G$2,FALSE) -> 0.9696404009 | T62: PM1 | U62: =+VLOOKUP(T62&"."&$L$58,'td1'!$AC$5:$AO$4140,$G$2,FALSE) -> 0.8418162458 | W62: LP1 | X62: =+VLOOKUP(W62&"."&$L$58,'td1'!$AC$5:$AO$4140,$G$2,FALSE) -> 0.9133287765 | Y62: LP1-C1 | Z62: =+VLOOKUP(Y62&"."&$L$58,'td1'!$AC$5:$AO$4140,$G$2,FALSE) -> 0.9133287765 | AB62: M1 | AC62: =+VLOOKUP(AB62&"."&$L$58,'td1'!$AC$5:$AO$4140,$G$2,FALSE) -> 0.9696404009 | AE62: SIGE1 | AF62: =+VLOOKUP(AE62&"."&$L$58,'td1'!$AC$5:$AO$4140,$G$2,FALSE) -> 0.9696404009 | AL62: 2016 | AM62: =IF(AM63="","",VLOOKUP($AL61&"."&$L$58,Referencias!$A$147:$O$245,AM$59,FALSE)) -> 0.8370326572 | AN62: =IF(AN63="","",VLOOKUP($AL61&"."&$L$58,Referencias!$A$147:$O$245,AN$59,FALSE)) -> 0.8940523146 | AO62: =IF(AO63="","",VLOOKUP($AL61&"."&$L$58,Referencias!$A$147:$O$245,AO$59,FALSE)) -> 0.8771709764 | AP62: =IF(AP63="","",VLOOKUP($AL61&"."&$L$58,Referencias!$A$147:$O$245,AP$59,FALSE)) -> 0.9094223155 | AQ62: =IF(AQ63="","",VLOOKUP($AL61&"."&$L$58,Referencias!$A$147:$O$245,AQ$59,FALSE)) -> 0.9763577658 | AR62: =IF(AR63="","",VLOOKUP($AL61&"."&$L$58,Referencias!$A$147:$O$245,AR$59,FALSE)) -> 0.9714924417 | AS62: =IF(AS63="","",VLOOKUP($AL61&"."&$L$58,Referencias!$A$147:$O$245,AS$59,FALSE)) -> 0.9664538235 | AT62: =IF(AT63="","",VLOOKUP($AL61&"."&$L$58,Referencias!$A$147:$O$245,AT$59,FALSE)) -> 0.9765449529 | AU62: =IF(AU63="","",VLOOKUP($AL61&"."&$L$58,Referencias!$A$147:$O$245,AU$59,FALSE)) -> 0.9589831382 | AV62: =IF(AV63="","",VLOOKUP($AL61&"."&$L$58,Referencias!$A$147:$O$245,AV$59,FALSE)) ->  | AW62: =IF(AW63="","",VLOOKUP($AL61&"."&$L$58,Referencias!$A$147:$O$245,AW$59,FALSE)) ->  | AX62: =IF(AX63="","",VLOOKUP($AL61&"."&$L$58,Referencias!$A$147:$O$245,AX$59,FALSE)) ->  | AZ62: Tablero de control | BA62: =+IF(AM63="",NA(),AM63) -> 1 | BB62: 0.9538158758 | BC62: 0.9791732378 | BD62: 0.9307654158 | BE62: 0.9873788805 | BF62: 0.9686242641 | BG62: 0.9699173455 | BH62: 0.967432878 | BI62: 0.9528112595 | BM62: 19 | BN62: Cauca | BO62: =+VLOOKUP("PA."&$BM62,'td1'!$AC$281:$AO$313,BO$60,FALSE) -> 1 | BP62: =+VLOOKUP("PA."&$BM62,'td1'!$AC$281:$AO$313,BP$60,FALSE) -> 0.9353797064 | BQ62: =+VLOOKUP("PA."&$BM62,'td1'!$AC$281:$AO$313,BQ$60,FALSE) -> 0.9852247656 | BR62: =+VLOOKUP("PA."&$BM62,'td1'!$AC$281:$AO$313,BR$60,FALSE) -> 0.9788844622 | BS62: =+VLOOKUP("PA."&$BM62,'td1'!$AC$281:$AO$313,BS$60,FALSE) -> 0.981653968 | BT62: =+VLOOKUP("PA."&$BM62,'td1'!$AC$281:$AO$313,BT$60,FALSE) -> 0.9570227232 | BU62: =+VLOOKUP("PA."&$BM62,'td1'!$AC$281:$AO$313,BU$60,FALSE) -> 0.981653968 | BV62: =+VLOOKUP("PA."&$BM62,'td1'!$AC$281:$AO$313,BV$60,FALSE) -> 0.9852247656 | BW62: =+VLOOKUP("PA."&$BM62,'td1'!$AC$281:$AO$313,BW$60,FALSE) -> 0.9872364503 | BX62: =+VLOOKUP("PA."&$BM62,'td1'!$AC$281:$AO$313,BX$60,FALSE) ->  | BY62: =+VLOOKUP("PA."&$BM62,'td1'!$AC$281:$AO$313,BY$60,FALSE) ->  | BZ62: =+VLOOKUP("PA."&$BM62,'td1'!$AC$281:$AO$313,BZ$60,FALSE) ->  | CA62: 2 | CB62: 19 | CC62: Cauca | CD62: =+HLOOKUP($CD$61,$BO$61:$BZ$99,$CA62,FALSE) -> 0.9872364503 | CE62: Pacífico | CF62: Pacífico | CG62: Nariño | CH62: 0.987648415 | CI62: Pacífico1 | CJ62: =+CG62 -> Nariño | CK62: =+CH62 -> 0.987648415 | CL62: pacifico | CM62: =VLOOKUP(CJ62,Referencias!$AB$3:$AE$40,4,FALSE) -> 52 | CR62: AntioquiaCZ Integral Sur Oriental | CS62: 3 | CT62: Antioquia | CU62: 504 | CV62: CZ Integral Sur Oriental | CW62: =+VLOOKUP("tc."&CU62,'td1'!$AC$2673:$AO$2881,$G$2,FALSE) -> 0.940455187 | CY62: Antioquia3 | CZ62: 507 | DA62: CZ Uraba | DB62: 0.9766417512 | DF62: Transparencia, participación y servicio al ciudadano | DG62: =+IF(VLOOKUP("LP2."&$G$5,'td1'!$AC$1332:$AO$1496,DG$59,FALSE)="",NA(),VLOOKUP("LP2."&$G$5,'td1'!$AC$1332:$AO$1496,DG$59,FALSE)) -> 1 | DH62: =+IF(VLOOKUP("LP2."&$G$5,'td1'!$AC$1332:$AO$1496,DH$59,FALSE)="",NA(),VLOOKUP("LP2."&$G$5,'td1'!$AC$1332:$AO$1496,DH$59,FALSE)) -> 0.9 | DI62: =+IF(VLOOKUP("LP2."&$G$5,'td1'!$AC$1332:$AO$1496,DI$59,FALSE)="",NA(),VLOOKUP("LP2."&$G$5,'td1'!$AC$1332:$AO$1496,DI$59,FALSE)) -> 1 | DJ62: =+IF(VLOOKUP("LP2."&$G$5,'td1'!$AC$1332:$AO$1496,DJ$59,FALSE)="",NA(),VLOOKUP("LP2."&$G$5,'td1'!$AC$1332:$AO$1496,DJ$59,FALSE)) -> 1 | DK62: =+IF(VLOOKUP("LP2."&$G$5,'td1'!$AC$1332:$AO$1496,DK$59,FALSE)="",NA(),VLOOKUP("LP2."&$G$5,'td1'!$AC$1332:$AO$1496,DK$59,FALSE)) -> 1 | DL62: =+IF(VLOOKUP("LP2."&$G$5,'td1'!$AC$1332:$AO$1496,DL$59,FALSE)="",NA(),VLOOKUP("LP2."&$G$5,'td1'!$AC$1332:$AO$1496,DL$59,FALSE)) -> 0.9011598588 | DM62: =+IF(VLOOKUP("LP2."&$G$5,'td1'!$AC$1332:$AO$1496,DM$59,FALSE)="",NA(),VLOOKUP("LP2."&$G$5,'td1'!$AC$1332:$AO$1496,DM$59,FALSE)) -> 1 | DN62: =+IF(VLOOKUP("LP2."&$G$5,'td1'!$AC$1332:$AO$1496,DN$59,FALSE)="",NA(),VLOOKUP("LP2."&$G$5,'td1'!$AC$1332:$AO$1496,DN$59,FALSE)) -> 0.9 | DO62: =+IF(VLOOKUP("LP2."&$G$5,'td1'!$AC$1332:$AO$1496,DO$59,FALSE)="",NA(),VLOOKUP("LP2."&$G$5,'td1'!$AC$1332:$AO$1496,DO$59,FALSE)) -> 1 | DP62: =+IF(VLOOKUP("LP2."&$G$5,'td1'!$AC$1332:$AO$1496,DP$59,FALSE)="",NA(),VLOOKUP("LP2."&$G$5,'td1'!$AC$1332:$AO$1496,DP$59,FALSE)) ->  | DQ62: =+IF(VLOOKUP("LP2."&$G$5,'td1'!$AC$1332:$AO$1496,DQ$59,FALSE)="",NA(),VLOOKUP("LP2."&$G$5,'td1'!$AC$1332:$AO$1496,DQ$59,FALSE)) ->  | DR62: =+IF(VLOOKUP("LP2."&$G$5,'td1'!$AC$1332:$AO$1496,DR$59,FALSE)="",NA(),VLOOKUP("LP2."&$G$5,'td1'!$AC$1332:$AO$1496,DR$59,FALSE)) ->  | FL62: =+VLOOKUP(FN62,Referencias!$R$2:$S$34,2,FALSE) -> 52 | FM62: Pacífico | FN62: =+CG62 -> Nariño | FO62: =IFERROR(VLOOKUP($FN62&FO$60,$CY$60:$DB$300,4,FALSE),"") -> 0.9904971872 | FP62: 0.9884983438 | FQ62: 0.9825783972 | FR62: 0.9813494695 | FS62: 0.9769891593 | FT62: 0.966762119 | FU62: 0.963587827 | FV62: 0.7844147446 | GE62: =IFERROR(VLOOKUP($FN62&GE$60,$CY$60:$DB$300,4,FALSE),"") ->  | GG62: =+ IF(FO62="","",IF(FO62>90%,4,IF(FO62>80%,3,IF(FO62>70%,2,1)))) -> 4 | GH62: =+ IF(FP62="","",IF(FP62>90%,4,IF(FP62>80%,3,IF(FP62>70%,2,1)))) -> 4 | GI62: 4 | GJ62: 4 | GK62: 4 | GL62: 4 | GM62: 4 | GN62: 2 | GX62: =+COUNTIF($GG62:$GW62,4) -> 7 | GY62: =+COUNTIF($GG62:$GW62,3) -> 0 | GZ62: =+COUNTIF($GG62:$GW62,2) -> 1 | HA62: =+COUNTIF($GG62:$GW62,1) -> 0 | HD62: =VLOOKUP(HE62,Referencias!$R$2:$S$34,2,FALSE) -> 52 | HE62: =+macroregionales!N11 -> Nariño | HF62: =+macroregionales!O11 -> 0.8849089841 | HG62: =+macroregionales!P11 -> 0.8916145501 | HH62: =+macroregionales!Q11 -> 0.9554235263 | HI62: =+macroregionales!R11 -> 0.9155227902 | HJ62: =+macroregionales!S11 -> 0.9279342522 | HK62: =+macroregionales!T11 -> 0.9650083684 | HL62: =+macroregionales!U11 -> 0.981653968 | HM62: =+macroregionales!V11 -> 0.9813637617 | HN62: =+macroregionales!W11 -> 0.987648415 | HO62: =+macroregionales!X11 ->  | HP62: =+macroregionales!Y11 ->  | HQ62: =+macroregionales!Z11 ->  | HS62: =VLOOKUP("TC."&$HD62,'td1'!$AC$241:$AO$274,HS$59,FALSE) -> 0.9066888836 | HT62: =VLOOKUP("TC."&$HD62,'td1'!$AC$241:$AO$274,HT$59,FALSE) -> 0.9104024368 | HU62: =VLOOKUP("TC."&$HD62,'td1'!$AC$241:$AO$274,HU$59,FALSE) -> 0.9465404613 | HV62: =VLOOKUP("TC."&$HD62,'td1'!$AC$241:$AO$274,HV$59,FALSE) -> 0.9070229392 | HW62: =VLOOKUP("TC."&$HD62,'td1'!$AC$241:$AO$274,HW$59,FALSE) -> 0.9267150879 | HX62: =VLOOKUP("TC."&$HD62,'td1'!$AC$241:$AO$274,HX$59,FALSE) -> 0.9588149178 | HY62: =VLOOKUP("TC."&$HD62,'td1'!$AC$241:$AO$274,HY$59,FALSE) -> 0.9729719057 | HZ62: =VLOOKUP("TC."&$HD62,'td1'!$AC$241:$AO$274,HZ$59,FALSE) -> 0.9722243747 | IA62: =VLOOKUP("TC."&$HD62,'td1'!$AC$241:$AO$274,IA$59,FALSE) -> 0.9704779954 | IB62: =VLOOKUP("TC."&$HD62,'td1'!$AC$241:$AO$274,IB$59,FALSE) ->  | IC62: =VLOOKUP("TC."&$HD62,'td1'!$AC$241:$AO$274,IC$59,FALSE) ->  | ID62: =VLOOKUP("TC."&$HD62,'td1'!$AC$241:$AO$274,ID$59,FALSE) -> 
A63: SIGE7 | B63: =+VLOOKUP(C63,'td1'!$AC$5:$AO$4140,$G$2,FALSE) ->  | C63: SIGE7 | L63: Plan de Acción | M63: =+VLOOKUP(K32&"."&$L$58,'td1'!$AC$5:$AO$4140,$G$2,FALSE) -> 0.9415331412 | Q63: PS2 | R63: =+VLOOKUP(Q63&"."&$L$58,'td1'!$AC$5:$AO$4140,$G$2,FALSE) -> 0.9 | T63: PM2 | U63: =+VLOOKUP(T63&"."&$L$58,'td1'!$AC$5:$AO$4140,$G$2,FALSE) -> 0.9793926681 | W63: LP2 | X63: =+VLOOKUP(W63&"."&$L$58,'td1'!$AC$5:$AO$4140,$G$2,FALSE) -> 1 | Y63: LP2-C2 | Z63: =+VLOOKUP(Y63&"."&$L$58,'td1'!$AC$5:$AO$4140,$G$2,FALSE) -> 1 | AB63: M2 | AC63: =+VLOOKUP(AB63&"."&$L$58,'td1'!$AC$5:$AO$4140,$G$2,FALSE) -> 0.9127811861 | AE63: SIGE2 | AF63: =+VLOOKUP(AE63&"."&$L$58,'td1'!$AC$5:$AO$4140,$G$2,FALSE) -> 0.9127811861 | AL63: 2017 | AM63: =+VLOOKUP($AL61&"."&$L$58,'td1'!$AC$5:$AO$4140,AM$60,FALSE) -> 1 | AN63: =+VLOOKUP($AL61&"."&$L$58,'td1'!$AC$5:$AO$4140,AN$60,FALSE) -> 0.9538158758 | AO63: =+VLOOKUP($AL61&"."&$L$58,'td1'!$AC$5:$AO$4140,AO$60,FALSE) -> 0.9791732378 | AP63: =+VLOOKUP($AL61&"."&$L$58,'td1'!$AC$5:$AO$4140,AP$60,FALSE) -> 0.9307654158 | AQ63: =+VLOOKUP($AL61&"."&$L$58,'td1'!$AC$5:$AO$4140,AQ$60,FALSE) -> 0.9873788805 | AR63: =+VLOOKUP($AL61&"."&$L$58,'td1'!$AC$5:$AO$4140,AR$60,FALSE) -> 0.9686242641 | AS63: =+VLOOKUP($AL61&"."&$L$58,'td1'!$AC$5:$AO$4140,AS$60,FALSE) -> 0.9699173455 | AT63: =+VLOOKUP($AL61&"."&$L$58,'td1'!$AC$5:$AO$4140,AT$60,FALSE) -> 0.967432878 | AU63: =+VLOOKUP($AL61&"."&$L$58,'td1'!$AC$5:$AO$4140,AU$60,FALSE) -> 0.9528112595 | AV63: =+VLOOKUP($AL61&"."&$L$58,'td1'!$AC$5:$AO$4140,AV$60,FALSE) ->  | AW63: =+VLOOKUP($AL61&"."&$L$58,'td1'!$AC$5:$AO$4140,AW$60,FALSE) ->  | AX63: =+VLOOKUP($AL61&"."&$L$58,'td1'!$AC$5:$AO$4140,AX$60,FALSE) ->  | AZ63: Plan de Acción | BA63: =+IF(AM67="",NA(),AM67) -> 1 | BB63: 0.9487597131 | BC63: 0.9839607814 | BD63: 0.9450401048 | BE63: 0.9914390891 | BF63: 0.9650083684 | BG63: 0.9718688468 | BH63: 0.9734831771 | BI63: 0.9415331412 | BM63: 27 | BN63: Chocó | BO63: =+VLOOKUP("PA."&$BM63,'td1'!$AC$281:$AO$313,BO$60,FALSE) -> 0.7188685875 | BP63: =+VLOOKUP("PA."&$BM63,'td1'!$AC$281:$AO$313,BP$60,FALSE) -> 0.8695205479 | BQ63: =+VLOOKUP("PA."&$BM63,'td1'!$AC$281:$AO$313,BQ$60,FALSE) -> 0.8046153846 | BR63: =+VLOOKUP("PA."&$BM63,'td1'!$AC$281:$AO$313,BR$60,FALSE) -> 0.8231052545 | BS63: =+VLOOKUP("PA."&$BM63,'td1'!$AC$281:$AO$313,BS$60,FALSE) -> 0.9567280319 | BT63: =+VLOOKUP("PA."&$BM63,'td1'!$AC$281:$AO$313,BT$60,FALSE) -> 0.8878797952 | BU63: =+VLOOKUP("PA."&$BM63,'td1'!$AC$281:$AO$313,BU$60,FALSE) -> 0.9768598579 | BV63: =+VLOOKUP("PA."&$BM63,'td1'!$AC$281:$AO$313,BV$60,FALSE) -> 0.9775027579 | BW63: =+VLOOKUP("PA."&$BM63,'td1'!$AC$281:$AO$313,BW$60,FALSE) -> 0.9813637617 | BX63: =+VLOOKUP("PA."&$BM63,'td1'!$AC$281:$AO$313,BX$60,FALSE) ->  | BY63: =+VLOOKUP("PA."&$BM63,'td1'!$AC$281:$AO$313,BY$60,FALSE) ->  | BZ63: =+VLOOKUP("PA."&$BM63,'td1'!$AC$281:$AO$313,BZ$60,FALSE) ->  | CA63: 3 | CB63: 27 | CC63: Chocó | CD63: =+HLOOKUP($CD$61,$BO$61:$BZ$99,$CA63,FALSE) -> 0.9813637617 | CE63: =+CE62 -> Pacífico | CG63: Cauca | CH63: 0.9872364503 | CI63: Pacífico2 | CJ63: =+CG63 -> Cauca | CK63: 0.9872364503 | CL63: =+CL62 -> pacifico | CM63: =VLOOKUP(CJ63,Referencias!$AB$3:$AE$40,4,FALSE) -> 19 | CN63: pacifico | CO63: Pacífico | CP63: =+AVERAGE(CK62:CK65) -> 0.959279548 | CR63: AntioquiaCZ Aburra Norte | CS63: 4 | CT63: Antioquia | CU63: 505 | CV63: CZ Aburra Norte | CW63: =+VLOOKUP("tc."&CU63,'td1'!$AC$2673:$AO$2881,$G$2,FALSE) -> 0.9544098143 | CY63: Antioquia4 | CZ63: 514 | DA63: CZ Oriente | DB63: 0.9744323993 | DF63: Gestión del talento humano | DG63: =+IF(VLOOKUP("LP3."&$G$5,'td1'!$AC$1332:$AO$1496,DG$59,FALSE)="",NA(),VLOOKUP("LP3."&$G$5,'td1'!$AC$1332:$AO$1496,DG$59,FALSE)) ->  | DH63: =+IF(VLOOKUP("LP3."&$G$5,'td1'!$AC$1332:$AO$1496,DH$59,FALSE)="",NA(),VLOOKUP("LP3."&$G$5,'td1'!$AC$1332:$AO$1496,DH$59,FALSE)) ->  | DI63: =+IF(VLOOKUP("LP3."&$G$5,'td1'!$AC$1332:$AO$1496,DI$59,FALSE)="",NA(),VLOOKUP("LP3."&$G$5,'td1'!$AC$1332:$AO$1496,DI$59,FALSE)) ->  | DJ63: =+IF(VLOOKUP("LP3."&$G$5,'td1'!$AC$1332:$AO$1496,DJ$59,FALSE)="",NA(),VLOOKUP("LP3."&$G$5,'td1'!$AC$1332:$AO$1496,DJ$59,FALSE)) -> 1 | DK63: =+IF(VLOOKUP("LP3."&$G$5,'td1'!$AC$1332:$AO$1496,DK$59,FALSE)="",NA(),VLOOKUP("LP3."&$G$5,'td1'!$AC$1332:$AO$1496,DK$59,FALSE)) ->  | DL63: =+IF(VLOOKUP("LP3."&$G$5,'td1'!$AC$1332:$AO$1496,DL$59,FALSE)="",NA(),VLOOKUP("LP3."&$G$5,'td1'!$AC$1332:$AO$1496,DL$59,FALSE)) -> 1 | DM63: =+IF(VLOOKUP("LP3."&$G$5,'td1'!$AC$1332:$AO$1496,DM$59,FALSE)="",NA(),VLOOKUP("LP3."&$G$5,'td1'!$AC$1332:$AO$1496,DM$59,FALSE)) ->  | DN63: =+IF(VLOOKUP("LP3."&$G$5,'td1'!$AC$1332:$AO$1496,DN$59,FALSE)="",NA(),VLOOKUP("LP3."&$G$5,'td1'!$AC$1332:$AO$1496,DN$59,FALSE)) -> 0.95 | DO63: =+IF(VLOOKUP("LP3."&$G$5,'td1'!$AC$1332:$AO$1496,DO$59,FALSE)="",NA(),VLOOKUP("LP3."&$G$5,'td1'!$AC$1332:$AO$1496,DO$59,FALSE)) ->  | DP63: =+IF(VLOOKUP("LP3."&$G$5,'td1'!$AC$1332:$AO$1496,DP$59,FALSE)="",NA(),VLOOKUP("LP3."&$G$5,'td1'!$AC$1332:$AO$1496,DP$59,FALSE)) ->  | DQ63: =+IF(VLOOKUP("LP3."&$G$5,'td1'!$AC$1332:$AO$1496,DQ$59,FALSE)="",NA(),VLOOKUP("LP3."&$G$5,'td1'!$AC$1332:$AO$1496,DQ$59,FALSE)) ->  | DR63: =+IF(VLOOKUP("LP3."&$G$5,'td1'!$AC$1332:$AO$1496,DR$59,FALSE)="",NA(),VLOOKUP("LP3."&$G$5,'td1'!$AC$1332:$AO$1496,DR$59,FALSE)) ->  | ET63: =+VLOOKUP(F2,Referencias!AX146:AY157,2,FALSE) -> 11 | FL63: =+VLOOKUP(FN63,Referencias!$R$2:$S$34,2,FALSE) -> 19 | FN63: =+CG63 -> Cauca | FO63: 0.9860627178 | FP63: 0.9843205575 | FQ63: 0.9843205575 | FR63: 0.9834217507 | FS63: 0.9773519164 | FT63: 0.963587827 | FU63: 0.8158928206 | GG63: =+ IF(FO63="","",IF(FO63>90%,4,IF(FO63>80%,3,IF(FO63>70%,2,1)))) -> 4 | GH63: 4 | GI63: 4 | GJ63: 4 | GK63: 4 | GL63: 4 | GM63: 3 | GX63: =+COUNTIF($GG63:$GW63,4) -> 6 | GY63: =+COUNTIF($GG63:$GW63,3) -> 1 | GZ63: =+COUNTIF($GG63:$GW63,2) -> 0 | HA63: =+COUNTIF($GG63:$GW63,1) -> 0 | HD63: =VLOOKUP(HE63,Referencias!$R$2:$S$34,2,FALSE) -> 19 | HE63: =+macroregionales!N12 -> Cauca | HF63: =+macroregionales!O12 -> 1 | HG63: =+macroregionales!P12 -> 0.9353797064 | HH63: =+macroregionales!Q12 -> 0.9852247656 | HI63: =+macroregionales!R12 -> 0.9788844622 | HJ63: =+macroregionales!S12 -> 0.981653968 | HK63: =+macroregionales!T12 -> 0.9570227232 | HL63: =+macroregionales!U12 -> 0.981653968 | HM63: =+macroregionales!V12 -> 0.9852247656 | HN63: =+macroregionales!W12 -> 0.9872364503 | HO63: =+macroregionales!X12 ->  | HP63: =+macroregionales!Y12 ->  | HQ63: =+macroregionales!Z12 ->  | HS63: =VLOOKUP("TC."&$HD63,'td1'!$AC$241:$AO$274,HS$59,FALSE) -> 1 | HT63: =VLOOKUP("TC."&$HD63,'td1'!$AC$241:$AO$274,HT$59,FALSE) -> 0.9430654097 | HU63: =VLOOKUP("TC."&$HD63,'td1'!$AC$241:$AO$274,HU$59,FALSE) -> 0.9692466312 | HV63: =VLOOKUP("TC."&$HD63,'td1'!$AC$241:$AO$274,HV$59,FALSE) -> 0.972773022 | HW63: =VLOOKUP("TC."&$HD63,'td1'!$AC$241:$AO$274,HW$59,FALSE) -> 0.9790832755 | HX63: =VLOOKUP("TC."&$HD63,'td1'!$AC$241:$AO$274,HX$59,FALSE) -> 0.9619879472 | HY63: =VLOOKUP("TC."&$HD63,'td1'!$AC$241:$AO$274,HY$59,FALSE) -> 0.9746987952 | HZ63: =VLOOKUP("TC."&$HD63,'td1'!$AC$241:$AO$274,HZ$59,FALSE) -> 0.9764126654 | IA63: =VLOOKUP("TC."&$HD63,'td1'!$AC$241:$AO$274,IA$59,FALSE) -> 0.9827876451 | IB63: =VLOOKUP("TC."&$HD63,'td1'!$AC$241:$AO$274,IB$59,FALSE) ->  | IC63: =VLOOKUP("TC."&$HD63,'td1'!$AC$241:$AO$274,IC$59,FALSE) ->  | ID63: =VLOOKUP("TC."&$HD63,'td1'!$AC$241:$AO$274,ID$59,FALSE) -> 
A64: SIGE8 | B64: =+VLOOKUP(C64,'td1'!$AC$5:$AO$4140,$G$2,FALSE) ->  | C64: SIGE8 | L64: Plan Indicativo | M64: =+VLOOKUP(K33&"."&$L$58,'td1'!$AC$5:$AO$4140,$G$2,FALSE) -> 0.8907787864 | Q64: PS3 | R64: =+VLOOKUP(Q64&"."&$L$58,'td1'!$AC$5:$AO$4140,$G$2,FALSE) -> 1 | T64: PA1 | U64: =+VLOOKUP(T64&"."&$L$58,'td1'!$AC$5:$AO$4140,$G$2,FALSE) -> 0.983277592 | Y64: LP2-C3 | Z64: =+VLOOKUP(Y64&"."&$L$58,'td1'!$AC$5:$AO$4140,$G$2,FALSE) -> 1 | AB64: M3 | AC64: =+VLOOKUP(AB64&"."&$L$58,'td1'!$AC$5:$AO$4140,$G$2,FALSE) -> 1 | AE64: SIGE3 | AF64: =+VLOOKUP(AE64&"."&$L$58,'td1'!$AC$5:$AO$4140,$G$2,FALSE) -> 1 | AZ64: Plan Indicativo | BA64: =+IF(AM71="",NA(),AM71) -> 1 | BB64: 1 | BC64: 1 | BD64: 0.9740581026 | BE64: 1 | BF64: 0.9299626504 | BG64: 0.9740581026 | BH64: 1 | BI64: 0.8907787864 | BM64: 52 | BN64: Nariño | BO64: =+VLOOKUP("PA."&$BM64,'td1'!$AC$281:$AO$313,BO$60,FALSE) -> 0.8849089841 | BP64: =+VLOOKUP("PA."&$BM64,'td1'!$AC$281:$AO$313,BP$60,FALSE) -> 0.8916145501 | BQ64: =+VLOOKUP("PA."&$BM64,'td1'!$AC$281:$AO$313,BQ$60,FALSE) -> 0.9554235263 | BR64: =+VLOOKUP("PA."&$BM64,'td1'!$AC$281:$AO$313,BR$60,FALSE) -> 0.9155227902 | BS64: =+VLOOKUP("PA."&$BM64,'td1'!$AC$281:$AO$313,BS$60,FALSE) -> 0.9279342522 | BT64: =+VLOOKUP("PA."&$BM64,'td1'!$AC$281:$AO$313,BT$60,FALSE) -> 0.9650083684 | BU64: =+VLOOKUP("PA."&$BM64,'td1'!$AC$281:$AO$313,BU$60,FALSE) -> 0.981653968 | BV64: =+VLOOKUP("PA."&$BM64,'td1'!$AC$281:$AO$313,BV$60,FALSE) -> 0.9813637617 | BW64: =+VLOOKUP("PA."&$BM64,'td1'!$AC$281:$AO$313,BW$60,FALSE) -> 0.987648415 | BX64: =+VLOOKUP("PA."&$BM64,'td1'!$AC$281:$AO$313,BX$60,FALSE) ->  | BY64: =+VLOOKUP("PA."&$BM64,'td1'!$AC$281:$AO$313,BY$60,FALSE) ->  | BZ64: =+VLOOKUP("PA."&$BM64,'td1'!$AC$281:$AO$313,BZ$60,FALSE) ->  | CA64: 4 | CB64: 52 | CC64: Nariño | CD64: 0.987648415 | CE64: =+CE63 -> Pacífico | CG64: Chocó | CH64: 0.9813637617 | CI64: Pacífico3 | CJ64: Chocó | CK64: 0.9813637617 | CL64: =+CL63 -> pacifico | CM64: =VLOOKUP(CJ64,Referencias!$AB$3:$AE$40,4,FALSE) -> 27 | CN64: sur | CO64: Centro Sur | CP64: =+AVERAGE(CK67:CK71) -> 0.9598328714 | CR64: AntioquiaCZ Aburra Sur | CS64: 5 | CT64: Antioquia | CU64: 506 | CV64: CZ Aburra Sur | CW64: =+VLOOKUP("tc."&CU64,'td1'!$AC$2673:$AO$2881,$G$2,FALSE) -> 0.9544098143 | CY64: Antioquia5 | CZ64: 510 | DA64: CZ Bajo Cauca | DB64: 0.9606266578 | DF64: Eficiencia administrativa | DG64: =+IF(VLOOKUP("LP4."&$G$5,'td1'!$AC$1332:$AO$1496,DG$59,FALSE)="",NA(),VLOOKUP("LP4."&$G$5,'td1'!$AC$1332:$AO$1496,DG$59,FALSE)) ->  | DH64: =+IF(VLOOKUP("LP4."&$G$5,'td1'!$AC$1332:$AO$1496,DH$59,FALSE)="",NA(),VLOOKUP("LP4."&$G$5,'td1'!$AC$1332:$AO$1496,DH$59,FALSE)) ->  | DI64: =+IF(VLOOKUP("LP4."&$G$5,'td1'!$AC$1332:$AO$1496,DI$59,FALSE)="",NA(),VLOOKUP("LP4."&$G$5,'td1'!$AC$1332:$AO$1496,DI$59,FALSE)) ->  | DJ64: =+IF(VLOOKUP("LP4."&$G$5,'td1'!$AC$1332:$AO$1496,DJ$59,FALSE)="",NA(),VLOOKUP("LP4."&$G$5,'td1'!$AC$1332:$AO$1496,DJ$59,FALSE)) ->  | DK64: =+IF(VLOOKUP("LP4."&$G$5,'td1'!$AC$1332:$AO$1496,DK$59,FALSE)="",NA(),VLOOKUP("LP4."&$G$5,'td1'!$AC$1332:$AO$1496,DK$59,FALSE)) ->  | DL64: =+IF(VLOOKUP("LP4."&$G$5,'td1'!$AC$1332:$AO$1496,DL$59,FALSE)="",NA(),VLOOKUP("LP4."&$G$5,'td1'!$AC$1332:$AO$1496,DL$59,FALSE)) ->  | DM64: =+IF(VLOOKUP("LP4."&$G$5,'td1'!$AC$1332:$AO$1496,DM$59,FALSE)="",NA(),VLOOKUP("LP4."&$G$5,'td1'!$AC$1332:$AO$1496,DM$59,FALSE)) ->  | DN64: =+IF(VLOOKUP("LP4."&$G$5,'td1'!$AC$1332:$AO$1496,DN$59,FALSE)="",NA(),VLOOKUP("LP4."&$G$5,'td1'!$AC$1332:$AO$1496,DN$59,FALSE)) ->  | DO64: =+IF(VLOOKUP("LP4."&$G$5,'td1'!$AC$1332:$AO$1496,DO$59,FALSE)="",NA(),VLOOKUP("LP4."&$G$5,'td1'!$AC$1332:$AO$1496,DO$59,FALSE)) ->  | DP64: =+IF(VLOOKUP("LP4."&$G$5,'td1'!$AC$1332:$AO$1496,DP$59,FALSE)="",NA(),VLOOKUP("LP4."&$G$5,'td1'!$AC$1332:$AO$1496,DP$59,FALSE)) ->  | DQ64: =+IF(VLOOKUP("LP4."&$G$5,'td1'!$AC$1332:$AO$1496,DQ$59,FALSE)="",NA(),VLOOKUP("LP4."&$G$5,'td1'!$AC$1332:$AO$1496,DQ$59,FALSE)) ->  | DR64: =+IF(VLOOKUP("LP4."&$G$5,'td1'!$AC$1332:$AO$1496,DR$59,FALSE)="",NA(),VLOOKUP("LP4."&$G$5,'td1'!$AC$1332:$AO$1496,DR$59,FALSE)) ->  | ET64: 2016 | EU64: 2017 | FL64: =+VLOOKUP(FN64,Referencias!$R$2:$S$34,2,FALSE) -> 27 | FN64: =+CG64 -> Chocó | FO64: 0.9773872679 | FP64: 0.9637279597 | FQ64: 0.9541128174 | FR64: 0.9450712957 | FS64: 0.9317469971 | GG64: =+ IF(FO64="","",IF(FO64>90%,4,IF(FO64>80%,3,IF(FO64>70%,2,1)))) -> 4 | GH64: 4 | GI64: 4 | GJ64: 4 | GK64: 4 | GX64: 5 | GY64: 0 | GZ64: 0 | HA64: 0 | HD64: =VLOOKUP(HE64,Referencias!$R$2:$S$34,2,FALSE) -> 27 | HE64: =+macroregionales!N13 -> Chocó | HF64: =+macroregionales!O13 -> 0.7188685875 | HG64: =+macroregionales!P13 -> 0.8695205479 | HH64: =+macroregionales!Q13 -> 0.8046153846 | HI64: =+macroregionales!R13 -> 0.8231052545 | HJ64: =+macroregionales!S13 -> 0.9567280319 | HK64: =+macroregionales!T13 -> 0.8878797952 | HL64: =+macroregionales!U13 -> 0.9768598579 | HM64: =+macroregionales!V13 -> 0.9775027579 | HN64: =+macroregionales!W13 -> 0.9813637617 | HO64: =+macroregionales!X13 ->  | HP64: =+macroregionales!Y13 ->  | HQ64: =+macroregionales!Z13 ->  | HS64: =VLOOKUP("TC."&$HD64,'td1'!$AC$241:$AO$274,HS$59,FALSE) -> 0.7802526778 | HT64: =VLOOKUP("TC."&$HD64,'td1'!$AC$241:$AO$274,HT$59,FALSE) -> 0.8247070419 | HU64: =VLOOKUP("TC."&$HD64,'td1'!$AC$241:$AO$274,HU$59,FALSE) -> 0.8437244416 | HV64: =VLOOKUP("TC."&$HD64,'td1'!$AC$241:$AO$274,HV$59,FALSE) -> 0.8172535405 | HW64: =VLOOKUP("TC."&$HD64,'td1'!$AC$241:$AO$274,HW$59,FALSE) -> 0.9415251522 | HX64: =VLOOKUP("TC."&$HD64,'td1'!$AC$241:$AO$274,HX$59,FALSE) -> 0.8991263809 | HY64: =VLOOKUP("TC."&$HD64,'td1'!$AC$241:$AO$274,HY$59,FALSE) -> 0.9671466421 | HZ64: =VLOOKUP("TC."&$HD64,'td1'!$AC$241:$AO$274,HZ$59,FALSE) -> 0.9688358209 | IA64: =VLOOKUP("TC."&$HD64,'td1'!$AC$241:$AO$274,IA$59,FALSE) -> 0.9797041109 | IB64: =VLOOKUP("TC."&$HD64,'td1'!$AC$241:$AO$274,IB$59,FALSE) ->  | IC64: =VLOOKUP("TC."&$HD64,'td1'!$AC$241:$AO$274,IC$59,FALSE) ->  | ID64: =VLOOKUP("TC."&$HD64,'td1'!$AC$241:$AO$274,ID$59,FALSE) -> 
A65: SIGE9 | B65: =+VLOOKUP(C65,'td1'!$AC$5:$AO$4140,$G$2,FALSE) -> 0.9728026964 | C65: SIGE9 | Q65: PS4 | R65: =+VLOOKUP(Q65&"."&$L$58,'td1'!$AC$5:$AO$4140,$G$2,FALSE) -> 0.3 | T65: PA2 | U65: =+VLOOKUP(T65&"."&$L$58,'td1'!$AC$5:$AO$4140,$G$2,FALSE) -> 1 | Y65: LP2-C4 | Z65: =+VLOOKUP(Y65&"."&$L$58,'td1'!$AC$5:$AO$4140,$G$2,FALSE) -> 1 | AB65: M4 | AC65: =+VLOOKUP(AB65&"."&$L$58,'td1'!$AC$5:$AO$4140,$G$2,FALSE) -> 0.3 | AE65: SIGE4 | AF65: =+VLOOKUP(AE65&"."&$L$58,'td1'!$AC$5:$AO$4140,$G$2,FALSE) -> 0.3 | AL65: PA | AM65: Ene | AN65: Feb | AO65: Mar | AP65: Abr | AQ65: May | AR65: Jun | AS65: Jul | AT65: Agt | AU65: Sep | AV65: Oct | AW65: Nov | AX65: Dic | BM65: 76 | BN65: Valle | BO65: =+VLOOKUP("PA."&$BM65,'td1'!$AC$281:$AO$313,BO$60,FALSE) -> 0.7881952077 | BP65: =+VLOOKUP("PA."&$BM65,'td1'!$AC$281:$AO$313,BP$60,FALSE) -> 0.9124696873 | BQ65: =+VLOOKUP("PA."&$BM65,'td1'!$AC$281:$AO$313,BQ$60,FALSE) -> 0.9174853956 | BR65: =+VLOOKUP("PA."&$BM65,'td1'!$AC$281:$AO$313,BR$60,FALSE) -> 0.8559838335 | BS65: =+VLOOKUP("PA."&$BM65,'td1'!$AC$281:$AO$313,BS$60,FALSE) -> 0.91315812 | BT65: =+VLOOKUP("PA."&$BM65,'td1'!$AC$281:$AO$313,BT$60,FALSE) -> 0.9514168639 | BU65: =+VLOOKUP("PA."&$BM65,'td1'!$AC$281:$AO$313,BU$60,FALSE) -> 0.8935878778 | BV65: =+VLOOKUP("PA."&$BM65,'td1'!$AC$281:$AO$313,BV$60,FALSE) -> 0.9540195808 | BW65: =+VLOOKUP("PA."&$BM65,'td1'!$AC$281:$AO$313,BW$60,FALSE) -> 0.8808695652 | BX65: =+VLOOKUP("PA."&$BM65,'td1'!$AC$281:$AO$313,BX$60,FALSE) ->  | BY65: =+VLOOKUP("PA."&$BM65,'td1'!$AC$281:$AO$313,BY$60,FALSE) ->  | BZ65: =+VLOOKUP("PA."&$BM65,'td1'!$AC$281:$AO$313,BZ$60,FALSE) ->  | CA65: 5 | CB65: 76 | CC65: Valle | CD65: 0.8808695652 | CE65: =+CE64 -> Pacífico | CG65: Valle | CH65: 0.8808695652 | CI65: Pacífico4 | CJ65: Valle | CK65: 0.8808695652 | CL65: =+CL64 -> pacifico | CM65: =VLOOKUP(CJ65,Referencias!$AB$3:$AE$40,4,FALSE) -> 76 | CN65: llanos | CO65: Llanos | CP65: =+AVERAGE(CK73:CK79) -> 0.934879962 | CR65: AntioquiaCZ Bajo Cauca | CS65: 6 | CT65: Antioquia | CU65: 507 | CV65: CZ Bajo Cauca | CW65: =+VLOOKUP("tc."&CU65,'td1'!$AC$2673:$AO$2881,$G$2,FALSE) -> 0.9606266578 | CY65: Antioquia6 | CZ65: 509 | DA65: CZ Aburra Norte | DB65: 0.9544098143 | DF65: Gestión financiera | DG65: =+IF(VLOOKUP("LP5."&$G$5,'td1'!$AC$1332:$AO$1496,DG$59,FALSE)="",NA(),VLOOKUP("LP5."&$G$5,'td1'!$AC$1332:$AO$1496,DG$59,FALSE)) -> 1 | DH65: =+IF(VLOOKUP("LP5."&$G$5,'td1'!$AC$1332:$AO$1496,DH$59,FALSE)="",NA(),VLOOKUP("LP5."&$G$5,'td1'!$AC$1332:$AO$1496,DH$59,FALSE)) -> 1 | DI65: =+IF(VLOOKUP("LP5."&$G$5,'td1'!$AC$1332:$AO$1496,DI$59,FALSE)="",NA(),VLOOKUP("LP5."&$G$5,'td1'!$AC$1332:$AO$1496,DI$59,FALSE)) -> 1 | DJ65: =+IF(VLOOKUP("LP5."&$G$5,'td1'!$AC$1332:$AO$1496,DJ$59,FALSE)="",NA(),VLOOKUP("LP5."&$G$5,'td1'!$AC$1332:$AO$1496,DJ$59,FALSE)) -> 1 | DK65: =+IF(VLOOKUP("LP5."&$G$5,'td1'!$AC$1332:$AO$1496,DK$59,FALSE)="",NA(),VLOOKUP("LP5."&$G$5,'td1'!$AC$1332:$AO$1496,DK$59,FALSE)) -> 1 | DL65: =+IF(VLOOKUP("LP5."&$G$5,'td1'!$AC$1332:$AO$1496,DL$59,FALSE)="",NA(),VLOOKUP("LP5."&$G$5,'td1'!$AC$1332:$AO$1496,DL$59,FALSE)) -> 1 | DM65: =+IF(VLOOKUP("LP5."&$G$5,'td1'!$AC$1332:$AO$1496,DM$59,FALSE)="",NA(),VLOOKUP("LP5."&$G$5,'td1'!$AC$1332:$AO$1496,DM$59,FALSE)) -> 1 | DN65: =+IF(VLOOKUP("LP5."&$G$5,'td1'!$AC$1332:$AO$1496,DN$59,FALSE)="",NA(),VLOOKUP("LP5."&$G$5,'td1'!$AC$1332:$AO$1496,DN$59,FALSE)) -> 1 | DO65: =+IF(VLOOKUP("LP5."&$G$5,'td1'!$AC$1332:$AO$1496,DO$59,FALSE)="",NA(),VLOOKUP("LP5."&$G$5,'td1'!$AC$1332:$AO$1496,DO$59,FALSE)) -> 1 | DP65: =+IF(VLOOKUP("LP5."&$G$5,'td1'!$AC$1332:$AO$1496,DP$59,FALSE)="",NA(),VLOOKUP("LP5."&$G$5,'td1'!$AC$1332:$AO$1496,DP$59,FALSE)) ->  | DQ65: =+IF(VLOOKUP("LP5."&$G$5,'td1'!$AC$1332:$AO$1496,DQ$59,FALSE)="",NA(),VLOOKUP("LP5."&$G$5,'td1'!$AC$1332:$AO$1496,DQ$59,FALSE)) ->  | DR65: =+IF(VLOOKUP("LP5."&$G$5,'td1'!$AC$1332:$AO$1496,DR$59,FALSE)="",NA(),VLOOKUP("LP5."&$G$5,'td1'!$AC$1332:$AO$1496,DR$59,FALSE)) ->  | ER65: =+regional!P41 -> 7309 | ES65: =zonal!E17 -> CZ Purificacion | ET65: =+IFERROR(VLOOKUP(ER65,Referencias!$AI$146:$AV$354,$ET$63,FALSE),"") -> 0.8894937675 | EU65: =+zonal!G17 -> 1 | FL65: =+VLOOKUP(FN65,Referencias!$R$2:$S$34,2,FALSE) -> 76 | FN65: =+CG65 -> Valle | FO65: 1 | FP65: 0.9773316062 | FQ65: 0.9758015729 | FR65: 0.9689157825 | FS65: 0.964205359 | FT65: 0.9360809982 | FU65: 0.900652283 | FV65: 0.8372921186 | FW65: 0.8363673553 | FX65: 0.8182954226 | FY65: 0.8031090202 | FZ65: 0.7825726905 | GA65: 0.7753351206 | GB65: 0.7548030916 | GG65: =+ IF(FO65="","",IF(FO65>90%,4,IF(FO65>80%,3,IF(FO65>70%,2,1)))) -> 4 | GH65: 4 | GI65: 4 | GJ65: 4 | GK65: 4 | GL65: 4 | GM65: 4 | GN65: 3 | GO65: 3 | GP65: 3 | GQ65: 3 | GR65: 2 | GS65: 2 | GT65: 2 | GX65: 7 | GY65: 4 | GZ65: 3 | HA65: 0 | HD65: =VLOOKUP(HE65,Referencias!$R$2:$S$34,2,FALSE) -> 76 | HE65: =+macroregionales!N14 -> Valle | HF65: =+macroregionales!O14 -> 0.7881952077 | HG65: =+macroregionales!P14 -> 0.9124696873 | HH65: =+macroregionales!Q14 -> 0.9174853956 | HI65: =+macroregionales!R14 -> 0.8559838335 | HJ65: =+macroregionales!S14 -> 0.91315812 | HK65: =+macroregionales!T14 -> 0.9514168639 | HL65: =+macroregionales!U14 -> 0.8935878778 | HM65: =+macroregionales!V14 -> 0.9540195808 | HN65: =+macroregionales!W14 -> 0.8808695652 | HO65: =+macroregionales!X14 ->  | HP65: =+macroregionales!Y14 ->  | HQ65: =+macroregionales!Z14 ->  | HS65: =VLOOKUP("TC."&$HD65,'td1'!$AC$241:$AO$274,HS$59,FALSE) -> 0.8150261976 | HT65: =VLOOKUP("TC."&$HD65,'td1'!$AC$241:$AO$274,HT$59,FALSE) -> 0.9159004762 | HU65: =VLOOKUP("TC."&$HD65,'td1'!$AC$241:$AO$274,HU$59,FALSE) -> 0.925844087 | HV65: =VLOOKUP("TC."&$HD65,'td1'!$AC$241:$AO$274,HV$59,FALSE) -> 0.8762208398 | HW65: =VLOOKUP("TC."&$HD65,'td1'!$AC$241:$AO$274,HW$59,FALSE) -> 0.9244954638 | HX65: =VLOOKUP("TC."&$HD65,'td1'!$AC$241:$AO$274,HX$59,FALSE) -> 0.9449905144 | HY65: =VLOOKUP("TC."&$HD65,'td1'!$AC$241:$AO$274,HY$59,FALSE) -> 0.9146696795 | HZ65: =VLOOKUP("TC."&$HD65,'td1'!$AC$241:$AO$274,HZ$59,FALSE) -> 0.9416263441 | IA65: =VLOOKUP("TC."&$HD65,'td1'!$AC$241:$AO$274,IA$59,FALSE) -> 0.9107497709 | IB65: =VLOOKUP("TC."&$HD65,'td1'!$AC$241:$AO$274,IB$59,FALSE) ->  | IC65: =VLOOKUP("TC."&$HD65,'td1'!$AC$241:$AO$274,IC$59,FALSE) ->  | ID65: =VLOOKUP("TC."&$HD65,'td1'!$AC$241:$AO$274,ID$59,FALSE) -> 
A66: SIGE10 | B66: =+VLOOKUP(C66,'td1'!$AC$5:$AO$4140,$G$2,FALSE) -> 1 | C66: SIGE10 | Q66: PS5 | R66: =+VLOOKUP(Q66&"."&$L$58,'td1'!$AC$5:$AO$4140,$G$2,FALSE) -> 0.9786765422 | T66: PA3 | U66: =+VLOOKUP(T66&"."&$L$58,'td1'!$AC$5:$AO$4140,$G$2,FALSE) -> 1 | W66: LP3 | X66: =+VLOOKUP(W66&"."&$L$58,'td1'!$AC$5:$AO$4140,$G$2,FALSE) ->  | Y66: LP3-C3 | Z66: =+VLOOKUP(Y66&"."&$L$58,'td1'!$AC$5:$AO$4140,$G$2,FALSE) ->  | AB66: M5 | AC66: =+VLOOKUP(AB66&"."&$L$58,'td1'!$AC$5:$AO$4140,$G$2,FALSE) -> 0.9793926681 | AE66: SIGE5 | AF66: =+VLOOKUP(AE66&"."&$L$58,'td1'!$AC$5:$AO$4140,$G$2,FALSE) -> 0.9793926681 | AL66: 2016 | AM66: =IF(AM67="","",VLOOKUP($AL65&"."&$L$58,Referencias!$A$147:$O$245,AM$59,FALSE)) -> 0.885249237 | AN66: =IF(AN67="","",VLOOKUP($AL65&"."&$L$58,Referencias!$A$147:$O$245,AN$59,FALSE)) -> 0.9080720884 | AO66: =IF(AO67="","",VLOOKUP($AL65&"."&$L$58,Referencias!$A$147:$O$245,AO$59,FALSE)) -> 0.8457092238 | AP66: =IF(AP67="","",VLOOKUP($AL65&"."&$L$58,Referencias!$A$147:$O$245,AP$59,FALSE)) -> 0.893488669 | AQ66: =IF(AQ67="","",VLOOKUP($AL65&"."&$L$58,Referencias!$A$147:$O$245,AQ$59,FALSE)) -> 0.9794198139 | AR66: =IF(AR67="","",VLOOKUP($AL65&"."&$L$58,Referencias!$A$147:$O$245,AR$59,FALSE)) -> 0.9814486553 | AS66: =IF(AS67="","",VLOOKUP($AL65&"."&$L$58,Referencias!$A$147:$O$245,AS$59,FALSE)) -> 0.9628078818 | AT66: =IF(AT67="","",VLOOKUP($AL65&"."&$L$58,Referencias!$A$147:$O$245,AT$59,FALSE)) -> 0.9761168749 | AU66: =IF(AU67="","",VLOOKUP($AL65&"."&$L$58,Referencias!$A$147:$O$245,AU$59,FALSE)) -> 0.9636084284 | AV66: =IF(AV67="","",VLOOKUP($AL65&"."&$L$58,Referencias!$A$147:$O$245,AV$59,FALSE)) ->  | AW66: =IF(AW67="","",VLOOKUP($AL65&"."&$L$58,Referencias!$A$147:$O$245,AW$59,FALSE)) ->  | AX66: =IF(AX67="","",VLOOKUP($AL65&"."&$L$58,Referencias!$A$147:$O$245,AX$59,FALSE)) ->  | CA66: 6 | CN66: cafetero | CO66: Eje Cafetero | CP66: =+AVERAGE(CK81:CK84) -> 0.9683544531 | CR66: AntioquiaCZ La Meseta | CS66: 7 | CT66: Antioquia | CU66: 508 | CV66: CZ La Meseta | CW66: =+VLOOKUP("tc."&CU66,'td1'!$AC$2673:$AO$2881,$G$2,FALSE) -> 0.819554101 | CY66: Antioquia7 | CZ66: 505 | DA66: CZ Aburra Sur | DB66: 0.9544098143 | ER66: =+regional!P42 -> 7312 | ES66: =zonal!E18 -> CZ Melgar | ET66: =+IFERROR(VLOOKUP(ER66,Referencias!$AI$146:$AV$354,$ET$63,FALSE),"") -> 1 | EU66: =+zonal!G18 -> 1
A67: pacifico | B67: =+CP63 -> 0.959279548 | O67: PP | P67: =+VLOOKUP(O67&"."&$L$58,'td1'!$AC$5:$AO$4140,$G$2,FALSE) -> 0.9891472868 | Q67: PP1 | R67: =+VLOOKUP(Q67&"."&$L$58,'td1'!$AC$5:$AO$4140,$G$2,FALSE) -> 0.9839222615 | T67: PA4 | U67: =+VLOOKUP(T67&"."&$L$58,'td1'!$AC$5:$AO$4140,$G$2,FALSE) ->  | Y67: LP3-C4 | Z67: =+VLOOKUP(Y67&"."&$L$58,'td1'!$AC$5:$AO$4140,$G$2,FALSE) ->  | AB67: A1 | AC67: =+VLOOKUP(AB67&"."&$L$58,'td1'!$AC$5:$AO$4140,$G$2,FALSE) ->  | AE67: SIGE6 | AF67: =+VLOOKUP(AE67&"."&$L$58,'td1'!$AC$5:$AO$4140,$G$2,FALSE) -> 0.9970746548 | AL67: 2017 | AM67: =+VLOOKUP($AL65&"."&$L$58,'td1'!$AC$5:$AO$4140,AM$60,FALSE) -> 1 | AN67: =+VLOOKUP($AL65&"."&$L$58,'td1'!$AC$5:$AO$4140,AN$60,FALSE) -> 0.9487597131 | AO67: =+VLOOKUP($AL65&"."&$L$58,'td1'!$AC$5:$AO$4140,AO$60,FALSE) -> 0.9839607814 | AP67: =+VLOOKUP($AL65&"."&$L$58,'td1'!$AC$5:$AO$4140,AP$60,FALSE) -> 0.9450401048 | AQ67: =+VLOOKUP($AL65&"."&$L$58,'td1'!$AC$5:$AO$4140,AQ$60,FALSE) -> 0.9914390891 | AR67: =+VLOOKUP($AL65&"."&$L$58,'td1'!$AC$5:$AO$4140,AR$60,FALSE) -> 0.9650083684 | AS67: =+VLOOKUP($AL65&"."&$L$58,'td1'!$AC$5:$AO$4140,AS$60,FALSE) -> 0.9718688468 | AT67: =+VLOOKUP($AL65&"."&$L$58,'td1'!$AC$5:$AO$4140,AT$60,FALSE) -> 0.9734831771 | AU67: =+VLOOKUP($AL65&"."&$L$58,'td1'!$AC$5:$AO$4140,AU$60,FALSE) -> 0.9415331412 | AV67: =+VLOOKUP($AL65&"."&$L$58,'td1'!$AC$5:$AO$4140,AV$60,FALSE) ->  | AW67: =+VLOOKUP($AL65&"."&$L$58,'td1'!$AC$5:$AO$4140,AW$60,FALSE) ->  | AX67: =+VLOOKUP($AL65&"."&$L$58,'td1'!$AC$5:$AO$4140,AX$60,FALSE) ->  | BM67: 18 | BN67: Caquetá | BO67: =+VLOOKUP("PA."&$BM67,'td1'!$AC$281:$AO$313,BO$60,FALSE) -> 0.7650910159 | BP67: =+VLOOKUP("PA."&$BM67,'td1'!$AC$281:$AO$313,BP$60,FALSE) -> 0.8322407045 | BQ67: =+VLOOKUP("PA."&$BM67,'td1'!$AC$281:$AO$313,BQ$60,FALSE) -> 0.9839607814 | BR67: =+VLOOKUP("PA."&$BM67,'td1'!$AC$281:$AO$313,BR$60,FALSE) -> 0.9509778693 | BS67: =+VLOOKUP("PA."&$BM67,'td1'!$AC$281:$AO$313,BS$60,FALSE) -> 0.9905105333 | BT67: =+VLOOKUP("PA."&$BM67,'td1'!$AC$281:$AO$313,BT$60,FALSE) -> 0.9776258546 | BU67: =+VLOOKUP("PA."&$BM67,'td1'!$AC$281:$AO$313,BU$60,FALSE) -> 0.9905105333 | BV67: =+VLOOKUP("PA."&$BM67,'td1'!$AC$281:$AO$313,BV$60,FALSE) -> 0.9931053502 | BW67: =+VLOOKUP("PA."&$BM67,'td1'!$AC$281:$AO$313,BW$60,FALSE) -> 0.9931923764 | BX67: =+VLOOKUP("PA."&$BM67,'td1'!$AC$281:$AO$313,BX$60,FALSE) ->  | BY67: =+VLOOKUP("PA."&$BM67,'td1'!$AC$281:$AO$313,BY$60,FALSE) ->  | BZ67: =+VLOOKUP("PA."&$BM67,'td1'!$AC$281:$AO$313,BZ$60,FALSE) ->  | CA67: 7 | CB67: 18 | CC67: Caquetá | CD67: 0.9931923764 | CE67: Centro Sur | CF67: Centro Sur | CG67: Putumayo | CH67: 0.9936089985 | CI67: Centro Sur1 | CJ67: Putumayo | CK67: 0.9936089985 | CL67: sur | CM67: =VLOOKUP(CJ67,Referencias!$AB$3:$AE$40,4,FALSE) -> 86 | CN67: caribe | CO67: Caribe | CP67: =+AVERAGE(CK86:CK93) -> 0.9133286782 | CR67: AntioquiaCZ Magdalena Medio | CS67: 8 | CT67: Antioquia | CU67: 509 | CV67: CZ Magdalena Medio | CW67: =+VLOOKUP("tc."&CU67,'td1'!$AC$2673:$AO$2881,$G$2,FALSE) -> 0.9834217507 | CY67: Antioquia8 | CZ67: 511 | DA67: CZ Suroeste | DB67: 0.9544098143 | ER67: =+regional!P43 -> 7304 | ES67: =zonal!E19 -> CZ Libano | ET67: =+IFERROR(VLOOKUP(ER67,Referencias!$AI$146:$AV$354,$ET$63,FALSE),"") -> 0.9792397721 | EU67: =+zonal!G19 -> 0.9966631073 | FL67: =+VLOOKUP(FN67,Referencias!$R$2:$S$34,2,FALSE) -> 86 | FM67: Centro Sur | FN67: =+CG67 -> Putumayo | FO67: =IFERROR(VLOOKUP($FN67&FO$60,$CY$60:$DB$300,4,FALSE),"") -> 0.9982578397 | FP67: 0.9830709328 | FQ67: 0.9773872679 | FR67: 0.9588013937 | GE67: =IFERROR(VLOOKUP($FN67&GE$60,$CY$60:$DB$300,4,FALSE),"") ->  | GG67: =+ IF(FO67="","",IF(FO67>90%,4,IF(FO67>80%,3,IF(FO67>70%,2,1)))) -> 4 | GH67: 4 | GI67: 4 | GJ67: 4 | GW67: =+ IF(GE67="","",IF(GE67>90%,4,IF(GE67>80%,3,IF(GE67>70%,2,1)))) ->  | GX67: 4 | GY67: 0 | GZ67: 0 | HA67: 0 | HD67: =VLOOKUP(HE67,Referencias!$R$2:$S$34,2,FALSE) -> 86 | HE67: =+macroregionales!N16 -> Putumayo | HF67: =+macroregionales!O16 -> 0.7188685875 | HG67: =+macroregionales!P16 -> 1 | HH67: =+macroregionales!Q16 -> 0.9824603045 | HI67: =+macroregionales!R16 -> 0.9543951547 | HJ67: =+macroregionales!S16 -> 0.9905105333 | HK67: =+macroregionales!T16 -> 0.9581313445 | HL67: =+macroregionales!U16 -> 0.9796640729 | HM67: =+macroregionales!V16 -> 0.9931053502 | HN67: =+macroregionales!W16 -> 0.9936089985 | HO67: =+macroregionales!X16 ->  | HP67: =+macroregionales!Y16 ->  | HQ67: =+macroregionales!Z16 ->  | HS67: =VLOOKUP("TC."&$HD67,'td1'!$AC$241:$AO$274,HS$59,FALSE) -> 0.7375322997 | HT67: =VLOOKUP("TC."&$HD67,'td1'!$AC$241:$AO$274,HT$59,FALSE) -> 1 | HU67: =VLOOKUP("TC."&$HD67,'td1'!$AC$241:$AO$274,HU$59,FALSE) -> 0.970832675 | HV67: =VLOOKUP("TC."&$HD67,'td1'!$AC$241:$AO$274,HV$59,FALSE) -> 0.9481633559 | HW67: =VLOOKUP("TC."&$HD67,'td1'!$AC$241:$AO$274,HW$59,FALSE) -> 0.9900398406 | HX67: =VLOOKUP("TC."&$HD67,'td1'!$AC$241:$AO$274,HX$59,FALSE) -> 0.9647856686 | HY67: =VLOOKUP("TC."&$HD67,'td1'!$AC$241:$AO$274,HY$59,FALSE) -> 0.9778526001 | HZ67: =VLOOKUP("TC."&$HD67,'td1'!$AC$241:$AO$274,HZ$59,FALSE) -> 0.9916875058 | IA67: =VLOOKUP("TC."&$HD67,'td1'!$AC$241:$AO$274,IA$59,FALSE) -> 0.9868643243 | IB67: =VLOOKUP("TC."&$HD67,'td1'!$AC$241:$AO$274,IB$59,FALSE) ->  | IC67: =VLOOKUP("TC."&$HD67,'td1'!$AC$241:$AO$274,IC$59,FALSE) ->  | ID67: =VLOOKUP("TC."&$HD67,'td1'!$AC$241:$AO$274,ID$59,FALSE) -> 
A68: sur | B68: 0.9598328714 | Q68: PP2 | R68: =+VLOOKUP(Q68&"."&$L$58,'td1'!$AC$5:$AO$4140,$G$2,FALSE) ->  | T68: PA5 | U68: =+VLOOKUP(T68&"."&$L$58,'td1'!$AC$5:$AO$4140,$G$2,FALSE) -> 1 | W68: LP4 | X68: =+VLOOKUP(W68&"."&$L$58,'td1'!$AC$5:$AO$4140,$G$2,FALSE) ->  | Y68: LP4-C6 | Z68: =+VLOOKUP(Y68&"."&$L$58,'td1'!$AC$5:$AO$4140,$G$2,FALSE) ->  | AB68: A2 | AC68: =+VLOOKUP(AB68&"."&$L$58,'td1'!$AC$5:$AO$4140,$G$2,FALSE) -> 0.983277592 | AE68: SIGE7 | AF68: =+VLOOKUP(AE68&"."&$L$58,'td1'!$AC$5:$AO$4140,$G$2,FALSE) ->  | BM68: 41 | BN68: Huila | BO68: =+VLOOKUP("PA."&$BM68,'td1'!$AC$281:$AO$313,BO$60,FALSE) -> 0.8849089841 | BP68: =+VLOOKUP("PA."&$BM68,'td1'!$AC$281:$AO$313,BP$60,FALSE) -> 1 | BQ68: =+VLOOKUP("PA."&$BM68,'td1'!$AC$281:$AO$313,BQ$60,FALSE) -> 0.939298991 | BR68: =+VLOOKUP("PA."&$BM68,'td1'!$AC$281:$AO$313,BR$60,FALSE) -> 0.9464111968 | BS68: =+VLOOKUP("PA."&$BM68,'td1'!$AC$281:$AO$313,BS$60,FALSE) -> 0.9768598579 | BT68: =+VLOOKUP("PA."&$BM68,'td1'!$AC$281:$AO$313,BT$60,FALSE) -> 0.9683730594 | BU68: =+VLOOKUP("PA."&$BM68,'td1'!$AC$281:$AO$313,BU$60,FALSE) -> 0.981653968 | BV68: =+VLOOKUP("PA."&$BM68,'td1'!$AC$281:$AO$313,BV$60,FALSE) -> 0.9852247656 | BW68: =+VLOOKUP("PA."&$BM68,'td1'!$AC$281:$AO$313,BW$60,FALSE) -> 0.9481210375 | BX68: =+VLOOKUP("PA."&$BM68,'td1'!$AC$281:$AO$313,BX$60,FALSE) ->  | BY68: =+VLOOKUP("PA."&$BM68,'td1'!$AC$281:$AO$313,BY$60,FALSE) ->  | BZ68: =+VLOOKUP("PA."&$BM68,'td1'!$AC$281:$AO$313,BZ$60,FALSE) ->  | CA68: 8 | CB68: 41 | CC68: Huila | CD68: 0.9481210375 | CE68: =+CE67 -> Centro Sur | CG68: Caquetá | CH68: 0.9931923764 | CI68: Centro Sur2 | CJ68: Caquetá | CK68: 0.9931923764 | CL68: =+CL67 -> sur | CM68: =VLOOKUP(CJ68,Referencias!$AB$3:$AE$40,4,FALSE) -> 18 | CN68: oriente | CO68: Centro Oriente | CP68: =+AVERAGE(CK95:CK99) -> 0.9349366451 | CR68: AntioquiaCZ Occidente | CS68: 9 | CT68: Antioquia | CU68: 510 | CV68: CZ Occidente | CW68: =+VLOOKUP("tc."&CU68,'td1'!$AC$2673:$AO$2881,$G$2,FALSE) -> 0.9461206897 | CY68: Antioquia9 | CZ68: 517 | DA68: CZ Occidente | DB68: 0.9461206897 | ER68: =+regional!P44 -> 7307 | ES68: =zonal!E20 -> CZ Espinal | ET68: =+IFERROR(VLOOKUP(ER68,Referencias!$AI$146:$AV$354,$ET$63,FALSE),"") -> 0.9741085847 | EU68: =+zonal!G20 -> 0.9965156794 | FL68: =+VLOOKUP(FN68,Referencias!$R$2:$S$34,2,FALSE) -> 18 | FN68: =+CG68 -> Caquetá | FO68: 1 | FP68: 1 | FQ68: 0.9974432399 | FR68: 0.9825783972 | GG68: 4 | GH68: 4 | GI68: 4 | GJ68: 4 | GX68: 4 | GY68: 0 | GZ68: 0 | HA68: 0 | HD68: =VLOOKUP(HE68,Referencias!$R$2:$S$34,2,FALSE) -> 18 | HE68: =+macroregionales!N17 -> Caquetá | HF68: =+macroregionales!O17 -> 0.7650910159 | HG68: =+macroregionales!P17 -> 0.8322407045 | HH68: =+macroregionales!Q17 -> 0.9839607814 | HI68: =+macroregionales!R17 -> 0.9509778693 | HJ68: =+macroregionales!S17 -> 0.9905105333 | HK68: =+macroregionales!T17 -> 0.9776258546 | HL68: =+macroregionales!U17 -> 0.9905105333 | HM68: =+macroregionales!V17 -> 0.9931053502 | HN68: =+macroregionales!W17 -> 0.9931923764 | HO68: =+macroregionales!X17 ->  | HP68: =+macroregionales!Y17 ->  | HQ68: =+macroregionales!Z17 ->  | HS68: =VLOOKUP("TC."&$HD68,'td1'!$AC$241:$AO$274,HS$59,FALSE) -> 0.8095453463 | HT68: =VLOOKUP("TC."&$HD68,'td1'!$AC$241:$AO$274,HT$59,FALSE) -> 0.8787328209 | HU68: =VLOOKUP("TC."&$HD68,'td1'!$AC$241:$AO$274,HU$59,FALSE) -> 0.9778671933 | HV68: =VLOOKUP("TC."&$HD68,'td1'!$AC$241:$AO$274,HV$59,FALSE) -> 0.9530334906 | HW68: =VLOOKUP("TC."&$HD68,'td1'!$AC$241:$AO$274,HW$59,FALSE) -> 0.9848339973 | HX68: =VLOOKUP("TC."&$HD68,'td1'!$AC$241:$AO$274,HX$59,FALSE) -> 0.9806346724 | HY68: =VLOOKUP("TC."&$HD68,'td1'!$AC$241:$AO$274,HY$59,FALSE) -> 0.9822920564 | HZ68: =VLOOKUP("TC."&$HD68,'td1'!$AC$241:$AO$274,HZ$59,FALSE) -> 0.9901982926 | IA68: =VLOOKUP("TC."&$HD68,'td1'!$AC$241:$AO$274,IA$59,FALSE) -> 0.9907502608 | IB68: =VLOOKUP("TC."&$HD68,'td1'!$AC$241:$AO$274,IB$59,FALSE) ->  | IC68: =VLOOKUP("TC."&$HD68,'td1'!$AC$241:$AO$274,IC$59,FALSE) ->  | ID68: =VLOOKUP("TC."&$HD68,'td1'!$AC$241:$AO$274,ID$59,FALSE) -> 
A69: llanos | B69: 0.934879962 | Q69: PP3 | R69: =+VLOOKUP(Q69&"."&$L$58,'td1'!$AC$5:$AO$4140,$G$2,FALSE) -> 1 | T69: PE1 | U69: =+VLOOKUP(T69&"."&$L$58,'td1'!$AC$5:$AO$4140,$G$2,FALSE) -> 1 | W69: LP5 | X69: =+VLOOKUP(W69&"."&$L$58,'td1'!$AC$5:$AO$4140,$G$2,FALSE) -> 1 | Y69: LP5-C2 | Z69: =+VLOOKUP(Y69&"."&$L$58,'td1'!$AC$5:$AO$4140,$G$2,FALSE) -> 1 | AB69: A4 | AC69: =+VLOOKUP(AB69&"."&$L$58,'td1'!$AC$5:$AO$4140,$G$2,FALSE) -> 1 | AE69: SIGE8 | AF69: =+VLOOKUP(AE69&"."&$L$58,'td1'!$AC$5:$AO$4140,$G$2,FALSE) ->  | AL69: PI | AM69: Ene | AN69: Feb | AO69: Mar | AP69: Abr | AQ69: May | AR69: Jun | AS69: Jul | AT69: Agt | AU69: Sep | AV69: Oct | AW69: Nov | AX69: Dic | BM69: 73 | BN69: Tolima | BO69: =+VLOOKUP("PA."&$BM69,'td1'!$AC$281:$AO$313,BO$60,FALSE) -> 1 | BP69: =+VLOOKUP("PA."&$BM69,'td1'!$AC$281:$AO$313,BP$60,FALSE) -> 0.9487597131 | BQ69: =+VLOOKUP("PA."&$BM69,'td1'!$AC$281:$AO$313,BQ$60,FALSE) -> 0.9839607814 | BR69: =+VLOOKUP("PA."&$BM69,'td1'!$AC$281:$AO$313,BR$60,FALSE) -> 0.9450401048 | BS69: =+VLOOKUP("PA."&$BM69,'td1'!$AC$281:$AO$313,BS$60,FALSE) -> 0.9914390891 | BT69: =+VLOOKUP("PA."&$BM69,'td1'!$AC$281:$AO$313,BT$60,FALSE) -> 0.9650083684 | BU69: =+VLOOKUP("PA."&$BM69,'td1'!$AC$281:$AO$313,BU$60,FALSE) -> 0.9718688468 | BV69: =+VLOOKUP("PA."&$BM69,'td1'!$AC$281:$AO$313,BV$60,FALSE) -> 0.9734831771 | BW69: =+VLOOKUP("PA."&$BM69,'td1'!$AC$281:$AO$313,BW$60,FALSE) -> 0.9415331412 | BX69: =+VLOOKUP("PA."&$BM69,'td1'!$AC$281:$AO$313,BX$60,FALSE) ->  | BY69: =+VLOOKUP("PA."&$BM69,'td1'!$AC$281:$AO$313,BY$60,FALSE) ->  | BZ69: =+VLOOKUP("PA."&$BM69,'td1'!$AC$281:$AO$313,BZ$60,FALSE) ->  | CA69: 9 | CB69: 73 | CC69: Tolima | CD69: 0.9415331412 | CE69: =+CE68 -> Centro Sur | CG69: Huila | CH69: 0.9481210375 | CI69: Centro Sur3 | CJ69: Huila | CK69: 0.9481210375 | CL69: =+CL68 -> sur | CM69: =VLOOKUP(CJ69,Referencias!$AB$3:$AE$40,4,FALSE) -> 41 | CR69: AntioquiaCZ Occidente Medio | CS69: 10 | CT69: Antioquia | CU69: 511 | CV69: CZ Occidente Medio | CW69: =+VLOOKUP("tc."&CU69,'td1'!$AC$2673:$AO$2881,$G$2,FALSE) -> 0.9411945183 | CY69: Antioquia10 | CZ69: 502 | DA69: CZ Occidente Medio | DB69: 0.9411945183 | ER69: =+regional!P45 -> 7301 | ES69: =zonal!E21 -> CZ Jordan | ET69: =+IFERROR(VLOOKUP(ER69,Referencias!$AI$146:$AV$354,$ET$63,FALSE),"") -> 0.9095598456 | EU69: =+zonal!G21 -> 0.9941914498 | FL69: =+VLOOKUP(FN69,Referencias!$R$2:$S$34,2,FALSE) -> 41 | FN69: =+CG69 -> Huila | FO69: 0.9979277188 | FP69: 0.9899979546 | FQ69: 0.9809943743 | FR69: 0.9789507772 | FS69: 0.8797770035 | GG69: 4 | GH69: 4 | GI69: 4 | GJ69: 4 | GK69: 3 | GX69: 4 | GY69: 1 | GZ69: 0 | HA69: 0 | HD69: =VLOOKUP(HE69,Referencias!$R$2:$S$34,2,FALSE) -> 41 | HE69: =+macroregionales!N18 -> Huila | HF69: =+macroregionales!O18 -> 0.8849089841 | HG69: =+macroregionales!P18 -> 1 | HH69: =+macroregionales!Q18 -> 0.939298991 | HI69: =+macroregionales!R18 -> 0.9464111968 | HJ69: =+macroregionales!S18 -> 0.9768598579 | HK69: =+macroregionales!T18 -> 0.9683730594 | HL69: =+macroregionales!U18 -> 0.981653968 | HM69: =+macroregionales!V18 -> 0.9852247656 | HN69: =+macroregionales!W18 -> 0.9481210375 | HO69: =+macroregionales!X18 ->  | HP69: =+macroregionales!Y18 ->  | HQ69: =+macroregionales!Z18 ->  | HS69: =VLOOKUP("TC."&$HD69,'td1'!$AC$241:$AO$274,HS$59,FALSE) -> 0.8927789934 | HT69: =VLOOKUP("TC."&$HD69,'td1'!$AC$241:$AO$274,HT$59,FALSE) -> 0.9775974342 | HU69: =VLOOKUP("TC."&$HD69,'td1'!$AC$241:$AO$274,HU$59,FALSE) -> 0.9516572388 | HV69: =VLOOKUP("TC."&$HD69,'td1'!$AC$241:$AO$274,HV$59,FALSE) -> 0.9476934711 | HW69: =VLOOKUP("TC."&$HD69,'td1'!$AC$241:$AO$274,HW$59,FALSE) -> 0.9737826328 | HX69: =VLOOKUP("TC."&$HD69,'td1'!$AC$241:$AO$274,HX$59,FALSE) -> 0.9642650886 | HY69: =VLOOKUP("TC."&$HD69,'td1'!$AC$241:$AO$274,HY$59,FALSE) -> 0.9764798324 | HZ69: =VLOOKUP("TC."&$HD69,'td1'!$AC$241:$AO$274,HZ$59,FALSE) -> 0.9794886851 | IA69: =VLOOKUP("TC."&$HD69,'td1'!$AC$241:$AO$274,IA$59,FALSE) -> 0.9587361254 | IB69: =VLOOKUP("TC."&$HD69,'td1'!$AC$241:$AO$274,IB$59,FALSE) ->  | IC69: =VLOOKUP("TC."&$HD69,'td1'!$AC$241:$AO$274,IC$59,FALSE) ->  | ID69: =VLOOKUP("TC."&$HD69,'td1'!$AC$241:$AO$274,ID$59,FALSE) -> 
A70: cafetero | B70: 0.9683544531 | Q70: PP4 | R70: =+VLOOKUP(Q70&"."&$L$58,'td1'!$AC$5:$AO$4140,$G$2,FALSE) -> 1 | T70: PEV1 | U70: =+VLOOKUP(T70&"."&$L$58,'td1'!$AC$5:$AO$4140,$G$2,FALSE) -> 1 | Y70: LP5-C4 | Z70: =+VLOOKUP(Y70&"."&$L$58,'td1'!$AC$5:$AO$4140,$G$2,FALSE) -> 1 | AB70: A5 | AC70: =+VLOOKUP(AB70&"."&$L$58,'td1'!$AC$5:$AO$4140,$G$2,FALSE) -> 1 | AE70: SIGE9 | AF70: =+VLOOKUP(AE70&"."&$L$58,'td1'!$AC$5:$AO$4140,$G$2,FALSE) -> 0.9647969052 | AL70: 2016 | AM70: =IF(AM71="","",VLOOKUP($AL69&"."&$L$58,Referencias!$A$147:$O$245,AM$59,FALSE)) -> 0.9690280066 | AN70: =IF(AN71="","",VLOOKUP($AL69&"."&$L$58,Referencias!$A$147:$O$245,AN$59,FALSE)) -> 0.9612511969 | AO70: =IF(AO71="","",VLOOKUP($AL69&"."&$L$58,Referencias!$A$147:$O$245,AO$59,FALSE)) -> 0.9547734069 | AP70: =IF(AP71="","",VLOOKUP($AL69&"."&$L$58,Referencias!$A$147:$O$245,AP$59,FALSE)) -> 0.8127448822 | AQ70: =IF(AQ71="","",VLOOKUP($AL69&"."&$L$58,Referencias!$A$147:$O$245,AQ$59,FALSE)) -> 0.9804064617 | AR70: =IF(AR71="","",VLOOKUP($AL69&"."&$L$58,Referencias!$A$147:$O$245,AR$59,FALSE)) -> 0.9643453029 | AS70: =IF(AS71="","",VLOOKUP($AL69&"."&$L$58,Referencias!$A$147:$O$245,AS$59,FALSE)) -> 0.9879624805 | AT70: =IF(AT71="","",VLOOKUP($AL69&"."&$L$58,Referencias!$A$147:$O$245,AT$59,FALSE)) -> 1 | AU70: =IF(AU71="","",VLOOKUP($AL69&"."&$L$58,Referencias!$A$147:$O$245,AU$59,FALSE)) -> 0.9536096257 | AV70: =IF(AV71="","",VLOOKUP($AL69&"."&$L$58,Referencias!$A$147:$O$245,AV$59,FALSE)) ->  | AW70: =IF(AW71="","",VLOOKUP($AL69&"."&$L$58,Referencias!$A$147:$O$245,AW$59,FALSE)) ->  | AX70: =IF(AX71="","",VLOOKUP($AL69&"."&$L$58,Referencias!$A$147:$O$245,AX$59,FALSE)) ->  | BM70: 86 | BN70: Putumayo | BO70: =+VLOOKUP("PA."&$BM70,'td1'!$AC$281:$AO$313,BO$60,FALSE) -> 0.7188685875 | BP70: =+VLOOKUP("PA."&$BM70,'td1'!$AC$281:$AO$313,BP$60,FALSE) -> 1 | BQ70: =+VLOOKUP("PA."&$BM70,'td1'!$AC$281:$AO$313,BQ$60,FALSE) -> 0.9824603045 | BR70: =+VLOOKUP("PA."&$BM70,'td1'!$AC$281:$AO$313,BR$60,FALSE) -> 0.9543951547 | BS70: =+VLOOKUP("PA."&$BM70,'td1'!$AC$281:$AO$313,BS$60,FALSE) -> 0.9905105333 | BT70: =+VLOOKUP("PA."&$BM70,'td1'!$AC$281:$AO$313,BT$60,FALSE) -> 0.9581313445 | BU70: =+VLOOKUP("PA."&$BM70,'td1'!$AC$281:$AO$313,BU$60,FALSE) -> 0.9796640729 | BV70: =+VLOOKUP("PA."&$BM70,'td1'!$AC$281:$AO$313,BV$60,FALSE) -> 0.9931053502 | BW70: =+VLOOKUP("PA."&$BM70,'td1'!$AC$281:$AO$313,BW$60,FALSE) -> 0.9936089985 | BX70: =+VLOOKUP("PA."&$BM70,'td1'!$AC$281:$AO$313,BX$60,FALSE) ->  | BY70: =+VLOOKUP("PA."&$BM70,'td1'!$AC$281:$AO$313,BY$60,FALSE) ->  | BZ70: =+VLOOKUP("PA."&$BM70,'td1'!$AC$281:$AO$313,BZ$60,FALSE) ->  | CA70: 10 | CB70: 86 | CC70: Putumayo | CD70: 0.9936089985 | CE70: =+CE69 -> Centro Sur | CG70: Tolima | CH70: 0.9415331412 | CI70: Centro Sur4 | CJ70: Tolima | CK70: 0.9415331412 | CL70: =+CL69 -> sur | CM70: =VLOOKUP(CJ70,Referencias!$AB$3:$AE$40,4,FALSE) -> 73 | CR70: AntioquiaCZ Oriente | CS70: 11 | CT70: Antioquia | CU70: 512 | CV70: CZ Oriente | CW70: =+VLOOKUP("tc."&CU70,'td1'!$AC$2673:$AO$2881,$G$2,FALSE) -> 0.9744323993 | CY70: Antioquia11 | CZ70: 513 | DA70: CZ Integral Sur Oriental | DB70: 0.940455187 | ER70: =+regional!P46 -> 7302 | ES70: =zonal!E22 -> CZ Galan | ET70: =+IFERROR(VLOOKUP(ER70,Referencias!$AI$146:$AV$354,$ET$63,FALSE),"") -> 0.9797942689 | EU70: =+zonal!G22 -> 0.9920911104 | FL70: =+VLOOKUP(FN70,Referencias!$R$2:$S$34,2,FALSE) -> 73 | FN70: =+CG70 -> Tolima | FO70: 1 | FP70: 1 | FQ70: 0.9966631073 | FR70: 0.9965156794 | FS70: 0.9941914498 | FT70: 0.9920911104 | FU70: 0.988604055 | FV70: 0.9813494695 | FW70: 0.9592838196 | FX70: 0.8487888648 | GG70: 4 | GH70: 4 | GI70: 4 | GJ70: 4 | GK70: 4 | GL70: 4 | GM70: 4 | GN70: 4 | GO70: 4 | GP70: 3 | GX70: 9 | GY70: 1 | GZ70: 0 | HA70: 0 | HD70: =VLOOKUP(HE70,Referencias!$R$2:$S$34,2,FALSE) -> 73 | HE70: =+macroregionales!N19 -> Tolima | HF70: =+macroregionales!O19 -> 1 | HG70: =+macroregionales!P19 -> 0.9487597131 | HH70: =+macroregionales!Q19 -> 0.9839607814 | HI70: =+macroregionales!R19 -> 0.9450401048 | HJ70: =+macroregionales!S19 -> 0.9914390891 | HK70: =+macroregionales!T19 -> 0.9650083684 | HL70: =+macroregionales!U19 -> 0.9718688468 | HM70: =+macroregionales!V19 -> 0.9734831771 | HN70: =+macroregionales!W19 -> 0.9415331412 | HO70: =+macroregionales!X19 ->  | HP70: =+macroregionales!Y19 ->  | HQ70: =+macroregionales!Z19 ->  | HS70: =VLOOKUP("TC."&$HD70,'td1'!$AC$241:$AO$274,HS$59,FALSE) -> 1 | HT70: =VLOOKUP("TC."&$HD70,'td1'!$AC$241:$AO$274,HT$59,FALSE) -> 0.9538158758 | HU70: =VLOOKUP("TC."&$HD70,'td1'!$AC$241:$AO$274,HU$59,FALSE) -> 0.9791732378 | HV70: =VLOOKUP("TC."&$HD70,'td1'!$AC$241:$AO$274,HV$59,FALSE) -> 0.9307654158 | HW70: =VLOOKUP("TC."&$HD70,'td1'!$AC$241:$AO$274,HW$59,FALSE) -> 0.9873788805 | HX70: =VLOOKUP("TC."&$HD70,'td1'!$AC$241:$AO$274,HX$59,FALSE) -> 0.9686242641 | HY70: =VLOOKUP("TC."&$HD70,'td1'!$AC$241:$AO$274,HY$59,FALSE) -> 0.9699173455 | HZ70: =VLOOKUP("TC."&$HD70,'td1'!$AC$241:$AO$274,HZ$59,FALSE) -> 0.967432878 | IA70: =VLOOKUP("TC."&$HD70,'td1'!$AC$241:$AO$274,IA$59,FALSE) -> 0.9528112595 | IB70: =VLOOKUP("TC."&$HD70,'td1'!$AC$241:$AO$274,IB$59,FALSE) ->  | IC70: =VLOOKUP("TC."&$HD70,'td1'!$AC$241:$AO$274,IC$59,FALSE) ->  | ID70: =VLOOKUP("TC."&$HD70,'td1'!$AC$241:$AO$274,ID$59,FALSE) -> 
A71: caribe | B71: 0.9133286782 | O71: PAS | P71: =+VLOOKUP(O71&"."&$L$58,'td1'!$AC$5:$AO$4140,$G$2,FALSE) -> 1 | Q71: PAS1 | R71: =+VLOOKUP(Q71&"."&$L$58,'td1'!$AC$5:$AO$4140,$G$2,FALSE) -> 1 | T71: PEV3 | U71: =+VLOOKUP(T71&"."&$L$58,'td1'!$AC$5:$AO$4140,$G$2,FALSE) -> 1 | AB71: A6 | AC71: =+VLOOKUP(AB71&"."&$L$58,'td1'!$AC$5:$AO$4140,$G$2,FALSE) ->  | AE71: SIGE10 | AF71: =+VLOOKUP(AE71&"."&$L$58,'td1'!$AC$5:$AO$4140,$G$2,FALSE) -> 1 | AL71: 2017 | AM71: =+VLOOKUP($AL69&"."&$L$58,'td1'!$AC$5:$AO$4140,AM$60,FALSE) -> 1 | AN71: =+VLOOKUP($AL69&"."&$L$58,'td1'!$AC$5:$AO$4140,AN$60,FALSE) -> 1 | AO71: =+VLOOKUP($AL69&"."&$L$58,'td1'!$AC$5:$AO$4140,AO$60,FALSE) -> 1 | AP71: =+VLOOKUP($AL69&"."&$L$58,'td1'!$AC$5:$AO$4140,AP$60,FALSE) -> 0.9740581026 | AQ71: =+VLOOKUP($AL69&"."&$L$58,'td1'!$AC$5:$AO$4140,AQ$60,FALSE) -> 1 | AR71: =+VLOOKUP($AL69&"."&$L$58,'td1'!$AC$5:$AO$4140,AR$60,FALSE) -> 0.9299626504 | AS71: =+VLOOKUP($AL69&"."&$L$58,'td1'!$AC$5:$AO$4140,AS$60,FALSE) -> 0.9740581026 | AT71: =+VLOOKUP($AL69&"."&$L$58,'td1'!$AC$5:$AO$4140,AT$60,FALSE) -> 1 | AU71: =+VLOOKUP($AL69&"."&$L$58,'td1'!$AC$5:$AO$4140,AU$60,FALSE) -> 0.8907787864 | AV71: =+VLOOKUP($AL69&"."&$L$58,'td1'!$AC$5:$AO$4140,AV$60,FALSE) ->  | AW71: =+VLOOKUP($AL69&"."&$L$58,'td1'!$AC$5:$AO$4140,AW$60,FALSE) ->  | AX71: =+VLOOKUP($AL69&"."&$L$58,'td1'!$AC$5:$AO$4140,AX$60,FALSE) ->  | BM71: 91 | BN71: Amazonas | BO71: =+VLOOKUP("PA."&$BM71,'td1'!$AC$281:$AO$313,BO$60,FALSE) -> 0.6464427751 | BP71: =+VLOOKUP("PA."&$BM71,'td1'!$AC$281:$AO$313,BP$60,FALSE) -> 0.9596323662 | BQ71: =+VLOOKUP("PA."&$BM71,'td1'!$AC$281:$AO$313,BQ$60,FALSE) -> 0.9187268623 | BR71: =+VLOOKUP("PA."&$BM71,'td1'!$AC$281:$AO$313,BR$60,FALSE) -> 0.7948264384 | BS71: =+VLOOKUP("PA."&$BM71,'td1'!$AC$281:$AO$313,BS$60,FALSE) -> 0.7703672166 | BT71: =+VLOOKUP("PA."&$BM71,'td1'!$AC$281:$AO$313,BT$60,FALSE) -> 0.8800820008 | BU71: =+VLOOKUP("PA."&$BM71,'td1'!$AC$281:$AO$313,BU$60,FALSE) -> 0.9893560404 | BV71: =+VLOOKUP("PA."&$BM71,'td1'!$AC$281:$AO$313,BV$60,FALSE) -> 0.9674043575 | BW71: =+VLOOKUP("PA."&$BM71,'td1'!$AC$281:$AO$313,BW$60,FALSE) -> 0.9227088036 | BX71: =+VLOOKUP("PA."&$BM71,'td1'!$AC$281:$AO$313,BX$60,FALSE) ->  | BY71: =+VLOOKUP("PA."&$BM71,'td1'!$AC$281:$AO$313,BY$60,FALSE) ->  | BZ71: =+VLOOKUP("PA."&$BM71,'td1'!$AC$281:$AO$313,BZ$60,FALSE) ->  | CA71: 11 | CB71: 91 | CC71: Amazonas | CD71: 0.9227088036 | CE71: =+CE70 -> Centro Sur | CG71: Amazonas | CH71: 0.9227088036 | CI71: Centro Sur5 | CJ71: Amazonas | CK71: 0.9227088036 | CL71: =+CL70 -> sur | CM71: =VLOOKUP(CJ71,Referencias!$AB$3:$AE$40,4,FALSE) -> 91 | CR71: AntioquiaCZ Porce Nus | CS71: 12 | CT71: Antioquia | CU71: 513 | CV71: CZ Porce Nus | CW71: =+VLOOKUP("tc."&CU71,'td1'!$AC$2673:$AO$2881,$G$2,FALSE) -> 0.8465029365 | CY71: Antioquia12 | CZ71: 512 | DA71: CZ Integral Nororiental | DB71: 0.9281767956 | ER71: =+regional!P47 -> 7308 | ES71: =zonal!E23 -> CZ Chaparral | ET71: =+IFERROR(VLOOKUP(ER71,Referencias!$AI$146:$AV$354,$ET$63,FALSE),"") -> 0.9480537363 | EU71: =+zonal!G23 -> 0.988604055 | FL71: =+VLOOKUP(FN71,Referencias!$R$2:$S$34,2,FALSE) -> 91 | FN71: =+CG71 -> Amazonas | FO71: 0.9364640884 | GG71: 4 | GX71: 1 | GY71: 0 | GZ71: 0 | HA71: 0 | HD71: =VLOOKUP(HE71,Referencias!$R$2:$S$34,2,FALSE) -> 91 | HE71: =+macroregionales!N20 -> Amazonas | HF71: =+macroregionales!O20 -> 0.6464427751 | HG71: =+macroregionales!P20 -> 0.9596323662 | HH71: =+macroregionales!Q20 -> 0.9187268623 | HI71: =+macroregionales!R20 -> 0.7948264384 | HJ71: =+macroregionales!S20 -> 0.7703672166 | HK71: =+macroregionales!T20 -> 0.8800820008 | HL71: =+macroregionales!U20 -> 0.9893560404 | HM71: =+macroregionales!V20 -> 0.9674043575 | HN71: =+macroregionales!W20 -> 0.9227088036 | HO71: =+macroregionales!X20 ->  | HP71: =+macroregionales!Y20 ->  | HQ71: =+macroregionales!Z20 ->  | HS71: =VLOOKUP("TC."&$HD71,'td1'!$AC$241:$AO$274,HS$59,FALSE) -> 0.7220078483 | HT71: =VLOOKUP("TC."&$HD71,'td1'!$AC$241:$AO$274,HT$59,FALSE) -> 0.9158266789 | HU71: =VLOOKUP("TC."&$HD71,'td1'!$AC$241:$AO$274,HU$59,FALSE) -> 0.930123095 | HV71: =VLOOKUP("TC."&$HD71,'td1'!$AC$241:$AO$274,HV$59,FALSE) -> 0.8396206468 | HW71: =VLOOKUP("TC."&$HD71,'td1'!$AC$241:$AO$274,HW$59,FALSE) -> 0.825051179 | HX71: =VLOOKUP("TC."&$HD71,'td1'!$AC$241:$AO$274,HX$59,FALSE) -> 0.8984616868 | HY71: =VLOOKUP("TC."&$HD71,'td1'!$AC$241:$AO$274,HY$59,FALSE) -> 0.9612882 | HZ71: =VLOOKUP("TC."&$HD71,'td1'!$AC$241:$AO$274,HZ$59,FALSE) -> 0.9103726812 | IA71: =VLOOKUP("TC."&$HD71,'td1'!$AC$241:$AO$274,IA$59,FALSE) -> 0.9072859835 | IB71: =VLOOKUP("TC."&$HD71,'td1'!$AC$241:$AO$274,IB$59,FALSE) ->  | IC71: =VLOOKUP("TC."&$HD71,'td1'!$AC$241:$AO$274,IC$59,FALSE) ->  | ID71: =VLOOKUP("TC."&$HD71,'td1'!$AC$241:$AO$274,ID$59,FALSE) -> 
A72: oriente | B72: 0.9349366451 | Q72: PAS2 | R72: =+VLOOKUP(Q72&"."&$L$58,'td1'!$AC$5:$AO$4140,$G$2,FALSE) -> 1 | T72: PT1 | U72: =+VLOOKUP(T72&"."&$L$58,'td1'!$AC$5:$AO$4140,$G$2,FALSE) -> 1 | AB72: A7 | AC72: =+VLOOKUP(AB72&"."&$L$58,'td1'!$AC$5:$AO$4140,$G$2,FALSE) -> 1 | CA72: 12 | CR72: AntioquiaCZ Suroeste | CS72: 13 | CT72: Antioquia | CU72: 514 | CV72: CZ Suroeste | CW72: =+VLOOKUP("tc."&CU72,'td1'!$AC$2673:$AO$2881,$G$2,FALSE) -> 0.9544098143 | CY72: Antioquia13 | CZ72: 506 | DA72: CZ Integral Noroccidental | DB72: 0.9043940126 | ER72: =+regional!P48 -> 7305 | ES72: =zonal!E24 -> CZ Lerida | ET72: =+IFERROR(VLOOKUP(ER72,Referencias!$AI$146:$AV$354,$ET$63,FALSE),"") -> 0.9645676379 | EU72: =+zonal!G24 -> 0.9813494695
A73: accion | B73: =+M5 -> 0.9414587656 | O73: PF | P73: =+VLOOKUP(O73&"."&$L$58,'td1'!$AC$5:$AO$4140,$G$2,FALSE) -> 0.9878345499 | Q73: PF | R73: =+VLOOKUP(Q73&"."&$L$58,'td1'!$AC$5:$AO$4140,$G$2,FALSE) -> 0.9878345499 | T73: PT2 | U73: =+VLOOKUP(T73&"."&$L$58,'td1'!$AC$5:$AO$4140,$G$2,FALSE) -> 0.9647969052 | AB73: A10 | AC73: =+VLOOKUP(AB73&"."&$L$58,'td1'!$AC$5:$AO$4140,$G$2,FALSE) -> 1 | BM73: 50 | BN73: Meta | BO73: =+VLOOKUP("PA."&$BM73,'td1'!$AC$281:$AO$313,BO$60,FALSE) -> 0.9664415737 | BP73: =+VLOOKUP("PA."&$BM73,'td1'!$AC$281:$AO$313,BP$60,FALSE) -> 0.876145501 | BQ73: =+VLOOKUP("PA."&$BM73,'td1'!$AC$281:$AO$313,BQ$60,FALSE) -> 0.9540195808 | BR73: =+VLOOKUP("PA."&$BM73,'td1'!$AC$281:$AO$313,BR$60,FALSE) -> 0.9233515455 | BS73: =+VLOOKUP("PA."&$BM73,'td1'!$AC$281:$AO$313,BS$60,FALSE) -> 0.9466740861 | BT73: =+VLOOKUP("PA."&$BM73,'td1'!$AC$281:$AO$313,BT$60,FALSE) -> 0.9716525858 | BU73: =+VLOOKUP("PA."&$BM73,'td1'!$AC$281:$AO$313,BU$60,FALSE) -> 0.9425134834 | BV73: =+VLOOKUP("PA."&$BM73,'td1'!$AC$281:$AO$313,BV$60,FALSE) -> 0.9543367347 | BW73: =+VLOOKUP("PA."&$BM73,'td1'!$AC$281:$AO$313,BW$60,FALSE) -> 0.9090172722 | BX73: =+VLOOKUP("PA."&$BM73,'td1'!$AC$281:$AO$313,BX$60,FALSE) ->  | BY73: =+VLOOKUP("PA."&$BM73,'td1'!$AC$281:$AO$313,BY$60,FALSE) ->  | BZ73: =+VLOOKUP("PA."&$BM73,'td1'!$AC$281:$AO$313,BZ$60,FALSE) ->  | CA73: 13 | CB73: 50 | CC73: Meta | CD73: 0.9090172722 | CE73: Llanos | CF73: Llanos | CG73: Guaviare | CH73: 0.9839607814 | CI73: Llanos1 | CJ73: Guaviare | CK73: 0.9839607814 | CL73: llanos | CM73: =VLOOKUP(CJ73,Referencias!$AB$3:$AE$40,4,FALSE) -> 95 | CR73: AntioquiaCZ Penderisco | CS73: 14 | CT73: Antioquia | CU73: 515 | CV73: CZ Penderisco | CW73: =+VLOOKUP("tc."&CU73,'td1'!$AC$2673:$AO$2881,$G$2,FALSE) -> 0.8607839529 | CY73: Antioquia14 | CZ73: 501 | DA73: CZ Penderisco | DB73: 0.8607839529 | ER73: =+regional!P49 -> 7306 | ES73: =zonal!E25 -> CZ Honda | ET73: =+IFERROR(VLOOKUP(ER73,Referencias!$AI$146:$AV$354,$ET$63,FALSE),"") -> 0.9645676379 | EU73: =+zonal!G25 -> 0.9592838196 | FL73: =+VLOOKUP(FN73,Referencias!$R$2:$S$34,2,FALSE) -> 95 | FM73: Llanos | FN73: =+CG73 -> Guaviare | FO73: =IFERROR(VLOOKUP($FN73&FO$60,$CY$60:$DB$300,4,FALSE),"") -> 0.928949369 | GE73: =IFERROR(VLOOKUP($FN73&GE$60,$CY$60:$DB$300,4,FALSE),"") ->  | GG73: =+ IF(FO73="","",IF(FO73>90%,4,IF(FO73>80%,3,IF(FO73>70%,2,1)))) -> 4 | GW73: =+ IF(GE73="","",IF(GE73>90%,4,IF(GE73>80%,3,IF(GE73>70%,2,1)))) ->  | GX73: 1 | GY73: 0 | GZ73: 0 | HA73: 0 | HD73: =VLOOKUP(HE73,Referencias!$R$2:$S$34,2,FALSE) -> 95 | HE73: =+macroregionales!N22 -> Guaviare | HF73: =+macroregionales!O22 -> 0.9598383696 | HG73: =+macroregionales!P22 -> 0.8633592349 | HH73: =+macroregionales!Q22 -> 0.8421345556 | HI73: =+macroregionales!R22 -> 0.7636519889 | HJ73: =+macroregionales!S22 -> 0.7791136838 | HK73: =+macroregionales!T22 -> 0.8859874044 | HL73: =+macroregionales!U22 -> 0.9650239489 | HM73: =+macroregionales!V22 -> 0.9418756081 | HN73: =+macroregionales!W22 -> 0.9839607814 | HO73: =+macroregionales!X22 ->  | HP73: =+macroregionales!Y22 ->  | HQ73: =+macroregionales!Z22 ->  | HS73: =VLOOKUP("TC."&$HD73,'td1'!$AC$241:$AO$274,HS$59,FALSE) -> 0.9590439276 | HT73: =VLOOKUP("TC."&$HD73,'td1'!$AC$241:$AO$274,HT$59,FALSE) -> 0.8449715149 | HU73: =VLOOKUP("TC."&$HD73,'td1'!$AC$241:$AO$274,HU$59,FALSE) -> 0.854887704 | HV73: =VLOOKUP("TC."&$HD73,'td1'!$AC$241:$AO$274,HV$59,FALSE) -> 0.8144486692 | HW73: =VLOOKUP("TC."&$HD73,'td1'!$AC$241:$AO$274,HW$59,FALSE) -> 0.8372893303 | HX73: =VLOOKUP("TC."&$HD73,'td1'!$AC$241:$AO$274,HX$59,FALSE) -> 0.9023970818 | HY73: =VLOOKUP("TC."&$HD73,'td1'!$AC$241:$AO$274,HY$59,FALSE) -> 0.9319647121 | HZ73: =VLOOKUP("TC."&$HD73,'td1'!$AC$241:$AO$274,HZ$59,FALSE) -> 0.8970059004 | IA73: =VLOOKUP("TC."&$HD73,'td1'!$AC$241:$AO$274,IA$59,FALSE) -> 0.9229276148 | IB73: =VLOOKUP("TC."&$HD73,'td1'!$AC$241:$AO$274,IB$59,FALSE) ->  | IC73: =VLOOKUP("TC."&$HD73,'td1'!$AC$241:$AO$274,IC$59,FALSE) ->  | ID73: =VLOOKUP("TC."&$HD73,'td1'!$AC$241:$AO$274,ID$59,FALSE) -> 
A74: LP_11 | B74: =+X4 -> 0.9460064199 | T74: PT3 | U74: =+VLOOKUP(T74&"."&$L$58,'td1'!$AC$5:$AO$4140,$G$2,FALSE) -> 1 | AB74: A11 | AC74: =+VLOOKUP(AB74&"."&$L$58,'td1'!$AC$5:$AO$4140,$G$2,FALSE) -> 1 | BM74: 81 | BN74: Arauca | BO74: =+VLOOKUP("PA."&$BM74,'td1'!$AC$281:$AO$313,BO$60,FALSE) -> 0.7315325895 | BP74: =+VLOOKUP("PA."&$BM74,'td1'!$AC$281:$AO$313,BP$60,FALSE) -> 0.7866706515 | BQ74: =+VLOOKUP("PA."&$BM74,'td1'!$AC$281:$AO$313,BQ$60,FALSE) -> 0.7766492061 | BR74: =+VLOOKUP("PA."&$BM74,'td1'!$AC$281:$AO$313,BR$60,FALSE) -> 0.7565105507 | BS74: =+VLOOKUP("PA."&$BM74,'td1'!$AC$281:$AO$313,BS$60,FALSE) -> 0.7791136838 | BT74: =+VLOOKUP("PA."&$BM74,'td1'!$AC$281:$AO$313,BT$60,FALSE) -> 0.9220564878 | BU74: =+VLOOKUP("PA."&$BM74,'td1'!$AC$281:$AO$313,BU$60,FALSE) -> 0.8153069087 | BV74: =+VLOOKUP("PA."&$BM74,'td1'!$AC$281:$AO$313,BV$60,FALSE) -> 0.7883687259 | BW74: =+VLOOKUP("PA."&$BM74,'td1'!$AC$281:$AO$313,BW$60,FALSE) -> 0.9351696811 | BX74: =+VLOOKUP("PA."&$BM74,'td1'!$AC$281:$AO$313,BX$60,FALSE) ->  | BY74: =+VLOOKUP("PA."&$BM74,'td1'!$AC$281:$AO$313,BY$60,FALSE) ->  | BZ74: =+VLOOKUP("PA."&$BM74,'td1'!$AC$281:$AO$313,BZ$60,FALSE) ->  | CA74: 14 | CB74: 81 | CC74: Arauca | CD74: 0.9351696811 | CE74: =+CE73 -> Llanos | CG74: Guainía | CH74: 0.9572146754 | CI74: Llanos2 | CJ74: Guainía | CK74: 0.9572146754 | CL74: =+CL73 -> llanos | CM74: =VLOOKUP(CJ74,Referencias!$AB$3:$AE$40,4,FALSE) -> 94 | CR74: AntioquiaCZ Uraba | CS74: 15 | CT74: Antioquia | CU74: 516 | CV74: CZ Uraba | CW74: =+VLOOKUP("tc."&CU74,'td1'!$AC$2673:$AO$2881,$G$2,FALSE) -> 0.9766417512 | CY74: Antioquia15 | CZ74: 508 | DA74: CZ Porce Nus | DB74: 0.8465029365 | ER74: =+regional!P50 -> 7303 | ES74: =zonal!E26 -> CZ Ibague | ET74: =+IFERROR(VLOOKUP(ER74,Referencias!$AI$146:$AV$354,$ET$63,FALSE),"") -> 0.9676940507 | EU74: =+zonal!G26 -> 0.8487888648 | FL74: =+VLOOKUP(FN74,Referencias!$R$2:$S$34,2,FALSE) -> 94 | FN74: Guainía | FO74: 0.5942998761 | GG74: 1 | GX74: 0 | GY74: 0 | GZ74: 0 | HA74: 1 | HD74: =VLOOKUP(HE74,Referencias!$R$2:$S$34,2,FALSE) -> 94 | HE74: =+macroregionales!N23 -> Guainía | HF74: =+macroregionales!O23 -> 0.5301820317 | HG74: =+macroregionales!P23 -> 0.8184067181 | HH74: =+macroregionales!Q23 -> 0.8845830015 | HI74: =+macroregionales!R23 -> 0.800967118 | HJ74: =+macroregionales!S23 -> 0.9216204811 | HK74: =+macroregionales!T23 -> 0.9795300411 | HL74: =+macroregionales!U23 -> 0.9698551132 | HM74: =+macroregionales!V23 -> 0.8577023762 | HN74: =+macroregionales!W23 -> 0.9572146754 | HO74: =+macroregionales!X23 ->  | HP74: =+macroregionales!Y23 ->  | HQ74: =+macroregionales!Z23 ->  | HS74: =VLOOKUP("TC."&$HD74,'td1'!$AC$241:$AO$274,HS$59,FALSE) -> 0.5647209421 | HT74: =VLOOKUP("TC."&$HD74,'td1'!$AC$241:$AO$274,HT$59,FALSE) -> 0.7909426987 | HU74: =VLOOKUP("TC."&$HD74,'td1'!$AC$241:$AO$274,HU$59,FALSE) -> 0.8898099697 | HV74: =VLOOKUP("TC."&$HD74,'td1'!$AC$241:$AO$274,HV$59,FALSE) -> 0.8232095011 | HW74: =VLOOKUP("TC."&$HD74,'td1'!$AC$241:$AO$274,HW$59,FALSE) -> 0.8666946465 | HX74: =VLOOKUP("TC."&$HD74,'td1'!$AC$241:$AO$274,HX$59,FALSE) -> 0.9095837109 | HY74: =VLOOKUP("TC."&$HD74,'td1'!$AC$241:$AO$274,HY$59,FALSE) -> 0.9145101826 | HZ74: =VLOOKUP("TC."&$HD74,'td1'!$AC$241:$AO$274,HZ$59,FALSE) -> 0.857966607 | IA74: =VLOOKUP("TC."&$HD74,'td1'!$AC$241:$AO$274,IA$59,FALSE) -> 0.9055252007 | IB74: =VLOOKUP("TC."&$HD74,'td1'!$AC$241:$AO$274,IB$59,FALSE) ->  | IC74: =VLOOKUP("TC."&$HD74,'td1'!$AC$241:$AO$274,IC$59,FALSE) ->  | ID74: =VLOOKUP("TC."&$HD74,'td1'!$AC$241:$AO$274,ID$59,FALSE) -> 
A75: LP_12 | B75: =+X5 -> 0.9451176281 | AB75: A13 | AC75: =+VLOOKUP(AB75&"."&$L$58,'td1'!$AC$5:$AO$4140,$G$2,FALSE) -> 0.9832797428 | BM75: 85 | BN75: Casanare | BO75: =+VLOOKUP("PA."&$BM75,'td1'!$AC$281:$AO$313,BO$60,FALSE) -> 0.7650910159 | BP75: =+VLOOKUP("PA."&$BM75,'td1'!$AC$281:$AO$313,BP$60,FALSE) -> 0.7608786611 | BQ75: =+VLOOKUP("PA."&$BM75,'td1'!$AC$281:$AO$313,BQ$60,FALSE) -> 0.9240775391 | BR75: =+VLOOKUP("PA."&$BM75,'td1'!$AC$281:$AO$313,BR$60,FALSE) -> 0.8605194222 | BS75: =+VLOOKUP("PA."&$BM75,'td1'!$AC$281:$AO$313,BS$60,FALSE) -> 0.8874753874 | BT75: =+VLOOKUP("PA."&$BM75,'td1'!$AC$281:$AO$313,BT$60,FALSE) -> 0.9867585269 | BU75: =+VLOOKUP("PA."&$BM75,'td1'!$AC$281:$AO$313,BU$60,FALSE) -> 0.9083640099 | BV75: =+VLOOKUP("PA."&$BM75,'td1'!$AC$281:$AO$313,BV$60,FALSE) -> 0.9261996691 | BW75: =+VLOOKUP("PA."&$BM75,'td1'!$AC$281:$AO$313,BW$60,FALSE) -> 0.9570844251 | BX75: =+VLOOKUP("PA."&$BM75,'td1'!$AC$281:$AO$313,BX$60,FALSE) ->  | BY75: =+VLOOKUP("PA."&$BM75,'td1'!$AC$281:$AO$313,BY$60,FALSE) ->  | BZ75: =+VLOOKUP("PA."&$BM75,'td1'!$AC$281:$AO$313,BZ$60,FALSE) ->  | CA75: 15 | CB75: 85 | CC75: Casanare | CD75: 0.9570844251 | CE75: Llanos | CG75: Casanare | CH75: 0.9570844251 | CI75: Llanos3 | CJ75: Casanare | CK75: 0.9570844251 | CL75: llanos | CM75: =VLOOKUP(CJ75,Referencias!$AB$3:$AE$40,4,FALSE) -> 85 | CR75: AntioquiaCZ Oriente Medio | CS75: 16 | CT75: Antioquia | CU75: 517 | CV75: CZ Oriente Medio | CW75: =+VLOOKUP("tc."&CU75,'td1'!$AC$2673:$AO$2881,$G$2,FALSE) -> 0.9769891593 | CY75: Antioquia16 | CZ75: 504 | DA75: CZ La Meseta | DB75: 0.819554101 | ER75: =+regional!P51 ->  | ES75: =zonal!E27 ->  | ET75: =+IFERROR(VLOOKUP(ER75,Referencias!$AI$146:$AV$354,$ET$63,FALSE),"") ->  | EU75: =+zonal!G27 ->  | FL75: =+VLOOKUP(FN75,Referencias!$R$2:$S$34,2,FALSE) -> 85 | FN75: Casanare | FO75: 0.9699679658 | FP75: 0.9512195122 | FQ75: 0.780321618 | GG75: 4 | GH75: 4 | GI75: 2 | GX75: 2 | GY75: 0 | GZ75: 1 | HA75: 0 | HD75: =VLOOKUP(HE75,Referencias!$R$2:$S$34,2,FALSE) -> 85 | HE75: =+macroregionales!N24 -> Casanare | HF75: =+macroregionales!O24 -> 0.7650910159 | HG75: =+macroregionales!P24 -> 0.7608786611 | HH75: =+macroregionales!Q24 -> 0.9240775391 | HI75: =+macroregionales!R24 -> 0.8605194222 | HJ75: =+macroregionales!S24 -> 0.8874753874 | HK75: =+macroregionales!T24 -> 0.9867585269 | HL75: =+macroregionales!U24 -> 0.9083640099 | HM75: =+macroregionales!V24 -> 0.9261996691 | HN75: =+macroregionales!W24 -> 0.9570844251 | HO75: =+macroregionales!X24 ->  | HP75: =+macroregionales!Y24 ->  | HQ75: =+macroregionales!Z24 ->  | HS75: =VLOOKUP("TC."&$HD75,'td1'!$AC$241:$AO$274,HS$59,FALSE) -> 0.7674781182 | HT75: =VLOOKUP("TC."&$HD75,'td1'!$AC$241:$AO$274,HT$59,FALSE) -> 0.7682921496 | HU75: =VLOOKUP("TC."&$HD75,'td1'!$AC$241:$AO$274,HU$59,FALSE) -> 0.925356702 | HV75: =VLOOKUP("TC."&$HD75,'td1'!$AC$241:$AO$274,HV$59,FALSE) -> 0.8843912276 | HW75: =VLOOKUP("TC."&$HD75,'td1'!$AC$241:$AO$274,HW$59,FALSE) -> 0.90240079 | HX75: =VLOOKUP("TC."&$HD75,'td1'!$AC$241:$AO$274,HX$59,FALSE) -> 0.9576406785 | HY75: =VLOOKUP("TC."&$HD75,'td1'!$AC$241:$AO$274,HY$59,FALSE) -> 0.9095855384 | HZ75: =VLOOKUP("TC."&$HD75,'td1'!$AC$241:$AO$274,HZ$59,FALSE) -> 0.9249596774 | IA75: =VLOOKUP("TC."&$HD75,'td1'!$AC$241:$AO$274,IA$59,FALSE) -> 0.9591702364 | IB75: =VLOOKUP("TC."&$HD75,'td1'!$AC$241:$AO$274,IB$59,FALSE) ->  | IC75: =VLOOKUP("TC."&$HD75,'td1'!$AC$241:$AO$274,IC$59,FALSE) ->  | ID75: =VLOOKUP("TC."&$HD75,'td1'!$AC$241:$AO$274,ID$59,FALSE) -> 
A76: LP_13 | B76: =+X9 -> 0.65 | AB76: A14 | AC76: =+VLOOKUP(AB76&"."&$L$58,'td1'!$AC$5:$AO$4140,$G$2,FALSE) -> 1 | BM76: 94 | BN76: Guainía | BO76: =+VLOOKUP("PA."&$BM76,'td1'!$AC$281:$AO$313,BO$60,FALSE) -> 0.5301820317 | BP76: =+VLOOKUP("PA."&$BM76,'td1'!$AC$281:$AO$313,BP$60,FALSE) -> 0.8184067181 | BQ76: =+VLOOKUP("PA."&$BM76,'td1'!$AC$281:$AO$313,BQ$60,FALSE) -> 0.8845830015 | BR76: =+VLOOKUP("PA."&$BM76,'td1'!$AC$281:$AO$313,BR$60,FALSE) -> 0.800967118 | BS76: =+VLOOKUP("PA."&$BM76,'td1'!$AC$281:$AO$313,BS$60,FALSE) -> 0.9216204811 | BT76: =+VLOOKUP("PA."&$BM76,'td1'!$AC$281:$AO$313,BT$60,FALSE) -> 0.9795300411 | BU76: =+VLOOKUP("PA."&$BM76,'td1'!$AC$281:$AO$313,BU$60,FALSE) -> 0.9698551132 | BV76: =+VLOOKUP("PA."&$BM76,'td1'!$AC$281:$AO$313,BV$60,FALSE) -> 0.8577023762 | BW76: =+VLOOKUP("PA."&$BM76,'td1'!$AC$281:$AO$313,BW$60,FALSE) -> 0.9572146754 | BX76: =+VLOOKUP("PA."&$BM76,'td1'!$AC$281:$AO$313,BX$60,FALSE) ->  | BY76: =+VLOOKUP("PA."&$BM76,'td1'!$AC$281:$AO$313,BY$60,FALSE) ->  | BZ76: =+VLOOKUP("PA."&$BM76,'td1'!$AC$281:$AO$313,BZ$60,FALSE) ->  | CA76: 16 | CB76: 94 | CC76: Guainía | CD76: 0.9572146754 | CE76: Llanos | CG76: Arauca | CH76: 0.9351696811 | CI76: Llanos4 | CJ76: Arauca | CK76: 0.9351696811 | CL76: llanos | CM76: =VLOOKUP(CJ76,Referencias!$AB$3:$AE$40,4,FALSE) -> 81 | ER76: =+regional!P52 ->  | ES76: =zonal!E28 ->  | ET76: =+IFERROR(VLOOKUP(ER76,Referencias!$AI$146:$AV$354,$ET$63,FALSE),"") ->  | EU76: =+zonal!G28 ->  | FL76: =+VLOOKUP(FN76,Referencias!$R$2:$S$34,2,FALSE) -> 81 | FN76: Arauca | FO76: 0.9647712202 | FP76: 0.8818454481 | FQ76: 0.8320528967 | GG76: 4 | GH76: 3 | GI76: 3 | GX76: 1 | GY76: 2 | GZ76: 0 | HA76: 0 | HD76: =VLOOKUP(HE76,Referencias!$R$2:$S$34,2,FALSE) -> 81 | HE76: =+macroregionales!N25 -> Arauca | HF76: =+macroregionales!O25 -> 0.7315325895 | HG76: =+macroregionales!P25 -> 0.7866706515 | HH76: =+macroregionales!Q25 -> 0.7766492061 | HI76: =+macroregionales!R25 -> 0.7565105507 | HJ76: =+macroregionales!S25 -> 0.7791136838 | HK76: =+macroregionales!T25 -> 0.9220564878 | HL76: =+macroregionales!U25 -> 0.8153069087 | HM76: =+macroregionales!V25 -> 0.7883687259 | HN76: =+macroregionales!W25 -> 0.9351696811 | HO76: =+macroregionales!X25 ->  | HP76: =+macroregionales!Y25 ->  | HQ76: =+macroregionales!Z25 ->  | HS76: =VLOOKUP("TC."&$HD76,'td1'!$AC$241:$AO$274,HS$59,FALSE) -> 0.7496072364 | HT76: =VLOOKUP("TC."&$HD76,'td1'!$AC$241:$AO$274,HT$59,FALSE) -> 0.7912639405 | HU76: =VLOOKUP("TC."&$HD76,'td1'!$AC$241:$AO$274,HU$59,FALSE) -> 0.8132306691 | HV76: =VLOOKUP("TC."&$HD76,'td1'!$AC$241:$AO$274,HV$59,FALSE) -> 0.8218288109 | HW76: =VLOOKUP("TC."&$HD76,'td1'!$AC$241:$AO$274,HW$59,FALSE) -> 0.8235166032 | HX76: =VLOOKUP("TC."&$HD76,'td1'!$AC$241:$AO$274,HX$59,FALSE) -> 0.8977818539 | HY76: =VLOOKUP("TC."&$HD76,'td1'!$AC$241:$AO$274,HY$59,FALSE) -> 0.8529939942 | HZ76: =VLOOKUP("TC."&$HD76,'td1'!$AC$241:$AO$274,HZ$59,FALSE) -> 0.8203449821 | IA76: =VLOOKUP("TC."&$HD76,'td1'!$AC$241:$AO$274,IA$59,FALSE) -> 0.9429533721 | IB76: =VLOOKUP("TC."&$HD76,'td1'!$AC$241:$AO$274,IB$59,FALSE) ->  | IC76: =VLOOKUP("TC."&$HD76,'td1'!$AC$241:$AO$274,IC$59,FALSE) ->  | ID76: =VLOOKUP("TC."&$HD76,'td1'!$AC$241:$AO$274,ID$59,FALSE) -> 
A77: LP_14 | B77: =+X13 -> 0.9336721167 | AB77: A15 | AC77: =+VLOOKUP(AB77&"."&$L$58,'td1'!$AC$5:$AO$4140,$G$2,FALSE) -> 1 | BM77: 95 | BN77: Guaviare | BO77: =+VLOOKUP("PA."&$BM77,'td1'!$AC$281:$AO$313,BO$60,FALSE) -> 0.9598383696 | BP77: =+VLOOKUP("PA."&$BM77,'td1'!$AC$281:$AO$313,BP$60,FALSE) -> 0.8633592349 | BQ77: =+VLOOKUP("PA."&$BM77,'td1'!$AC$281:$AO$313,BQ$60,FALSE) -> 0.8421345556 | BR77: =+VLOOKUP("PA."&$BM77,'td1'!$AC$281:$AO$313,BR$60,FALSE) -> 0.7636519889 | BS77: =+VLOOKUP("PA."&$BM77,'td1'!$AC$281:$AO$313,BS$60,FALSE) -> 0.7791136838 | BT77: =+VLOOKUP("PA."&$BM77,'td1'!$AC$281:$AO$313,BT$60,FALSE) -> 0.8859874044 | BU77: =+VLOOKUP("PA."&$BM77,'td1'!$AC$281:$AO$313,BU$60,FALSE) -> 0.9650239489 | BV77: =+VLOOKUP("PA."&$BM77,'td1'!$AC$281:$AO$313,BV$60,FALSE) -> 0.9418756081 | BW77: =+VLOOKUP("PA."&$BM77,'td1'!$AC$281:$AO$313,BW$60,FALSE) -> 0.9839607814 | BX77: =+VLOOKUP("PA."&$BM77,'td1'!$AC$281:$AO$313,BX$60,FALSE) ->  | BY77: =+VLOOKUP("PA."&$BM77,'td1'!$AC$281:$AO$313,BY$60,FALSE) ->  | BZ77: =+VLOOKUP("PA."&$BM77,'td1'!$AC$281:$AO$313,BZ$60,FALSE) ->  | CA77: 17 | CB77: 95 | CC77: Guaviare | CD77: 0.9839607814 | CE77: Llanos | CG77: Meta | CH77: 0.9090172722 | CI77: Llanos5 | CJ77: Meta | CK77: 0.9090172722 | CL77: llanos | CM77: =VLOOKUP(CJ77,Referencias!$AB$3:$AE$40,4,FALSE) -> 50 | CR77: AtlánticoCZ Norte Centro Historico | CS77: 1 | CT77: Atlántico | CU77: 801 | CV77: CZ Norte Centro Historico | CW77: =+VLOOKUP("tc."&CU77,'td1'!$AC$2673:$AO$2881,$G$2,FALSE) -> 0.9539783187 | CY77: Atlántico1 | CZ77: 803 | DA77: CZ Baranoa | DB77: 0.9958554377 | ER77: =+regional!P53 ->  | ES77: =zonal!E29 ->  | ET77: =+IFERROR(VLOOKUP(ER77,Referencias!$AI$146:$AV$354,$ET$63,FALSE),"") ->  | EU77: =+zonal!G29 ->  | FL77: =+VLOOKUP(FN77,Referencias!$R$2:$S$34,2,FALSE) -> 50 | FN77: Meta | FO77: 0.9790940767 | FP77: 0.9767657993 | FQ77: 0.9683902439 | FR77: 0.8867456446 | FS77: 0.8487888648 | GG77: 4 | GH77: 4 | GI77: 4 | GJ77: 3 | GK77: 3 | GX77: 3 | GY77: 2 | GZ77: 0 | HA77: 0 | HD77: =VLOOKUP(HE77,Referencias!$R$2:$S$34,2,FALSE) -> 50 | HE77: =+macroregionales!N26 -> Meta | HF77: =+macroregionales!O26 -> 0.9664415737 | HG77: =+macroregionales!P26 -> 0.876145501 | HH77: =+macroregionales!Q26 -> 0.9540195808 | HI77: =+macroregionales!R26 -> 0.9233515455 | HJ77: =+macroregionales!S26 -> 0.9466740861 | HK77: =+macroregionales!T26 -> 0.9716525858 | HL77: =+macroregionales!U26 -> 0.9425134834 | HM77: =+macroregionales!V26 -> 0.9543367347 | HN77: =+macroregionales!W26 -> 0.9090172722 | HO77: =+macroregionales!X26 ->  | HP77: =+macroregionales!Y26 ->  | HQ77: =+macroregionales!Z26 ->  | HS77: =VLOOKUP("TC."&$HD77,'td1'!$AC$241:$AO$274,HS$59,FALSE) -> 0.9698167103 | HT77: =VLOOKUP("TC."&$HD77,'td1'!$AC$241:$AO$274,HT$59,FALSE) -> 0.8909688013 | HU77: =VLOOKUP("TC."&$HD77,'td1'!$AC$241:$AO$274,HU$59,FALSE) -> 0.9596504346 | HV77: =VLOOKUP("TC."&$HD77,'td1'!$AC$241:$AO$274,HV$59,FALSE) -> 0.9353113184 | HW77: =VLOOKUP("TC."&$HD77,'td1'!$AC$241:$AO$274,HW$59,FALSE) -> 0.9502005801 | HX77: =VLOOKUP("TC."&$HD77,'td1'!$AC$241:$AO$274,HX$59,FALSE) -> 0.9745593443 | HY77: =VLOOKUP("TC."&$HD77,'td1'!$AC$241:$AO$274,HY$59,FALSE) -> 0.9502066236 | HZ77: =VLOOKUP("TC."&$HD77,'td1'!$AC$241:$AO$274,HZ$59,FALSE) -> 0.9589314054 | IA77: =VLOOKUP("TC."&$HD77,'td1'!$AC$241:$AO$274,IA$59,FALSE) -> 0.9359409924 | IB77: =VLOOKUP("TC."&$HD77,'td1'!$AC$241:$AO$274,IB$59,FALSE) ->  | IC77: =VLOOKUP("TC."&$HD77,'td1'!$AC$241:$AO$274,IC$59,FALSE) ->  | ID77: =VLOOKUP("TC."&$HD77,'td1'!$AC$241:$AO$274,ID$59,FALSE) -> 
A78: LP_15 | B78: =+X19 -> 1 | D78: Plan de Acción | BM78: 97 | BN78: Vaupés | BO78: =+VLOOKUP("PA."&$BM78,'td1'!$AC$281:$AO$313,BO$60,FALSE) -> 1 | BP78: =+VLOOKUP("PA."&$BM78,'td1'!$AC$281:$AO$313,BP$60,FALSE) -> 1 | BQ78: =+VLOOKUP("PA."&$BM78,'td1'!$AC$281:$AO$313,BQ$60,FALSE) -> 0.986921266 | BR78: =+VLOOKUP("PA."&$BM78,'td1'!$AC$281:$AO$313,BR$60,FALSE) -> 0.9356526288 | BS78: =+VLOOKUP("PA."&$BM78,'td1'!$AC$281:$AO$313,BS$60,FALSE) -> 0.8979888036 | BT78: =+VLOOKUP("PA."&$BM78,'td1'!$AC$281:$AO$313,BT$60,FALSE) -> 0.9249410251 | BU78: =+VLOOKUP("PA."&$BM78,'td1'!$AC$281:$AO$313,BU$60,FALSE) -> 0.854862119 | BV78: =+VLOOKUP("PA."&$BM78,'td1'!$AC$281:$AO$313,BV$60,FALSE) -> 0.8938006801 | BW78: =+VLOOKUP("PA."&$BM78,'td1'!$AC$281:$AO$313,BW$60,FALSE) -> 0.9084488622 | BX78: =+VLOOKUP("PA."&$BM78,'td1'!$AC$281:$AO$313,BX$60,FALSE) ->  | BY78: =+VLOOKUP("PA."&$BM78,'td1'!$AC$281:$AO$313,BY$60,FALSE) ->  | BZ78: =+VLOOKUP("PA."&$BM78,'td1'!$AC$281:$AO$313,BZ$60,FALSE) ->  | CA78: 18 | CB78: 97 | CC78: Vaupés | CD78: 0.9084488622 | CE78: Llanos | CG78: Vaupés | CH78: 0.9084488622 | CI78: Llanos6 | CJ78: Vaupés | CK78: 0.9084488622 | CL78: llanos | CM78: =VLOOKUP(CJ78,Referencias!$AB$3:$AE$40,4,FALSE) -> 97 | CR78: AtlánticoCZ Suroccidente | CS78: 2 | CT78: Atlántico | CU78: 802 | CV78: CZ Suroccidente | CW78: =+VLOOKUP("tc."&CU78,'td1'!$AC$2673:$AO$2881,$G$2,FALSE) -> 0.9034814324 | CY78: Atlántico2 | CZ78: 801 | DA78: CZ Suroriente | DB78: 0.9923297198 | ER78: =+regional!P54 ->  | ES78: =zonal!E30 ->  | ET78: =+IFERROR(VLOOKUP(ER78,Referencias!$AI$146:$AV$354,$ET$63,FALSE),"") ->  | EU78: =+zonal!G30 ->  | FL78: =+VLOOKUP(FN78,Referencias!$R$2:$S$34,2,FALSE) -> 97 | FN78: Vaupés | FO78: 0.7643069798 | GG78: 2 | GX78: 0 | GY78: 0 | GZ78: 1 | HA78: 0 | HD78: =VLOOKUP(HE78,Referencias!$R$2:$S$34,2,FALSE) -> 97 | HE78: =+macroregionales!N27 -> Vaupés | HF78: =+macroregionales!O27 -> 1 | HG78: =+macroregionales!P27 -> 1 | HH78: =+macroregionales!Q27 -> 0.986921266 | HI78: =+macroregionales!R27 -> 0.9356526288 | HJ78: =+macroregionales!S27 -> 0.8979888036 | HK78: =+macroregionales!T27 -> 0.9249410251 | HL78: =+macroregionales!U27 -> 0.854862119 | HM78: =+macroregionales!V27 -> 0.8938006801 | HN78: =+macroregionales!W27 -> 0.9084488622 | HO78: =+macroregionales!X27 ->  | HP78: =+macroregionales!Y27 ->  | HQ78: =+macroregionales!Z27 ->  | HS78: =VLOOKUP("TC."&$HD78,'td1'!$AC$241:$AO$274,HS$59,FALSE) -> 1 | HT78: =VLOOKUP("TC."&$HD78,'td1'!$AC$241:$AO$274,HT$59,FALSE) -> 0.9555819477 | HU78: =VLOOKUP("TC."&$HD78,'td1'!$AC$241:$AO$274,HU$59,FALSE) -> 0.9604166667 | HV78: =VLOOKUP("TC."&$HD78,'td1'!$AC$241:$AO$274,HV$59,FALSE) -> 0.9375650781 | HW78: =VLOOKUP("TC."&$HD78,'td1'!$AC$241:$AO$274,HW$59,FALSE) -> 0.9355681818 | HX78: =VLOOKUP("TC."&$HD78,'td1'!$AC$241:$AO$274,HX$59,FALSE) -> 0.9093110719 | HY78: =VLOOKUP("TC."&$HD78,'td1'!$AC$241:$AO$274,HY$59,FALSE) -> 0.9043334998 | HZ78: =VLOOKUP("TC."&$HD78,'td1'!$AC$241:$AO$274,HZ$59,FALSE) -> 0.9106996837 | IA78: =VLOOKUP("TC."&$HD78,'td1'!$AC$241:$AO$274,IA$59,FALSE) -> 0.9274313921 | IB78: =VLOOKUP("TC."&$HD78,'td1'!$AC$241:$AO$274,IB$59,FALSE) ->  | IC78: =VLOOKUP("TC."&$HD78,'td1'!$AC$241:$AO$274,IC$59,FALSE) ->  | ID78: =VLOOKUP("TC."&$HD78,'td1'!$AC$241:$AO$274,ID$59,FALSE) -> 
A79: antioquia1 | B79: =+VLOOKUP("PA."&C79,'td1'!$AC$5:$AO$4140,$G$2,FALSE) -> 0.9716942545 | C79: 5 | BM79: 99 | BN79: Vichada | BO79: =+VLOOKUP("PA."&$BM79,'td1'!$AC$281:$AO$313,BO$60,FALSE) -> 0.5301820317 | BP79: =+VLOOKUP("PA."&$BM79,'td1'!$AC$281:$AO$313,BP$60,FALSE) -> 0.711623716 | BQ79: =+VLOOKUP("PA."&$BM79,'td1'!$AC$281:$AO$313,BQ$60,FALSE) -> 0.7921834111 | BR79: =+VLOOKUP("PA."&$BM79,'td1'!$AC$281:$AO$313,BR$60,FALSE) -> 0.7921834111 | BS79: =+VLOOKUP("PA."&$BM79,'td1'!$AC$281:$AO$313,BS$60,FALSE) -> 0.7588268392 | BT79: =+VLOOKUP("PA."&$BM79,'td1'!$AC$281:$AO$313,BT$60,FALSE) -> 0.9858849077 | BU79: =+VLOOKUP("PA."&$BM79,'td1'!$AC$281:$AO$313,BU$60,FALSE) -> 0.9356871571 | BV79: =+VLOOKUP("PA."&$BM79,'td1'!$AC$281:$AO$313,BV$60,FALSE) -> 0.8517821184 | BW79: =+VLOOKUP("PA."&$BM79,'td1'!$AC$281:$AO$313,BW$60,FALSE) -> 0.8932640367 | BX79: =+VLOOKUP("PA."&$BM79,'td1'!$AC$281:$AO$313,BX$60,FALSE) ->  | BY79: =+VLOOKUP("PA."&$BM79,'td1'!$AC$281:$AO$313,BY$60,FALSE) ->  | BZ79: =+VLOOKUP("PA."&$BM79,'td1'!$AC$281:$AO$313,BZ$60,FALSE) ->  | CA79: 19 | CB79: 99 | CC79: Vichada | CD79: 0.8932640367 | CE79: Llanos | CG79: Vichada | CH79: 0.8932640367 | CI79: Llanos7 | CJ79: Vichada | CK79: 0.8932640367 | CL79: llanos | CM79: =VLOOKUP(CJ79,Referencias!$AB$3:$AE$40,4,FALSE) -> 99 | CR79: AtlánticoCZ Baranoa | CS79: 3 | CT79: Atlántico | CU79: 803 | CV79: CZ Baranoa | CW79: =+VLOOKUP("tc."&CU79,'td1'!$AC$2673:$AO$2881,$G$2,FALSE) -> 0.9958554377 | CY79: Atlántico3 | CZ79: 805 | DA79: CZ Sabanagrande | DB79: 0.9792771883 | ER79: =+regional!P55 ->  | ES79: =zonal!E31 ->  | ET79: =+IFERROR(VLOOKUP(ER79,Referencias!$AI$146:$AV$354,$ET$63,FALSE),"") ->  | EU79: =+zonal!G31 ->  | FL79: =+VLOOKUP(FN79,Referencias!$R$2:$S$34,2,FALSE) -> 99 | FN79: Vichada | FO79: 0.8279840849 | GG79: 3 | GX79: 0 | GY79: 1 | GZ79: 0 | HA79: 0 | HD79: =VLOOKUP(HE79,Referencias!$R$2:$S$34,2,FALSE) -> 99 | HE79: =+macroregionales!N28 -> Vichada | HF79: =+macroregionales!O28 -> 0.5301820317 | HG79: =+macroregionales!P28 -> 0.711623716 | HH79: =+macroregionales!Q28 -> 0.7921834111 | HI79: =+macroregionales!R28 -> 0.7921834111 | HJ79: =+macroregionales!S28 -> 0.7588268392 | HK79: =+macroregionales!T28 -> 0.9858849077 | HL79: =+macroregionales!U28 -> 0.9356871571 | HM79: =+macroregionales!V28 -> 0.8517821184 | HN79: =+macroregionales!W28 -> 0.8932640367 | HO79: =+macroregionales!X28 ->  | HP79: =+macroregionales!Y28 ->  | HQ79: =+macroregionales!Z28 ->  | HS79: =VLOOKUP("TC."&$HD79,'td1'!$AC$241:$AO$274,HS$59,FALSE) -> 0.6396717374 | HT79: =VLOOKUP("TC."&$HD79,'td1'!$AC$241:$AO$274,HT$59,FALSE) -> 0.7486330103 | HU79: =VLOOKUP("TC."&$HD79,'td1'!$AC$241:$AO$274,HU$59,FALSE) -> 0.8011723173 | HV79: =VLOOKUP("TC."&$HD79,'td1'!$AC$241:$AO$274,HV$59,FALSE) -> 0.7949449653 | HW79: =VLOOKUP("TC."&$HD79,'td1'!$AC$241:$AO$274,HW$59,FALSE) -> 0.7523342791 | HX79: =VLOOKUP("TC."&$HD79,'td1'!$AC$241:$AO$274,HX$59,FALSE) -> 0.8766291351 | HY79: =VLOOKUP("TC."&$HD79,'td1'!$AC$241:$AO$274,HY$59,FALSE) -> 0.8859289506 | HZ79: =VLOOKUP("TC."&$HD79,'td1'!$AC$241:$AO$274,HZ$59,FALSE) -> 0.8220700924 | IA79: =VLOOKUP("TC."&$HD79,'td1'!$AC$241:$AO$274,IA$59,FALSE) -> 0.8527497881 | IB79: =VLOOKUP("TC."&$HD79,'td1'!$AC$241:$AO$274,IB$59,FALSE) ->  | IC79: =VLOOKUP("TC."&$HD79,'td1'!$AC$241:$AO$274,IC$59,FALSE) ->  | ID79: =VLOOKUP("TC."&$HD79,'td1'!$AC$241:$AO$274,ID$59,FALSE) -> 
A80: atlantico1 | B80: =+VLOOKUP("PA."&C80,'td1'!$AC$5:$AO$4140,$G$2,FALSE) -> 0.9294401429 | C80: 8 | CA80: 20 | CR80: AtlánticoCZ Sabanalarga | CS80: 4 | CT80: Atlántico | CU80: 804 | CV80: CZ Sabanalarga | CW80: =+VLOOKUP("tc."&CU80,'td1'!$AC$2673:$AO$2881,$G$2,FALSE) -> 0.8675818815 | CY80: Atlántico4 | CZ80: 807 | DA80: CZ Norte Centro Historico | DB80: 0.9539783187 | ER80: =+regional!P56 ->  | ES80: =zonal!E32 ->  | ET80: =+IFERROR(VLOOKUP(ER80,Referencias!$AI$146:$AV$354,$ET$63,FALSE),"") ->  | EU80: =+zonal!G32 -> 
A81: bogota1 | B81: =+VLOOKUP("PA."&C81,'td1'!$AC$5:$AO$4140,$G$2,FALSE) -> 0.873344851 | C81: 11 | BM81: 5 | BN81: Antioquia | BO81: =+VLOOKUP("PA."&$BM81,'td1'!$AC$281:$AO$313,BO$60,FALSE) -> 0.9713462021 | BP81: =+VLOOKUP("PA."&$BM81,'td1'!$AC$281:$AO$313,BP$60,FALSE) -> 0.9708232291 | BQ81: =+VLOOKUP("PA."&$BM81,'td1'!$AC$281:$AO$313,BQ$60,FALSE) -> 0.9300606729 | BR81: =+VLOOKUP("PA."&$BM81,'td1'!$AC$281:$AO$313,BR$60,FALSE) -> 0.9073123269 | BS81: =+VLOOKUP("PA."&$BM81,'td1'!$AC$281:$AO$313,BS$60,FALSE) -> 0.9168307508 | BT81: =+VLOOKUP("PA."&$BM81,'td1'!$AC$281:$AO$313,BT$60,FALSE) -> 0.9357880764 | BU81: =+VLOOKUP("PA."&$BM81,'td1'!$AC$281:$AO$313,BU$60,FALSE) -> 0.9461861142 | BV81: =+VLOOKUP("PA."&$BM81,'td1'!$AC$281:$AO$313,BV$60,FALSE) -> 0.9242496819 | BW81: =+VLOOKUP("PA."&$BM81,'td1'!$AC$281:$AO$313,BW$60,FALSE) -> 0.9716942545 | BX81: =+VLOOKUP("PA."&$BM81,'td1'!$AC$281:$AO$313,BX$60,FALSE) ->  | BY81: =+VLOOKUP("PA."&$BM81,'td1'!$AC$281:$AO$313,BY$60,FALSE) ->  | BZ81: =+VLOOKUP("PA."&$BM81,'td1'!$AC$281:$AO$313,BZ$60,FALSE) ->  | CA81: 21 | CB81: 5 | CC81: Antioquia | CD81: 0.9716942545 | CE81: Eje Cafetero | CF81: Eje Cafetero | CG81: Quindío | CH81: 0.9863040838 | CI81: Eje Cafetero1 | CJ81: =+CG81 -> Quindío | CK81: 0.9863040838 | CL81: cafetero | CM81: =VLOOKUP(CJ81,Referencias!$AB$3:$AE$40,4,FALSE) -> 63 | CR81: AtlánticoCZ Sabanagrande | CS81: 5 | CT81: Atlántico | CU81: 805 | CV81: CZ Sabanagrande | CW81: =+VLOOKUP("tc."&CU81,'td1'!$AC$2673:$AO$2881,$G$2,FALSE) -> 0.9792771883 | CY81: Atlántico5 | CZ81: 806 | DA81: CZ Suroccidente | DB81: 0.9034814324 | ER81: =+regional!P57 ->  | ES81: =zonal!E33 ->  | ET81: =+IFERROR(VLOOKUP(ER81,Referencias!$AI$146:$AV$354,$ET$63,FALSE),"") ->  | EU81: =+zonal!G33 ->  | FL81: =+VLOOKUP(FN81,Referencias!$R$2:$S$34,2,FALSE) -> 63 | FM81: Eje Cafetero | FN81: =+CG81 -> Quindío | FO81: =IFERROR(VLOOKUP($FN81&FO$60,$CY$60:$DB$300,4,FALSE),"") -> 0.9772049072 | FP81: 0.9732427056 | FQ81: 0.9709880637 | GE81: =IFERROR(VLOOKUP($FN81&GE$60,$CY$60:$DB$300,4,FALSE),"") ->  | GG81: =+ IF(FO81="","",IF(FO81>90%,4,IF(FO81>80%,3,IF(FO81>70%,2,1)))) -> 4 | GH81: 4 | GI81: 4 | GW81: =+ IF(GE81="","",IF(GE81>90%,4,IF(GE81>80%,3,IF(GE81>70%,2,1)))) ->  | GX81: 3 | GY81: 0 | GZ81: 0 | HA81: 0 | HD81: =VLOOKUP(HE81,Referencias!$R$2:$S$34,2,FALSE) -> 63 | HE81: =+macroregionales!N30 -> Quindío | HF81: =+macroregionales!O30 -> 1 | HG81: =+macroregionales!P30 -> 1 | HH81: =+macroregionales!Q30 -> 0.9754182156 | HI81: =+macroregionales!R30 -> 0.9497417858 | HJ81: =+macroregionales!S30 -> 0.9624775276 | HK81: =+macroregionales!T30 -> 0.9867585269 | HL81: =+macroregionales!U30 -> 0.981653968 | HM81: =+macroregionales!V30 -> 0.9797694783 | HN81: =+macroregionales!W30 -> 0.9863040838 | HO81: =+macroregionales!X30 ->  | HP81: =+macroregionales!Y30 ->  | HQ81: =+macroregionales!Z30 ->  | HS81: =VLOOKUP("TC."&$HD81,'td1'!$AC$241:$AO$274,HS$59,FALSE) -> 1 | HT81: =VLOOKUP("TC."&$HD81,'td1'!$AC$241:$AO$274,HT$59,FALSE) -> 0.9985466806 | HU81: =VLOOKUP("TC."&$HD81,'td1'!$AC$241:$AO$274,HU$59,FALSE) -> 0.9735300985 | HV81: =VLOOKUP("TC."&$HD81,'td1'!$AC$241:$AO$274,HV$59,FALSE) -> 0.9514242501 | HW81: =VLOOKUP("TC."&$HD81,'td1'!$AC$241:$AO$274,HW$59,FALSE) -> 0.9641856446 | HX81: =VLOOKUP("TC."&$HD81,'td1'!$AC$241:$AO$274,HX$59,FALSE) -> 0.9784722489 | HY81: =VLOOKUP("TC."&$HD81,'td1'!$AC$241:$AO$274,HY$59,FALSE) -> 0.9770589285 | HZ81: =VLOOKUP("TC."&$HD81,'td1'!$AC$241:$AO$274,HZ$59,FALSE) -> 0.9728528499 | IA81: =VLOOKUP("TC."&$HD81,'td1'!$AC$241:$AO$274,IA$59,FALSE) -> 0.9775815708 | IB81: =VLOOKUP("TC."&$HD81,'td1'!$AC$241:$AO$274,IB$59,FALSE) ->  | IC81: =VLOOKUP("TC."&$HD81,'td1'!$AC$241:$AO$274,IC$59,FALSE) ->  | ID81: =VLOOKUP("TC."&$HD81,'td1'!$AC$241:$AO$274,ID$59,FALSE) -> 
A82: bolivar1 | B82: =+VLOOKUP("PA."&C82,'td1'!$AC$5:$AO$4140,$G$2,FALSE) -> 0.9398570578 | C82: 13 | BM82: 17 | BN82: Caldas | BO82: =+VLOOKUP("PA."&$BM82,'td1'!$AC$281:$AO$313,BO$60,FALSE) -> 0.8887008134 | BP82: =+VLOOKUP("PA."&$BM82,'td1'!$AC$281:$AO$313,BP$60,FALSE) -> 0.8832929164 | BQ82: =+VLOOKUP("PA."&$BM82,'td1'!$AC$281:$AO$313,BQ$60,FALSE) -> 0.9221800883 | BR82: =+VLOOKUP("PA."&$BM82,'td1'!$AC$281:$AO$313,BR$60,FALSE) -> 0.8761112413 | BS82: =+VLOOKUP("PA."&$BM82,'td1'!$AC$281:$AO$313,BS$60,FALSE) -> 0.9033729989 | BT82: =+VLOOKUP("PA."&$BM82,'td1'!$AC$281:$AO$313,BT$60,FALSE) -> 0.9479856649 | BU82: =+VLOOKUP("PA."&$BM82,'td1'!$AC$281:$AO$313,BU$60,FALSE) -> 0.9718688468 | BV82: =+VLOOKUP("PA."&$BM82,'td1'!$AC$281:$AO$313,BV$60,FALSE) -> 0.9659197463 | BW82: =+VLOOKUP("PA."&$BM82,'td1'!$AC$281:$AO$313,BW$60,FALSE) -> 0.9417982709 | BX82: =+VLOOKUP("PA."&$BM82,'td1'!$AC$281:$AO$313,BX$60,FALSE) ->  | BY82: =+VLOOKUP("PA."&$BM82,'td1'!$AC$281:$AO$313,BY$60,FALSE) ->  | BZ82: =+VLOOKUP("PA."&$BM82,'td1'!$AC$281:$AO$313,BZ$60,FALSE) ->  | CA82: 22 | CB82: 17 | CC82: Caldas | CD82: 0.9417982709 | CE82: =+CE81 -> Eje Cafetero | CG82: Risaralda | CH82: 0.9736212031 | CI82: Eje Cafetero2 | CJ82: Risaralda | CK82: 0.9736212031 | CL82: =+CL81 -> cafetero | CM82: =VLOOKUP(CJ82,Referencias!$AB$3:$AE$40,4,FALSE) -> 66 | CR82: AtlánticoCZ Hipodromo | CS82: 6 | CT82: Atlántico | CU82: 806 | CV82: CZ Hipodromo | CW82: =+VLOOKUP("tc."&CU82,'td1'!$AC$2673:$AO$2881,$G$2,FALSE) -> 0.864097561 | CY82: Atlántico6 | CZ82: 802 | DA82: CZ Sabanalarga | DB82: 0.8675818815 | ER82: =+regional!P58 ->  | ES82: =zonal!E34 ->  | ET82: =+IFERROR(VLOOKUP(ER82,Referencias!$AI$146:$AR$354,$ET$63,FALSE),"") ->  | FL82: =+VLOOKUP(FN82,Referencias!$R$2:$S$34,2,FALSE) -> 66 | FN82: =+CG82 -> Risaralda | FO82: 0.9939655172 | FP82: 0.9400942679 | FQ82: 0.8453446732 | FR82: 0.8084475353 | FS82: 0.7503262643 | GG82: 4 | GH82: 4 | GI82: 3 | GJ82: 3 | GK82: 2 | GX82: 2 | GY82: 2 | GZ82: 1 | HA82: 0 | HD82: =VLOOKUP(HE82,Referencias!$R$2:$S$34,2,FALSE) -> 66 | HE82: =+macroregionales!N31 -> Risaralda | HF82: =+macroregionales!O31 -> 0.6848082226 | HG82: =+macroregionales!P31 -> 0.8832929164 | HH82: =+macroregionales!Q31 -> 0.9694635962 | HI82: =+macroregionales!R31 -> 0.928440985 | HJ82: =+macroregionales!S31 -> 0.8935878778 | HK82: =+macroregionales!T31 -> 0.9518150863 | HL82: =+macroregionales!U31 -> 0.9620837257 | HM82: =+macroregionales!V31 -> 0.9333356315 | HN82: =+macroregionales!W31 -> 0.9736212031 | HO82: =+macroregionales!X31 ->  | HP82: =+macroregionales!Y31 ->  | HQ82: =+macroregionales!Z31 ->  | HS82: =VLOOKUP("TC."&$HD82,'td1'!$AC$241:$AO$274,HS$59,FALSE) -> 0.6886529842 | HT82: =VLOOKUP("TC."&$HD82,'td1'!$AC$241:$AO$274,HT$59,FALSE) -> 0.8716201769 | HU82: =VLOOKUP("TC."&$HD82,'td1'!$AC$241:$AO$274,HU$59,FALSE) -> 0.9558416674 | HV82: =VLOOKUP("TC."&$HD82,'td1'!$AC$241:$AO$274,HV$59,FALSE) -> 0.9320342828 | HW82: =VLOOKUP("TC."&$HD82,'td1'!$AC$241:$AO$274,HW$59,FALSE) -> 0.9140282664 | HX82: =VLOOKUP("TC."&$HD82,'td1'!$AC$241:$AO$274,HX$59,FALSE) -> 0.9574268921 | HY82: =VLOOKUP("TC."&$HD82,'td1'!$AC$241:$AO$274,HY$59,FALSE) -> 0.9494737468 | HZ82: =VLOOKUP("TC."&$HD82,'td1'!$AC$241:$AO$274,HZ$59,FALSE) -> 0.9398252688 | IA82: =VLOOKUP("TC."&$HD82,'td1'!$AC$241:$AO$274,IA$59,FALSE) -> 0.9722590194 | IB82: =VLOOKUP("TC."&$HD82,'td1'!$AC$241:$AO$274,IB$59,FALSE) ->  | IC82: =VLOOKUP("TC."&$HD82,'td1'!$AC$241:$AO$274,IC$59,FALSE) ->  | ID82: =VLOOKUP("TC."&$HD82,'td1'!$AC$241:$AO$274,ID$59,FALSE) -> 
A83: boyaca1 | B83: =+VLOOKUP("PA."&C83,'td1'!$AC$5:$AO$4140,$G$2,FALSE) -> 0.9480594805 | C83: 15 | BM83: 63 | BN83: Quindío | BO83: =+VLOOKUP("PA."&$BM83,'td1'!$AC$281:$AO$313,BO$60,FALSE) -> 1 | BP83: =+VLOOKUP("PA."&$BM83,'td1'!$AC$281:$AO$313,BP$60,FALSE) -> 1 | BQ83: =+VLOOKUP("PA."&$BM83,'td1'!$AC$281:$AO$313,BQ$60,FALSE) -> 0.9754182156 | BR83: =+VLOOKUP("PA."&$BM83,'td1'!$AC$281:$AO$313,BR$60,FALSE) -> 0.9497417858 | BS83: =+VLOOKUP("PA."&$BM83,'td1'!$AC$281:$AO$313,BS$60,FALSE) -> 0.9624775276 | BT83: =+VLOOKUP("PA."&$BM83,'td1'!$AC$281:$AO$313,BT$60,FALSE) -> 0.9867585269 | BU83: =+VLOOKUP("PA."&$BM83,'td1'!$AC$281:$AO$313,BU$60,FALSE) -> 0.981653968 | BV83: =+VLOOKUP("PA."&$BM83,'td1'!$AC$281:$AO$313,BV$60,FALSE) -> 0.9797694783 | BW83: =+VLOOKUP("PA."&$BM83,'td1'!$AC$281:$AO$313,BW$60,FALSE) -> 0.9863040838 | BX83: =+VLOOKUP("PA."&$BM83,'td1'!$AC$281:$AO$313,BX$60,FALSE) ->  | BY83: =+VLOOKUP("PA."&$BM83,'td1'!$AC$281:$AO$313,BY$60,FALSE) ->  | BZ83: =+VLOOKUP("PA."&$BM83,'td1'!$AC$281:$AO$313,BZ$60,FALSE) ->  | CA83: 23 | CB83: 63 | CC83: Quindío | CD83: 0.9863040838 | CE83: =+CE82 -> Eje Cafetero | CG83: Antioquia | CH83: 0.9716942545 | CI83: Eje Cafetero3 | CJ83: Antioquia | CK83: 0.9716942545 | CL83: =+CL82 -> cafetero | CM83: =VLOOKUP(CJ83,Referencias!$AB$3:$AE$40,4,FALSE) -> 5 | CR83: AtlánticoCZ Suroriente | CS83: 7 | CT83: Atlántico | CU83: 807 | CV83: CZ Suroriente | CW83: =+VLOOKUP("tc."&CU83,'td1'!$AC$2673:$AO$2881,$G$2,FALSE) -> 0.9923297198 | CY83: Atlántico7 | CZ83: 804 | DA83: CZ Hipodromo | DB83: 0.864097561 | ES83: Objetivos SIGE | FL83: =+VLOOKUP(FN83,Referencias!$R$2:$S$34,2,FALSE) -> 5 | FN83: =+CG83 -> Antioquia | FO83: 0.9834217507 | FP83: 0.9769891593 | FQ83: 0.9766417512 | FR83: 0.9744323993 | FS83: 0.9606266578 | FT83: 0.9544098143 | FU83: 0.9544098143 | FV83: 0.9544098143 | FW83: 0.9461206897 | FX83: 0.9411945183 | FY83: 0.940455187 | FZ83: 0.9281767956 | GA83: 0.9043940126 | GB83: 0.8607839529 | GC83: 0.8465029365 | GD83: 0.819554101 | GG83: 4 | GH83: 4 | GI83: 4 | GJ83: 4 | GK83: 4 | GL83: 4 | GM83: 4 | GN83: 4 | GO83: 4 | GP83: 4 | GQ83: 4 | GR83: 4 | GS83: 4 | GT83: 3 | GU83: 3 | GV83: 3 | GX83: 13 | GY83: 3 | GZ83: 0 | HA83: 0 | HD83: =VLOOKUP(HE83,Referencias!$R$2:$S$34,2,FALSE) -> 5 | HE83: =+macroregionales!N32 -> Antioquia | HF83: =+macroregionales!O32 -> 0.9713462021 | HG83: =+macroregionales!P32 -> 0.9708232291 | HH83: =+macroregionales!Q32 -> 0.9300606729 | HI83: =+macroregionales!R32 -> 0.9073123269 | HJ83: =+macroregionales!S32 -> 0.9168307508 | HK83: =+macroregionales!T32 -> 0.9357880764 | HL83: =+macroregionales!U32 -> 0.9461861142 | HM83: =+macroregionales!V32 -> 0.9242496819 | HN83: =+macroregionales!W32 -> 0.9716942545 | HO83: =+macroregionales!X32 ->  | HP83: =+macroregionales!Y32 ->  | HQ83: =+macroregionales!Z32 ->  | HS83: =VLOOKUP("TC."&$HD83,'td1'!$AC$241:$AO$274,HS$59,FALSE) -> 0.9656563545 | HT83: =VLOOKUP("TC."&$HD83,'td1'!$AC$241:$AO$274,HT$59,FALSE) -> 0.9273398775 | HU83: =VLOOKUP("TC."&$HD83,'td1'!$AC$241:$AO$274,HU$59,FALSE) -> 0.9146093892 | HV83: =VLOOKUP("TC."&$HD83,'td1'!$AC$241:$AO$274,HV$59,FALSE) -> 0.9115914982 | HW83: =VLOOKUP("TC."&$HD83,'td1'!$AC$241:$AO$274,HW$59,FALSE) -> 0.9227920755 | HX83: =VLOOKUP("TC."&$HD83,'td1'!$AC$241:$AO$274,HX$59,FALSE) -> 0.9335889191 | HY83: =VLOOKUP("TC."&$HD83,'td1'!$AC$241:$AO$274,HY$59,FALSE) -> 0.9363599325 | HZ83: =VLOOKUP("TC."&$HD83,'td1'!$AC$241:$AO$274,HZ$59,FALSE) -> 0.9117264751 | IA83: =VLOOKUP("TC."&$HD83,'td1'!$AC$241:$AO$274,IA$59,FALSE) -> 0.9026442125 | IB83: =VLOOKUP("TC."&$HD83,'td1'!$AC$241:$AO$274,IB$59,FALSE) ->  | IC83: =VLOOKUP("TC."&$HD83,'td1'!$AC$241:$AO$274,IC$59,FALSE) ->  | ID83: =VLOOKUP("TC."&$HD83,'td1'!$AC$241:$AO$274,ID$59,FALSE) -> 
A84: caldas1 | B84: =+VLOOKUP("PA."&C84,'td1'!$AC$5:$AO$4140,$G$2,FALSE) -> 0.9417982709 | C84: 17 | BM84: 66 | BN84: Risaralda | BO84: =+VLOOKUP("PA."&$BM84,'td1'!$AC$281:$AO$313,BO$60,FALSE) -> 0.6848082226 | BP84: =+VLOOKUP("PA."&$BM84,'td1'!$AC$281:$AO$313,BP$60,FALSE) -> 0.8832929164 | BQ84: =+VLOOKUP("PA."&$BM84,'td1'!$AC$281:$AO$313,BQ$60,FALSE) -> 0.9694635962 | BR84: =+VLOOKUP("PA."&$BM84,'td1'!$AC$281:$AO$313,BR$60,FALSE) -> 0.928440985 | BS84: =+VLOOKUP("PA."&$BM84,'td1'!$AC$281:$AO$313,BS$60,FALSE) -> 0.8935878778 | BT84: =+VLOOKUP("PA."&$BM84,'td1'!$AC$281:$AO$313,BT$60,FALSE) -> 0.9518150863 | BU84: =+VLOOKUP("PA."&$BM84,'td1'!$AC$281:$AO$313,BU$60,FALSE) -> 0.9620837257 | BV84: =+VLOOKUP("PA."&$BM84,'td1'!$AC$281:$AO$313,BV$60,FALSE) -> 0.9333356315 | BW84: =+VLOOKUP("PA."&$BM84,'td1'!$AC$281:$AO$313,BW$60,FALSE) -> 0.9736212031 | BX84: =+VLOOKUP("PA."&$BM84,'td1'!$AC$281:$AO$313,BX$60,FALSE) ->  | BY84: =+VLOOKUP("PA."&$BM84,'td1'!$AC$281:$AO$313,BY$60,FALSE) ->  | BZ84: =+VLOOKUP("PA."&$BM84,'td1'!$AC$281:$AO$313,BZ$60,FALSE) ->  | CA84: 24 | CB84: 66 | CC84: Risaralda | CD84: 0.9736212031 | CE84: =+CE83 -> Eje Cafetero | CG84: Caldas | CH84: 0.9417982709 | CI84: Eje Cafetero4 | CJ84: Caldas | CK84: 0.9417982709 | CL84: =+CL83 -> cafetero | CM84: =VLOOKUP(CJ84,Referencias!$AB$3:$AE$40,4,FALSE) -> 17 | ES84: grafico 11 | FL84: =+VLOOKUP(FN84,Referencias!$R$2:$S$34,2,FALSE) -> 17 | FN84: =+CG84 -> Caldas | FO84: 0.9823227859 | FP84: 0.9174547666 | FQ84: 0.9174547666 | FR84: 0.8929676222 | FS84: 0.836989547 | FT84: 0.8031090202 | FU84: 0.7842329329 | GG84: 4 | GH84: 4 | GI84: 4 | GJ84: 3 | GK84: 3 | GL84: 3 | GM84: 2 | GX84: 3 | GY84: 3 | GZ84: 1 | HA84: 0 | HD84: =VLOOKUP(HE84,Referencias!$R$2:$S$34,2,FALSE) -> 17 | HE84: =+macroregionales!N33 -> Caldas | HF84: =+macroregionales!O33 -> 0.8887008134 | HG84: =+macroregionales!P33 -> 0.8832929164 | HH84: =+macroregionales!Q33 -> 0.9221800883 | HI84: =+macroregionales!R33 -> 0.8761112413 | HJ84: =+macroregionales!S33 -> 0.9033729989 | HK84: =+macroregionales!T33 -> 0.9479856649 | HL84: =+macroregionales!U33 -> 0.9718688468 | HM84: =+macroregionales!V33 -> 0.9659197463 | HN84: =+macroregionales!W33 -> 0.9417982709 | HO84: =+macroregionales!X33 ->  | HP84: =+macroregionales!Y33 ->  | HQ84: =+macroregionales!Z33 ->  | HS84: =VLOOKUP("TC."&$HD84,'td1'!$AC$241:$AO$274,HS$59,FALSE) -> 0.9052582335 | HT84: =VLOOKUP("TC."&$HD84,'td1'!$AC$241:$AO$274,HT$59,FALSE) -> 0.9038390514 | HU84: =VLOOKUP("TC."&$HD84,'td1'!$AC$241:$AO$274,HU$59,FALSE) -> 0.9376835237 | HV84: =VLOOKUP("TC."&$HD84,'td1'!$AC$241:$AO$274,HV$59,FALSE) -> 0.8956807261 | HW84: =VLOOKUP("TC."&$HD84,'td1'!$AC$241:$AO$274,HW$59,FALSE) -> 0.92164414 | HX84: =VLOOKUP("TC."&$HD84,'td1'!$AC$241:$AO$274,HX$59,FALSE) -> 0.9361520118 | HY84: =VLOOKUP("TC."&$HD84,'td1'!$AC$241:$AO$274,HY$59,FALSE) -> 0.9614735089 | HZ84: =VLOOKUP("TC."&$HD84,'td1'!$AC$241:$AO$274,HZ$59,FALSE) -> 0.9618429561 | IA84: =VLOOKUP("TC."&$HD84,'td1'!$AC$241:$AO$274,IA$59,FALSE) -> 0.935398773 | IB84: =VLOOKUP("TC."&$HD84,'td1'!$AC$241:$AO$274,IB$59,FALSE) ->  | IC84: =VLOOKUP("TC."&$HD84,'td1'!$AC$241:$AO$274,IC$59,FALSE) ->  | ID84: =VLOOKUP("TC."&$HD84,'td1'!$AC$241:$AO$274,ID$59,FALSE) -> 
A85: caqueta1 | B85: =+VLOOKUP("PA."&C85,'td1'!$AC$5:$AO$4140,$G$2,FALSE) -> 0.9931923764 | C85: 18 | CA85: 25 | CR85: BogotáCZ Ciudad Bolivar | CS85: 1 | CT85: Bogotá | CU85: 1101 | CV85: CZ Ciudad Bolivar | CW85: =+VLOOKUP("tc."&CU85,'td1'!$AC$2673:$AO$2881,$G$2,FALSE) -> 0.7033787973 | CY85: Bogotá1 | CZ85: 1130 | DA85: CZ Puente Aranda | DB85: 0.9723188864 | ES85: SIGE1 | ET85: =+VLOOKUP(ES85&"."&$ES$60,'td1'!$AC$5:$AO$4140,$G$2,FALSE) -> 
A86: cauca1 | B86: =+VLOOKUP("PA."&C86,'td1'!$AC$5:$AO$4140,$G$2,FALSE) -> 0.9872364503 | C86: 19 | BM86: 8 | BN86: Atlántico | BO86: =+VLOOKUP("PA."&$BM86,'td1'!$AC$281:$AO$313,BO$60,FALSE) -> 0.9598383696 | BP86: =+VLOOKUP("PA."&$BM86,'td1'!$AC$281:$AO$313,BP$60,FALSE) -> 0.7950388524 | BQ86: =+VLOOKUP("PA."&$BM86,'td1'!$AC$281:$AO$313,BQ$60,FALSE) -> 0.8988075569 | BR86: =+VLOOKUP("PA."&$BM86,'td1'!$AC$281:$AO$313,BR$60,FALSE) -> 0.8366672123 | BS86: =+VLOOKUP("PA."&$BM86,'td1'!$AC$281:$AO$313,BS$60,FALSE) -> 0.8841965585 | BT86: =+VLOOKUP("PA."&$BM86,'td1'!$AC$281:$AO$313,BT$60,FALSE) -> 0.9778034282 | BU86: =+VLOOKUP("PA."&$BM86,'td1'!$AC$281:$AO$313,BU$60,FALSE) -> 0.981653968 | BV86: =+VLOOKUP("PA."&$BM86,'td1'!$AC$281:$AO$313,BV$60,FALSE) -> 0.9696221732 | BW86: =+VLOOKUP("PA."&$BM86,'td1'!$AC$281:$AO$313,BW$60,FALSE) -> 0.9294401429 | BX86: =+VLOOKUP("PA."&$BM86,'td1'!$AC$281:$AO$313,BX$60,FALSE) ->  | BY86: =+VLOOKUP("PA."&$BM86,'td1'!$AC$281:$AO$313,BY$60,FALSE) ->  | BZ86: =+VLOOKUP("PA."&$BM86,'td1'!$AC$281:$AO$313,BZ$60,FALSE) ->  | CA86: 26 | CB86: 8 | CC86: Atlántico | CD86: 0.9294401429 | CE86: Caribe | CF86: Caribe | CG86: Bolívar | CH86: 0.9398570578 | CI86: Caribe1 | CJ86: Bolívar | CK86: 0.9398570578 | CL86: caribe | CM86: =VLOOKUP(CJ86,Referencias!$AB$3:$AE$40,4,FALSE) -> 13 | CR86: BogotáCZ Tunjuelito | CS86: 2 | CT86: Bogotá | CU86: 1102 | CV86: CZ Tunjuelito | CW86: =+VLOOKUP("tc."&CU86,'td1'!$AC$2673:$AO$2881,$G$2,FALSE) -> 0.8162798408 | CY86: Bogotá2 | CZ86: 1110 | DA86: CZ Barrios Unidos | DB86: 0.9669195483 | ES86: SIGE2 | ET86: =+VLOOKUP(ES86&"."&$ES$60,'td1'!$AC$5:$AO$4140,$G$2,FALSE) ->  | FL86: =+VLOOKUP(FN86,Referencias!$R$2:$S$34,2,FALSE) -> 13 | FM86: Caribe | FN86: =+CG86 -> Bolívar | FO86: =IFERROR(VLOOKUP($FN86&FO$60,$CY$60:$DB$300,4,FALSE),"") -> 0.9896385942 | FP86: 0.9689157825 | FQ86: 0.9631947 | FR86: 0.9212533156 | FS86: 0.8701067116 | FT86: 0.864097561 | FU86: 0.857442603 | FV86: 0.7779536253 | GG86: =+ IF(FO86="","",IF(FO86>90%,4,IF(FO86>80%,3,IF(FO86>70%,2,1)))) -> 4 | GH86: 4 | GI86: 4 | GJ86: 4 | GK86: 3 | GL86: 3 | GM86: 3 | GN86: 2 | GW86: =+ IF(GE86="","",IF(GE86>90%,4,IF(GE86>80%,3,IF(GE86>70%,2,1)))) ->  | GX86: 4 | GY86: 3 | GZ86: 1 | HA86: 0 | HD86: =VLOOKUP(HE86,Referencias!$R$2:$S$34,2,FALSE) -> 13 | HE86: =+macroregionales!N35 -> Bolívar | HF86: =+macroregionales!O35 -> 0.8657662948 | HG86: =+macroregionales!P35 -> 0.9145995218 | HH86: =+macroregionales!Q35 -> 0.8949500754 | HI86: =+macroregionales!R35 -> 0.8848911442 | HJ86: =+macroregionales!S35 -> 0.9327283623 | HK86: =+macroregionales!T35 -> 0.964610146 | HL86: =+macroregionales!U35 -> 0.9425134834 | HM86: =+macroregionales!V35 -> 0.9498414231 | HN86: =+macroregionales!W35 -> 0.9398570578 | HO86: =+macroregionales!X35 ->  | HP86: =+macroregionales!Y35 ->  | HQ86: =+macroregionales!Z35 ->  | HS86: =VLOOKUP("TC."&$HD86,'td1'!$AC$241:$AO$274,HS$59,FALSE) -> 0.8749452954 | HT86: =VLOOKUP("TC."&$HD86,'td1'!$AC$241:$AO$274,HT$59,FALSE) -> 0.9260879073 | HU86: =VLOOKUP("TC."&$HD86,'td1'!$AC$241:$AO$274,HU$59,FALSE) -> 0.8709244465 | HV86: =VLOOKUP("TC."&$HD86,'td1'!$AC$241:$AO$274,HV$59,FALSE) -> 0.904330197 | HW86: =VLOOKUP("TC."&$HD86,'td1'!$AC$241:$AO$274,HW$59,FALSE) -> 0.9144435156 | HX86: =VLOOKUP("TC."&$HD86,'td1'!$AC$241:$AO$274,HX$59,FALSE) -> 0.9574206183 | HY86: =VLOOKUP("TC."&$HD86,'td1'!$AC$241:$AO$274,HY$59,FALSE) -> 0.9297641882 | HZ86: =VLOOKUP("TC."&$HD86,'td1'!$AC$241:$AO$274,HZ$59,FALSE) -> 0.9561108959 | IA86: =VLOOKUP("TC."&$HD86,'td1'!$AC$241:$AO$274,IA$59,FALSE) -> 0.9416087922 | IB86: =VLOOKUP("TC."&$HD86,'td1'!$AC$241:$AO$274,IB$59,FALSE) ->  | IC86: =VLOOKUP("TC."&$HD86,'td1'!$AC$241:$AO$274,IC$59,FALSE) ->  | ID86: =VLOOKUP("TC."&$HD86,'td1'!$AC$241:$AO$274,ID$59,FALSE) -> 
A87: cesar1 | B87: =+VLOOKUP("PA."&C87,'td1'!$AC$5:$AO$4140,$G$2,FALSE) -> 0.9327754616 | C87: 20 | BM87: 13 | BN87: Bolívar | BO87: =+VLOOKUP("PA."&$BM87,'td1'!$AC$281:$AO$313,BO$60,FALSE) -> 0.8657662948 | BP87: =+VLOOKUP("PA."&$BM87,'td1'!$AC$281:$AO$313,BP$60,FALSE) -> 0.9145995218 | BQ87: =+VLOOKUP("PA."&$BM87,'td1'!$AC$281:$AO$313,BQ$60,FALSE) -> 0.8949500754 | BR87: =+VLOOKUP("PA."&$BM87,'td1'!$AC$281:$AO$313,BR$60,FALSE) -> 0.8848911442 | BS87: =+VLOOKUP("PA."&$BM87,'td1'!$AC$281:$AO$313,BS$60,FALSE) -> 0.9327283623 | BT87: =+VLOOKUP("PA."&$BM87,'td1'!$AC$281:$AO$313,BT$60,FALSE) -> 0.964610146 | BU87: =+VLOOKUP("PA."&$BM87,'td1'!$AC$281:$AO$313,BU$60,FALSE) -> 0.9425134834 | BV87: =+VLOOKUP("PA."&$BM87,'td1'!$AC$281:$AO$313,BV$60,FALSE) -> 0.9498414231 | BW87: =+VLOOKUP("PA."&$BM87,'td1'!$AC$281:$AO$313,BW$60,FALSE) -> 0.9398570578 | BX87: =+VLOOKUP("PA."&$BM87,'td1'!$AC$281:$AO$313,BX$60,FALSE) ->  | BY87: =+VLOOKUP("PA."&$BM87,'td1'!$AC$281:$AO$313,BY$60,FALSE) ->  | BZ87: =+VLOOKUP("PA."&$BM87,'td1'!$AC$281:$AO$313,BZ$60,FALSE) ->  | CA87: 27 | CB87: 13 | CC87: Bolívar | CD87: 0.9398570578 | CE87: =+CE86 -> Caribe | CG87: Cesar | CH87: 0.9327754616 | CI87: Caribe2 | CJ87: Cesar | CK87: 0.9327754616 | CL87: =+CL86 -> caribe | CM87: =VLOOKUP(CJ87,Referencias!$AB$3:$AE$40,4,FALSE) -> 20 | CR87: BogotáCZ Usme | CS87: 3 | CT87: Bogotá | CU87: 1103 | CV87: CZ Usme | CW87: =+VLOOKUP("tc."&CU87,'td1'!$AC$2673:$AO$2881,$G$2,FALSE) -> 0.8492805146 | CY87: Bogotá3 | CZ87: 1112 | DA87: CZ Fontibon | DB87: 0.9606266578 | ES87: SIGE4 | ET87: =+VLOOKUP(ES87&"."&$ES$60,'td1'!$AC$5:$AO$4140,$G$2,FALSE) ->  | FL87: =+VLOOKUP(FN87,Referencias!$R$2:$S$34,2,FALSE) -> 20 | FN87: Cesar | FO87: 0.9771932492 | FP87: 0.8710662021 | FQ87: 0.8528514589 | FR87: 0.8220794623 | FS87: 0.5973240833 | GG87: 4 | GH87: 3 | GI87: 3 | GJ87: 3 | GK87: 1 | GX87: 1 | GY87: 3 | GZ87: 0 | HA87: 1 | HD87: =VLOOKUP(HE87,Referencias!$R$2:$S$34,2,FALSE) -> 20 | HE87: =+macroregionales!N36 -> Cesar | HF87: =+macroregionales!O36 -> 1 | HG87: =+macroregionales!P36 -> 0.9316796175 | HH87: =+macroregionales!Q36 -> 0.9846059909 | HI87: =+macroregionales!R36 -> 0.9824603045 | HJ87: =+macroregionales!S36 -> 0.9796640729 | HK87: =+macroregionales!T36 -> 0.9933515059 | HL87: =+macroregionales!U36 -> 0.9902148789 | HM87: =+macroregionales!V36 -> 0.9961389961 | HN87: =+macroregionales!W36 -> 0.9327754616 | HO87: =+macroregionales!X36 ->  | HP87: =+macroregionales!Y36 ->  | HQ87: =+macroregionales!Z36 ->  | HS87: =VLOOKUP("TC."&$HD87,'td1'!$AC$241:$AO$274,HS$59,FALSE) -> 1 | HT87: =VLOOKUP("TC."&$HD87,'td1'!$AC$241:$AO$274,HT$59,FALSE) -> 0.9486442161 | HU87: =VLOOKUP("TC."&$HD87,'td1'!$AC$241:$AO$274,HU$59,FALSE) -> 0.9521114581 | HV87: =VLOOKUP("TC."&$HD87,'td1'!$AC$241:$AO$274,HV$59,FALSE) -> 0.9708478453 | HW87: =VLOOKUP("TC."&$HD87,'td1'!$AC$241:$AO$274,HW$59,FALSE) -> 0.9798590195 | HX87: =VLOOKUP("TC."&$HD87,'td1'!$AC$241:$AO$274,HX$59,FALSE) -> 0.9768635438 | HY87: =VLOOKUP("TC."&$HD87,'td1'!$AC$241:$AO$274,HY$59,FALSE) -> 0.9843548105 | HZ87: =VLOOKUP("TC."&$HD87,'td1'!$AC$241:$AO$274,HZ$59,FALSE) -> 0.9821063305 | IA87: =VLOOKUP("TC."&$HD87,'td1'!$AC$241:$AO$274,IA$59,FALSE) -> 0.9494139983 | IB87: =VLOOKUP("TC."&$HD87,'td1'!$AC$241:$AO$274,IB$59,FALSE) ->  | IC87: =VLOOKUP("TC."&$HD87,'td1'!$AC$241:$AO$274,IC$59,FALSE) ->  | ID87: =VLOOKUP("TC."&$HD87,'td1'!$AC$241:$AO$274,ID$59,FALSE) -> 
A88: cordoba1 | B88: =+VLOOKUP("PA."&C88,'td1'!$AC$5:$AO$4140,$G$2,FALSE) -> 0.8751008646 | C88: 23 | BM88: 20 | BN88: Cesar | BO88: =+VLOOKUP("PA."&$BM88,'td1'!$AC$281:$AO$313,BO$60,FALSE) -> 1 | BP88: =+VLOOKUP("PA."&$BM88,'td1'!$AC$281:$AO$313,BP$60,FALSE) -> 0.9316796175 | BQ88: =+VLOOKUP("PA."&$BM88,'td1'!$AC$281:$AO$313,BQ$60,FALSE) -> 0.9846059909 | BR88: =+VLOOKUP("PA."&$BM88,'td1'!$AC$281:$AO$313,BR$60,FALSE) -> 0.9824603045 | BS88: =+VLOOKUP("PA."&$BM88,'td1'!$AC$281:$AO$313,BS$60,FALSE) -> 0.9796640729 | BT88: =+VLOOKUP("PA."&$BM88,'td1'!$AC$281:$AO$313,BT$60,FALSE) -> 0.9933515059 | BU88: =+VLOOKUP("PA."&$BM88,'td1'!$AC$281:$AO$313,BU$60,FALSE) -> 0.9902148789 | BV88: =+VLOOKUP("PA."&$BM88,'td1'!$AC$281:$AO$313,BV$60,FALSE) -> 0.9961389961 | BW88: =+VLOOKUP("PA."&$BM88,'td1'!$AC$281:$AO$313,BW$60,FALSE) -> 0.9327754616 | BX88: =+VLOOKUP("PA."&$BM88,'td1'!$AC$281:$AO$313,BX$60,FALSE) ->  | BY88: =+VLOOKUP("PA."&$BM88,'td1'!$AC$281:$AO$313,BY$60,FALSE) ->  | BZ88: =+VLOOKUP("PA."&$BM88,'td1'!$AC$281:$AO$313,BZ$60,FALSE) ->  | CA88: 28 | CB88: 20 | CC88: Cesar | CD88: 0.9327754616 | CE88: =+CE87 -> Caribe | CG88: Atlántico | CH88: 0.9294401429 | CI88: Caribe3 | CJ88: Atlántico | CK88: 0.9294401429 | CL88: =+CL87 -> caribe | CM88: =VLOOKUP(CJ88,Referencias!$AB$3:$AE$40,4,FALSE) -> 8 | CR88: BogotáCZ San Cristobal Sur | CS88: 4 | CT88: Bogotá | CU88: 1104 | CV88: CZ San Cristobal Sur | CW88: =+VLOOKUP("tc."&CU88,'td1'!$AC$2673:$AO$2881,$G$2,FALSE) -> 0.8031167109 | CY88: Bogotá4 | CZ88: 1111 | DA88: CZ Suba | DB88: 0.9472828847 | ES88: SIGE5 | ET88: =+VLOOKUP(ES88&"."&$ES$60,'td1'!$AC$5:$AO$4140,$G$2,FALSE) ->  | FL88: =+VLOOKUP(FN88,Referencias!$R$2:$S$34,2,FALSE) -> 8 | FN88: Atlántico | FO88: 0.9958554377 | FP88: 0.9923297198 | FQ88: 0.9792771883 | FR88: 0.9539783187 | FS88: 0.9034814324 | FT88: 0.8675818815 | FU88: 0.864097561 | GG88: 4 | GH88: 4 | GI88: 4 | GJ88: 4 | GK88: 4 | GL88: 3 | GM88: 3 | GX88: 5 | GY88: 2 | GZ88: 0 | HA88: 0 | HD88: =VLOOKUP(HE88,Referencias!$R$2:$S$34,2,FALSE) -> 8 | HE88: =+macroregionales!N37 -> Atlántico | HF88: =+macroregionales!O37 -> 0.9598383696 | HG88: =+macroregionales!P37 -> 0.7950388524 | HH88: =+macroregionales!Q37 -> 0.8988075569 | HI88: =+macroregionales!R37 -> 0.8366672123 | HJ88: =+macroregionales!S37 -> 0.8841965585 | HK88: =+macroregionales!T37 -> 0.9778034282 | HL88: =+macroregionales!U37 -> 0.981653968 | HM88: =+macroregionales!V37 -> 0.9696221732 | HN88: =+macroregionales!W37 -> 0.9294401429 | HO88: =+macroregionales!X37 ->  | HP88: =+macroregionales!Y37 ->  | HQ88: =+macroregionales!Z37 ->  | HS88: =VLOOKUP("TC."&$HD88,'td1'!$AC$241:$AO$274,HS$59,FALSE) -> 0.9590439276 | HT88: =VLOOKUP("TC."&$HD88,'td1'!$AC$241:$AO$274,HT$59,FALSE) -> 0.7973868358 | HU88: =VLOOKUP("TC."&$HD88,'td1'!$AC$241:$AO$274,HU$59,FALSE) -> 0.9040400279 | HV88: =VLOOKUP("TC."&$HD88,'td1'!$AC$241:$AO$274,HV$59,FALSE) -> 0.8552000856 | HW88: =VLOOKUP("TC."&$HD88,'td1'!$AC$241:$AO$274,HW$59,FALSE) -> 0.853804851 | HX88: =VLOOKUP("TC."&$HD88,'td1'!$AC$241:$AO$274,HX$59,FALSE) -> 0.9707648663 | HY88: =VLOOKUP("TC."&$HD88,'td1'!$AC$241:$AO$274,HY$59,FALSE) -> 0.9740857466 | HZ88: =VLOOKUP("TC."&$HD88,'td1'!$AC$241:$AO$274,HZ$59,FALSE) -> 0.9695935706 | IA88: =VLOOKUP("TC."&$HD88,'td1'!$AC$241:$AO$274,IA$59,FALSE) -> 0.9497532228 | IB88: =VLOOKUP("TC."&$HD88,'td1'!$AC$241:$AO$274,IB$59,FALSE) ->  | IC88: =VLOOKUP("TC."&$HD88,'td1'!$AC$241:$AO$274,IC$59,FALSE) ->  | ID88: =VLOOKUP("TC."&$HD88,'td1'!$AC$241:$AO$274,ID$59,FALSE) -> 
A89: cundinamarca1 | B89: =+VLOOKUP("PA."&C89,'td1'!$AC$5:$AO$4140,$G$2,FALSE) -> 0.9863040838 | C89: 25 | BM89: 23 | BN89: Córdoba | BO89: =+VLOOKUP("PA."&$BM89,'td1'!$AC$281:$AO$313,BO$60,FALSE) -> 0.7650910159 | BP89: =+VLOOKUP("PA."&$BM89,'td1'!$AC$281:$AO$313,BP$60,FALSE) -> 0.8770261646 | BQ89: =+VLOOKUP("PA."&$BM89,'td1'!$AC$281:$AO$313,BQ$60,FALSE) -> 0.9478359002 | BR89: =+VLOOKUP("PA."&$BM89,'td1'!$AC$281:$AO$313,BR$60,FALSE) -> 0.9155227902 | BS89: =+VLOOKUP("PA."&$BM89,'td1'!$AC$281:$AO$313,BS$60,FALSE) -> 0.8404588648 | BT89: =+VLOOKUP("PA."&$BM89,'td1'!$AC$281:$AO$313,BT$60,FALSE) -> 0.9747042188 | BU89: =+VLOOKUP("PA."&$BM89,'td1'!$AC$281:$AO$313,BU$60,FALSE) -> 0.9082698399 | BV89: =+VLOOKUP("PA."&$BM89,'td1'!$AC$281:$AO$313,BV$60,FALSE) -> 0.8978764479 | BW89: =+VLOOKUP("PA."&$BM89,'td1'!$AC$281:$AO$313,BW$60,FALSE) -> 0.8751008646 | BX89: =+VLOOKUP("PA."&$BM89,'td1'!$AC$281:$AO$313,BX$60,FALSE) ->  | BY89: =+VLOOKUP("PA."&$BM89,'td1'!$AC$281:$AO$313,BY$60,FALSE) ->  | BZ89: =+VLOOKUP("PA."&$BM89,'td1'!$AC$281:$AO$313,BZ$60,FALSE) ->  | CA89: 29 | CB89: 23 | CC89: Córdoba | CD89: 0.8751008646 | CE89: Caribe | CG89: Magdalena | CH89: 0.9205598517 | CI89: Caribe4 | CJ89: Magdalena | CK89: 0.9205598517 | CL89: caribe | CM89: =VLOOKUP(CJ89,Referencias!$AB$3:$AE$40,4,FALSE) -> 47 | CR89: BogotáCZ Kennedy | CS89: 5 | CT89: Bogotá | CU89: 1105 | CV89: CZ Kennedy | CW89: =+VLOOKUP("tc."&CU89,'td1'!$AC$2673:$AO$2881,$G$2,FALSE) -> 0.7502155172 | CY89: Bogotá5 | CZ89: 1115 | DA89: CZ Bosa | DB89: 0.9338693634 | ES89: SIGE6 | ET89: =+VLOOKUP(ES89&"."&$ES$60,'td1'!$AC$5:$AO$4140,$G$2,FALSE) ->  | FL89: =+VLOOKUP(FN89,Referencias!$R$2:$S$34,2,FALSE) -> 47 | FN89: Magdalena | FO89: 1 | FP89: 0.9958554377 | FQ89: 0.9775628241 | FR89: 0.9675907459 | FS89: 0.8964181007 | FT89: 0.8073449477 | FU89: 0.7688082192 | FV89: 0.7533972603 | GG89: 4 | GH89: 4 | GI89: 4 | GJ89: 4 | GK89: 3 | GL89: 3 | GM89: 2 | GN89: 2 | GX89: 4 | GY89: 2 | GZ89: 2 | HA89: 0 | HD89: =VLOOKUP(HE89,Referencias!$R$2:$S$34,2,FALSE) -> 47 | HE89: =+macroregionales!N38 -> Magdalena | HF89: =+macroregionales!O38 -> 0.8657662948 | HG89: =+macroregionales!P38 -> 0.9813600783 | HH89: =+macroregionales!Q38 -> 0.968521853 | HI89: =+macroregionales!R38 -> 0.9918153544 | HJ89: =+macroregionales!S38 -> 0.9635035111 | HK89: =+macroregionales!T38 -> 0.9302582798 | HL89: =+macroregionales!U38 -> 0.9327283623 | HM89: =+macroregionales!V38 -> 0.9852247656 | HN89: =+macroregionales!W38 -> 0.9205598517 | HO89: =+macroregionales!X38 ->  | HP89: =+macroregionales!Y38 ->  | HQ89: =+macroregionales!Z38 ->  | HS89: =VLOOKUP("TC."&$HD89,'td1'!$AC$241:$AO$274,HS$59,FALSE) -> 0.868107221 | HT89: =VLOOKUP("TC."&$HD89,'td1'!$AC$241:$AO$274,HT$59,FALSE) -> 0.9787755996 | HU89: =VLOOKUP("TC."&$HD89,'td1'!$AC$241:$AO$274,HU$59,FALSE) -> 0.9602276862 | HV89: =VLOOKUP("TC."&$HD89,'td1'!$AC$241:$AO$274,HV$59,FALSE) -> 0.9804650906 | HW89: =VLOOKUP("TC."&$HD89,'td1'!$AC$241:$AO$274,HW$59,FALSE) -> 0.9344991835 | HX89: =VLOOKUP("TC."&$HD89,'td1'!$AC$241:$AO$274,HX$59,FALSE) -> 0.9199593128 | HY89: =VLOOKUP("TC."&$HD89,'td1'!$AC$241:$AO$274,HY$59,FALSE) -> 0.9149694736 | HZ89: =VLOOKUP("TC."&$HD89,'td1'!$AC$241:$AO$274,HZ$59,FALSE) -> 0.9794041219 | IA89: =VLOOKUP("TC."&$HD89,'td1'!$AC$241:$AO$274,IA$59,FALSE) -> 0.9437744803 | IB89: =VLOOKUP("TC."&$HD89,'td1'!$AC$241:$AO$274,IB$59,FALSE) ->  | IC89: =VLOOKUP("TC."&$HD89,'td1'!$AC$241:$AO$274,IC$59,FALSE) ->  | ID89: =VLOOKUP("TC."&$HD89,'td1'!$AC$241:$AO$274,ID$59,FALSE) -> 
A90: choco1 | B90: =+VLOOKUP("PA."&C90,'td1'!$AC$5:$AO$4140,$G$2,FALSE) -> 0.9813637617 | C90: 27 | BM90: 44 | BN90: Guajira | BO90: =+VLOOKUP("PA."&$BM90,'td1'!$AC$281:$AO$313,BO$60,FALSE) -> 1 | BP90: =+VLOOKUP("PA."&$BM90,'td1'!$AC$281:$AO$313,BP$60,FALSE) -> 0.8633592349 | BQ90: =+VLOOKUP("PA."&$BM90,'td1'!$AC$281:$AO$313,BQ$60,FALSE) -> 0.8454318865 | BR90: =+VLOOKUP("PA."&$BM90,'td1'!$AC$281:$AO$313,BR$60,FALSE) -> 0.8453634312 | BS90: =+VLOOKUP("PA."&$BM90,'td1'!$AC$281:$AO$313,BS$60,FALSE) -> 0.945258116 | BT90: =+VLOOKUP("PA."&$BM90,'td1'!$AC$281:$AO$313,BT$60,FALSE) -> 0.8721756174 | BU90: =+VLOOKUP("PA."&$BM90,'td1'!$AC$281:$AO$313,BU$60,FALSE) -> 0.9893560404 | BV90: =+VLOOKUP("PA."&$BM90,'td1'!$AC$281:$AO$313,BV$60,FALSE) -> 0.9505647405 | BW90: =+VLOOKUP("PA."&$BM90,'td1'!$AC$281:$AO$313,BW$60,FALSE) -> 0.907183392 | BX90: =+VLOOKUP("PA."&$BM90,'td1'!$AC$281:$AO$313,BX$60,FALSE) ->  | BY90: =+VLOOKUP("PA."&$BM90,'td1'!$AC$281:$AO$313,BY$60,FALSE) ->  | BZ90: =+VLOOKUP("PA."&$BM90,'td1'!$AC$281:$AO$313,BZ$60,FALSE) ->  | CA90: 30 | CB90: 44 | CC90: Guajira | CD90: 0.907183392 | CE90: Caribe | CG90: Guajira | CH90: 0.907183392 | CI90: Caribe5 | CJ90: Guajira | CK90: 0.907183392 | CL90: caribe | CM90: =VLOOKUP(CJ90,Referencias!$AB$3:$AE$40,4,FALSE) -> 44 | CR90: BogotáCZ Revivir | CS90: 6 | CT90: Bogotá | CU90: 1106 | CV90: CZ Revivir | CW90: =+VLOOKUP("tc."&CU90,'td1'!$AC$2673:$AO$2881,$G$2,FALSE) -> 0.6492028179 | CY90: Bogotá6 | CZ90: 1101 | DA90: CZ Rafael Uribe | DB90: 0.9128481432 | ES90: SIGE9 | ET90: =+VLOOKUP(ES90&"."&$ES$60,'td1'!$AC$5:$AO$4140,$G$2,FALSE) ->  | FL90: =+VLOOKUP(FN90,Referencias!$R$2:$S$34,2,FALSE) -> 44 | FN90: Guajira | FO90: 0.9960455552 | FP90: 0.9616485989 | FQ90: 0.8814139618 | FR90: 0.7989721485 | FS90: 0.7815538765 | FT90: 0.5974698102 | GG90: 4 | GH90: 4 | GI90: 3 | GJ90: 2 | GK90: 2 | GL90: 1 | GX90: 2 | GY90: 1 | GZ90: 2 | HA90: 1 | HD90: =VLOOKUP(HE90,Referencias!$R$2:$S$34,2,FALSE) -> 44 | HE90: =+macroregionales!N39 -> Guajira | HF90: =+macroregionales!O39 -> 1 | HG90: =+macroregionales!P39 -> 0.8633592349 | HH90: =+macroregionales!Q39 -> 0.8454318865 | HI90: =+macroregionales!R39 -> 0.8453634312 | HJ90: =+macroregionales!S39 -> 0.945258116 | HK90: =+macroregionales!T39 -> 0.8721756174 | HL90: =+macroregionales!U39 -> 0.9893560404 | HM90: =+macroregionales!V39 -> 0.9505647405 | HN90: =+macroregionales!W39 -> 0.907183392 | HO90: =+macroregionales!X39 ->  | HP90: =+macroregionales!Y39 ->  | HQ90: =+macroregionales!Z39 ->  | HS90: =VLOOKUP("TC."&$HD90,'td1'!$AC$241:$AO$274,HS$59,FALSE) -> 1 | HT90: =VLOOKUP("TC."&$HD90,'td1'!$AC$241:$AO$274,HT$59,FALSE) -> 0.859828707 | HU90: =VLOOKUP("TC."&$HD90,'td1'!$AC$241:$AO$274,HU$59,FALSE) -> 0.8378997588 | HV90: =VLOOKUP("TC."&$HD90,'td1'!$AC$241:$AO$274,HV$59,FALSE) -> 0.8662829791 | HW90: =VLOOKUP("TC."&$HD90,'td1'!$AC$241:$AO$274,HW$59,FALSE) -> 0.9273443042 | HX90: =VLOOKUP("TC."&$HD90,'td1'!$AC$241:$AO$274,HX$59,FALSE) -> 0.8837501648 | HY90: =VLOOKUP("TC."&$HD90,'td1'!$AC$241:$AO$274,HY$59,FALSE) -> 0.950394236 | HZ90: =VLOOKUP("TC."&$HD90,'td1'!$AC$241:$AO$274,HZ$59,FALSE) -> 0.9408470588 | IA90: =VLOOKUP("TC."&$HD90,'td1'!$AC$241:$AO$274,IA$59,FALSE) -> 0.9060609971 | IB90: =VLOOKUP("TC."&$HD90,'td1'!$AC$241:$AO$274,IB$59,FALSE) ->  | IC90: =VLOOKUP("TC."&$HD90,'td1'!$AC$241:$AO$274,IC$59,FALSE) ->  | ID90: =VLOOKUP("TC."&$HD90,'td1'!$AC$241:$AO$274,ID$59,FALSE) -> 
A91: huila1 | B91: =+VLOOKUP("PA."&C91,'td1'!$AC$5:$AO$4140,$G$2,FALSE) -> 0.9481210375 | C91: 41 | BM91: 47 | BN91: Magdalena | BO91: =+VLOOKUP("PA."&$BM91,'td1'!$AC$281:$AO$313,BO$60,FALSE) -> 0.8657662948 | BP91: =+VLOOKUP("PA."&$BM91,'td1'!$AC$281:$AO$313,BP$60,FALSE) -> 0.9813600783 | BQ91: =+VLOOKUP("PA."&$BM91,'td1'!$AC$281:$AO$313,BQ$60,FALSE) -> 0.968521853 | BR91: =+VLOOKUP("PA."&$BM91,'td1'!$AC$281:$AO$313,BR$60,FALSE) -> 0.9918153544 | BS91: =+VLOOKUP("PA."&$BM91,'td1'!$AC$281:$AO$313,BS$60,FALSE) -> 0.9635035111 | BT91: =+VLOOKUP("PA."&$BM91,'td1'!$AC$281:$AO$313,BT$60,FALSE) -> 0.9302582798 | BU91: =+VLOOKUP("PA."&$BM91,'td1'!$AC$281:$AO$313,BU$60,FALSE) -> 0.9327283623 | BV91: =+VLOOKUP("PA."&$BM91,'td1'!$AC$281:$AO$313,BV$60,FALSE) -> 0.9852247656 | BW91: =+VLOOKUP("PA."&$BM91,'td1'!$AC$281:$AO$313,BW$60,FALSE) -> 0.9205598517 | BX91: =+VLOOKUP("PA."&$BM91,'td1'!$AC$281:$AO$313,BX$60,FALSE) ->  | BY91: =+VLOOKUP("PA."&$BM91,'td1'!$AC$281:$AO$313,BY$60,FALSE) ->  | BZ91: =+VLOOKUP("PA."&$BM91,'td1'!$AC$281:$AO$313,BZ$60,FALSE) ->  | CA91: 31 | CB91: 47 | CC91: Magdalena | CD91: 0.9205598517 | CE91: Caribe | CG91: Sucre | CH91: 0.902920871 | CI91: Caribe6 | CJ91: Sucre | CK91: 0.902920871 | CL91: caribe | CM91: =VLOOKUP(CJ91,Referencias!$AB$3:$AE$40,4,FALSE) -> 70 | CR91: BogotáCZ Puente Aranda | CS91: 7 | CT91: Bogotá | CU91: 1107 | CV91: CZ Puente Aranda | CW91: =+VLOOKUP("tc."&CU91,'td1'!$AC$2673:$AO$2881,$G$2,FALSE) -> 0.9723188864 | CY91: Bogotá7 | CZ91: 1107 | DA91: CZ Usme | DB91: 0.8492805146 | FL91: =+VLOOKUP(FN91,Referencias!$R$2:$S$34,2,FALSE) -> 70 | FN91: Sucre | FO91: 0.964205359 | FP91: 0.8867456446 | FQ91: 0.8750223814 | FR91: 0.8681369863 | GG91: 4 | GH91: 3 | GI91: 3 | GJ91: 3 | GX91: 1 | GY91: 3 | GZ91: 0 | HA91: 0 | HD91: =VLOOKUP(HE91,Referencias!$R$2:$S$34,2,FALSE) -> 70 | HE91: =+macroregionales!N40 -> Sucre | HF91: =+macroregionales!O40 -> 0.9598383696 | HG91: =+macroregionales!P40 -> 0.8633592349 | HH91: =+macroregionales!Q40 -> 0.9079963988 | HI91: =+macroregionales!R40 -> 0.8808724832 | HJ91: =+macroregionales!S40 -> 0.9362782312 | HK91: =+macroregionales!T40 -> 0.9708596503 | HL91: =+macroregionales!U40 -> 0.9905105333 | HM91: =+macroregionales!V40 -> 0.8301998353 | HN91: =+macroregionales!W40 -> 0.902920871 | HO91: =+macroregionales!X40 ->  | HP91: =+macroregionales!Y40 ->  | HQ91: =+macroregionales!Z40 ->  | HS91: =VLOOKUP("TC."&$HD91,'td1'!$AC$241:$AO$274,HS$59,FALSE) -> 0.9651744026 | HT91: =VLOOKUP("TC."&$HD91,'td1'!$AC$241:$AO$274,HT$59,FALSE) -> 0.9017748426 | HU91: =VLOOKUP("TC."&$HD91,'td1'!$AC$241:$AO$274,HU$59,FALSE) -> 0.907033985 | HV91: =VLOOKUP("TC."&$HD91,'td1'!$AC$241:$AO$274,HV$59,FALSE) -> 0.8883479563 | HW91: =VLOOKUP("TC."&$HD91,'td1'!$AC$241:$AO$274,HW$59,FALSE) -> 0.9420442166 | HX91: =VLOOKUP("TC."&$HD91,'td1'!$AC$241:$AO$274,HX$59,FALSE) -> 0.9656588395 | HY91: =VLOOKUP("TC."&$HD91,'td1'!$AC$241:$AO$274,HY$59,FALSE) -> 0.9659591148 | HZ91: =VLOOKUP("TC."&$HD91,'td1'!$AC$241:$AO$274,HZ$59,FALSE) -> 0.8720532937 | IA91: =VLOOKUP("TC."&$HD91,'td1'!$AC$241:$AO$274,IA$59,FALSE) -> 0.9318162335 | IB91: =VLOOKUP("TC."&$HD91,'td1'!$AC$241:$AO$274,IB$59,FALSE) ->  | IC91: =VLOOKUP("TC."&$HD91,'td1'!$AC$241:$AO$274,IC$59,FALSE) ->  | ID91: =VLOOKUP("TC."&$HD91,'td1'!$AC$241:$AO$274,ID$59,FALSE) -> 
A92: guajira1 | B92: =+VLOOKUP("PA."&C92,'td1'!$AC$5:$AO$4140,$G$2,FALSE) -> 0.907183392 | C92: 44 | BM92: 70 | BN92: Sucre | BO92: =+VLOOKUP("PA."&$BM92,'td1'!$AC$281:$AO$313,BO$60,FALSE) -> 0.9598383696 | BP92: =+VLOOKUP("PA."&$BM92,'td1'!$AC$281:$AO$313,BP$60,FALSE) -> 0.8633592349 | BQ92: =+VLOOKUP("PA."&$BM92,'td1'!$AC$281:$AO$313,BQ$60,FALSE) -> 0.9079963988 | BR92: =+VLOOKUP("PA."&$BM92,'td1'!$AC$281:$AO$313,BR$60,FALSE) -> 0.8808724832 | BS92: =+VLOOKUP("PA."&$BM92,'td1'!$AC$281:$AO$313,BS$60,FALSE) -> 0.9362782312 | BT92: =+VLOOKUP("PA."&$BM92,'td1'!$AC$281:$AO$313,BT$60,FALSE) -> 0.9708596503 | BU92: =+VLOOKUP("PA."&$BM92,'td1'!$AC$281:$AO$313,BU$60,FALSE) -> 0.9905105333 | BV92: =+VLOOKUP("PA."&$BM92,'td1'!$AC$281:$AO$313,BV$60,FALSE) -> 0.8301998353 | BW92: =+VLOOKUP("PA."&$BM92,'td1'!$AC$281:$AO$313,BW$60,FALSE) -> 0.902920871 | BX92: =+VLOOKUP("PA."&$BM92,'td1'!$AC$281:$AO$313,BX$60,FALSE) ->  | BY92: =+VLOOKUP("PA."&$BM92,'td1'!$AC$281:$AO$313,BY$60,FALSE) ->  | BZ92: =+VLOOKUP("PA."&$BM92,'td1'!$AC$281:$AO$313,BZ$60,FALSE) ->  | CA92: 32 | CB92: 70 | CC92: Sucre | CD92: 0.902920871 | CE92: Caribe | CG92: San Andrés | CH92: 0.8987917841 | CI92: Caribe7 | CJ92: San Andrés | CK92: 0.8987917841 | CL92: caribe | CM92: =VLOOKUP(CJ92,Referencias!$AB$3:$AE$40,4,FALSE) -> 88 | CR92: BogotáCZ Bosa | CS92: 8 | CT92: Bogotá | CU92: 1108 | CV92: CZ Bosa | CW92: =+VLOOKUP("tc."&CU92,'td1'!$AC$2673:$AO$2881,$G$2,FALSE) -> 0.9338693634 | CY92: Bogotá8 | CZ92: 1102 | DA92: CZ Usaquen | DB92: 0.8460986382 | FL92: =+VLOOKUP(FN92,Referencias!$R$2:$S$34,2,FALSE) -> 88 | FN92: San Andrés | FO92: 0.9730603448 | GG92: 4 | GX92: 1 | GY92: 0 | GZ92: 0 | HA92: 0 | HD92: =VLOOKUP(HE92,Referencias!$R$2:$S$34,2,FALSE) -> 88 | HE92: =+macroregionales!N41 -> San Andrés | HF92: =+macroregionales!O41 -> 1 | HG92: =+macroregionales!P41 -> 0.8798651548 | HH92: =+macroregionales!Q41 -> 0.9858417103 | HI92: =+macroregionales!R41 -> 0.7837092227 | HJ92: =+macroregionales!S41 -> 0.979266017 | HK92: =+macroregionales!T41 -> 0.8667032536 | HL92: =+macroregionales!U41 -> 0.9832383507 | HM92: =+macroregionales!V41 -> 0.9886221413 | HN92: =+macroregionales!W41 -> 0.8987917841 | HO92: =+macroregionales!X41 ->  | HP92: =+macroregionales!Y41 ->  | HQ92: =+macroregionales!Z41 ->  | HS92: =VLOOKUP("TC."&$HD92,'td1'!$AC$241:$AO$274,HS$59,FALSE) -> 1 | HT92: =VLOOKUP("TC."&$HD92,'td1'!$AC$241:$AO$274,HT$59,FALSE) -> 0.9193735499 | HU92: =VLOOKUP("TC."&$HD92,'td1'!$AC$241:$AO$274,HU$59,FALSE) -> 0.9708444514 | HV92: =VLOOKUP("TC."&$HD92,'td1'!$AC$241:$AO$274,HV$59,FALSE) -> 0.7887881344 | HW92: =VLOOKUP("TC."&$HD92,'td1'!$AC$241:$AO$274,HW$59,FALSE) -> 0.9619820048 | HX92: =VLOOKUP("TC."&$HD92,'td1'!$AC$241:$AO$274,HX$59,FALSE) -> 0.9067561293 | HY92: =VLOOKUP("TC."&$HD92,'td1'!$AC$241:$AO$274,HY$59,FALSE) -> 0.978893524 | HZ92: =VLOOKUP("TC."&$HD92,'td1'!$AC$241:$AO$274,HZ$59,FALSE) -> 0.9727870613 | IA92: =VLOOKUP("TC."&$HD92,'td1'!$AC$241:$AO$274,IA$59,FALSE) -> 0.9383890993 | IB92: =VLOOKUP("TC."&$HD92,'td1'!$AC$241:$AO$274,IB$59,FALSE) ->  | IC92: =VLOOKUP("TC."&$HD92,'td1'!$AC$241:$AO$274,IC$59,FALSE) ->  | ID92: =VLOOKUP("TC."&$HD92,'td1'!$AC$241:$AO$274,ID$59,FALSE) -> 
